Workbook

Sheet notes (hidden)
A1: FY20 Chapter 70
A3: Tabs | B3: What happens on this sheet | C3: Data source (if any) | D3: Notes
A4: Parameters | B4: Allows the user to adjust all of the policy levers in Chapter 70, except for changes to foundation. Foundation budget scenarios can be changed, but they must 1st be run separately and dropped into localcont (all the way to the right). Up to 11 alternatives can be included. | D4: Updated table for graph re: "additional increments toward target" to include 175%CEY increment
A5: Index | B5: Controls the district being viewed for all reports except regional dist members | C5: Dropdown box reads LEAs
A6: Rates | B6: CY and PY foundation budget rates Used to calculate foundation budget report | C6: Copied in from found file
A7: Foundation Budget | B7: 1 district report showing build-up of foundation budget | C7: Rates, dist435 | D7: labels
A8: Municipal Contribution | B8: 1 city/town report showing build-up of required local contribution (municipal level) | C8: townwide contributions | D8: labels
A9: Regional Allocation | B9: 1 city/town report showing allocation of total municipal required local contribution based on proportion of foundation budget at each district to which it belongs | C9: localcont | D9: labels
A10: Summary | B10: 1 district report summarizing C70 calculation and comparison to PY | C10: aid436, disthist | D10: labels
A11: Regional Dist Members | B11: 1 regional district report summarizing enrollment and local contribution for each member town Changed in FY18 to vlookup on localcont | C11: localcont, leas | D11: June 2019: updated sheet to present foundation enrollment and local contribution for each town-to-regional-district combination
A12: LocalCont | B12: Results from distfrac get copied into the far right (up to 11 versions of foundation budget can be entered). Toggle is on parameters sheet. Data is organized in 5 row format for each city/town (municipality and its districts, blanks are 998 and total is 999). Used to calculate each municipal-district combination's RLC. | C12: found file, distfrac (allocate sheet) | D12: Copied in FY19 foundation budget, %s, RLCs and enro.
A14: Comparison to FY19 | B14: 2 year comparison for operating districts | C14: aid436, disthist, localcont
A15: Townwide Contributions | B15: Calculates municipal required local contributions | C15: DOR (EQV, Income, MRGFs), PY file (RLCs), parameters | D15: Copied in FY19 RLCs into PY RLC column
A16: Aid436 | B16: Calculates district Ch 70 aid | C16: disthist, localcont, frac, parameters Starting w/ LEA 406, in col J (target aid %), formula changes to pull from frac tab. | D16: Added option in cell AK6 for macro to hold districts harmless to FY20 Senate budget Ch.70 (S.2235)
A17: Frac | B17: Calculates target aid percentage for regional districts | D17: updated
A18: DistHist | B18: ***Don't forget to copy in target aid %s from PY Historical C70 data used in summary report, and other places | D18: Copied in FY19 FB, RLC and Aid Copied in target aid %s from FY19*** For info on FY19 base aid adjustments, see column AW.
A19: Dist435 | B19: Data source for foundation budget report, shows detailed enrollment and budget columns | C19: found20 | D19: 10/24/2019 removed Eco Dis Supplement enrollment column
A21: Data | B21: Source | C21: Year | D21: Notes
A22: Inflation | B22: BEA website | C22: Q3 2017 to Q3 2018 as of Dec 2018 (3.75%) | D22: Table 1.1.9. Implicit Price Deflators for Gross Domestic Product
A23: Wage Adjustment Factor Inputs | B23: EOLWD | C23: Calendar Year 2017 | D23: wagesense20
A24: EQV | B24: DOR | C24: 2018 EQV | D24: DOR file Dec. 2018
A25: Income | B25: DOR | C25: 2016 Income | D25: DOR file Dec. 2018
A26: Enrollment | B26: DESE | C26: FY20 | D26: found20
A27: Postgrad Enrollment | B27: DESE-CVTE office | C27: FY20 | D27: FY20
A28: MRGFs | B28: DOR/ANF | C28: FY20 | D28: DOR 12/29/2018

Sheet parameters (hidden)
A1: Cyr | B1: ="FY"&C1 -> FY20 | C1: 20
A2: Pyr | B2: ="FY"&C2 -> FY19 | C2: 19
A3: As of | B3: 2019-10-24
A5: Parameters | D5: Base | K5: Analysis of Aggregate Wealth Model Implementation
B6: Which version of foundation budget? | C6: 1 | D6: 1 | G6: FY19 C70 | H6: =4906614765.80212+308558 -> 4906923324
B7: Effort reduction | C7: 1 | D7: 0 | K7: Progress Towards Target Local Share
B8: Pct downpayment on target aid share | C8: 0 | D8: 0 | G8: FY20 foundation aid increase | H8: ='Aid436'!K448 -> 256012383.8
D9: 0 | L9: FY07 | M9: FY08 | N9: FY09 | O9: FY10 | P9: FY11 | Q9: FY12 | R9: FY13 | S9: FY14 | T9: FY15 | U9: FY16 | V9: FY17 | W9: FY18 | X9: FY19 | Y9: FY20
G10: Minimum per pupil aid increase | H10: ='Aid436'!AH448 -> 11538684.49 | K10: excess effort before effort reduction | L10: 621.084157 | M10: 494.058912 | N10: 372.382091 | O10: 228.110232 | P10: 366 | Q10: 293.3 | R10: 229.8 | S10: 234.5 | T10: 307.903014 | U10: 235.358789 | V10: 299.86437 | W10: 151.670894 | X10: 68.664221 | Y10: ='Townwide Contributions'!T361/1000000 -> 21.435137
G11: Non-op reduction | H11: ='Aid436'!AJ448 -> 163047.5184 | K11: effort reduction | L11: 124.2168314 | M11: 123.514728 | N11: 122.88609 | O11: 34.216535 | P11: 109.8 | Q11: 58.7 | R11: 34.5 | S11: 35.2 | T11: 153.951507 | U11: 117.6793945 | V11: 254.8847145 | W11: 128.9202599 | X11: 68.664221 | Y11: ='Townwide Contributions'!U361/1000000 -> 21.435137
G12: FY20 Chapter 70 | H12: ='Aid436'!AL448 -> 5175694094 | K12: net excess after effort reduction | L12: 496.8673256 | M12: 370.544184 | N12: 249.496001 | O12: 193.893697 | P12: 256.2 | Q12: =Q10-Q11 -> 234.6 | R12: =R10-R11 -> 195.3 | S12: 199.3 | T12: 152.0806983 | U12: 117.4829132 | V12: 44.97879348 | W12: 22.74921402 | X12: 0 | Y12: ='Townwide Contributions'!AB361/1000000 -> 0
G13: Devens | H13: =308558 -> 308558 | K13: shortfall below target before increment | L13: -321.452322 | M13: -352.174875 | N13: -359.193563 | O13: -427.2 | P13: -228 | Q13: -211 | R13: -200 | S13: -180.2 | T13: -162.972215 | U13: -132.627218 | V13: -96.928091 | W13: -103.17317 | X13: -117.254713 | Y13: ='Townwide Contributions'!Z361/1000000 -> -207.485209
B14: Per pupil guaranteed increase | C14: 30 | D14: 0 | K14: additional increments toward target | L14: 0 | M14: -19.739149 | N14: -21.387588 | O14: -121.2 | P14: -10.6 | Q14: -10 | R14: -4.2 | S14: -3.9 | T14: -7.563093 | U14: -5.848739 | V14: -2.474215 | W14: -3.628178 | X14: -5.320349 | Y14: =('Townwide Contributions'!S361/1000000*-1)+('Townwide Contributions'!V361/1000000*-1) -> -19.253945
B15: Which version of mrgf? | C15: 1 | D15: 1 | G15: Change in C70 Appropriation | H15: =H12+H13-H6 -> 269079328.2 | K15: net shortfall below target after increment | L15: -321.452322 | M15: -332.435726 | N15: -337.805975 | O15: -306 | P15: -217.4 | Q15: -200.9 | R15: -195.7 | S15: -176.3 | T15: -155.409122 | U15: -126.778479 | V15: -94.453876 | W15: -99.544992 | X15: -111.934364 | Y15: ='Townwide Contributions'!AA361/1000000 -> -188.231264
B16: Below effort threshold 1 | C16: 2.5 | D16: 2.5 | G16: Percent Change | H16: =H15/H6 -> 0.05483666861 | K16: n of municipalities with effort too high | L16: 232 | M16: 218 | N16: 214 | O16: 193 | P16: 282 | Q16: 257 | R16: 249 | S16: 255 | T16: 279 | U16: 278 | V16: 303 | W16: 291 | X16: 0 | Y16: ='Townwide Contributions'!AB364 -> 0
B17: Below effort threshold 2 | C17: 7.5 | D17: 7.5
B18: Below effort contribution increment, 5-10% under | C18: 0.01 | D18: 0.01 | G18: N of Foundation Aid Districts | H18: ='Aid436'!Z448 -> 144
B19: Below effort contribution increment, >10% under | C19: 0.02 | D19: 0.02 | G19: N of Districts with an Aid Increase | H19: ='Comparison to FY19'!O331 -> 318
B20: Maximum local contribution pct of foundation | C20: 0.825 | D20: 0.825 | G20: Total C70 Including Devens | H20: =H12+H13 -> 5176002652
B21: Statewide target for local contribution % of foundation | C21: 0.59 | D21: 0.59
B22: Cap contributions at fixed percentage of foundation | C22: 0.9 | D22: 0.9
B23: Percentage cut to base aid | C23: 0 | D23: 0
A24: Eqv/income percentages
B26: Target effort | C26: =C21*localcont!K1765 -> 6701838622
B27: Effort based upon following percentages | C27: ='Townwide Contributions'!J361 -> 6701838626
B28: Difference from target | C28: =IF(ABS(C27-C26)<10,0,C27-C26) -> 0
B29: Percentage of EQV | C29: 0.003455847976
B30: Percentage of INCOME | C30: =C29*1/C34 -> 0.01498093585
B32: Total EQV | C32: ='Townwide Contributions'!C361 -> 1249672575100
B33: Total Income | C33: ='Townwide Contributions'!E361 -> 2.882782813e+11
B34: State Average % of EQV | C34: =C33/C32 -> 0.2306830502
A37: See Progress Towards Targets
K42: Progress Towards Target Aid Share
L44: FY07 | M44: FY08 | N44: FY09 | O44: FY10 | P44: FY11 | Q44: FY12 | R44: FY13 | S44: FY14 | T44: FY15 | U44: FY16 | V44: FY17 | W44: FY18 | X44: FY19 | Y44: FY20
K45: aid above target | L45: 394.9 | M45: 421 | N45: 440.4 | O45: 413.5991456 | P45: 489.2905867 | Q45: 360.5802896 | R45: 372.9139726 | S45: 385.3 | T45: 404.6539336 | U45: 419.0730779 | V45: 488.1362137 | W45: 497.4038449 | X45: 487.8069694 | Y45: ='Aid436'!AS449/1000000 -> 518.4487954
K46: aid below target | L46: -176.3 | M46: -143 | N46: -105.5 | O46: -97.82363262 | P46: -75.73073977 | Q46: -110.4290612 | R46: -84.70629692 | S46: -66.9 | T46: -49.39921427 | U46: -44.48798888 | V46: -13.01302676 | W46: -7.202688836 | X46: -0.01809683687 | Y46: ='Aid436'!AS450/1000000 -> -0.001189981026
C50: =TEXT(effortred,"0%") -> 100%

Sheet Index
A1: Massachusetts Department of Elementary and Secondary Education | J1: 2019-10-24
A2: =parameters!B1& " Chapter 70 and Net School Spending Formula Spreadsheet" -> FY20 Chapter 70 and Net School Spending Formula Spreadsheet
B3: Select or type full district name below | C3: LEA code
A4: =C4 -> 999 | B4: State Total | C4: =VLOOKUP(B4,leas!$E$4:$F$446,2,FALSE) -> 999
B6: Use the drop-down menu to select a municipal or regional district and then go to any of the first four links below.
B7: Only municipal district selections will activate the Municipal Contribution Requirement and Regional Allocation reports.
B8: A list of LEAs by code begins on row 26 of this sheet.
B10: We recommend that you save this workbook to your computer before proceeding, then leave this browser, and open the workbook using Excel or My Computer.
B12: Summary
B13: Foundation Budget
B14: Municipal Contribution Requirement
B15: Regional Allocation
B17: Regional District Detail | D17: (go to this sheet to see any particular regional district's comparison of enrollment and minimum contributions to the prior year)
B19: There are also a number of "hidden" sheets which contain the underlying spreadsheet calculations.
B20: They can be accessed by right-clicking on any of the tabs below and choosing a sheet to unhide.
B22: Questions or comments about Chapter 70 may be directed to:
B23: Rob O'Donnell | D23: rodonnell@doe.mass.edu | G23: 781-338-6512
B24: Rob Hanna | D24: robert.hanna@doe.mass.edu | G24: 781-338-6525
A26: LEA | B26: District
A27: 1 | B27: Abington
A28: 2 | B28: Acton
A29: 3 | B29: Acushnet
A30: 4 | B30: Adams
A31: 5 | B31: Agawam
A32: 6 | B32: Alford
A33: 7 | B33: Amesbury
A34: 8 | B34: Amherst
A35: 9 | B35: Andover
A36: 10 | B36: Arlington
A37: 11 | B37: Ashburnham
A38: 12 | B38: Ashby
A39: 13 | B39: Ashfield
A40: 14 | B40: Ashland
A41: 15 | B41: Athol
A42: 16 | B42: Attleboro
A43: 17 | B43: Auburn
A44: 18 | B44: Avon
A45: 19 | B45: Ayer
A46: 20 | B46: Barnstable
A47: 21 | B47: Barre
A48: 22 | B48: Becket
A49: 23 | B49: Bedford
A50: 24 | B50: Belchertown
A51: 25 | B51: Bellingham
A52: 26 | B52: Belmont
A53: 27 | B53: Berkley
A54: 28 | B54: Berlin
A55: 29 | B55: Bernardston
A56: 30 | B56: Beverly
A57: 31 | B57: Billerica
A58: 32 | B58: Blackstone
A59: 33 | B59: Blandford
A60: 34 | B60: Bolton
A61: 35 | B61: Boston
A62: 36 | B62: Bourne
A63: 37 | B63: Boxborough
A64: 38 | B64: Boxford
A65: 39 | B65: Boylston
A66: 40 | B66: Braintree
A67: 41 | B67: Brewster
A68: 42 | B68: Bridgewater
A69: 43 | B69: Brimfield
A70: 44 | B70: Brockton
A71: 45 | B71: Brookfield
A72: 46 | B72: Brookline
A73: 47 | B73: Buckland
A74: 48 | B74: Burlington
A75: 49 | B75: Cambridge
A76: 50 | B76: Canton
A77: 51 | B77: Carlisle
A78: 52 | B78: Carver
A79: 53 | B79: Charlemont
A80: 54 | B80: Charlton
A81: 55 | B81: Chatham
A82: 56 | B82: Chelmsford
A83: 57 | B83: Chelsea
A84: 58 | B84: Cheshire
A85: 59 | B85: Chester
A86: 60 | B86: Chesterfield
A87: 61 | B87: Chicopee
A88: 62 | B88: Chilmark
A89: 63 | B89: Clarksburg
A90: 64 | B90: Clinton
A91: 65 | B91: Cohasset
A92: 66 | B92: Colrain
A93: 67 | B93: Concord
A94: 68 | B94: Conway
A95: 69 | B95: Cummington
A96: 70 | B96: Dalton
A97: 71 | B97: Danvers
A98: 72 | B98: Dartmouth
A99: 73 | B99: Dedham
A100: 74 | B100: Deerfield
A101: 75 | B101: Dennis
A102: 76 | B102: Dighton
A103: 77 | B103: Douglas
A104: 78 | B104: Dover
A105: 79 | B105: Dracut
A106: 80 | B106: Dudley
A107: 81 | B107: Dunstable
A108: 82 | B108: Duxbury
A109: 83 | B109: East Bridgewater
A110: 84 | B110: East Brookfield
A111: 85 | B111: Eastham
A112: 86 | B112: Easthampton
A113: 87 | B113: East Longmeadow
A114: 88 | B114: Easton
A115: 89 | B115: Edgartown
A116: 90 | B116: Egremont
A117: 91 | B117: Erving
A118: 92 | B118: Essex
A119: 93 | B119: Everett
A120: 94 | B120: Fairhaven
A121: 95 | B121: Fall River
A122: 96 | B122: Falmouth
A123: 97 | B123: Fitchburg
A124: 98 | B124: Florida
A125: 99 | B125: Foxborough
A126: 100 | B126: Framingham
A127: 101 | B127: Franklin
A128: 102 | B128: Freetown
A129: 103 | B129: Gardner
A130: 104 | B130: Gay Head
A131: 105 | B131: Georgetown
A132: 106 | B132: Gill
A133: 107 | B133: Gloucester
A134: 108 | B134: Goshen
A135: 109 | B135: Gosnold
A136: 110 | B136: Grafton
A137: 111 | B137: Granby
A138: 112 | B138: Granville
A139: 113 | B139: Great Barrington
A140: 114 | B140: Greenfield
A141: 115 | B141: Groton
A142: 116 | B142: Groveland
A143: 117 | B143: Hadley
A144: 118 | B144: Halifax
A145: 119 | B145: Hamilton
A146: 120 | B146: Hampden
A147: 121 | B147: Hancock
A148: 122 | B148: Hanover
A149: 123 | B149: Hanson
A150: 124 | B150: Hardwick
A151: 125 | B151: Harvard
A152: 126 | B152: Harwich
A153: 127 | B153: Hatfield
A154: 128 | B154: Haverhill
A155: 129 | B155: Hawley
A156: 130 | B156: Heath
A157: 131 | B157: Hingham
A158: 132 | B158: Hinsdale
A159: 133 | B159: Holbrook
A160: 134 | B160: Holden
A161: 135 | B161: Holland
A162: 136 | B162: Holliston
A163: 137 | B163: Holyoke
A164: 138 | B164: Hopedale
A165: 139 | B165: Hopkinton
A166: 140 | B166: Hubbardston
A167: 141 | B167: Hudson
A168: 142 | B168: Hull
A169: 143 | B169: Huntington
A170: 144 | B170: Ipswich
A171: 145 | B171: Kingston
A172: 146 | B172: Lakeville
A173: 147 | B173: Lancaster
A174: 148 | B174: Lanesborough
A175: 149 | B175: Lawrence
A176: 150 | B176: Lee
A177: 151 | B177: Leicester
A178: 152 | B178: Lenox
A179: 153 | B179: Leominster
A180: 154 | B180: Leverett
A181: 155 | B181: Lexington
A182: 156 | B182: Leyden
A183: 157 | B183: Lincoln
A184: 158 | B184: Littleton
A185: 159 | B185: Longmeadow
A186: 160 | B186: Lowell
A187: 161 | B187: Ludlow
A188: 162 | B188: Lunenburg
A189: 163 | B189: Lynn
A190: 164 | B190: Lynnfield
A191: 165 | B191: Malden
A192: 166 | B192: Manchester
A193: 167 | B193: Mansfield
A194: 168 | B194: Marblehead
A195: 169 | B195: Marion
A196: 170 | B196: Marlborough
A197: 171 | B197: Marshfield
A198: 172 | B198: Mashpee
A199: 173 | B199: Mattapoisett
A200: 174 | B200: Maynard
A201: 175 | B201: Medfield
A202: 176 | B202: Medford
A203: 177 | B203: Medway
A204: 178 | B204: Melrose
A205: 179 | B205: Mendon
A206: 180 | B206: Merrimac
A207: 181 | B207: Methuen
... 257 more rows

Sheet MoreAboutData
B1: FY20 Chapter 70 and Net School Spending Formula | C1: FY18 Chapter 70 and Net School Spending Formula Spreadsheet | D1: FY18 Chapter 70 and Net School Spending Formula Spreadsheet | E1: FY18 Chapter 70 and Net School Spending Formula Spreadsheet | F1: FY18 Chapter 70 and Net School Spending Formula Spreadsheet | G1: Return to Index
B2: More about the data
A3: TABLE OF CONTENTS
A4: Index | E4: Back to the top
A5: Select the district you're interested in from the dropdown list on this sheet.
A7: Foundation Budget | E7: Back to the top
A8: This report displays the foundation enrollment and foundation budget for a single district. A district’s foundation budget is updated each year and it is derived by multiplying the number of pupils in thirteen enrollment categories by cost rates in eleven functional areas. More on calculating the foundation budget can be found here:
A10: http://www.doe.mass.edu/finance/chapter70/
A11: Key Terms
A12: Foundation Enrollment: A count of the students for whom a school district is financially responsible on October 1st of any given year. Inflation: Foundation budget rates are adjusted each year by a statutorily defined inflationary factor. It affects all districts in the same way. Wage Adjustment Factor (WAF): Gives a district credit for having higher school costs if it is located in a geographic area where average wages are higher than in other areas of the state. Calculated using the latest available average wage data supplied by the state’s Executive Office of Labor and Workforce Development (EOLWD). Economically Disadvantaged Decile: Determined based on the relative concentration of economically disadvantaged students served in the district (decile 10 includes the districts with the greatest concentration of these students). Corresponds to a foundation budget rate for economically disadvantaged students.
A13: Municipal Contribution | E13: Back to the top
A14: This report displays the required local contribution for a single municipality. Each municipality has a target local share of its foundation budget, based on local ability to pay. The required local contribution for each municipality is based on the previous year's required contribution, and includes some transition factors so that the shift toward the target levels occurs over a period of several years.
A16: Key Terms
A17: Equalized Valuation (EQV): Calculated by DOR every two years. Full and fair cash value of all taxable property for each municipality. Income: Derived annually by DOR from state income tax returns. Includes all forms of wage, pension, interest, business, investment, and capital gains income. Combined Effort Yield (CEY): Sum of property and income effort. Based on DESE-calculated property and income percentages, which, when applied to all municipalities in the Commonwealth, yields 59% of statewide foundation coming from local revenue. Target Local Contribution/Share: Calculated for each municipality as an equitable share of its foundation budget based on property wealth and income. Municipal Revenue Growth Factor (MRGF): Calculated each year by DOR and quantifies the most recent annual percentage change in each community's local revenues (such as the annual increase in the Proposition 2½ levy limit) that should be available for schools.
A18: Regional Allocation | E18: Back to the top
A19: This report displays the allocation of a municipality's required local contribution across the districts to which it belongs. The municipality's required contribution is allocated in direct proportion to the district's share of the municipality's foundation budget.
A21: Summary | E21: Back to the top
A22: This report displays the Chapter 70 aid calculation for a single district. The aid calculation begins with each district's prior year Chapter 70 amount. The difference between each district's foundation budget and its required contribution equals foundation aid. On the right-hand side, there is a comparison to the prior year.
A24: Key Terms
A25: Foundation Aid: The amount of aid needed by a district to reach its foundation budget, after factoring in this year's required local contribution. Foundation budget - Required Local Contribution = Foundation Aid Minimum Aid: A guaranteed per pupil aid increase over the prior year. Required Net School Spending (NSS): The sum of this year's required local contribution and Chapter 70 aid. A district must spend this amount to be in compliance.
A26: Regional District Members | E26: Back to the top
A27: This report displays relevant data for municipal members of a single regional district.
A29: Key Terms
A30: Foundation Enrollment: Foundation enrollment for the selected district, in total and by member. Required Minimum Contribution: Total required minimum contribution for the selected district, in total and by member.
A31: Comparison to FY19 | E31: Back to the top
A32: This report displays prior year and current year foundation enrollment, foundation budget, required local contribution and Chapter 70 aid for all operating districts.
A34: Rates | E34: Back to the top
A35: This sheet displays the FY20 foundation budget rates. Rates are annually adjusted for inflation.
A37: Townwide Contributions | E37: Back to the top
A38: This sheet calculates FY20 required local contributions for each municipality.
A40: Aid436 | E40: Back to the top
A41: This sheet calculates FY20 Chapter 70 aid for each district.

Sheet localcont (hidden)
I1: c70fy19 | J1: c70fy19 | O1: c70fy19 | R1: c70fy19 | Z1: 2019-06-14 | AX1: 2019-03-21 | BD1: 2019-03-21 | CM1: Lookup table for foundation budget scenarios | CN1: 1 | CO1: 2
CN2: 2 | CO2: 8
D3: 1 | E3: 2 | F3: 3 | G3: 4 | H3: 5 | I3: 6 | J3: 7 | K3: 8 | L3: 9 | M3: 10 | N3: 11 | O3: 12 | P3: 13 | Q3: 14 | R3: 15 | S3: 16 | T3: 17 | U3: 18 | V3: 19 | W3: 20 | X3: 21 | Y3: 1 | Z3: 2 | AA3: 3 | AB3: 4 | AC3: 5 | AD3: 6 | AE3: 7 | AF3: 8 | AG3: 9 | AH3: 10 | AI3: 11 | AJ3: 12 | AK3: 13 | AL3: 14 | AM3: 15 | AN3: 16 | AO3: 17 | AP3: 18 | AQ3: 19 | AR3: 20 | AS3: 21 | AT3: 22 | AU3: 23 | AV3: 24 | AW3: 25 | AX3: 26 | AY3: 27 | AZ3: 28 | BA3: 29 | BB3: 30 | BC3: 31 | BD3: 32 | BE3: 33 | BF3: 34 | BG3: 35 | BH3: 36 | BI3: 37 | BJ3: 38 | BK3: 39 | BL3: 40 | BM3: 41 | BN3: 42 | BO3: 43 | BP3: 44 | BQ3: 45 | BR3: 46 | BS3: 47 | BT3: 48 | BU3: 49 | BV3: 50 | BW3: 51 | BX3: 52 | BY3: 53 | BZ3: 54 | CA3: 55 | CB3: 56 | CC3: 57 | CD3: 58 | CE3: 59 | CF3: 60 | CG3: 61 | CH3: 62 | CI3: 63 | CJ3: 64 | CK3: 65 | CL3: 66 | CN3: 3 | CO3: 14 | CR3: 62 | CS3: 63 | CT3: 64 | CU3: 65 | CV3: 66
G4: lea1755 | K4: found1755 | N4: prelcont1755 | O4: pynetJin | R4: pyenro | W4: enro1755 | CN4: 4 | CO4: 20
Z5: 1 | AF5: 2 | AL5: 3 | AR5: 4 | AX5: 5 | BD5: 6 | BJ5: 7 | BP5: 8 | BV5: 9 | CB5: 10 | CH5: 11 | CN5: 5 | CO5: 26 | CR5: FY19
T6: =parameters!$C$6 -> 1 | Z6: FY20 | CN6: 6 | CO6: 32 | CR6: FY19
I7: =PYr -> FY19 | J7: =PYr -> FY19 | K7: =CYr -> FY20 | L7: =CYr -> FY20 | M7: =CYr -> FY20 | N7: =CYr -> FY20 | O7: =PYr -> FY19 | CN7: 7 | CO7: 38 | CW7: FY19 | CX7: FY19
I8: Foundation | J8: Share of Total | K8: Foundation | L8: Share of Total | M8: Townwide | N8: Net Minimum | O8: Net Minimum | P8: =PYr&" to "&CYr -> FY19 to FY20 | Q8: Percent | R8: =PYr -> FY19 | W8: final | X8: foundation | AC8: final | AD8: foundation | AI8: final | AJ8: foundation | AO8: final | AP8: foundation | AU8: final | AV8: foundation | BA8: final | BB8: foundation | BG8: final | BH8: foundation | BM8: final | BN8: foundation | BS8: final | BT8: foundation | BY8: final | BZ8: foundation | CE8: final | CF8: foundation | CK8: final | CL8: foundation | CN8: 8 | CO8: 44 | CU8: final | CV8: foundation | CW8: Share of Total | CX8: Net Minimum
A9: TownLEA | B9: Town | C9: LEA | D9: Order | E9: Town | F9: City or Town | G9: LEA | H9: School District | I9: Budget | J9: Foundation | K9: Budget | L9: Foundation | M9: Contribution | N9: Contribution | O9: Contribution | P9: Change | Q9: Change | R9: Enrollment | T9: Town | U9: LEA | V9: Order | W9: enrollment | X9: budget | Z9: Town | AA9: LEA | AB9: Order | AC9: enrollment | AD9: budget | AF9: Town | AG9: LEA | AH9: Order | AI9: enrollment | AJ9: budget | AL9: Town | AM9: LEA | AN9: Order | AO9: enrollment | AP9: budget | AR9: Town | AS9: LEA | AT9: Order | AU9: enrollment | AV9: budget | AX9: Town | AY9: LEA | AZ9: Order | BA9: enrollment | BB9: budget | BD9: Town | BE9: LEA | BF9: Order | BG9: enrollment | BH9: budget | BJ9: Town | BK9: LEA | BL9: Order | BM9: enrollment | BN9: budget | BP9: Town | BQ9: LEA | BR9: Order | BS9: enrollment | BT9: budget | BV9: Town | BW9: LEA | BX9: Order | BY9: enrollment | BZ9: budget | CB9: Town | CC9: LEA | CD9: Order | CE9: enrollment | CF9: budget | CH9: Town | CI9: LEA | CJ9: Order | CK9: enrollment | CL9: budget | CN9: 9 | CO9: 50 | CR9: Town | CS9: LEA | CT9: Order | CU9: enrollment | CV9: budget | CW9: Foundation | CX9: Contribution
A10: =B10&C10 -> 00010001 | B10: 0001 | C10: 0001 | D10: 1 | E10: 1 | F10: Abington | G10: 1 | H10: Abington | I10: 21515960.21 | J10: 0.917737123 | K10: =X10 -> 23388476.61 | L10: =IF(K14>0, K10/K14, 0) -> 0.9336205456 | N10: =ROUND(M14*L10,0) -> 14463601 | O10: 13701008 | P10: =N10-O10 -> 762593 | Q10: =IF(O10>0,P10*100/O10,IF(P10>0,100,0)) -> 5.565962738 | R10: 2024 | T10: =VLOOKUP($D10, foundoptions, VLOOKUP($T$6, foundoptcell, 2, FALSE), FALSE) -> 1 | U10: =VLOOKUP($D10, foundoptions, VLOOKUP($T$6, foundoptcell, 2, FALSE)+1, FALSE) -> 1 | V10: =VLOOKUP($D10, foundoptions, VLOOKUP($T$6, foundoptcell, 2, FALSE)+2, FALSE) -> 1 | W10: =VLOOKUP($D10, foundoptions, VLOOKUP($T$6, foundoptcell, 2, FALSE)+3, FALSE) -> 2105 | X10: =VLOOKUP($D10, foundoptions, VLOOKUP($T$6, foundoptcell, 2, FALSE)+4, FALSE) -> 23388476.61 | Y10: =D10 -> 1 | Z10: 1 | AA10: 1 | AB10: 1 | AC10: 2105 | AD10: 23388476.61 | CN10: 10 | CO10: 56 | CR10: 1 | CS10: 1 | CT10: 1 | CU10: 2024 | CV10: 21515960.21 | CW10: 0.917737123 | CX10: 13701008
A11: 00010873 | B11: 0001 | C11: 0873 | D11: 2 | E11: 1 | F11: Abington | G11: 873 | H11: South Shore | I11: 1928618.495 | J11: 0.08226287702 | K11: =X11 -> 1662896.479 | L11: =IF(K14>0, K11/K14, 0) -> 0.06637945444 | N11: =ROUND(M14*L11,0) -> 1028347 | O11: 1228112 | P11: =N11-O11 -> -199765 | Q11: -16.2660246 | R11: 115 | T11: 1 | U11: 873 | V11: 2 | W11: 94.64716007 | X11: 1662896.479 | Y11: =D11 -> 2 | Z11: 1 | AA11: 873 | AB11: 2 | AC11: 94.64716007 | AD11: 1662896.479 | CN11: 11 | CO11: 62 | CR11: 1 | CS11: 873 | CT11: 2 | CU11: 115 | CV11: 1928618.495 | CW11: 0.08226287702 | CX11: 1228112
A12: 00010998 | B12: 0001 | C12: 0998 | D12: 3 | E12: 1 | G12: 998 | I12: 0 | J12: 0 | K12: =X12 -> 0 | L12: =IF(K14>0, K12/K14, 0) -> 0 | N12: =ROUND(M14*L12,0) -> 0 | O12: 0 | P12: =N12-O12 -> 0 | Q12: 0 | R12: 0 | T12: 1 | U12: 998 | V12: 3 | W12: 0 | X12: 0 | Y12: 3 | Z12: 1 | AA12: 998 | AB12: 3 | AC12: 0 | AD12: 0 | CR12: 1 | CS12: 998 | CT12: 3 | CU12: 0 | CV12: 0 | CW12: 0 | CX12: 0
A13: 00010998 | B13: 0001 | C13: 0998 | D13: 4 | E13: 1 | G13: 998 | I13: 0 | J13: 0 | K13: =X13 -> 0 | L13: =IF(K14>0, K13/K14, 0) -> 0 | N13: =ROUND(M14*L13,0) -> 0 | O13: 0 | P13: =N13-O13 -> 0 | Q13: 0 | R13: 0 | T13: 1 | U13: 998 | V13: 4 | W13: 0 | X13: 0 | Y13: 4 | Z13: 1 | AA13: 998 | AB13: 4 | AC13: 0 | AD13: 0 | CR13: 1 | CS13: 998 | CT13: 4 | CU13: 0 | CV13: 0 | CW13: 0 | CX13: 0
A14: 00010999 | B14: 0001 | C14: 0999 | D14: 5 | E14: 1 | F14: Abington | G14: 999 | H14: Total | I14: 23444578.71 | J14: 1 | K14: =SUM(K10:K13) -> 25051373.09 | L14: =SUM(L10:L13) -> 1 | M14: =VLOOKUP(E14,town351,23) -> 15491948 | N14: =SUM(N10:N13) -> 15491948 | O14: 14929120 | P14: =SUM(P10:P13) -> 562828 | Q14: 3.770001179 | R14: 2139 | T14: 1 | U14: 999 | V14: 5 | W14: 2199.64716 | X14: 25051373.09 | Y14: 5 | Z14: 1 | AA14: 999 | AB14: 5 | AC14: 2199.64716 | AD14: 25051373.09 | CR14: 1 | CS14: 999 | CT14: 5 | CU14: 2139 | CV14: 23444578.71 | CW14: 1 | CX14: 14929120
A15: 00020002 | B15: 0002 | C15: 0002 | D15: 6 | E15: 2 | F15: Acton | G15: 2 | H15: Acton | I15: 0 | J15: 0 | K15: =X15 -> 0 | L15: =IF(K19>0, K15/K19, 0) -> 0 | N15: =ROUND(M19*L15,0) -> 0 | O15: 0 | P15: =N15-O15 -> 0 | Q15: 0 | R15: 0 | T15: 2 | U15: 2 | V15: 6 | W15: 0 | X15: 0 | Y15: 6 | Z15: 2 | AA15: 2 | AB15: 6 | AC15: 0 | AD15: 0 | CR15: 2 | CS15: 2 | CT15: 6 | CU15: 0 | CV15: 0 | CW15: 0 | CX15: 0
A16: 00020600 | B16: 0002 | C16: 0600 | D16: 7 | E16: 2 | F16: Acton | G16: 600 | H16: Acton Boxborough | I16: 46559239.31 | J16: 0.9866805097 | K16: 48574850.57 | L16: =IF(K19>0, K16/K19, 0) -> 0.9880265875 | N16: =ROUND(M19*L16,0) -> 37733689 | O16: 35990717 | P16: =N16-O16 -> 1742972 | Q16: 4.842837668 | R16: 4587.53929 | T16: 2 | U16: 600 | V16: 7 | W16: 4585.679103 | X16: 48574850.57 | Y16: 7 | Z16: 2 | AA16: 600 | AB16: 7 | AC16: 4585.679103 | AD16: 48574850.57 | CR16: 2 | CS16: 600 | CT16: 7 | CU16: 4587.53929 | CV16: 46559239.31 | CW16: 0.9866805097 | CX16: 35990717
A17: 00020830 | B17: 0002 | C17: 0830 | D17: 8 | E17: 2 | F17: Acton | G17: 830 | H17: Minuteman | I17: 628516.8595 | J17: 0.01331949028 | K17: 588654.9299 | L17: =IF(K19>0, K17/K19, 0) -> 0.01197341247 | N17: =ROUND(M19*L17,0) -> 457276 | O17: 485849 | P17: =N17-O17 -> -28573 | Q17: -5.881045345 | R17: 35.1026393 | T17: 2 | U17: 830 | V17: 8 | W17: 32 | X17: 588654.9299 | Y17: 8 | Z17: 2 | AA17: 830 | AB17: 8 | AC17: 32 | AD17: 588654.9299 | CR17: 2 | CS17: 830 | CT17: 8 | CU17: 35.1026393 | CV17: 628516.8595 | CW17: 0.01331949028 | CX17: 485849
A18: 00020998 | B18: 0002 | C18: 0998 | D18: 9 | E18: 2 | G18: 998 | I18: 0 | J18: 0 | K18: 0 | L18: =IF(K19>0, K18/K19, 0) -> 0 | N18: =ROUND(M19*L18,0) -> 0 | O18: 0 | P18: =N18-O18 -> 0 | Q18: 0 | R18: 0 | T18: 2 | U18: 998 | V18: 9 | W18: 0 | X18: 0 | Y18: 9 | Z18: 2 | AA18: 998 | AB18: 9 | AC18: 0 | AD18: 0 | CR18: 2 | CS18: 998 | CT18: 9 | CU18: 0 | CV18: 0 | CW18: 0 | CX18: 0
A19: 00020999 | B19: 0002 | C19: 0999 | D19: 10 | E19: 2 | F19: Acton | G19: 999 | H19: Total | I19: 47187756.17 | J19: 1 | K19: =SUM(K15:K18) -> 49163505.5 | L19: =SUM(L15:L18) -> 1 | M19: =VLOOKUP(E19,town351,23) -> 38190965 | N19: =SUM(N15:N18) -> 38190965 | O19: 36476566 | P19: =SUM(P15:P18) -> 1714399 | Q19: =IF(O19>0,P19*100/O19,IF(P19>0,100,0)) -> 4.700001091 | R19: 4622.641929 | T19: 2 | U19: 999 | V19: 10 | W19: 4617.679103 | X19: 49163505.5 | Y19: 10 | Z19: 2 | AA19: 999 | AB19: 10 | AC19: 4617.679103 | AD19: 49163505.5 | CR19: 2 | CS19: 999 | CT19: 10 | CU19: 4622.641929 | CV19: 47187756.17 | CW19: 1 | CX19: 36476566
A20: 00030003 | B20: 0003 | C20: 0003 | D20: 11 | E20: 3 | F20: Acushnet | G20: 3 | H20: Acushnet | I20: 12395984.84 | J20: 0.8408793154 | K20: =X20 -> 13443441.48 | L20: =IF(K24>0, K20/K24, 0) -> 0.852640232 | N20: =ROUND(M24*L20,0) -> 7498601 | O20: 7125126 | P20: =N20-O20 -> 373475 | Q20: 5.241661691 | R20: 1227 | T20: 3 | U20: 3 | V20: 11 | W20: 1272 | X20: 13443441.48 | Y20: 11 | Z20: 3 | AA20: 3 | AB20: 11 | AC20: 1272 | AD20: 13443441.48 | CR20: 3 | CS20: 3 | CT20: 11 | CU20: 1227 | CV20: 12395984.84 | CW20: 0.8408793154 | CX20: 7125126
A21: 00030855 | B21: 0003 | C21: 0855 | D21: 12 | E21: 3 | F21: Acushnet | G21: 855 | H21: Old Colony | I21: 2136088.548 | J21: 0.1449011675 | K21: 2117481.57 | L21: =IF(K24>0, K21/K24, 0) -> 0.1342996865 | N21: =ROUND(M24*L21,0) -> 1181107 | O21: 1227809 | P21: =N21-O21 -> -46702 | Q21: -3.803686078 | R21: 133 | T21: 3 | U21: 855 | V21: 12 | W21: 127 | X21: 2117481.57 | Y21: 12 | Z21: 3 | AA21: 855 | AB21: 12 | AC21: 127 | AD21: 2117481.57 | CR21: 3 | CS21: 855 | CT21: 12 | CU21: 133 | CV21: 2136088.548 | CW21: 0.1449011675 | CX21: 1227809
A22: 00030910 | B22: 0003 | C22: 0910 | D22: 13 | E22: 3 | F22: Acushnet | G22: 910 | H22: Bristol County | I22: 209619.7569 | J22: 0.01421951704 | K22: 205916.2044 | L22: =IF(K24>0, K22/K24, 0) -> 0.01306008142 | N22: =ROUND(M24*L22,0) -> 114858 | O22: 120488 | P22: =N22-O22 -> -5630 | Q22: -4.672664498 | R22: 13 | T22: 3 | U22: 910 | V22: 13 | W22: 12 | X22: 205916.2044 | Y22: 13 | Z22: 3 | AA22: 910 | AB22: 13 | AC22: 12 | AD22: 205916.2044 | CR22: 3 | CS22: 910 | CT22: 13 | CU22: 13 | CV22: 209619.7569 | CW22: 0.01421951704 | CX22: 120488
A23: 00030998 | B23: 0003 | C23: 0998 | D23: 14 | E23: 3 | G23: 998 | I23: 0 | J23: 0 | K23: 0 | L23: =IF(K24>0, K23/K24, 0) -> 0 | N23: =ROUND(M24*L23,0) -> 0 | O23: 0 | P23: =N23-O23 -> 0 | Q23: 0 | R23: 0 | T23: 3 | U23: 998 | V23: 14 | W23: 0 | X23: 0 | Y23: 14 | Z23: 3 | AA23: 998 | AB23: 14 | AC23: 0 | AD23: 0 | CR23: 3 | CS23: 998 | CT23: 14 | CU23: 0 | CV23: 0 | CW23: 0 | CX23: 0
A24: 00030999 | B24: 0003 | C24: 0999 | D24: 15 | E24: 3 | F24: Acushnet | G24: 999 | H24: Total | I24: 14741693.14 | J24: 1 | K24: =SUM(K20:K23) -> 15766839.26 | L24: =SUM(L20:L23) -> 1 | M24: =VLOOKUP(E24,town351,23) -> 8794566 | N24: =SUM(N20:N23) -> 8794566 | O24: 8473423 | P24: =SUM(P20:P23) -> 321143 | Q24: 3.790003166 | R24: 1373 | T24: 3 | U24: 999 | V24: 15 | W24: 1411 | X24: 15766839.26 | Y24: 15 | Z24: 3 | AA24: 999 | AB24: 15 | AC24: 1411 | AD24: 15766839.26 | CR24: 3 | CS24: 999 | CT24: 15 | CU24: 1373 | CV24: 14741693.14 | CW24: 1 | CX24: 8473423
A25: 00040004 | B25: 0004 | C25: 0004 | D25: 16 | E25: 4 | F25: Adams | G25: 4 | H25: Adams | I25: 0 | J25: 0 | K25: =X25 -> 0 | L25: =IF(K29>0, K25/K29, 0) -> 0 | N25: =ROUND(M29*L25,0) -> 0 | O25: 0 | P25: =N25-O25 -> 0 | Q25: 0 | R25: 0 | T25: 4 | U25: 4 | V25: 16 | W25: 0 | X25: 0 | Y25: 16 | Z25: 4 | AA25: 4 | AB25: 16 | AC25: 0 | AD25: 0 | CR25: 4 | CS25: 4 | CT25: 16 | CU25: 0 | CV25: 0 | CW25: 0 | CX25: 0
A26: 00040603 | B26: 0004 | C26: 0603 | D26: 17 | E26: 4 | F26: Adams | G26: 603 | H26: Adams Cheshire | I26: 11011705.79 | J26: 0.8352437046 | K26: 11341094.59 | L26: =IF(K29>0, K26/K29, 0) -> 0.827929119 | N26: =ROUND(M29*L26,0) -> 3804547 | O26: 3713168 | P26: =N26-O26 -> 91379 | Q26: 2.460944401 | R26: 975.2043636 | T26: 4 | U26: 603 | V26: 17 | W26: 937.4886536 | X26: 11341094.59 | Y26: 17 | Z26: 4 | AA26: 603 | AB26: 17 | AC26: 937.4886536 | AD26: 11341094.59 | CR26: 4 | CS26: 603 | CT26: 17 | CU26: 975.2043636 | CV26: 11011705.79 | CW26: 0.8352437046 | CX26: 3713168
A27: 00040851 | B27: 0004 | C27: 0851 | D27: 18 | E27: 4 | F27: Adams | G27: 851 | H27: Northern Berkshire | I27: 2172117.959 | J27: 0.1647562954 | K27: 2357052.182 | L27: =IF(K29>0, K27/K29, 0) -> 0.172070881 | N27: =ROUND(M29*L27,0) -> 790710 | O27: 732442 | P27: =N27-O27 -> 58268 | Q27: 7.955305676 | R27: 129 | T27: 4 | U27: 851 | V27: 18 | W27: 134 | X27: 2357052.182 | Y27: 18 | Z27: 4 | AA27: 851 | AB27: 18 | AC27: 134 | AD27: 2357052.182 | CR27: 4 | CS27: 851 | CT27: 18 | CU27: 129 | CV27: 2172117.959 | CW27: 0.1647562954 | CX27: 732442
A28: 00040998 | B28: 0004 | C28: 0998 | D28: 19 | E28: 4 | G28: 998 | I28: 0 | J28: 0 | K28: 0 | L28: =IF(K29>0, K28/K29, 0) -> 0 | N28: =ROUND(M29*L28,0) -> 0 | O28: 0 | P28: =N28-O28 -> 0 | Q28: 0 | R28: 0 | T28: 4 | U28: 998 | V28: 19 | W28: 0 | X28: 0 | Y28: 19 | Z28: 4 | AA28: 998 | AB28: 19 | AC28: 0 | AD28: 0 | CR28: 4 | CS28: 998 | CT28: 19 | CU28: 0 | CV28: 0 | CW28: 0 | CX28: 0
A29: 00040999 | B29: 0004 | C29: 0999 | D29: 20 | E29: 4 | F29: Adams | G29: 999 | H29: Total | I29: 13183823.75 | J29: 1 | K29: =SUM(K25:K28) -> 13698146.77 | L29: =SUM(L25:L28) -> 1 | M29: =VLOOKUP(E29,town351,23) -> 4595257 | N29: =SUM(N25:N28) -> 4595257 | O29: 4445610 | P29: =SUM(P25:P28) -> 149647 | Q29: 3.366174721 | R29: 1104.204364 | T29: 4 | U29: 999 | V29: 20 | W29: 1071.488654 | X29: 13698146.77 | Y29: 20 | Z29: 4 | AA29: 999 | AB29: 20 | AC29: 1071.488654 | AD29: 13698146.77 | CR29: 4 | CS29: 999 | CT29: 20 | CU29: 1104.204364 | CV29: 13183823.75 | CW29: 1 | CX29: 4445610
A30: 00050005 | B30: 0005 | C30: 0005 | D30: 21 | E30: 5 | F30: Agawam | G30: 5 | H30: Agawam | I30: 41326070.32 | J30: 1 | K30: =X30 -> 42227451.05 | L30: =IF(K34>0, K30/K34, 0) -> 1 | N30: =ROUND(M34*L30,0) -> 22951211 | O30: 22474431 | P30: =N30-O30 -> 476780 | Q30: 2.121433019 | R30: 3773 | T30: 5 | U30: 5 | V30: 21 | W30: 3677 | X30: 42227451.05 | Y30: 21 | Z30: 5 | AA30: 5 | AB30: 21 | AC30: 3677 | AD30: 42227451.05 | CR30: 5 | CS30: 5 | CT30: 21 | CU30: 3773 | CV30: 41326070.32 | CW30: 1 | CX30: 22474431
A31: 00050998 | B31: 0005 | C31: 0998 | D31: 22 | E31: 5 | G31: 998 | I31: 0 | J31: 0 | K31: 0 | L31: =IF(K34>0, K31/K34, 0) -> 0 | N31: =ROUND(M34*L31,0) -> 0 | O31: 0 | P31: =N31-O31 -> 0 | Q31: 0 | R31: 0 | T31: 5 | U31: 998 | V31: 22 | W31: 0 | X31: 0 | Y31: 22 | Z31: 5 | AA31: 998 | AB31: 22 | AC31: 0 | AD31: 0 | CR31: 5 | CS31: 998 | CT31: 22 | CU31: 0 | CV31: 0 | CW31: 0 | CX31: 0
A32: 00050998 | B32: 0005 | C32: 0998 | D32: 23 | E32: 5 | G32: 998 | I32: 0 | J32: 0 | K32: 0 | L32: =IF(K34>0, K32/K34, 0) -> 0 | N32: =ROUND(M34*L32,0) -> 0 | O32: 0 | P32: =N32-O32 -> 0 | Q32: 0 | R32: 0 | T32: 5 | U32: 998 | V32: 23 | W32: 0 | X32: 0 | Y32: 23 | Z32: 5 | AA32: 998 | AB32: 23 | AC32: 0 | AD32: 0 | CR32: 5 | CS32: 998 | CT32: 23 | CU32: 0 | CV32: 0 | CW32: 0 | CX32: 0
A33: 00050998 | B33: 0005 | C33: 0998 | D33: 24 | E33: 5 | G33: 998 | I33: 0 | J33: 0 | K33: 0 | L33: =IF(K34>0, K33/K34, 0) -> 0 | N33: =ROUND(M34*L33,0) -> 0 | O33: 0 | P33: =N33-O33 -> 0 | Q33: 0 | R33: 0 | T33: 5 | U33: 998 | V33: 24 | W33: 0 | X33: 0 | Y33: 24 | Z33: 5 | AA33: 998 | AB33: 24 | AC33: 0 | AD33: 0 | CR33: 5 | CS33: 998 | CT33: 24 | CU33: 0 | CV33: 0 | CW33: 0 | CX33: 0
A34: 00050999 | B34: 0005 | C34: 0999 | D34: 25 | E34: 5 | F34: Agawam | G34: 999 | H34: Total | I34: 41326070.32 | J34: 1 | K34: =SUM(K30:K33) -> 42227451.05 | L34: =SUM(L30:L33) -> 1 | M34: =VLOOKUP(E34,town351,23) -> 22951211 | N34: =SUM(N30:N33) -> 22951211 | O34: 22474431 | P34: =SUM(P30:P33) -> 476780 | Q34: 2.121433019 | R34: 3773 | T34: 5 | U34: 999 | V34: 25 | W34: 3677 | X34: 42227451.05 | Y34: 25 | Z34: 5 | AA34: 999 | AB34: 25 | AC34: 3677 | AD34: 42227451.05 | CR34: 5 | CS34: 999 | CT34: 25 | CU34: 3773 | CV34: 41326070.32 | CW34: 1 | CX34: 22474431
A35: 00060006 | B35: 0006 | C35: 0006 | D35: 26 | E35: 6 | F35: Alford | G35: 6 | H35: Alford | I35: 0 | J35: 0 | K35: =X35 -> 0 | L35: =IF(K39>0, K35/K39, 0) -> 0 | N35: =ROUND(M39*L35,0) -> 0 | O35: 0 | P35: =N35-O35 -> 0 | Q35: 0 | R35: 0 | T35: 6 | U35: 6 | V35: 26 | W35: 0 | X35: 0 | Y35: 26 | Z35: 6 | AA35: 6 | AB35: 26 | AC35: 0 | AD35: 0 | CR35: 6 | CS35: 6 | CT35: 26 | CU35: 0 | CV35: 0 | CW35: 0 | CX35: 0
A36: 00060765 | B36: 0006 | C36: 0765 | D36: 27 | E36: 6 | F36: Alford | G36: 765 | H36: Southern Berkshire | I36: 275789.3386 | J36: 1 | K36: 263079.9496 | L36: =IF(K39>0, K36/K39, 0) -> 1 | N36: =ROUND(M39*L36,0) -> 217041 | O36: 185505 | P36: =N36-O36 -> 31536 | Q36: 17.00008086 | R36: 25.33131619 | T36: 6 | U36: 765 | V36: 27 | W36: 22.4619883 | X36: 263079.9496 | Y36: 27 | Z36: 6 | AA36: 765 | AB36: 27 | AC36: 22.4619883 | AD36: 263079.9496 | CR36: 6 | CS36: 765 | CT36: 27 | CU36: 25.33131619 | CV36: 275789.3386 | CW36: 1 | CX36: 185505
A37: 00060998 | B37: 0006 | C37: 0998 | D37: 28 | E37: 6 | G37: 998 | I37: 0 | J37: 0 | K37: 0 | L37: =IF(K39>0, K37/K39, 0) -> 0 | N37: =ROUND(M39*L37,0) -> 0 | O37: 0 | P37: =N37-O37 -> 0 | Q37: 0 | R37: 0 | T37: 6 | U37: 998 | V37: 28 | W37: 0 | X37: 0 | Y37: 28 | Z37: 6 | AA37: 998 | AB37: 28 | AC37: 0 | AD37: 0 | CR37: 6 | CS37: 998 | CT37: 28 | CU37: 0 | CV37: 0 | CW37: 0 | CX37: 0
A38: 00060998 | B38: 0006 | C38: 0998 | D38: 29 | E38: 6 | G38: 998 | I38: 0 | J38: 0 | K38: 0 | L38: =IF(K39>0, K38/K39, 0) -> 0 | N38: =ROUND(M39*L38,0) -> 0 | O38: 0 | P38: =N38-O38 -> 0 | Q38: 0 | R38: 0 | T38: 6 | U38: 998 | V38: 29 | W38: 0 | X38: 0 | Y38: 29 | Z38: 6 | AA38: 998 | AB38: 29 | AC38: 0 | AD38: 0 | CR38: 6 | CS38: 998 | CT38: 29 | CU38: 0 | CV38: 0 | CW38: 0 | CX38: 0
A39: 00060999 | B39: 0006 | C39: 0999 | D39: 30 | E39: 6 | F39: Alford | G39: 999 | H39: Total | I39: 275789.3386 | J39: 1 | K39: =SUM(K35:K38) -> 263079.9496 | L39: =SUM(L35:L38) -> 1 | M39: =VLOOKUP(E39,town351,23) -> 217041 | N39: =SUM(N35:N38) -> 217041 | O39: 185505 | P39: =SUM(P35:P38) -> 31536 | Q39: 17.00008086 | R39: 25.33131619 | T39: 6 | U39: 999 | V39: 30 | W39: 22.4619883 | X39: 263079.9496 | Y39: 30 | Z39: 6 | AA39: 999 | AB39: 30 | AC39: 22.4619883 | AD39: 263079.9496 | CR39: 6 | CS39: 999 | CT39: 30 | CU39: 25.33131619 | CV39: 275789.3386 | CW39: 1 | CX39: 185505
A40: 00070007 | B40: 0007 | C40: 0007 | D40: 31 | E40: 7 | F40: Amesbury | G40: 7 | H40: Amesbury | I40: 22830750.46 | J40: 0.9490965242 | K40: =X40 -> 22996252.75 | L40: =IF(K44>0, K40/K44, 0) -> 0.9368666126 | N40: =ROUND(M44*L40,0) -> 15621860 | O40: 15155898 | P40: =N40-O40 -> 465962 | Q40: 3.074459857 | R40: 2198 | T40: 7 | U40: 7 | V40: 31 | W40: 2112 | X40: 22996252.75 | Y40: 31 | Z40: 7 | AA40: 7 | AB40: 31 | AC40: 2112 | AD40: 22996252.75 | CR40: 7 | CS40: 7 | CT40: 31 | CU40: 2198 | CV40: 22830750.46 | CW40: 0.9490965242 | CX40: 15155898
A41: 00070885 | B41: 0007 | C41: 0885 | D41: 32 | E41: 7 | F41: Amesbury | G41: 885 | H41: Whittier | I41: 1224495.637 | J41: 0.05090347576 | K41: 1549667.064 | L41: =IF(K44>0, K41/K44, 0) -> 0.0631333874 | N41: =ROUND(M44*L41,0) -> 1052723 | O41: 812866 | P41: =N41-O41 -> 239857 | Q41: 29.50756951 | R41: 74 | T41: 7 | U41: 885 | V41: 32 | W41: 90 | X41: 1549667.064 | Y41: 32 | Z41: 7 | AA41: 885 | AB41: 32 | AC41: 90 | AD41: 1549667.064 | CR41: 7 | CS41: 885 | CT41: 32 | CU41: 74 | CV41: 1224495.637 | CW41: 0.05090347576 | CX41: 812866
A42: 00070998 | B42: 0007 | C42: 0998 | D42: 33 | E42: 7 | G42: 998 | I42: 0 | J42: 0 | K42: 0 | L42: =IF(K44>0, K42/K44, 0) -> 0 | N42: =ROUND(M44*L42,0) -> 0 | O42: 0 | P42: =N42-O42 -> 0 | Q42: 0 | R42: 0 | T42: 7 | U42: 998 | V42: 33 | W42: 0 | X42: 0 | Y42: 33 | Z42: 7 | AA42: 998 | AB42: 33 | AC42: 0 | AD42: 0 | CR42: 7 | CS42: 998 | CT42: 33 | CU42: 0 | CV42: 0 | CW42: 0 | CX42: 0
A43: 00070998 | B43: 0007 | C43: 0998 | D43: 34 | E43: 7 | G43: 998 | I43: 0 | J43: 0 | K43: 0 | L43: =IF(K44>0, K43/K44, 0) -> 0 | N43: =ROUND(M44*L43,0) -> 0 | O43: 0 | P43: =N43-O43 -> 0 | Q43: 0 | R43: 0 | T43: 7 | U43: 998 | V43: 34 | W43: 0 | X43: 0 | Y43: 34 | Z43: 7 | AA43: 998 | AB43: 34 | AC43: 0 | AD43: 0 | CR43: 7 | CS43: 998 | CT43: 34 | CU43: 0 | CV43: 0 | CW43: 0 | CX43: 0
A44: 00070999 | B44: 0007 | C44: 0999 | D44: 35 | E44: 7 | F44: Amesbury | G44: 999 | H44: Total | I44: 24055246.1 | J44: 1 | K44: =SUM(K40:K43) -> 24545919.81 | L44: =SUM(L40:L43) -> 1 | M44: =VLOOKUP(E44,town351,23) -> 16674583 | N44: =SUM(N40:N43) -> 16674583 | O44: 15968764 | P44: =SUM(P40:P43) -> 705819 | Q44: 4.41999769 | R44: 2272 | T44: 7 | U44: 999 | V44: 35 | W44: 2202 | X44: 24545919.81 | Y44: 35 | Z44: 7 | AA44: 999 | AB44: 35 | AC44: 2202 | AD44: 24545919.81 | CR44: 7 | CS44: 999 | CT44: 35 | CU44: 2272 | CV44: 24055246.1 | CW44: 1 | CX44: 15968764
A45: 00080008 | B45: 0008 | C45: 0008 | D45: 36 | E45: 8 | F45: Amherst | G45: 8 | H45: Amherst | I45: 11969353.38 | J45: 0.4813199267 | K45: =X45 -> 12803970.65 | L45: =IF(K49>0, K45/K49, 0) -> 0.490800974 | N45: =ROUND(M49*L45,0) -> 9508882 | O45: 8946746 | P45: =N45-O45 -> 562136 | Q45: 6.283133555 | R45: 1106 | T45: 8 | U45: 8 | V45: 36 | W45: 1134 | X45: 12803970.65 | Y45: 36 | Z45: 8 | AA45: 8 | AB45: 36 | AC45: 1134 | AD45: 12803970.65 | CR45: 8 | CS45: 8 | CT45: 36 | CU45: 1106 | CV45: 11969353.38 | CW45: 0.4813199267 | CX45: 8946746
A46: 00080605 | B46: 0008 | C46: 0605 | D46: 37 | E46: 8 | F46: Amherst | G46: 605 | H46: Amherst Pelham | I46: 12898416.93 | J46: 0.5186800733 | K46: 13283937.34 | L46: =IF(K49>0, K46/K49, 0) -> 0.509199026 | N46: =ROUND(M49*L46,0) -> 9865329 | O46: 9641195 | P46: =N46-O46 -> 224134 | Q46: 2.324753311 | R46: 1152 | T46: 8 | U46: 605 | V46: 37 | W46: 1123 | X46: 13283937.34 | Y46: 37 | Z46: 8 | AA46: 605 | AB46: 37 | AC46: 1123 | AD46: 13283937.34 | CR46: 8 | CS46: 605 | CT46: 37 | CU46: 1152 | CV46: 12898416.93 | CW46: 0.5186800733 | CX46: 9641195
A47: 00080998 | B47: 0008 | C47: 0998 | D47: 38 | E47: 8 | G47: 998 | I47: 0 | J47: 0 | K47: 0 | L47: =IF(K49>0, K47/K49, 0) -> 0 | N47: =ROUND(M49*L47,0) -> 0 | O47: 0 | P47: =N47-O47 -> 0 | Q47: 0 | R47: 0 | T47: 8 | U47: 998 | V47: 38 | W47: 0 | X47: 0 | Y47: 38 | Z47: 8 | AA47: 998 | AB47: 38 | AC47: 0 | AD47: 0 | CR47: 8 | CS47: 998 | CT47: 38 | CU47: 0 | CV47: 0 | CW47: 0 | CX47: 0
A48: 00080998 | B48: 0008 | C48: 0998 | D48: 39 | E48: 8 | G48: 998 | I48: 0 | J48: 0 | K48: 0 | L48: =IF(K49>0, K48/K49, 0) -> 0 | N48: =ROUND(M49*L48,0) -> 0 | O48: 0 | P48: =N48-O48 -> 0 | Q48: 0 | R48: 0 | T48: 8 | U48: 998 | V48: 39 | W48: 0 | X48: 0 | Y48: 39 | Z48: 8 | AA48: 998 | AB48: 39 | AC48: 0 | AD48: 0 | CR48: 8 | CS48: 998 | CT48: 39 | CU48: 0 | CV48: 0 | CW48: 0 | CX48: 0
A49: 00080999 | B49: 0008 | C49: 0999 | D49: 40 | E49: 8 | F49: Amherst | G49: 999 | H49: Total | I49: 24867770.31 | J49: 1 | K49: =SUM(K45:K48) -> 26087907.99 | L49: =SUM(L45:L48) -> 1 | M49: =VLOOKUP(E49,town351,23) -> 19374211 | N49: =SUM(N45:N48) -> 19374211 | O49: 18587941 | P49: =SUM(P45:P48) -> 786270 | Q49: 4.230000515 | R49: 2258 | T49: 8 | U49: 999 | V49: 40 | W49: 2257 | X49: 26087907.99 | Y49: 40 | Z49: 8 | AA49: 999 | AB49: 40 | AC49: 2257 | AD49: 26087907.99 | CR49: 8 | CS49: 999 | CT49: 40 | CU49: 2258 | CV49: 24867770.31 | CW49: 1 | CX49: 18587941
A50: 00090009 | B50: 0009 | C50: 0009 | D50: 41 | E50: 9 | F50: Andover | G50: 9 | H50: Andover | I50: 60546641.05 | J50: 0.9910091393 | K50: =X50 -> 63835635.79 | L50: =IF(K54>0, K50/K54, 0) -> 0.9903391191 | N50: =ROUND(M54*L50,0) -> 52178457 | O50: 49950979 | P50: =N50-O50 -> 2227478 | Q50: 4.459328014 | R50: 5805 | T50: 9 | U50: 9 | V50: 41 | W50: 5835 | X50: 63835635.79 | Y50: 41 | Z50: 9 | AA50: 9 | AB50: 41 | AC50: 5835 | AD50: 63835635.79 | CR50: 9 | CS50: 9 | CT50: 41 | CU50: 5805 | CV50: 60546641.05 | CW50: 0.9910091393 | CX50: 49950979
A51: 00090823 | B51: 0009 | C51: 0823 | D51: 42 | E51: 9 | F51: Andover | G51: 823 | H51: Greater Lawrence | I51: 549305.1397 | J51: 0.00899086067 | K51: 622724.5424 | L51: =IF(K54>0, K51/K54, 0) -> 0.009660880903 | N51: =ROUND(M54*L51,0) -> 509007 | O51: 453177 | P51: =N51-O51 -> 55830 | Q51: 12.31968966 | R51: 29 | T51: 9 | U51: 823 | V51: 42 | W51: 31.00000001 | X51: 622724.5424 | Y51: 42 | Z51: 9 | AA51: 823 | AB51: 42 | AC51: 31.00000001 | AD51: 622724.5424 | CR51: 9 | CS51: 823 | CT51: 42 | CU51: 29 | CV51: 549305.1397 | CW51: 0.00899086067 | CX51: 453177
A52: 00090998 | B52: 0009 | C52: 0998 | D52: 43 | E52: 9 | G52: 998 | I52: 0 | J52: 0 | K52: 0 | L52: =IF(K54>0, K52/K54, 0) -> 0 | N52: =ROUND(M54*L52,0) -> 0 | O52: 0 | P52: =N52-O52 -> 0 | Q52: 0 | R52: 0 | T52: 9 | U52: 998 | V52: 43 | W52: 0 | X52: 0 | Y52: 43 | Z52: 9 | AA52: 998 | AB52: 43 | AC52: 0 | AD52: 0 | CR52: 9 | CS52: 998 | CT52: 43 | CU52: 0 | CV52: 0 | CW52: 0 | CX52: 0
A53: 00090998 | B53: 0009 | C53: 0998 | D53: 44 | E53: 9 | G53: 998 | I53: 0 | J53: 0 | K53: 0 | L53: =IF(K54>0, K53/K54, 0) -> 0 | N53: =ROUND(M54*L53,0) -> 0 | O53: 0 | P53: =N53-O53 -> 0 | Q53: 0 | R53: 0 | T53: 9 | U53: 998 | V53: 44 | W53: 0 | X53: 0 | Y53: 44 | Z53: 9 | AA53: 998 | AB53: 44 | AC53: 0 | AD53: 0 | CR53: 9 | CS53: 998 | CT53: 44 | CU53: 0 | CV53: 0 | CW53: 0 | CX53: 0
A54: 00090999 | B54: 0009 | C54: 0999 | D54: 45 | E54: 9 | F54: Andover | G54: 999 | H54: Total | I54: 61095946.19 | J54: 1 | K54: =SUM(K50:K53) -> 64458360.34 | L54: =SUM(L50:L53) -> 1 | M54: =VLOOKUP(E54,town351,23) -> 52687464 | N54: =SUM(N50:N53) -> 52687464 | O54: 50404156 | P54: =SUM(P50:P53) -> 2283308 | Q54: 4.529999471 | R54: 5834 | T54: 9 | U54: 999 | V54: 45 | W54: 5866 | X54: 64458360.34 | Y54: 45 | Z54: 9 | AA54: 999 | AB54: 45 | AC54: 5866 | AD54: 64458360.34 | CR54: 9 | CS54: 999 | CT54: 45 | CU54: 5834 | CV54: 61095946.19 | CW54: 1 | CX54: 50404156
A55: 00100010 | B55: 0010 | C55: 0010 | D55: 46 | E55: 10 | F55: Arlington | G55: 10 | H55: Arlington | I55: 58002940.65 | J55: 0.965620222 | K55: =X55 -> 62294073.1 | L55: =IF(K59>0, K55/K59, 0) -> 0.9657766875 | N55: =ROUND(M59*L55,0) -> 48330137 | O55: 46237018 | P55: =N55-O55 -> 2093119 | Q55: 4.526933376 | R55: 5785 | T55: 10 | U55: 10 | V55: 46 | W55: 5980 | X55: 62294073.1 | Y55: 46 | Z55: 10 | AA55: 10 | AB55: 46 | AC55: 5980 | AD55: 62294073.1 | CR55: 10 | CS55: 10 | CT55: 46 | CU55: 5785 | CV55: 58002940.65 | CW55: 0.965620222 | CX55: 46237018
A56: 00100830 | B56: 0010 | C56: 0830 | D56: 47 | E56: 10 | F56: Arlington | G56: 830 | H56: Minuteman | I56: 2065126.824 | J56: 0.03437977799 | K56: 2207455.987 | L56: =IF(K59>0, K56/K59, 0) -> 0.03422331251 | N56: =ROUND(M59*L56,0) -> 1712629 | O56: 1646215 | P56: =N56-O56 -> 66414 | Q56: 4.034345453 | R56: 115.3372434 | T56: 10 | U56: 830 | V56: 47 | W56: 120 | X56: 2207455.987 | Y56: 47 | Z56: 10 | AA56: 830 | AB56: 47 | AC56: 120 | AD56: 2207455.987 | CR56: 10 | CS56: 830 | CT56: 47 | CU56: 115.3372434 | CV56: 2065126.824 | CW56: 0.03437977799 | CX56: 1646215
A57: 00100998 | B57: 0010 | C57: 0998 | D57: 48 | E57: 10 | G57: 998 | I57: 0 | J57: 0 | K57: 0 | L57: =IF(K59>0, K57/K59, 0) -> 0 | N57: =ROUND(M59*L57,0) -> 0 | O57: 0 | P57: =N57-O57 -> 0 | Q57: 0 | R57: 0 | T57: 10 | U57: 998 | V57: 48 | W57: 0 | X57: 0 | Y57: 48 | Z57: 10 | AA57: 998 | AB57: 48 | AC57: 0 | AD57: 0 | CR57: 10 | CS57: 998 | CT57: 48 | CU57: 0 | CV57: 0 | CW57: 0 | CX57: 0
A58: 00100998 | B58: 0010 | C58: 0998 | D58: 49 | E58: 10 | G58: 998 | I58: 0 | J58: 0 | K58: 0 | L58: =IF(K59>0, K58/K59, 0) -> 0 | N58: =ROUND(M59*L58,0) -> 0 | O58: 0 | P58: =N58-O58 -> 0 | Q58: 0 | R58: 0 | T58: 10 | U58: 998 | V58: 49 | W58: 0 | X58: 0 | Y58: 49 | Z58: 10 | AA58: 998 | AB58: 49 | AC58: 0 | AD58: 0 | CR58: 10 | CS58: 998 | CT58: 49 | CU58: 0 | CV58: 0 | CW58: 0 | CX58: 0
A59: 00100999 | B59: 0010 | C59: 0999 | D59: 50 | E59: 10 | F59: Arlington | G59: 999 | H59: Total | I59: 60068067.47 | J59: 1 | K59: =SUM(K55:K58) -> 64501529.08 | L59: =SUM(L55:L58) -> 1 | M59: =VLOOKUP(E59,town351,23) -> 50042766 | N59: =SUM(N55:N58) -> 50042766 | O59: 47883233 | P59: =SUM(P55:P58) -> 2159533 | Q59: 4.509998312 | R59: 5900.337243 | T59: 10 | U59: 999 | V59: 50 | W59: 6100 | X59: 64501529.08 | Y59: 50 | Z59: 10 | AA59: 999 | AB59: 50 | AC59: 6100 | AD59: 64501529.08 | CR59: 10 | CS59: 999 | CT59: 50 | CU59: 5900.337243 | CV59: 60068067.47 | CW59: 1 | CX59: 47883233
A60: 00110011 | B60: 0011 | C60: 0011 | D60: 51 | E60: 11 | F60: Ashburnham | G60: 11 | H60: Ashburnham | I60: 0 | J60: 0 | K60: =X60 -> 0 | L60: =IF(K64>0, K60/K64, 0) -> 0 | N60: =ROUND(M64*L60,0) -> 0 | O60: 0 | P60: =N60-O60 -> 0 | Q60: 0 | R60: 0 | T60: 11 | U60: 11 | V60: 51 | W60: 0 | X60: 0 | Y60: 51 | Z60: 11 | AA60: 11 | AB60: 51 | AC60: 0 | AD60: 0 | CR60: 11 | CS60: 11 | CT60: 51 | CU60: 0 | CV60: 0 | CW60: 0 | CX60: 0
A61: 00110610 | B61: 0011 | C61: 0610 | D61: 52 | E61: 11 | F61: Ashburnham | G61: 610 | H61: Ashburnham Westminster | I61: 10862999.7 | J61: 0.9127346045 | K61: 10689890.54 | L61: =IF(K64>0, K61/K64, 0) -> 0.9143082126 | N61: =ROUND(M64*L61,0) -> 4915371 | O61: 4717731 | P61: =N61-O61 -> 197640 | Q61: 4.189302018 | R61: 1076.284344 | T61: 11 | U61: 610 | V61: 52 | W61: 1020.045276 | X61: 10689890.54 | Y61: 52 | Z61: 11 | AA61: 610 | AB61: 52 | AC61: 1020.045276 | AD61: 10689890.54 | CR61: 11 | CS61: 610 | CT61: 52 | CU61: 1076.284344 | CV61: 10862999.7 | CW61: 0.9127346045 | CX61: 4717731
A62: 00110832 | B62: 0011 | C62: 0832 | D62: 53 | E62: 11 | F62: Ashburnham | G62: 832 | H62: Montachusett | I62: 1038597.594 | J62: 0.08726539548 | K62: 1001889.532 | L62: =IF(K64>0, K62/K64, 0) -> 0.08569178737 | N62: =ROUND(M64*L62,0) -> 460684 | O62: 451056 | P62: =N62-O62 -> 9628 | Q62: 2.134546486 | R62: 64.04306865 | T62: 11 | U62: 832 | V62: 53 | W62: 59 | X62: 1001889.532 | Y62: 53 | Z62: 11 | AA62: 832 | AB62: 53 | AC62: 59 | AD62: 1001889.532 | CR62: 11 | CS62: 832 | CT62: 53 | CU62: 64.04306865 | CV62: 1038597.594 | CW62: 0.08726539548 | CX62: 451056
A63: 00110998 | B63: 0011 | C63: 0998 | D63: 54 | E63: 11 | G63: 998 | I63: 0 | J63: 0 | K63: 0 | L63: =IF(K64>0, K63/K64, 0) -> 0 | N63: =ROUND(M64*L63,0) -> 0 | O63: 0 | P63: =N63-O63 -> 0 | Q63: 0 | R63: 0 | T63: 11 | U63: 998 | V63: 54 | W63: 0 | X63: 0 | Y63: 54 | Z63: 11 | AA63: 998 | AB63: 54 | AC63: 0 | AD63: 0 | CR63: 11 | CS63: 998 | CT63: 54 | CU63: 0 | CV63: 0 | CW63: 0 | CX63: 0
A64: 00110999 | B64: 0011 | C64: 0999 | D64: 55 | E64: 11 | F64: Ashburnham | G64: 999 | H64: Total | I64: 11901597.29 | J64: 1 | K64: =SUM(K60:K63) -> 11691780.07 | L64: =SUM(L60:L63) -> 1 | M64: =VLOOKUP(E64,town351,23) -> 5376055 | N64: =SUM(N60:N63) -> 5376055 | O64: 5168787 | P64: =SUM(P60:P63) -> 207268 | Q64: 4.00999306 | R64: 1140.327412 | T64: 11 | U64: 999 | V64: 55 | W64: 1079.045276 | X64: 11691780.07 | Y64: 55 | Z64: 11 | AA64: 999 | AB64: 55 | AC64: 1079.045276 | AD64: 11691780.07 | CR64: 11 | CS64: 999 | CT64: 55 | CU64: 1140.327412 | CV64: 11901597.29 | CW64: 1 | CX64: 5168787
A65: 00120012 | B65: 0012 | C65: 0012 | D65: 56 | E65: 12 | F65: Ashby | G65: 12 | H65: Ashby | I65: 0 | J65: 0 | K65: =X65 -> 0 | L65: =IF(K69>0, K65/K69, 0) -> 0 | N65: =ROUND(M69*L65,0) -> 0 | O65: 0 | P65: =N65-O65 -> 0 | Q65: 0 | R65: 0 | T65: 12 | U65: 12 | V65: 56 | W65: 0 | X65: 0 | Y65: 56 | Z65: 12 | AA65: 12 | AB65: 56 | AC65: 0 | AD65: 0 | CR65: 12 | CS65: 12 | CT65: 56 | CU65: 0 | CV65: 0 | CW65: 0 | CX65: 0
A66: 00120735 | B66: 0012 | C66: 0735 | D66: 57 | E66: 12 | F66: Ashby | G66: 735 | H66: North Middlesex | I66: 3774894.734 | J66: 0.8891500395 | K66: 3851136.718 | L66: =IF(K69>0, K66/K69, 0) -> 0.8763469212 | N66: =ROUND(M69*L66,0) -> 2202332 | O66: 2175126 | P66: =N66-O66 -> 27206 | Q66: 1.250778116 | R66: 370.7240412 | T66: 12 | U66: 735 | V66: 57 | W66: 363.1624413 | X66: 3851136.718 | Y66: 57 | Z66: 12 | AA66: 735 | AB66: 57 | AC66: 363.1624413 | AD66: 3851136.718 | CR66: 12 | CS66: 735 | CT66: 57 | CU66: 370.7240412 | CV66: 3774894.734 | CW66: 0.8891500395 | CX66: 2175126
A67: 00120832 | B67: 0012 | C67: 0832 | D67: 58 | E67: 12 | F67: Ashby | G67: 832 | H67: Montachusett | I67: 470614.5348 | J67: 0.1108499605 | K67: 543397.7122 | L67: =IF(K69>0, K67/K69, 0) -> 0.1236530788 | N67: =ROUND(M69*L67,0) -> 310750 | O67: 271172 | P67: =N67-O67 -> 39578 | Q67: 14.59516469 | R67: 29.01951547 | T67: 12 | U67: 832 | V67: 58 | W67: 32 | X67: 543397.7122 | Y67: 58 | Z67: 12 | AA67: 832 | AB67: 58 | AC67: 32 | AD67: 543397.7122 | CR67: 12 | CS67: 832 | CT67: 58 | CU67: 29.01951547 | CV67: 470614.5348 | CW67: 0.1108499605 | CX67: 271172
A68: 00120998 | B68: 0012 | C68: 0998 | D68: 59 | E68: 12 | G68: 998 | I68: 0 | J68: 0 | K68: 0 | L68: =IF(K69>0, K68/K69, 0) -> 0 | N68: =ROUND(M69*L68,0) -> 0 | O68: 0 | P68: =N68-O68 -> 0 | Q68: 0 | R68: 0 | T68: 12 | U68: 998 | V68: 59 | W68: 0 | X68: 0 | Y68: 59 | Z68: 12 | AA68: 998 | AB68: 59 | AC68: 0 | AD68: 0 | CR68: 12 | CS68: 998 | CT68: 59 | CU68: 0 | CV68: 0 | CW68: 0 | CX68: 0
A69: 00120999 | B69: 0012 | C69: 0999 | D69: 60 | E69: 12 | F69: Ashby | G69: 999 | H69: Total | I69: 4245509.269 | J69: 1 | K69: =SUM(K65:K68) -> 4394534.43 | L69: =SUM(L65:L68) -> 1 | M69: =VLOOKUP(E69,town351,23) -> 2513082 | N69: =SUM(N65:N68) -> 2513082 | O69: 2446298 | P69: =SUM(P65:P68) -> 66784 | Q69: 2.730002641 | R69: 399.7435566 | T69: 12 | U69: 999 | V69: 60 | W69: 395.1624413 | X69: 4394534.43 | Y69: 60 | Z69: 12 | AA69: 999 | AB69: 60 | AC69: 395.1624413 | AD69: 4394534.43 | CR69: 12 | CS69: 999 | CT69: 60 | CU69: 399.7435566 | CV69: 4245509.269 | CW69: 1 | CX69: 2446298
A70: 00130013 | B70: 0013 | C70: 0013 | D70: 61 | E70: 13 | F70: Ashfield | G70: 13 | H70: Ashfield | I70: 233861.83 | J70: 0.1066373907 | K70: =X70 -> 100602.5808 | L70: =IF(K74>0, K70/K74, 0) -> 0.04853259741 | N70: =ROUND(M74*L70,0) -> 74854 | O70: 163542 | P70: =N70-O70 -> -88688 | Q70: -54.22949456 | R70: 15 | T70: 13 | U70: 13 | V70: 61 | W70: 7 | X70: 100602.5808 | Y70: 61 | Z70: 13 | AA70: 13 | AB70: 61 | AC70: 7 | AD70: 100602.5808 | CR70: 13 | CS70: 13 | CT70: 61 | CU70: 15 | CV70: 233861.83 | CW70: 0.1066373907 | CX70: 163542
A71: 00130717 | B71: 0013 | C71: 0717 | D71: 62 | E71: 13 | F71: Ashfield | G71: 717 | H71: Mohawk Trail | I71: 1959194.738 | J71: 0.8933626093 | K71: 1972284.224 | L71: =IF(K74>0, K71/K74, 0) -> 0.9514674026 | N71: =ROUND(M74*L71,0) -> 1467494 | O71: 1370082 | P71: =N71-O71 -> 97412 | Q71: 7.109939405 | R71: 179.693617 | T71: 13 | U71: 717 | V71: 62 | W71: 172.2222222 | X71: 1972284.224 | Y71: 62 | Z71: 13 | AA71: 717 | AB71: 62 | AC71: 172.2222222 | AD71: 1972284.224 | CR71: 13 | CS71: 717 | CT71: 62 | CU71: 179.693617 | CV71: 1959194.738 | CW71: 0.8933626093 | CX71: 1370082
A72: 00130998 | B72: 0013 | C72: 0998 | D72: 63 | E72: 13 | G72: 998 | I72: 0 | J72: 0 | K72: 0 | L72: =IF(K74>0, K72/K74, 0) -> 0 | N72: =ROUND(M74*L72,0) -> 0 | O72: 0 | P72: =N72-O72 -> 0 | Q72: 0 | R72: 0 | T72: 13 | U72: 998 | V72: 63 | W72: 0 | X72: 0 | Y72: 63 | Z72: 13 | AA72: 998 | AB72: 63 | AC72: 0 | AD72: 0 | CR72: 13 | CS72: 998 | CT72: 63 | CU72: 0 | CV72: 0 | CW72: 0 | CX72: 0
A73: 00130998 | B73: 0013 | C73: 0998 | D73: 64 | E73: 13 | G73: 998 | I73: 0 | J73: 0 | K73: 0 | L73: =IF(K74>0, K73/K74, 0) -> 0 | N73: =ROUND(M74*L73,0) -> 0 | O73: 0 | P73: =N73-O73 -> 0 | Q73: 0 | R73: 0 | T73: 13 | U73: 998 | V73: 64 | W73: 0 | X73: 0 | Y73: 64 | Z73: 13 | AA73: 998 | AB73: 64 | AC73: 0 | AD73: 0 | CR73: 13 | CS73: 998 | CT73: 64 | CU73: 0 | CV73: 0 | CW73: 0 | CX73: 0
A74: =B74&C74 -> 00130999 | B74: 0013 | C74: 0999 | D74: 65 | E74: 13 | F74: Ashfield | G74: 999 | H74: Total | I74: 2193056.568 | J74: 1 | K74: =SUM(K70:K73) -> 2072886.805 | L74: =SUM(L70:L73) -> 1 | M74: =VLOOKUP(E74,town351,23) -> 1542348 | N74: =SUM(N70:N73) -> 1542348 | O74: 1533624 | P74: =SUM(P70:P73) -> 8724 | Q74: 0.5688486878 | R74: 194.693617 | T74: =VLOOKUP($D74, foundoptions, VLOOKUP($T$6, foundoptcell, 2, FALSE), FALSE) -> 13 | U74: =VLOOKUP($D74, foundoptions, VLOOKUP($T$6, foundoptcell, 2, FALSE)+1, FALSE) -> 999 | V74: =VLOOKUP($D74, foundoptions, VLOOKUP($T$6, foundoptcell, 2, FALSE)+2, FALSE) -> 65 | W74: =VLOOKUP($D74, foundoptions, VLOOKUP($T$6, foundoptcell, 2, FALSE)+3, FALSE) -> 179.2222222 | X74: =VLOOKUP($D74, foundoptions, VLOOKUP($T$6, foundoptcell, 2, FALSE)+4, FALSE) -> 2072886.805 | Y74: 65 | Z74: 13 | AA74: 999 | AB74: 65 | AC74: 179.2222222 | AD74: 2072886.805 | CR74: 13 | CS74: 999 | CT74: 65 | CU74: 194.693617 | CV74: 2193056.568 | CW74: 1 | CX74: 1533624
A75: 00140014 | B75: 0014 | C75: 0014 | D75: 66 | E75: 14 | F75: Ashland | G75: 14 | H75: Ashland | I75: 26344731.8 | J75: 0.9575405389 | K75: =X75 -> 29177890.76 | L75: =IF(K79>0, K75/K79, 0) -> 0.96607914 | N75: =ROUND(M79*L75,0) -> 21472389 | O75: 20247938 | P75: =N75-O75 -> 1224451 | Q75: 6.047287383 | R75: 2581 | T75: 14 | U75: 14 | V75: 66 | W75: 2764 | X75: 29177890.76 | Y75: =D75 -> 66 | Z75: 14 | AA75: 14 | AB75: 66 | AC75: 2764 | AD75: 29177890.76 | CR75: 14 | CS75: 14 | CT75: 66 | CU75: 2581 | CV75: 26344731.8 | CW75: 0.9575405389 | CX75: 20247938
A76: 00140829 | B76: 0014 | C76: 0829 | D76: 67 | E76: 14 | F76: Ashland | G76: 829 | H76: South Middlesex | I76: 1168183.558 | J76: 0.04245946106 | K76: 1024490.754 | L76: =IF(K79>0, K76/K79, 0) -> 0.03392085998 | N76: =ROUND(M79*L76,0) -> 753936 | O76: 897838 | P76: =N76-O76 -> -143902 | Q76: -16.027613 | R76: 66 | T76: 14 | U76: 829 | V76: 67 | W76: 55 | X76: 1024490.754 | Y76: 67 | Z76: 14 | AA76: 829 | AB76: 67 | AC76: 55 | AD76: 1024490.754 | CR76: 14 | CS76: 829 | CT76: 67 | CU76: 66 | CV76: 1168183.558 | CW76: 0.04245946106 | CX76: 897838
A77: 00140998 | B77: 0014 | C77: 0998 | D77: 68 | E77: 14 | G77: 998 | I77: 0 | J77: 0 | K77: 0 | L77: =IF(K79>0, K77/K79, 0) -> 0 | N77: =ROUND(M79*L77,0) -> 0 | O77: 0 | P77: =N77-O77 -> 0 | Q77: 0 | R77: 0 | T77: 14 | U77: 998 | V77: 68 | W77: 0 | X77: 0 | Y77: 68 | Z77: 14 | AA77: 998 | AB77: 68 | AC77: 0 | AD77: 0 | CR77: 14 | CS77: 998 | CT77: 68 | CU77: 0 | CV77: 0 | CW77: 0 | CX77: 0
A78: 00140998 | B78: 0014 | C78: 0998 | D78: 69 | E78: 14 | G78: 998 | I78: 0 | J78: 0 | K78: 0 | L78: =IF(K79>0, K78/K79, 0) -> 0 | N78: =ROUND(M79*L78,0) -> 0 | O78: 0 | P78: =N78-O78 -> 0 | Q78: 0 | R78: 0 | T78: 14 | U78: 998 | V78: 69 | W78: 0 | X78: 0 | Y78: 69 | Z78: 14 | AA78: 998 | AB78: 69 | AC78: 0 | AD78: 0 | CR78: 14 | CS78: 998 | CT78: 69 | CU78: 0 | CV78: 0 | CW78: 0 | CX78: 0
A79: 00140999 | B79: 0014 | C79: 0999 | D79: 70 | E79: 14 | F79: Ashland | G79: 999 | H79: Total | I79: 27512915.35 | J79: 1 | K79: =SUM(K75:K78) -> 30202381.51 | L79: =SUM(L75:L78) -> 1 | M79: =VLOOKUP(E79,town351,23) -> 22226325 | N79: =SUM(N75:N78) -> 22226325 | O79: 21145776 | P79: =SUM(P75:P78) -> 1080549 | Q79: 5.109999274 | R79: 2647 | T79: 14 | U79: 999 | V79: 70 | W79: 2819 | X79: 30202381.51 | Y79: 70 | Z79: 14 | AA79: 999 | AB79: 70 | AC79: 2819 | AD79: 30202381.51 | CR79: 14 | CS79: 999 | CT79: 70 | CU79: 2647 | CV79: 27512915.35 | CW79: 1 | CX79: 21145776
A80: 00150015 | B80: 0015 | C80: 0015 | D80: 71 | E80: 15 | F80: Athol | G80: 15 | H80: Athol | I80: 13837.16 | J80: 0.0007016448517 | K80: =X80 -> 0 | L80: =IF(K84>0, K80/K84, 0) -> 0 | N80: =ROUND(M84*L80,0) -> 0 | O80: 2099 | P80: =N80-O80 -> -2099 | Q80: =IF(O80>0,P80*100/O80,IF(P80>0,100,0)) -> -100 | R80: 1 | T80: 15 | U80: 15 | V80: 71 | W80: 0 | X80: 0 | Y80: 71 | Z80: 15 | AA80: 15 | AB80: 71 | AC80: 0 | AD80: 0 | CR80: 15 | CS80: 15 | CT80: 71 | CU80: 1 | CV80: 13837.16 | CW80: 0.0007016448517 | CX80: 2099
A81: 00150615 | B81: 0015 | C81: 0615 | D81: 72 | E81: 15 | F81: Athol | G81: 615 | H81: Athol Royalston | I81: 18262894.24 | J81: 0.9260618308 | K81: 19054143.74 | L81: =IF(K84>0, K81/K84, 0) -> 0.9189238516 | N81: =ROUND(M84*L81,0) -> 2910183 | O81: 2770441 | P81: =N81-O81 -> 139742 | Q81: =IF(O81>0,P81*100/O81,IF(P81>0,100,0)) -> 5.044034506 | R81: 1628.887892 | T81: 15 | U81: 615 | V81: 72 | W81: 1617.073696 | X81: 19054143.74 | Y81: 72 | Z81: 15 | AA81: 615 | AB81: 72 | AC81: 1617.073696 | AD81: 19054143.74 | CR81: 15 | CS81: 615 | CT81: 72 | CU81: 1628.887892 | CV81: 18262894.24 | CW81: 0.9260618308 | CX81: 2770441
A82: 00150832 | B82: 0015 | C82: 0832 | D82: 73 | E82: 15 | F82: Athol | G82: 832 | H82: Montachusett | I82: 1444299.779 | J82: 0.0732365243 | K82: 1681136.672 | L82: =IF(K84>0, K82/K84, 0) -> 0.08107614842 | N82: =ROUND(M84*L82,0) -> 256764 | O82: 219097 | P82: =N82-O82 -> 37667 | Q82: =IF(O82>0,P82*100/O82,IF(P82>0,100,0)) -> 17.19192869 | R82: 89.05989233 | T82: 15 | U82: 832 | V82: 73 | W82: 98.99999999 | X82: 1681136.672 | Y82: 73 | Z82: 15 | AA82: 832 | AB82: 73 | AC82: 98.99999999 | AD82: 1681136.672 | CR82: 15 | CS82: 832 | CT82: 73 | CU82: 89.05989233 | CV82: 1444299.779 | CW82: 0.0732365243 | CX82: 219097
A83: 00150998 | B83: 0015 | C83: 0998 | D83: 74 | E83: 15 | G83: 998 | I83: 0 | J83: 0 | K83: 0 | L83: =IF(K84>0, K83/K84, 0) -> 0 | N83: =ROUND(M84*L83,0) -> 0 | O83: 0 | P83: =N83-O83 -> 0 | Q83: =IF(O83>0,P83*100/O83,IF(P83>0,100,0)) -> 0 | R83: 0 | T83: 15 | U83: 998 | V83: 74 | W83: 0 | X83: 0 | Y83: 74 | Z83: 15 | AA83: 998 | AB83: 74 | AC83: 0 | AD83: 0 | CR83: 15 | CS83: 998 | CT83: 74 | CU83: 0 | CV83: 0 | CW83: 0 | CX83: 0
A84: 00150999 | B84: 0015 | C84: 0999 | D84: 75 | E84: 15 | F84: Athol | G84: 999 | H84: Total | I84: 19721031.18 | J84: 1 | K84: =SUM(K80:K83) -> 20735280.41 | L84: =SUM(L80:L83) -> 1 | M84: =VLOOKUP(E84,town351,23) -> 3166947 | N84: =SUM(N80:N83) -> 3166947 | O84: 2991637 | P84: =SUM(P80:P83) -> 175310 | Q84: =IF(O84>0,P84*100/O84,IF(P84>0,100,0)) -> 5.8600024 | R84: 1718.947785 | T84: 15 | U84: 999 | V84: 75 | W84: 1716.073696 | X84: 20735280.41 | Y84: 75 | Z84: 15 | AA84: 999 | AB84: 75 | AC84: 1716.073696 | AD84: 20735280.41 | CR84: 15 | CS84: 999 | CT84: 75 | CU84: 1718.947785 | CV84: 19721031.18 | CW84: 1 | CX84: 2991637
A85: 00160016 | B85: 0016 | C85: 0016 | D85: 76 | E85: 16 | F85: Attleboro | G85: 16 | H85: Attleboro | I85: 72980818.83 | J85: 0.9927616586 | K85: =X85 -> 77760770.56 | L85: =IF(K89>0, K85/K89, 0) -> 0.994077125 | N85: =ROUND(M89*L85,0) -> 36638947 | O85: 35206834 | P85: =N85-O85 -> 1432113 | Q85: 4.067713104 | R85: 6311 | T85: 16 | U85: 16 | V85: 76 | W85: 6355 | X85: 77760770.56 | Y85: 76 | Z85: 16 | AA85: 16 | AB85: 76 | AC85: 6355 | AD85: 77760770.56 | CR85: 16 | CS85: 16 | CT85: 76 | CU85: 6311 | CV85: 72980818.83 | CW85: 0.9927616586 | CX85: 35206834
A86: 00160910 | B86: 0016 | C86: 0910 | D86: 77 | E86: 16 | F86: Attleboro | G86: 910 | H86: Bristol County | I86: 532111.6905 | J86: 0.007238341429 | K86: 463311.4598 | L86: =IF(K89>0, K86/K89, 0) -> 0.005922875001 | N86: =ROUND(M89*L86,0) -> 218301 | O86: 256697 | P86: =N86-O86 -> -38396 | Q86: -14.95771279 | R86: 33 | T86: 16 | U86: 910 | V86: 77 | W86: 27 | X86: 463311.4598 | Y86: 77 | Z86: 16 | AA86: 910 | AB86: 77 | AC86: 27 | AD86: 463311.4598 | CR86: 16 | CS86: 910 | CT86: 77 | CU86: 33 | CV86: 532111.6905 | CW86: 0.007238341429 | CX86: 256697
A87: 00160998 | B87: 0016 | C87: 0998 | D87: 78 | E87: 16 | G87: 998 | I87: 0 | J87: 0 | K87: 0 | L87: =IF(K89>0, K87/K89, 0) -> 0 | N87: =ROUND(M89*L87,0) -> 0 | O87: 0 | P87: =N87-O87 -> 0 | Q87: 0 | R87: 0 | T87: 16 | U87: 998 | V87: 78 | W87: 0 | X87: 0 | Y87: 78 | Z87: 16 | AA87: 998 | AB87: 78 | AC87: 0 | AD87: 0 | CR87: 16 | CS87: 998 | CT87: 78 | CU87: 0 | CV87: 0 | CW87: 0 | CX87: 0
A88: 00160998 | B88: 0016 | C88: 0998 | D88: 79 | E88: 16 | G88: 998 | I88: 0 | J88: 0 | K88: 0 | L88: =IF(K89>0, K88/K89, 0) -> 0 | N88: =ROUND(M89*L88,0) -> 0 | O88: 0 | P88: =N88-O88 -> 0 | Q88: 0 | R88: 0 | T88: 16 | U88: 998 | V88: 79 | W88: 0 | X88: 0 | Y88: 79 | Z88: 16 | AA88: 998 | AB88: 79 | AC88: 0 | AD88: 0 | CR88: 16 | CS88: 998 | CT88: 79 | CU88: 0 | CV88: 0 | CW88: 0 | CX88: 0
A89: 00160999 | B89: 0016 | C89: 0999 | D89: 80 | E89: 16 | F89: Attleboro | G89: 999 | H89: Total | I89: 73512930.52 | J89: 1 | K89: =SUM(K85:K88) -> 78224082.02 | L89: =SUM(L85:L88) -> 1 | M89: =VLOOKUP(E89,town351,23) -> 36857248 | N89: =SUM(N85:N88) -> 36857248 | O89: 35463531 | P89: =SUM(P85:P88) -> 1393717 | Q89: 3.930000653 | R89: 6344 | T89: 16 | U89: 999 | V89: 80 | W89: 6382 | X89: 78224082.02 | Y89: 80 | Z89: 16 | AA89: 999 | AB89: 80 | AC89: 6382 | AD89: 78224082.02 | CR89: 16 | CS89: 999 | CT89: 80 | CU89: 6344 | CV89: 73512930.52 | CW89: 1 | CX89: 35463531
A90: 00170017 | B90: 0017 | C90: 0017 | D90: 81 | E90: 17 | F90: Auburn | G90: 17 | H90: Auburn | I90: 25672129.78 | J90: 0.9495990138 | K90: =X90 -> 26762943.25 | L90: =IF(K94>0, K90/K94, 0) -> 0.9485820474 | N90: =ROUND(M94*L90,0) -> 15076760 | O90: 14624535 | P90: =N90-O90 -> 452225 | Q90: 3.092235069 | R90: 2495 | T90: 17 | U90: 17 | V90: 81 | W90: 2494 | X90: 26762943.25 | Y90: 81 | Z90: 17 | AA90: 17 | AB90: 81 | AC90: 2494 | AD90: 26762943.25 | CR90: 17 | CS90: 17 | CT90: 81 | CU90: 2495 | CV90: 25672129.78 | CW90: 0.9495990138 | CX90: 14624535
A91: 00170876 | B91: 0017 | C91: 0876 | D91: 82 | E91: 17 | F91: Auburn | G91: 876 | H91: Southern Worcester | I91: 1362575.824 | J91: 0.05040098621 | K91: 1450687.108 | L91: =IF(K94>0, K91/K94, 0) -> 0.05141795257 | N91: =ROUND(M94*L91,0) -> 817237 | O91: 776213 | P91: =N91-O91 -> 41024 | Q91: 5.285147247 | R91: 84 | T91: 17 | U91: 876 | V91: 82 | W91: 86 | X91: 1450687.108 | Y91: 82 | Z91: 17 | AA91: 876 | AB91: 82 | AC91: 86 | AD91: 1450687.108 | CR91: 17 | CS91: 876 | CT91: 82 | CU91: 84 | CV91: 1362575.824 | CW91: 0.05040098621 | CX91: 776213
A92: 00170998 | B92: 0017 | C92: 0998 | D92: 83 | E92: 17 | G92: 998 | I92: 0 | J92: 0 | K92: 0 | L92: =IF(K94>0, K92/K94, 0) -> 0 | N92: =ROUND(M94*L92,0) -> 0 | O92: 0 | P92: =N92-O92 -> 0 | Q92: 0 | R92: 0 | T92: 17 | U92: 998 | V92: 83 | W92: 0 | X92: 0 | Y92: 83 | Z92: 17 | AA92: 998 | AB92: 83 | AC92: 0 | AD92: 0 | CR92: 17 | CS92: 998 | CT92: 83 | CU92: 0 | CV92: 0 | CW92: 0 | CX92: 0
A93: 00170998 | B93: 0017 | C93: 0998 | D93: 84 | E93: 17 | G93: 998 | I93: 0 | J93: 0 | K93: 0 | L93: =IF(K94>0, K93/K94, 0) -> 0 | N93: =ROUND(M94*L93,0) -> 0 | O93: 0 | P93: =N93-O93 -> 0 | Q93: 0 | R93: 0 | T93: 17 | U93: 998 | V93: 84 | W93: 0 | X93: 0 | Y93: 84 | Z93: 17 | AA93: 998 | AB93: 84 | AC93: 0 | AD93: 0 | CR93: 17 | CS93: 998 | CT93: 84 | CU93: 0 | CV93: 0 | CW93: 0 | CX93: 0
A94: 00170999 | B94: 0017 | C94: 0999 | D94: 85 | E94: 17 | F94: Auburn | G94: 999 | H94: Total | I94: 27034705.6 | J94: 1 | K94: =SUM(K90:K93) -> 28213630.36 | L94: =SUM(L90:L93) -> 1 | M94: =VLOOKUP(E94,town351,23) -> 15893997 | N94: =SUM(N90:N93) -> 15893997 | O94: 15400748 | P94: =SUM(P90:P93) -> 493249 | Q94: 3.202760022 | R94: 2579 | T94: 17 | U94: 999 | V94: 85 | W94: 2580 | X94: 28213630.36 | Y94: 85 | Z94: 17 | AA94: 999 | AB94: 85 | AC94: 2580 | AD94: 28213630.36 | CR94: 17 | CS94: 999 | CT94: 85 | CU94: 2579 | CV94: 27034705.6 | CW94: 1 | CX94: 15400748
A95: 00180018 | B95: 0018 | C95: 0018 | D95: 86 | E95: 18 | F95: Avon | G95: 18 | H95: Avon | I95: 6193899.03 | J95: 0.8546657806 | K95: =X95 -> 6653932.031 | L95: =IF(K99>0, K95/K99, 0) -> 0.8640464021 | N95: =ROUND(M99*L95,0) -> 4537696 | O95: 4386495 | P95: =N95-O95 -> 151201 | Q95: 3.4469662 | R95: 561 | T95: 18 | U95: 18 | V95: 86 | W95: 563 | X95: 6653932.031 | Y95: 86 | Z95: 18 | AA95: 18 | AB95: 86 | AC95: 563 | AD95: 6653932.031 | CR95: 18 | CS95: 18 | CT95: 86 | CU95: 561 | CV95: 6193899.03 | CW95: 0.8546657806 | CX95: 4386495
A96: 00180806 | B96: 0018 | C96: 0806 | D96: 87 | E96: 18 | F96: Avon | G96: 806 | H96: Blue Hills | I96: 984907.1615 | J96: 0.1359025137 | K96: 957542.3835 | L96: =IF(K99>0, K96/K99, 0) -> 0.1243416746 | N96: =ROUND(M99*L96,0) -> 653003 | O96: 697507 | P96: =N96-O96 -> -44504 | Q96: -6.380437759 | R96: 58 | T96: 18 | U96: 806 | V96: 87 | W96: 54 | X96: 957542.3835 | Y96: 87 | Z96: 18 | AA96: 806 | AB96: 87 | AC96: 54 | AD96: 957542.3835 | CR96: 18 | CS96: 806 | CT96: 87 | CU96: 58 | CV96: 984907.1615 | CW96: 0.1359025137 | CX96: 697507
A97: 00180915 | B97: 0018 | C97: 0915 | D97: 88 | E97: 18 | F97: Avon | G97: 915 | H97: Norfolk County | I97: 68353.07351 | J97: 0.009431705722 | K97: 89422.22132 | L97: =IF(K99>0, K97/K99, 0) -> 0.01161192333 | N97: =ROUND(M99*L97,0) -> 60982 | O97: 48407 | P97: =N97-O97 -> 12575 | Q97: 25.97764786 | R97: 3.999999999 | T97: 18 | U97: 915 | V97: 88 | W97: 5 | X97: 89422.22132 | Y97: 88 | Z97: 18 | AA97: 915 | AB97: 88 | AC97: 5 | AD97: 89422.22132 | CR97: 18 | CS97: 915 | CT97: 88 | CU97: 3.999999999 | CV97: 68353.07351 | CW97: 0.009431705722 | CX97: 48407
A98: 00180998 | B98: 0018 | C98: 0998 | D98: 89 | E98: 18 | G98: 998 | I98: 0 | J98: 0 | K98: 0 | L98: =IF(K99>0, K98/K99, 0) -> 0 | N98: =ROUND(M99*L98,0) -> 0 | O98: 0 | P98: =N98-O98 -> 0 | Q98: 0 | R98: 0 | T98: 18 | U98: 998 | V98: 89 | W98: 0 | X98: 0 | Y98: 89 | Z98: 18 | AA98: 998 | AB98: 89 | AC98: 0 | AD98: 0 | CR98: 18 | CS98: 998 | CT98: 89 | CU98: 0 | CV98: 0 | CW98: 0 | CX98: 0
A99: 00180999 | B99: 0018 | C99: 0999 | D99: 90 | E99: 18 | F99: Avon | G99: 999 | H99: Total | I99: 7247159.265 | J99: 1 | K99: =SUM(K95:K98) -> 7700896.636 | L99: =SUM(L95:L98) -> 1 | M99: =VLOOKUP(E99,town351,23) -> 5251681 | N99: =SUM(N95:N98) -> 5251681 | O99: 5132409 | P99: =SUM(P95:P98) -> 119272 | Q99: 2.323898972 | R99: 623 | T99: 18 | U99: 999 | V99: 90 | W99: 622 | X99: 7700896.636 | Y99: 90 | Z99: 18 | AA99: 999 | AB99: 90 | AC99: 622 | AD99: 7700896.636 | CR99: 18 | CS99: 999 | CT99: 90 | CU99: 623 | CV99: 7247159.265 | CW99: 1 | CX99: 5132409
A100: 00190019 | B100: 0019 | C100: 0019 | D100: 91 | E100: 19 | F100: Ayer | G100: 19 | H100: Ayer | I100: 0 | J100: 0 | K100: =X100 -> 0 | L100: =IF(K104>0, K100/K104, 0) -> 0 | N100: =ROUND(M104*L100,0) -> 0 | O100: 0 | P100: =N100-O100 -> 0 | Q100: 0 | R100: 0 | T100: 19 | U100: 19 | V100: 91 | W100: 0 | X100: 0 | Y100: 91 | Z100: 19 | AA100: 19 | AB100: 91 | AC100: 0 | AD100: 0 | CR100: 19 | CS100: 19 | CT100: 91 | CU100: 0 | CV100: 0 | CW100: 0 | CX100: 0
A101: 00190616 | B101: 0019 | C101: 0616 | D101: 92 | E101: 19 | F101: Ayer | G101: 616 | H101: Ayer Shirley | I101: 9988703.748 | J101: 0.9274031692 | K101: 10831730.84 | L101: =IF(K104>0, K101/K104, 0) -> 0.9256854959 | N101: =ROUND(M104*L101,0) -> 7646864 | O101: 7215157 | P101: =N101-O101 -> 431707 | Q101: 5.983334805 | R101: 953.354394 | T101: 19 | U101: 616 | V101: 92 | W101: 979.8717654 | X101: 10831730.84 | Y101: 92 | Z101: 19 | AA101: 616 | AB101: 92 | AC101: 979.8717654 | AD101: 10831730.84 | CR101: 19 | CS101: 616 | CT101: 92 | CU101: 953.354394 | CV101: 9988703.748 | CW101: 0.9274031692 | CX101: 7215157
A102: 00190852 | B102: 0019 | C102: 0852 | D102: 93 | E102: 19 | F102: Ayer | G102: 852 | H102: Nashoba Valley | I102: 781912.613 | J102: 0.07259683075 | K102: 869576.8806 | L102: =IF(K104>0, K102/K104, 0) -> 0.07431450413 | N102: =ROUND(M104*L102,0) -> 613894 | O102: 564800 | P102: =N102-O102 -> 49094 | Q102: 8.692280453 | R102: 48 | T102: 19 | U102: 852 | V102: 93 | W102: 51 | X102: 869576.8806 | Y102: 93 | Z102: 19 | AA102: 852 | AB102: 93 | AC102: 51 | AD102: 869576.8806 | CR102: 19 | CS102: 852 | CT102: 93 | CU102: 48 | CV102: 781912.613 | CW102: 0.07259683075 | CX102: 564800
A103: 00190998 | B103: 0019 | C103: 0998 | D103: 94 | E103: 19 | G103: 998 | I103: 0 | J103: 0 | K103: 0 | L103: =IF(K104>0, K103/K104, 0) -> 0 | N103: =ROUND(M104*L103,0) -> 0 | O103: 0 | P103: =N103-O103 -> 0 | Q103: 0 | R103: 0 | T103: 19 | U103: 998 | V103: 94 | W103: 0 | X103: 0 | Y103: 94 | Z103: 19 | AA103: 998 | AB103: 94 | AC103: 0 | AD103: 0 | CR103: 19 | CS103: 998 | CT103: 94 | CU103: 0 | CV103: 0 | CW103: 0 | CX103: 0
A104: 00190999 | B104: 0019 | C104: 0999 | D104: 95 | E104: 19 | F104: Ayer | G104: 999 | H104: Total | I104: 10770616.36 | J104: 1 | K104: =SUM(K100:K103) -> 11701307.72 | L104: =SUM(L100:L103) -> 1 | M104: =VLOOKUP(E104,town351,23) -> 8260758 | N104: =SUM(N100:N103) -> 8260758 | O104: 7779957 | P104: =SUM(P100:P103) -> 480801 | Q104: 6.179995596 | R104: 1001.354394 | T104: 19 | U104: 999 | V104: 95 | W104: 1030.871765 | X104: 11701307.72 | Y104: 95 | Z104: 19 | AA104: 999 | AB104: 95 | AC104: 1030.871765 | AD104: 11701307.72 | CR104: 19 | CS104: 999 | CT104: 95 | CU104: 1001.354394 | CV104: 10770616.36 | CW104: 1 | CX104: 7779957
A105: 00200020 | B105: 0020 | C105: 0020 | D105: 96 | E105: 20 | F105: Barnstable | G105: 20 | H105: Barnstable | I105: 60393953.44 | J105: 0.952336101 | K105: =X105 -> 63524348.52 | L105: =IF(K109>0, K105/K109, 0) -> 0.952360238 | N105: =ROUND(M109*L105,0) -> 51296149 | O105: 49825012 | P105: =N105-O105 -> 1471137 | Q105: 2.952607417 | R105: 5480 | T105: 20 | U105: 20 | V105: 96 | W105: 5444 | X105: 63524348.52 | Y105: 96 | Z105: 20 | AA105: 20 | AB105: 96 | AC105: 5444 | AD105: 63524348.52 | CR105: 20 | CS105: 20 | CT105: 96 | CU105: 5480 | CV105: 60393953.44 | CW105: 0.952336101 | CX105: 49825012
A106: 00200815 | B106: 0020 | C106: 0815 | D106: 97 | E106: 20 | F106: Barnstable | G106: 815 | H106: Cape Cod | I106: 3022684.212 | J106: 0.047663899 | K106: 3177668.198 | L106: =IF(K109>0, K106/K109, 0) -> 0.04763976195 | N106: =ROUND(M109*L106,0) -> 2565979 | O106: 2493714 | P106: =N106-O106 -> 72265 | Q106: 2.897886446 | R106: 179 | T106: 20 | U106: 815 | V106: 97 | W106: 177 | X106: 3177668.198 | Y106: 97 | Z106: 20 | AA106: 815 | AB106: 97 | AC106: 177 | AD106: 3177668.198 | CR106: 20 | CS106: 815 | CT106: 97 | CU106: 179 | CV106: 3022684.212 | CW106: 0.047663899 | CX106: 2493714
A107: 00200998 | B107: 0020 | C107: 0998 | D107: 98 | E107: 20 | G107: 998 | I107: 0 | J107: 0 | K107: 0 | L107: =IF(K109>0, K107/K109, 0) -> 0 | N107: =ROUND(M109*L107,0) -> 0 | O107: 0 | P107: =N107-O107 -> 0 | Q107: 0 | R107: 0 | T107: 20 | U107: 998 | V107: 98 | W107: 0 | X107: 0 | Y107: 98 | Z107: 20 | AA107: 998 | AB107: 98 | AC107: 0 | AD107: 0 | CR107: 20 | CS107: 998 | CT107: 98 | CU107: 0 | CV107: 0 | CW107: 0 | CX107: 0
A108: 00200998 | B108: 0020 | C108: 0998 | D108: 99 | E108: 20 | G108: 998 | I108: 0 | J108: 0 | K108: 0 | L108: =IF(K109>0, K108/K109, 0) -> 0 | N108: =ROUND(M109*L108,0) -> 0 | O108: 0 | P108: =N108-O108 -> 0 | Q108: 0 | R108: 0 | T108: 20 | U108: 998 | V108: 99 | W108: 0 | X108: 0 | Y108: 99 | Z108: 20 | AA108: 998 | AB108: 99 | AC108: 0 | AD108: 0 | CR108: 20 | CS108: 998 | CT108: 99 | CU108: 0 | CV108: 0 | CW108: 0 | CX108: 0
A109: 00200999 | B109: 0020 | C109: 0999 | D109: 100 | E109: 20 | F109: Barnstable | G109: 999 | H109: Total | I109: 63416637.65 | J109: 1 | K109: =SUM(K105:K108) -> 66702016.72 | L109: =SUM(L105:L108) -> 1 | M109: =VLOOKUP(E109,town351,23) -> 53862128 | N109: =SUM(N105:N108) -> 53862128 | O109: 52318726 | P109: =SUM(P105:P108) -> 1543402 | Q109: 2.949999203 | R109: 5659 | T109: 20 | U109: 999 | V109: 100 | W109: 5621 | X109: 66702016.72 | Y109: 100 | Z109: 20 | AA109: 999 | AB109: 100 | AC109: 5621 | AD109: 66702016.72 | CR109: 20 | CS109: 999 | CT109: 100 | CU109: 5659 | CV109: 63416637.65 | CW109: 1 | CX109: 52318726
A110: 00210021 | B110: 0021 | C110: 0021 | D110: 101 | E110: 21 | F110: Barre | G110: 21 | H110: Barre | I110: 0 | J110: 0 | K110: =X110 -> 0 | L110: =IF(K114>0, K110/K114, 0) -> 0 | N110: =ROUND(M114*L110,0) -> 0 | O110: 0 | P110: =N110-O110 -> 0 | Q110: 0 | R110: 0 | T110: 21 | U110: 21 | V110: 101 | W110: 0 | X110: 0 | Y110: 101 | Z110: 21 | AA110: 21 | AB110: 101 | AC110: 0 | AD110: 0 | CR110: 21 | CS110: 21 | CT110: 101 | CU110: 0 | CV110: 0 | CW110: 0 | CX110: 0
A111: 00210753 | B111: 0021 | C111: 0753 | D111: 102 | E111: 21 | F111: Barre | G111: 753 | H111: Quabbin | I111: 8357183.38 | J111: 0.9212855705 | K111: 8382080.505 | L111: =IF(K114>0, K111/K114, 0) -> 0.8900128133 | N111: =ROUND(M114*L111,0) -> 3263850 | O111: 3282113 | P111: =N111-O111 -> -18263 | Q111: -0.5564403176 | R111: 790.1778412 | T111: 21 | U111: 753 | V111: 102 | W111: 756.7442806 | X111: 8382080.505 | Y111: 102 | Z111: 21 | AA111: 753 | AB111: 102 | AC111: 756.7442806 | AD111: 8382080.505 | CR111: 21 | CS111: 753 | CT111: 102 | CU111: 790.1778412 | CV111: 8357183.38 | CW111: 0.9212855705 | CX111: 3282113
A112: 00210832 | B112: 0021 | C112: 0832 | D112: 103 | E112: 21 | F112: Barre | G112: 832 | H112: Montachusett | I112: 714035.8459 | J112: 0.07871442946 | K112: 1035851.889 | L112: =IF(K114>0, K112/K114, 0) -> 0.1099871867 | N112: =ROUND(M114*L112,0) -> 403344 | O112: 280423 | P112: =N112-O112 -> 122921 | Q112: 43.83413629 | R112: 44.02960968 | T112: 21 | U112: 832 | V112: 103 | W112: 61.00000001 | X112: 1035851.889 | Y112: 103 | Z112: 21 | AA112: 832 | AB112: 103 | AC112: 61.00000001 | AD112: 1035851.889 | CR112: 21 | CS112: 832 | CT112: 103 | CU112: 44.02960968 | CV112: 714035.8459 | CW112: 0.07871442946 | CX112: 280423
A113: 00210998 | B113: 0021 | C113: 0998 | D113: 104 | E113: 21 | G113: 998 | I113: 0 | J113: 0 | K113: 0 | L113: =IF(K114>0, K113/K114, 0) -> 0 | N113: =ROUND(M114*L113,0) -> 0 | O113: 0 | P113: =N113-O113 -> 0 | Q113: 0 | R113: 0 | T113: 21 | U113: 998 | V113: 104 | W113: 0 | X113: 0 | Y113: 104 | Z113: 21 | AA113: 998 | AB113: 104 | AC113: 0 | AD113: 0 | CR113: 21 | CS113: 998 | CT113: 104 | CU113: 0 | CV113: 0 | CW113: 0 | CX113: 0
A114: 00210999 | B114: 0021 | C114: 0999 | D114: 105 | E114: 21 | F114: Barre | G114: 999 | H114: Total | I114: 9071219.226 | J114: 1 | K114: =SUM(K110:K113) -> 9417932.394 | L114: =SUM(L110:L113) -> 1 | M114: =VLOOKUP(E114,town351,23) -> 3667194 | N114: =SUM(N110:N113) -> 3667194 | O114: 3562536 | P114: =SUM(P110:P113) -> 104658 | Q114: 2.937738734 | R114: 834.2074509 | T114: 21 | U114: 999 | V114: 105 | W114: 817.7442806 | X114: 9417932.394 | Y114: 105 | Z114: 21 | AA114: 999 | AB114: 105 | AC114: 817.7442806 | AD114: 9417932.394 | CR114: 21 | CS114: 999 | CT114: 105 | CU114: 834.2074509 | CV114: 9071219.226 | CW114: 1 | CX114: 3562536
A115: 00220022 | B115: 0022 | C115: 0022 | D115: 106 | E115: 22 | F115: Becket | G115: 22 | H115: Becket | I115: 206187.51 | J115: 0.08517180085 | K115: =X115 -> 143717.9726 | L115: =IF(K119>0, K115/K119, 0) -> 0.05563203724 | N115: =ROUND(M119*L115,0) -> 108529 | O115: 157270 | P115: =N115-O115 -> -48741 | Q115: -30.99192472 | R115: 13 | T115: 22 | U115: 22 | V115: 106 | W115: 10 | X115: 143717.9726 | Y115: 106 | Z115: 22 | AA115: 22 | AB115: 106 | AC115: 10 | AD115: 143717.9726 | CR115: 22 | CS115: 22 | CT115: 106 | CU115: 13 | CV115: 206187.51 | CW115: 0.08517180085 | CX115: 157270
A116: 00220635 | B116: 0022 | C116: 0635 | D116: 107 | E116: 22 | F116: Becket | G116: 635 | H116: Central Berkshire | I116: 2214654.928 | J116: 0.9148281992 | K116: 2439649.089 | L116: =IF(K119>0, K116/K119, 0) -> 0.9443679628 | N116: =ROUND(M119*L116,0) -> 1842302 | O116: 1689234 | P116: =N116-O116 -> 153068 | Q116: 9.06138522 | R116: 205.0704225 | T116: 22 | U116: 635 | V116: 107 | W116: 213.5022166 | X116: 2439649.089 | Y116: 107 | Z116: 22 | AA116: 635 | AB116: 107 | AC116: 213.5022166 | AD116: 2439649.089 | CR116: 22 | CS116: 635 | CT116: 107 | CU116: 205.0704225 | CV116: 2214654.928 | CW116: 0.9148281992 | CX116: 1689234
A117: 00220998 | B117: 0022 | C117: 0998 | D117: 108 | E117: 22 | G117: 998 | I117: 0 | J117: 0 | K117: 0 | L117: =IF(K119>0, K117/K119, 0) -> 0 | N117: =ROUND(M119*L117,0) -> 0 | O117: 0 | P117: =N117-O117 -> 0 | Q117: 0 | R117: 0 | T117: 22 | U117: 998 | V117: 108 | W117: 0 | X117: 0 | Y117: 108 | Z117: 22 | AA117: 998 | AB117: 108 | AC117: 0 | AD117: 0 | CR117: 22 | CS117: 998 | CT117: 108 | CU117: 0 | CV117: 0 | CW117: 0 | CX117: 0
A118: 00220998 | B118: 0022 | C118: 0998 | D118: 109 | E118: 22 | G118: 998 | I118: 0 | J118: 0 | K118: 0 | L118: =IF(K119>0, K118/K119, 0) -> 0 | N118: =ROUND(M119*L118,0) -> 0 | O118: 0 | P118: =N118-O118 -> 0 | Q118: 0 | R118: 0 | T118: 22 | U118: 998 | V118: 109 | W118: 0 | X118: 0 | Y118: 109 | Z118: 22 | AA118: 998 | AB118: 109 | AC118: 0 | AD118: 0 | CR118: 22 | CS118: 998 | CT118: 109 | CU118: 0 | CV118: 0 | CW118: 0 | CX118: 0
A119: 00220999 | B119: 0022 | C119: 0999 | D119: 110 | E119: 22 | F119: Becket | G119: 999 | H119: Total | I119: 2420842.438 | J119: 1 | K119: =SUM(K115:K118) -> 2583367.061 | L119: =SUM(L115:L118) -> 1 | M119: =VLOOKUP(E119,town351,23) -> 1950831 | N119: =SUM(N115:N118) -> 1950831 | O119: 1846504 | P119: =SUM(P115:P118) -> 104327 | Q119: 5.649974222 | R119: 218.0704225 | T119: 22 | U119: 999 | V119: 110 | W119: 223.5022166 | X119: 2583367.061 | Y119: 110 | Z119: 22 | AA119: 999 | AB119: 110 | AC119: 223.5022166 | AD119: 2583367.061 | CR119: 22 | CS119: 999 | CT119: 110 | CU119: 218.0704225 | CV119: 2420842.438 | CW119: 1 | CX119: 1846504
A120: 00230023 | B120: 0023 | C120: 0023 | D120: 111 | E120: 23 | F120: Bedford | G120: 23 | H120: Bedford | I120: 27912085.89 | J120: 0.9892623389 | K120: =X120 -> 29672258.16 | L120: =IF(K124>0, K120/K124, 0) -> 0.985602029 | N120: =ROUND(M124*L120,0) -> 24098559 | O120: 23027471 | P120: =N120-O120 -> 1071088 | Q120: 4.651348817 | R120: 2661 | T120: 23 | U120: 23 | V120: 111 | W120: 2693 | X120: 29672258.16 | Y120: 111 | Z120: 23 | AA120: 23 | AB120: 111 | AC120: 2693 | AD120: 29672258.16 | CR120: 23 | CS120: 23 | CT120: 111 | CU120: 2661 | CV120: 27912085.89 | CW120: 0.9892623389 | CX120: 23027471
A121: 00230871 | B121: 0023 | C121: 0871 | D121: 112 | E121: 23 | F121: Bedford | G121: 871 | H121: Shawsheen Valley | I121: 302963.6389 | J121: 0.01073766107 | K121: 433461.2744 | L121: =IF(K124>0, K121/K124, 0) -> 0.01439797097 | N121: =ROUND(M124*L121,0) -> 352039 | O121: 249945 | P121: =N121-O121 -> 102094 | Q121: 40.84658625 | R121: 19 | T121: 23 | U121: 871 | V121: 112 | W121: 26 | X121: 433461.2744 | Y121: 112 | Z121: 23 | AA121: 871 | AB121: 112 | AC121: 26 | AD121: 433461.2744 | CR121: 23 | CS121: 871 | CT121: 112 | CU121: 19 | CV121: 302963.6389 | CW121: 0.01073766107 | CX121: 249945
A122: 00230998 | B122: 0023 | C122: 0998 | D122: 113 | E122: 23 | G122: 998 | I122: 0 | J122: 0 | K122: 0 | L122: =IF(K124>0, K122/K124, 0) -> 0 | N122: =ROUND(M124*L122,0) -> 0 | O122: 0 | P122: =N122-O122 -> 0 | Q122: 0 | R122: 0 | T122: 23 | U122: 998 | V122: 113 | W122: 0 | X122: 0 | Y122: 113 | Z122: 23 | AA122: 998 | AB122: 113 | AC122: 0 | AD122: 0 | CR122: 23 | CS122: 998 | CT122: 113 | CU122: 0 | CV122: 0 | CW122: 0 | CX122: 0
A123: 00230998 | B123: 0023 | C123: 0998 | D123: 114 | E123: 23 | G123: 998 | I123: 0 | J123: 0 | K123: 0 | L123: =IF(K124>0, K123/K124, 0) -> 0 | N123: =ROUND(M124*L123,0) -> 0 | O123: 0 | P123: =N123-O123 -> 0 | Q123: 0 | R123: 0 | T123: 23 | U123: 998 | V123: 114 | W123: 0 | X123: 0 | Y123: 114 | Z123: 23 | AA123: 998 | AB123: 114 | AC123: 0 | AD123: 0 | CR123: 23 | CS123: 998 | CT123: 114 | CU123: 0 | CV123: 0 | CW123: 0 | CX123: 0
A124: 00230999 | B124: 0023 | C124: 0999 | D124: 115 | E124: 23 | F124: Bedford | G124: 999 | H124: Total | I124: 28215049.53 | J124: 1 | K124: =SUM(K120:K123) -> 30105719.43 | L124: =SUM(L120:L123) -> 1 | M124: =VLOOKUP(E124,town351,23) -> 24450598 | N124: =SUM(N120:N123) -> 24450598 | O124: 23277416 | P124: =SUM(P120:P123) -> 1173182 | Q124: 5.040001004 | R124: 2680 | T124: 23 | U124: 999 | V124: 115 | W124: 2719 | X124: 30105719.43 | Y124: 115 | Z124: 23 | AA124: 999 | AB124: 115 | AC124: 2719 | AD124: 30105719.43 | CR124: 23 | CS124: 999 | CT124: 115 | CU124: 2680 | CV124: 28215049.53 | CW124: 1 | CX124: 23277416
A125: 00240024 | B125: 0024 | C125: 0024 | D125: 116 | E125: 24 | F125: Belchertown | G125: 24 | H125: Belchertown | I125: 23863029.98 | J125: 0.9302301329 | K125: =X125 -> 24514320.31 | L125: =IF(K129>0, K125/K129, 0) -> 0.9293079522 | N125: =ROUND(M129*L125,0) -> 12048062 | O125: 11563925 | P125: =N125-O125 -> 484137 | Q125: 4.186614839 | R125: 2344 | T125: 24 | U125: 24 | V125: 116 | W125: 2310 | X125: 24514320.31 | Y125: 116 | Z125: 24 | AA125: 24 | AB125: 116 | AC125: 2310 | AD125: 24514320.31 | CR125: 24 | CS125: 24 | CT125: 116 | CU125: 2344 | CV125: 23863029.98 | CW125: 0.9302301329 | CX125: 11563925
A126: 00240860 | B126: 0024 | C126: 0860 | D126: 117 | E126: 24 | F126: Belchertown | G126: 860 | H126: Pathfinder | I126: 1789794.128 | J126: 0.06976986706 | K126: 1864793.58 | L126: =IF(K129>0, K126/K129, 0) -> 0.07069204782 | N126: =ROUND(M129*L126,0) -> 916491 | O126: 867327 | P126: =N126-O126 -> 49164 | Q126: 5.668450308 | R126: 106 | T126: 24 | U126: 860 | V126: 117 | W126: 105 | X126: 1864793.58 | Y126: 117 | Z126: 24 | AA126: 860 | AB126: 117 | AC126: 105 | AD126: 1864793.58 | CR126: 24 | CS126: 860 | CT126: 117 | CU126: 106 | CV126: 1789794.128 | CW126: 0.06976986706 | CX126: 867327
A127: 00240998 | B127: 0024 | C127: 0998 | D127: 118 | E127: 24 | G127: 998 | I127: 0 | J127: 0 | K127: 0 | L127: =IF(K129>0, K127/K129, 0) -> 0 | N127: =ROUND(M129*L127,0) -> 0 | O127: 0 | P127: =N127-O127 -> 0 | Q127: 0 | R127: 0 | T127: 24 | U127: 998 | V127: 118 | W127: 0 | X127: 0 | Y127: 118 | Z127: 24 | AA127: 998 | AB127: 118 | AC127: 0 | AD127: 0 | CR127: 24 | CS127: 998 | CT127: 118 | CU127: 0 | CV127: 0 | CW127: 0 | CX127: 0
A128: 00240998 | B128: 0024 | C128: 0998 | D128: 119 | E128: 24 | G128: 998 | I128: 0 | J128: 0 | K128: 0 | L128: =IF(K129>0, K128/K129, 0) -> 0 | N128: =ROUND(M129*L128,0) -> 0 | O128: 0 | P128: =N128-O128 -> 0 | Q128: 0 | R128: 0 | T128: 24 | U128: 998 | V128: 119 | W128: 0 | X128: 0 | Y128: 119 | Z128: 24 | AA128: 998 | AB128: 119 | AC128: 0 | AD128: 0 | CR128: 24 | CS128: 998 | CT128: 119 | CU128: 0 | CV128: 0 | CW128: 0 | CX128: 0
A129: 00240999 | B129: 0024 | C129: 0999 | D129: 120 | E129: 24 | F129: Belchertown | G129: 999 | H129: Total | I129: 25652824.11 | J129: 1 | K129: =SUM(K125:K128) -> 26379113.89 | L129: =SUM(L125:L128) -> 1 | M129: =VLOOKUP(E129,town351,23) -> 12964553 | N129: =SUM(N125:N128) -> 12964553 | O129: 12431252 | P129: =SUM(P125:P128) -> 533301 | Q129: 4.290002326 | R129: 2450 | T129: 24 | U129: 999 | V129: 120 | W129: 2415 | X129: 26379113.89 | Y129: 120 | Z129: 24 | AA129: 999 | AB129: 120 | AC129: 2415 | AD129: 26379113.89 | CR129: 24 | CS129: 999 | CT129: 120 | CU129: 2450 | CV129: 25652824.11 | CW129: 1 | CX129: 12431252
A130: 00250025 | B130: 0025 | C130: 0025 | D130: 121 | E130: 25 | F130: Bellingham | G130: 25 | H130: Bellingham | I130: 23842628.52 | J130: 0.9440503857 | K130: =X130 -> 24541929.43 | L130: =IF(K134>0, K130/K134, 0) -> 0.9444573063 | N130: =ROUND(M134*L130,0) -> 16455942 | O130: 15794941 | P130: =N130-O130 -> 661001 | Q130: 4.184890593 | R130: 2330 | T130: 25 | U130: 25 | V130: 121 | W130: 2286 | X130: 24541929.43 | Y130: 121 | Z130: 25 | AA130: 25 | AB130: 121 | AC130: 2286 | AD130: 24541929.43 | CR130: 25 | CS130: 25 | CT130: 121 | CU130: 2330 | CV130: 23842628.52 | CW130: 0.9440503857 | CX130: 15794941
A131: 00250805 | B131: 0025 | C131: 0805 | D131: 122 | E131: 25 | F131: Bellingham | G131: 805 | H131: Blackstone Valley | I131: 1105456.372 | J131: 0.04377061504 | K131: 1067715.698 | L131: =IF(K134>0, K131/K134, 0) -> 0.04108934856 | N131: =ROUND(M134*L131,0) -> 715929 | O131: 732328 | P131: =N131-O131 -> -16399 | Q131: -2.239297146 | R131: 71 | T131: 25 | U131: 805 | V131: 122 | W131: 66 | X131: 1067715.698 | Y131: 122 | Z131: 25 | AA131: 805 | AB131: 122 | AC131: 66 | AD131: 1067715.698 | CR131: 25 | CS131: 805 | CT131: 122 | CU131: 71 | CV131: 1105456.372 | CW131: 0.04377061504 | CX131: 732328
A132: 00250915 | B132: 0025 | C132: 0915 | D132: 123 | E132: 25 | F132: Bellingham | G132: 915 | H132: Norfolk County | I132: 307588.8309 | J132: 0.01217899923 | K132: 375573.3296 | L132: =IF(K134>0, K132/K134, 0) -> 0.01445334509 | N132: =ROUND(M134*L132,0) -> 251831 | O132: 203767 | P132: =N132-O132 -> 48064 | Q132: 23.5877252 | R132: 18 | T132: 25 | U132: 915 | V132: 123 | W132: 21 | X132: 375573.3296 | Y132: 123 | Z132: 25 | AA132: 915 | AB132: 123 | AC132: 21 | AD132: 375573.3296 | CR132: 25 | CS132: 915 | CT132: 123 | CU132: 18 | CV132: 307588.8309 | CW132: 0.01217899923 | CX132: 203767
A133: 00250998 | B133: 0025 | C133: 0998 | D133: 124 | E133: 25 | G133: 998 | I133: 0 | J133: 0 | K133: 0 | L133: =IF(K134>0, K133/K134, 0) -> 0 | N133: =ROUND(M134*L133,0) -> 0 | O133: 0 | P133: =N133-O133 -> 0 | Q133: 0 | R133: 0 | T133: 25 | U133: 998 | V133: 124 | W133: 0 | X133: 0 | Y133: 124 | Z133: 25 | AA133: 998 | AB133: 124 | AC133: 0 | AD133: 0 | CR133: 25 | CS133: 998 | CT133: 124 | CU133: 0 | CV133: 0 | CW133: 0 | CX133: 0
A134: 00250999 | B134: 0025 | C134: 0999 | D134: 125 | E134: 25 | F134: Bellingham | G134: 999 | H134: Total | I134: 25255673.72 | J134: 1 | K134: =SUM(K130:K133) -> 25985218.45 | L134: =SUM(L130:L133) -> 1 | M134: =VLOOKUP(E134,town351,23) -> 17423701 | N134: =SUM(N130:N133) -> 17423702 | O134: 16731036 | P134: =SUM(P130:P133) -> 692666 | Q134: 4.140006632 | R134: 2419 | T134: 25 | U134: 999 | V134: 125 | W134: 2373 | X134: 25985218.45 | Y134: 125 | Z134: 25 | AA134: 999 | AB134: 125 | AC134: 2373 | AD134: 25985218.45 | CR134: 25 | CS134: 999 | CT134: 125 | CU134: 2419 | CV134: 25255673.72 | CW134: 1 | CX134: 16731036
A135: 00260026 | B135: 0026 | C135: 0026 | D135: 126 | E135: 26 | F135: Belmont | G135: 26 | H135: Belmont | I135: 45512607.46 | J135: 0.9913942987 | K135: =X135 -> 47857221.47 | L135: =IF(K139>0, K135/K139, 0) -> 0.9893518993 | N135: =ROUND(M139*L135,0) -> 38364680 | O135: 36735671 | P135: =N135-O135 -> 1629009 | Q135: 4.434406547 | R135: 4488 | T135: 26 | U135: 26 | V135: 126 | W135: 4517 | X135: 47857221.47 | Y135: 126 | Z135: 26 | AA135: 26 | AB135: 126 | AC135: 4517 | AD135: 47857221.47 | CR135: 26 | CS135: 26 | CT135: 126 | CU135: 4488 | CV135: 45512607.46 | CW135: 0.9913942987 | CX135: 36735671
A136: 00260830 | B136: 0026 | C136: 0830 | D136: 127 | E136: 26 | F136: Belmont | G136: 830 | H136: Minuteman | I136: 395067.7402 | J136: 0.008605701301 | K136: 515073.0637 | L136: =IF(K139>0, K136/K139, 0) -> 0.01064810071 | N136: =ROUND(M139*L136,0) -> 412908 | O136: 318880 | P136: =N136-O136 -> 94028 | Q136: 29.48695434 | R136: 22.06451613 | T136: 26 | U136: 830 | V136: 127 | W136: 28 | X136: 515073.0637 | Y136: 127 | Z136: 26 | AA136: 830 | AB136: 127 | AC136: 28 | AD136: 515073.0637 | CR136: 26 | CS136: 830 | CT136: 127 | CU136: 22.06451613 | CV136: 395067.7402 | CW136: 0.008605701301 | CX136: 318880
A137: 00260998 | B137: 0026 | C137: 0998 | D137: 128 | E137: 26 | G137: 998 | I137: 0 | J137: 0 | K137: 0 | L137: =IF(K139>0, K137/K139, 0) -> 0 | N137: =ROUND(M139*L137,0) -> 0 | O137: 0 | P137: =N137-O137 -> 0 | Q137: 0 | R137: 0 | T137: 26 | U137: 998 | V137: 128 | W137: 0 | X137: 0 | Y137: 128 | Z137: 26 | AA137: 998 | AB137: 128 | AC137: 0 | AD137: 0 | CR137: 26 | CS137: 998 | CT137: 128 | CU137: 0 | CV137: 0 | CW137: 0 | CX137: 0
A138: =B138&C138 -> 00260998 | B138: 0026 | C138: 0998 | D138: 129 | E138: 26 | G138: 998 | I138: 0 | J138: 0 | K138: 0 | L138: =IF(K139>0, K138/K139, 0) -> 0 | N138: =ROUND(M139*L138,0) -> 0 | O138: 0 | P138: =N138-O138 -> 0 | Q138: 0 | R138: 0 | T138: =VLOOKUP($D138, foundoptions, VLOOKUP($T$6, foundoptcell, 2, FALSE), FALSE) -> 26 | U138: =VLOOKUP($D138, foundoptions, VLOOKUP($T$6, foundoptcell, 2, FALSE)+1, FALSE) -> 998 | V138: =VLOOKUP($D138, foundoptions, VLOOKUP($T$6, foundoptcell, 2, FALSE)+2, FALSE) -> 129 | W138: =VLOOKUP($D138, foundoptions, VLOOKUP($T$6, foundoptcell, 2, FALSE)+3, FALSE) -> 0 | X138: =VLOOKUP($D138, foundoptions, VLOOKUP($T$6, foundoptcell, 2, FALSE)+4, FALSE) -> 0 | Y138: 129 | Z138: 26 | AA138: 998 | AB138: 129 | AC138: 0 | AD138: 0 | CR138: 26 | CS138: 998 | CT138: 129 | CU138: 0 | CV138: 0 | CW138: 0 | CX138: 0
A139: 00260999 | B139: 0026 | C139: 0999 | D139: 130 | E139: 26 | F139: Belmont | G139: 999 | H139: Total | I139: 45907675.2 | J139: 1 | K139: =SUM(K135:K138) -> 48372294.53 | L139: =SUM(L135:L138) -> 1 | M139: =VLOOKUP(E139,town351,23) -> 38777588 | N139: =SUM(N135:N138) -> 38777588 | O139: 37054551 | P139: =SUM(P135:P138) -> 1723037 | Q139: 4.650001021 | R139: 4510.064516 | T139: 26 | U139: 999 | V139: 130 | W139: 4545 | X139: 48372294.53 | Y139: =D139 -> 130 | Z139: 26 | AA139: 999 | AB139: 130 | AC139: 4545 | AD139: 48372294.53 | CR139: 26 | CS139: 999 | CT139: 130 | CU139: 4510.064516 | CV139: 45907675.2 | CW139: 1 | CX139: 37054551
A140: 00270027 | B140: 0027 | C140: 0027 | D140: 131 | E140: 27 | F140: Berkley | G140: 27 | H140: Berkley | I140: 7541762.29 | J140: 0.6173477677 | K140: =X140 -> 7578024.3 | L140: =IF(K144>0, K140/K144, 0) -> 0.6105605747 | N140: =ROUND(M144*L140,0) -> 3944412 | O140: 3837447 | P140: =N140-O140 -> 106965 | Q140: 2.787400061 | R140: 774 | T140: 27 | U140: 27 | V140: 131 | W140: 742 | X140: 7578024.3 | Y140: 131 | Z140: 27 | AA140: 27 | AB140: 131 | AC140: 742 | AD140: 7578024.3 | CR140: 27 | CS140: 27 | CT140: 131 | CU140: 774 | CV140: 7541762.29 | CW140: 0.6173477677 | CX140: 3837447
A141: 00270763 | B141: 0027 | C141: 0763 | D141: 132 | E141: 27 | F141: Berkley | G141: 763 | H141: Somerset Berkley | I141: 2968320.139 | J141: 0.2429784633 | K141: 3153707.445 | L141: =IF(K144>0, K141/K144, 0) -> 0.254093858 | N141: =ROUND(M144*L141,0) -> 1641526 | O141: 1510359 | P141: =N141-O141 -> 131167 | Q141: 8.684491568 | R141: 265 | T141: 27 | U141: 763 | V141: 132 | W141: 270 | X141: 3153707.445 | Y141: 132 | Z141: 27 | AA141: 763 | AB141: 132 | AC141: 270 | AD141: 3153707.445 | CR141: 27 | CS141: 763 | CT141: 132 | CU141: 265 | CV141: 2968320.139 | CW141: 0.2429784633 | CX141: 1510359
A142: 00270810 | B142: 0027 | C142: 0810 | D142: 133 | E142: 27 | F142: Berkley | G142: 810 | H142: Bristol Plymouth | I142: 1512814.346 | J142: 0.1238347913 | K142: 1508256.138 | L142: =IF(K144>0, K142/K144, 0) -> 0.1215200292 | N142: =ROUND(M144*L142,0) -> 785057 | O142: 769760 | P142: =N142-O142 -> 15297 | Q142: 1.987242777 | R142: 93.21104387 | T142: 27 | U142: 810 | V142: 133 | W142: 89.19970082 | X142: 1508256.138 | Y142: 133 | Z142: 27 | AA142: 810 | AB142: 133 | AC142: 89.19970082 | AD142: 1508256.138 | CR142: 27 | CS142: 810 | CT142: 133 | CU142: 93.21104387 | CV142: 1512814.346 | CW142: 0.1238347913 | CX142: 769760
A143: 00270910 | B143: 0027 | C143: 0910 | D143: 134 | E143: 27 | F143: Berkley | G143: 910 | H143: Bristol County | I143: 193495.1602 | J143: 0.01583897776 | K143: 171596.837 | L143: =IF(K144>0, K143/K144, 0) -> 0.01382553806 | N143: =ROUND(M144*L143,0) -> 89317 | O143: 98455 | P143: =N143-O143 -> -9138 | Q143: -9.281397593 | R143: 12 | T143: 27 | U143: 910 | V143: 134 | W143: 10 | X143: 171596.837 | Y143: 134 | Z143: 27 | AA143: 910 | AB143: 134 | AC143: 10 | AD143: 171596.837 | CR143: 27 | CS143: 910 | CT143: 134 | CU143: 12 | CV143: 193495.1602 | CW143: 0.01583897776 | CX143: 98455
A144: 00270999 | B144: 0027 | C144: 0999 | D144: 135 | E144: 27 | F144: Berkley | G144: 999 | H144: Total | I144: 12216391.94 | J144: 1 | K144: =SUM(K140:K143) -> 12411584.72 | L144: =SUM(L140:L143) -> 1 | M144: =VLOOKUP(E144,town351,23) -> 6460312 | N144: =SUM(N140:N143) -> 6460312 | O144: 6216021 | P144: =SUM(P140:P143) -> 244291 | Q144: =IF(O144>0,P144*100/O144,IF(P144>0,100,0)) -> 3.930022115 | R144: 1144.211044 | T144: 27 | U144: 999 | V144: 135 | W144: 1111.199701 | X144: 12411584.72 | Y144: 135 | Z144: 27 | AA144: 999 | AB144: 135 | AC144: 1111.199701 | AD144: 12411584.72 | CR144: 27 | CS144: 999 | CT144: 135 | CU144: 1144.211044 | CV144: 12216391.94 | CW144: 1 | CX144: 6216021
A145: 00280028 | B145: 0028 | C145: 0028 | D145: 136 | E145: 28 | F145: Berlin | G145: 28 | H145: Berlin | I145: 1639651.663 | J145: 0.409965727 | K145: =X145 -> 0 | L145: =IF(K149>0, K145/K149, 0) -> 0 | N145: =ROUND(M149*L145,0) -> 0 | O145: 1352713 | P145: =N145-O145 -> -1352713 | Q145: -100 | R145: 159 | T145: 28 | U145: 28 | V145: 136 | W145: 0 | X145: 0 | Y145: 136 | Z145: 28 | AA145: 28 | AB145: 136 | AC145: 0 | AD145: 0 | CR145: 28 | CS145: 28 | CT145: 136 | CU145: 159 | CV145: 1639651.663 | CW145: 0.409965727 | CX145: 1352713
A146: 00280620 | B146: 0028 | C146: 0620 | D146: 137 | E146: 28 | F146: Berlin | G146: 620 | H146: Berlin Boylston | I146: 1939567.246 | J146: 0.4849542828 | K146: 3549939.236 | L146: =IF(K149>0, K146/K149, 0) -> 0.8983242928 | N146: =ROUND(M149*L146,0) -> 2928700 | O146: 1600143 | P146: =N146-O146 -> 1328557 | Q146: 83.02739193 | R146: 189.6860254 | T146: 28 | U146: 620 | V146: 137 | W146: 341.1392931 | X146: 3549939.236 | Y146: 137 | Z146: 28 | AA146: 620 | AB146: 137 | AC146: 341.1392931 | AD146: 3549939.236 | CR146: 28 | CS146: 620 | CT146: 137 | CU146: 189.6860254 | CV146: 1939567.246 | CW146: 0.4849542828 | CX146: 1600143
A147: 00280801 | B147: 0028 | C147: 0801 | D147: 138 | E147: 28 | F147: Berlin | G147: 801 | H147: Assabet Valley | I147: 420265.8159 | J147: 0.1050799902 | K147: 401795.4154 | L147: =IF(K149>0, K147/K149, 0) -> 0.1016757072 | N147: =ROUND(M149*L147,0) -> 331481 | O147: 346719 | P147: =N147-O147 -> -15238 | Q147: -4.39491346 | R147: 24 | T147: 28 | U147: 801 | V147: 138 | W147: 22 | X147: 401795.4154 | Y147: 138 | Z147: 28 | AA147: 801 | AB147: 138 | AC147: 22 | AD147: 401795.4154 | CR147: 28 | CS147: 801 | CT147: 138 | CU147: 24 | CV147: 420265.8159 | CW147: 0.1050799902 | CX147: 346719
A148: 00280998 | B148: 0028 | C148: 0998 | D148: 139 | E148: 28 | G148: 998 | I148: 0 | J148: 0 | K148: 0 | L148: =IF(K149>0, K148/K149, 0) -> 0 | N148: =ROUND(M149*L148,0) -> 0 | O148: 0 | P148: =N148-O148 -> 0 | Q148: 0 | R148: 0 | T148: 28 | U148: 998 | V148: 139 | W148: 0 | X148: 0 | Y148: 139 | Z148: 28 | AA148: 998 | AB148: 139 | AC148: 0 | AD148: 0 | CR148: 28 | CS148: 998 | CT148: 139 | CU148: 0 | CV148: 0 | CW148: 0 | CX148: 0
A149: 00280999 | B149: 0028 | C149: 0999 | D149: 140 | E149: 28 | F149: Berlin | G149: 999 | H149: Total | I149: 3999484.725 | J149: 1 | K149: =SUM(K145:K148) -> 3951734.651 | L149: =SUM(L145:L148) -> 1 | M149: =VLOOKUP(E149,town351,23) -> 3260181 | N149: =SUM(N145:N148) -> 3260181 | O149: 3299575 | P149: =SUM(P145:P148) -> -39394 | Q149: -1.193911337 | R149: 372.6860254 | T149: 28 | U149: 999 | V149: 140 | W149: 363.1392931 | X149: 3951734.651 | Y149: 140 | Z149: 28 | AA149: 999 | AB149: 140 | AC149: 363.1392931 | AD149: 3951734.651 | CR149: 28 | CS149: 999 | CT149: 140 | CU149: 372.6860254 | CV149: 3999484.725 | CW149: 1 | CX149: 3299575
A150: 00290029 | B150: 0029 | C150: 0029 | D150: 141 | E150: 29 | F150: Bernardston | G150: 29 | H150: Bernardston | I150: 0 | J150: 0 | K150: =X150 -> 0 | L150: =IF(K154>0, K150/K154, 0) -> 0 | N150: =ROUND(M154*L150,0) -> 0 | O150: 0 | P150: =N150-O150 -> 0 | Q150: 0 | R150: 0 | T150: 29 | U150: 29 | V150: 141 | W150: 0 | X150: 0 | Y150: 141 | Z150: 29 | AA150: 29 | AB150: 141 | AC150: 0 | AD150: 0 | CR150: 29 | CS150: 29 | CT150: 141 | CU150: 0 | CV150: 0 | CW150: 0 | CX150: 0
A151: 00290750 | B151: 0029 | C151: 0750 | D151: 142 | E151: 29 | F151: Bernardston | G151: 750 | H151: Pioneer | I151: 2510445.984 | J151: 0.8462046523 | K151: 2585034.282 | L151: =IF(K154>0, K151/K154, 0) -> 0.8344133911 | N151: =ROUND(M154*L151,0) -> 1380201 | O151: 1412356 | P151: =N151-O151 -> -32155 | Q151: -2.276692279 | R151: 239.6345609 | T151: 29 | U151: 750 | V151: 142 | W151: 236.223176 | X151: 2585034.282 | Y151: 142 | Z151: 29 | AA151: 750 | AB151: 142 | AC151: 236.223176 | AD151: 2585034.282 | CR151: 29 | CS151: 750 | CT151: 142 | CU151: 239.6345609 | CV151: 2510445.984 | CW151: 0.8462046523 | CX151: 1412356
A152: 00290818 | B152: 0029 | C152: 0818 | D152: 143 | E152: 29 | F152: Bernardston | G152: 818 | H152: Franklin County | I152: 456266.592 | J152: 0.1537953477 | K152: 512991.6001 | L152: =IF(K154>0, K152/K154, 0) -> 0.1655866089 | N152: =ROUND(M154*L152,0) -> 273896 | O152: 256692 | P152: =N152-O152 -> 17204 | Q152: 6.702195627 | R152: 27 | T152: 29 | U152: 818 | V152: 143 | W152: 29 | X152: 512991.6001 | Y152: 143 | Z152: 29 | AA152: 818 | AB152: 143 | AC152: 29 | AD152: 512991.6001 | CR152: 29 | CS152: 818 | CT152: 143 | CU152: 27 | CV152: 456266.592 | CW152: 0.1537953477 | CX152: 256692
A153: 00290998 | B153: 0029 | C153: 0998 | D153: 144 | E153: 29 | G153: 998 | I153: 0 | J153: 0 | K153: 0 | L153: =IF(K154>0, K153/K154, 0) -> 0 | N153: =ROUND(M154*L153,0) -> 0 | O153: 0 | P153: =N153-O153 -> 0 | Q153: 0 | R153: 0 | T153: 29 | U153: 998 | V153: 144 | W153: 0 | X153: 0 | Y153: 144 | Z153: 29 | AA153: 998 | AB153: 144 | AC153: 0 | AD153: 0 | CR153: 29 | CS153: 998 | CT153: 144 | CU153: 0 | CV153: 0 | CW153: 0 | CX153: 0
A154: 00290999 | B154: 0029 | C154: 0999 | D154: 145 | E154: 29 | F154: Bernardston | G154: 999 | H154: Total | I154: 2966712.576 | J154: 1 | K154: =SUM(K150:K153) -> 3098025.882 | L154: =SUM(L150:L153) -> 1 | M154: =VLOOKUP(E154,town351,23) -> 1654097 | N154: =SUM(N150:N153) -> 1654097 | O154: 1669048 | P154: =SUM(P150:P153) -> -14951 | Q154: -0.8957801094 | R154: 266.6345609 | T154: 29 | U154: 999 | V154: 145 | W154: 265.223176 | X154: 3098025.882 | Y154: 145 | Z154: 29 | AA154: 999 | AB154: 145 | AC154: 265.223176 | AD154: 3098025.882 | CR154: 29 | CS154: 999 | CT154: 145 | CU154: 266.6345609 | CV154: 2966712.576 | CW154: 1 | CX154: 1669048
A155: 00300030 | B155: 0030 | C155: 0030 | D155: 146 | E155: 30 | F155: Beverly | G155: 30 | H155: Beverly | I155: 46490353.89 | J155: 0.9572881994 | K155: =X155 -> 49446399.06 | L155: =IF(K159>0, K155/K159, 0) -> 0.9619007599 | N155: =ROUND(M159*L155,0) -> 40188832 | O155: 38354542 | P155: =N155-O155 -> 1834290 | Q155: 4.782458359 | R155: 4398 | T155: 30 | U155: 30 | V155: 146 | W155: 4458 | X155: 49446399.06 | Y155: 146 | Z155: 30 | AA155: 30 | AB155: 146 | AC155: 4458 | AD155: 49446399.06 | CR155: 30 | CS155: 30 | CT155: 146 | CU155: 4398 | CV155: 46490353.89 | CW155: 0.9572881994 | CX155: 38354542
A156: 00300817 | B156: 0030 | C156: 0817 | D156: 147 | E156: 30 | F156: Beverly | G156: 817 | H156: Essex North Shore | I156: 2074283.092 | J156: 0.04271180062 | K156: 1958487.102 | L156: =IF(K159>0, K156/K159, 0) -> 0.03809924013 | N156: =ROUND(M159*L156,0) -> 1591811 | O156: 1711284 | P156: =N156-O156 -> -119473 | Q156: -6.98148291 | R156: 128 | T156: 30 | U156: 817 | V156: 147 | W156: 117 | X156: 1958487.102 | Y156: 147 | Z156: 30 | AA156: 817 | AB156: 147 | AC156: 117 | AD156: 1958487.102 | CR156: 30 | CS156: 817 | CT156: 147 | CU156: 128 | CV156: 2074283.092 | CW156: 0.04271180062 | CX156: 1711284
A157: 00300998 | B157: 0030 | C157: 0998 | D157: 148 | E157: 30 | G157: 998 | I157: 0 | J157: 0 | K157: 0 | L157: =IF(K159>0, K157/K159, 0) -> 0 | N157: =ROUND(M159*L157,0) -> 0 | O157: 0 | P157: =N157-O157 -> 0 | Q157: 0 | R157: 0 | T157: 30 | U157: 998 | V157: 148 | W157: 0 | X157: 0 | Y157: 148 | Z157: 30 | AA157: 998 | AB157: 148 | AC157: 0 | AD157: 0 | CR157: 30 | CS157: 998 | CT157: 148 | CU157: 0 | CV157: 0 | CW157: 0 | CX157: 0
A158: 00300998 | B158: 0030 | C158: 0998 | D158: 149 | E158: 30 | G158: 998 | I158: 0 | J158: 0 | K158: 0 | L158: =IF(K159>0, K158/K159, 0) -> 0 | N158: =ROUND(M159*L158,0) -> 0 | O158: 0 | P158: =N158-O158 -> 0 | Q158: 0 | R158: 0 | T158: 30 | U158: 998 | V158: 149 | W158: 0 | X158: 0 | Y158: 149 | Z158: 30 | AA158: 998 | AB158: 149 | AC158: 0 | AD158: 0 | CR158: 30 | CS158: 998 | CT158: 149 | CU158: 0 | CV158: 0 | CW158: 0 | CX158: 0
A159: 00300999 | B159: 0030 | C159: 0999 | D159: 150 | E159: 30 | F159: Beverly | G159: 999 | H159: Total | I159: 48564636.98 | J159: 1 | K159: =SUM(K155:K158) -> 51404886.16 | L159: =SUM(L155:L158) -> 1 | M159: =VLOOKUP(E159,town351,23) -> 41780643 | N159: =SUM(N155:N158) -> 41780643 | O159: 40065826 | P159: =SUM(P155:P158) -> 1714817 | Q159: 4.279999119 | R159: 4526 | T159: 30 | U159: 999 | V159: 150 | W159: 4575 | X159: 51404886.16 | Y159: 150 | Z159: 30 | AA159: 999 | AB159: 150 | AC159: 4575 | AD159: 51404886.16 | CR159: 30 | CS159: 999 | CT159: 150 | CU159: 4526 | CV159: 48564636.98 | CW159: 1 | CX159: 40065826
A160: 00310031 | B160: 0031 | C160: 0031 | D160: 151 | E160: 31 | F160: Billerica | G160: 31 | H160: Billerica | I160: 50010476.06 | J160: 0.832729159 | K160: =X160 -> 51908631.2 | L160: =IF(K164>0, K160/K164, 0) -> 0.8466390535 | N160: =ROUND(M164*L160,0) -> 39371685 | O160: 37025362 | P160: =N160-O160 -> 2346323 | Q160: 6.337069709 | R160: 4912 | T160: 31 | U160: 31 | V160: 151 | W160: 4866 | X160: 51908631.2 | Y160: 151 | Z160: 31 | AA160: 31 | AB160: 151 | AC160: 4866 | AD160: 51908631.2 | CR160: 31 | CS160: 31 | CT160: 151 | CU160: 4912 | CV160: 50010476.06 | CW160: 0.832729159 | CX160: 37025362
A161: 00310871 | B161: 0031 | C161: 0871 | D161: 152 | E161: 31 | F161: Billerica | G161: 871 | H161: Shawsheen Valley | I161: 10045636.45 | J161: 0.167270841 | K161: 9402775.336 | L161: =IF(K164>0, K161/K164, 0) -> 0.1533609465 | N161: =ROUND(M164*L161,0) -> 7131822 | O161: 7437308 | P161: =N161-O161 -> -305486 | Q161: -4.107480825 | R161: 630 | T161: 31 | U161: 871 | V161: 152 | W161: 564 | X161: 9402775.336 | Y161: 152 | Z161: 31 | AA161: 871 | AB161: 152 | AC161: 564 | AD161: 9402775.336 | CR161: 31 | CS161: 871 | CT161: 152 | CU161: 630 | CV161: 10045636.45 | CW161: 0.167270841 | CX161: 7437308
A162: 00310998 | B162: 0031 | C162: 0998 | D162: 153 | E162: 31 | G162: 998 | I162: 0 | J162: 0 | K162: 0 | L162: =IF(K164>0, K162/K164, 0) -> 0 | N162: =ROUND(M164*L162,0) -> 0 | O162: 0 | P162: =N162-O162 -> 0 | Q162: 0 | R162: 0 | T162: 31 | U162: 998 | V162: 153 | W162: 0 | X162: 0 | Y162: 153 | Z162: 31 | AA162: 998 | AB162: 153 | AC162: 0 | AD162: 0 | CR162: 31 | CS162: 998 | CT162: 153 | CU162: 0 | CV162: 0 | CW162: 0 | CX162: 0
A163: 00310998 | B163: 0031 | C163: 0998 | D163: 154 | E163: 31 | G163: 998 | I163: 0 | J163: 0 | K163: 0 | L163: =IF(K164>0, K163/K164, 0) -> 0 | N163: =ROUND(M164*L163,0) -> 0 | O163: 0 | P163: =N163-O163 -> 0 | Q163: 0 | R163: 0 | T163: 31 | U163: 998 | V163: 154 | W163: 0 | X163: 0 | Y163: 154 | Z163: 31 | AA163: 998 | AB163: 154 | AC163: 0 | AD163: 0 | CR163: 31 | CS163: 998 | CT163: 154 | CU163: 0 | CV163: 0 | CW163: 0 | CX163: 0
A164: 00310999 | B164: 0031 | C164: 0999 | D164: 155 | E164: 31 | F164: Billerica | G164: 999 | H164: Total | I164: 60056112.51 | J164: 1 | K164: =SUM(K160:K163) -> 61311406.54 | L164: =SUM(L160:L163) -> 1 | M164: =VLOOKUP(E164,town351,23) -> 46503507 | N164: =SUM(N160:N163) -> 46503507 | O164: 44462670 | P164: =SUM(P160:P163) -> 2040837 | Q164: 4.590001005 | R164: 5542 | T164: 31 | U164: 999 | V164: 155 | W164: 5430 | X164: 61311406.54 | Y164: 155 | Z164: 31 | AA164: 999 | AB164: 155 | AC164: 5430 | AD164: 61311406.54 | CR164: 31 | CS164: 999 | CT164: 155 | CU164: 5542 | CV164: 60056112.51 | CW164: 1 | CX164: 44462670
A165: 00320032 | B165: 0032 | C165: 0032 | D165: 156 | E165: 32 | F165: Blackstone | G165: 32 | H165: Blackstone | I165: 303047.63 | J165: 0.02048401944 | K165: =X165 -> 357718.729 | L165: =IF(K169>0, K165/K169, 0) -> 0.02329189454 | N165: =ROUND(M169*L165,0) -> 174004 | O165: 146874 | P165: =N165-O165 -> 27130 | Q165: 18.47161513 | R165: 20 | T165: 32 | U165: 32 | V165: 156 | W165: 23 | X165: 357718.729 | Y165: 156 | Z165: 32 | AA165: 32 | AB165: 156 | AC165: 23 | AD165: 357718.729 | CR165: 32 | CS165: 32 | CT165: 156 | CU165: 20 | CV165: 303047.63 | CW165: 0.02048401944 | CX165: 146874
A166: 00320622 | B166: 0032 | C166: 0622 | D166: 157 | E166: 32 | F166: Blackstone | G166: 622 | H166: Blackstone Millville | I166: 13152292.87 | J166: 0.8890081829 | K166: 13560560.65 | L166: =IF(K169>0, K166/K169, 0) -> 0.8829594959 | N166: =ROUND(M169*L166,0) -> 6596227 | O166: 6374329 | P166: =N166-O166 -> 221898 | Q166: 3.481119346 | R166: 1279.134454 | T166: 32 | U166: 622 | V166: 157 | W166: 1263.439864 | X166: 13560560.65 | Y166: 157 | Z166: 32 | AA166: 622 | AB166: 157 | AC166: 1263.439864 | AD166: 13560560.65 | CR166: 32 | CS166: 622 | CT166: 157 | CU166: 1279.134454 | CV166: 13152292.87 | CW166: 0.8890081829 | CX166: 6374329
A167: 00320805 | B167: 0032 | C167: 0805 | D167: 158 | E167: 32 | F167: Blackstone | G167: 805 | H167: Blackstone Valley | I167: 1339003.493 | J167: 0.09050779768 | K167: 1439798.442 | L167: =IF(K169>0, K167/K169, 0) -> 0.09374860959 | N167: =ROUND(M169*L167,0) -> 700357 | O167: 648955 | P167: =N167-O167 -> 51402 | Q167: 7.920734103 | R167: 86 | T167: 32 | U167: 805 | V167: 158 | W167: 89 | X167: 1439798.442 | Y167: 158 | Z167: 32 | AA167: 805 | AB167: 158 | AC167: 89 | AD167: 1439798.442 | CR167: 32 | CS167: 805 | CT167: 158 | CU167: 86 | CV167: 1339003.493 | CW167: 0.09050779768 | CX167: 648955
A168: 00320998 | B168: 0032 | C168: 0998 | D168: 159 | E168: 32 | G168: 998 | I168: 0 | J168: 0 | K168: 0 | L168: =IF(K169>0, K168/K169, 0) -> 0 | N168: =ROUND(M169*L168,0) -> 0 | O168: 0 | P168: =N168-O168 -> 0 | Q168: 0 | R168: 0 | T168: 32 | U168: 998 | V168: 159 | W168: 0 | X168: 0 | Y168: 159 | Z168: 32 | AA168: 998 | AB168: 159 | AC168: 0 | AD168: 0 | CR168: 32 | CS168: 998 | CT168: 159 | CU168: 0 | CV168: 0 | CW168: 0 | CX168: 0
A169: 00320999 | B169: 0032 | C169: 0999 | D169: 160 | E169: 32 | F169: Blackstone | G169: 999 | H169: Total | I169: 14794343.99 | J169: 1 | K169: =SUM(K165:K168) -> 15358077.82 | L169: =SUM(L165:L168) -> 1 | M169: =VLOOKUP(E169,town351,23) -> 7470588 | N169: =SUM(N165:N168) -> 7470588 | O169: 7170158 | P169: =SUM(P165:P168) -> 300430 | Q169: 4.190005297 | R169: 1385.134454 | T169: 32 | U169: 999 | V169: 160 | W169: 1375.439864 | X169: 15358077.82 | Y169: 160 | Z169: 32 | AA169: 999 | AB169: 160 | AC169: 1375.439864 | AD169: 15358077.82 | CR169: 32 | CS169: 999 | CT169: 160 | CU169: 1385.134454 | CV169: 14794343.99 | CW169: 1 | CX169: 7170158
A170: 00330033 | B170: 0033 | C170: 0033 | D170: 161 | E170: 33 | F170: Blandford | G170: 33 | H170: Blandford | I170: 110697.28 | J170: 0.08659184341 | K170: =X170 -> 114974.378 | L170: =IF(K174>0, K170/K174, 0) -> 0.08315230172 | N170: =ROUND(M174*L170,0) -> 91083 | O170: 91325 | P170: =N170-O170 -> -242 | Q170: -0.2649876814 | R170: 8 | T170: 33 | U170: 33 | V170: 161 | W170: 8 | X170: 114974.378 | Y170: 161 | Z170: 33 | AA170: 33 | AB170: 161 | AC170: 8 | AD170: 114974.378 | CR170: 33 | CS170: 33 | CT170: 161 | CU170: 8 | CV170: 110697.28 | CW170: 0.08659184341 | CX170: 91325
A171: 00330672 | B171: 0033 | C171: 0672 | D171: 162 | E171: 33 | F171: Blandford | G171: 672 | H171: Gateway | I171: 1167682.711 | J171: 0.9134081566 | K171: 1267721.899 | L171: =IF(K174>0, K171/K174, 0) -> 0.9168476983 | N171: =ROUND(M174*L171,0) -> 1004290 | O171: 963338 | P171: =N171-O171 -> 40952 | Q171: 4.251052071 | R171: 108.006795 | T171: 33 | U171: 672 | V171: 162 | W171: 111.0305776 | X171: 1267721.899 | Y171: 162 | Z171: 33 | AA171: 672 | AB171: 162 | AC171: 111.0305776 | AD171: 1267721.899 | CR171: 33 | CS171: 672 | CT171: 162 | CU171: 108.006795 | CV171: 1167682.711 | CW171: 0.9134081566 | CX171: 963338
A172: 00330998 | B172: 0033 | C172: 0998 | D172: 163 | E172: 33 | G172: 998 | I172: 0 | J172: 0 | K172: 0 | L172: =IF(K174>0, K172/K174, 0) -> 0 | N172: =ROUND(M174*L172,0) -> 0 | O172: 0 | P172: =N172-O172 -> 0 | Q172: 0 | R172: 0 | T172: 33 | U172: 998 | V172: 163 | W172: 0 | X172: 0 | Y172: 163 | Z172: 33 | AA172: 998 | AB172: 163 | AC172: 0 | AD172: 0 | CR172: 33 | CS172: 998 | CT172: 163 | CU172: 0 | CV172: 0 | CW172: 0 | CX172: 0
A173: 00330998 | B173: 0033 | C173: 0998 | D173: 164 | E173: 33 | G173: 998 | I173: 0 | J173: 0 | K173: 0 | L173: =IF(K174>0, K173/K174, 0) -> 0 | N173: =ROUND(M174*L173,0) -> 0 | O173: 0 | P173: =N173-O173 -> 0 | Q173: 0 | R173: 0 | T173: 33 | U173: 998 | V173: 164 | W173: 0 | X173: 0 | Y173: 164 | Z173: 33 | AA173: 998 | AB173: 164 | AC173: 0 | AD173: 0 | CR173: 33 | CS173: 998 | CT173: 164 | CU173: 0 | CV173: 0 | CW173: 0 | CX173: 0
A174: 00330999 | B174: 0033 | C174: 0999 | D174: 165 | E174: 33 | F174: Blandford | G174: 999 | H174: Total | I174: 1278379.991 | J174: 1 | K174: =SUM(K170:K173) -> 1382696.277 | L174: =SUM(L170:L173) -> 1 | M174: =VLOOKUP(E174,town351,23) -> 1095373 | N174: =SUM(N170:N173) -> 1095373 | O174: 1054663 | P174: =SUM(P170:P173) -> 40710 | Q174: 3.860000777 | R174: 116.006795 | T174: 33 | U174: 999 | V174: 165 | W174: 119.0305776 | X174: 1382696.277 | Y174: 165 | Z174: 33 | AA174: 999 | AB174: 165 | AC174: 119.0305776 | AD174: 1382696.277 | CR174: 33 | CS174: 999 | CT174: 165 | CU174: 116.006795 | CV174: 1278379.991 | CW174: 1 | CX174: 1054663
A175: 00340034 | B175: 0034 | C175: 0034 | D175: 166 | E175: 34 | F175: Bolton | G175: 34 | H175: Bolton | I175: 14264.24656 | J175: 0.001335325678 | K175: =X175 -> 14861.54204 | L175: =IF(K179>0, K175/K179, 0) -> 0.001351679306 | N175: =ROUND(M179*L175,0) -> 12091 | O175: 11464 | P175: =N175-O175 -> 627 | Q175: 5.469295185 | R175: 1 | T175: 34 | U175: 34 | V175: 166 | W175: 1 | X175: 14861.54204 | Y175: 166 | Z175: 34 | AA175: 34 | AB175: 166 | AC175: 1 | AD175: 14861.54204 | CR175: 34 | CS175: 34 | CT175: 166 | CU175: 1 | CV175: 14264.24656 | CW175: 0.001335325678 | CX175: 11464
A176: 00340725 | B176: 0034 | C176: 0725 | D176: 167 | E176: 34 | F176: Bolton | G176: 725 | H176: Nashoba | I176: 10452467.17 | J176: 0.9784917668 | K176: 10777661.12 | L176: =IF(K179>0, K176/K179, 0) -> 0.9802442758 | N176: =ROUND(M179*L176,0) -> 8768396 | O176: 8400729 | P176: =N176-O176 -> 367667 | Q176: 4.376608268 | R176: 1037.266117 | T176: 34 | U176: 725 | V176: 167 | W176: 1020.401112 | X176: 10777661.12 | Y176: 167 | Z176: 34 | AA176: 725 | AB176: 167 | AC176: 1020.401112 | AD176: 10777661.12 | CR176: 34 | CS176: 725 | CT176: 167 | CU176: 1037.266117 | CV176: 10452467.17 | CW176: 0.9784917668 | CX176: 8400729
A177: 00340830 | B177: 0034 | C177: 0830 | D177: 168 | E177: 34 | F177: Bolton | G177: 830 | H177: Minuteman | I177: 215491.4947 | J177: 0.02017290749 | K177: 202350.1322 | L177: =IF(K179>0, K177/K179, 0) -> 0.01840404485 | N177: =ROUND(M179*L177,0) -> 164626 | O177: 173192 | P177: =N177-O177 -> -8566 | Q177: -4.945955933 | R177: 12.03519062 | T177: 34 | U177: 830 | V177: 168 | W177: 11 | X177: 202350.1322 | Y177: 168 | Z177: 34 | AA177: 830 | AB177: 168 | AC177: 11 | AD177: 202350.1322 | CR177: 34 | CS177: 830 | CT177: 168 | CU177: 12.03519062 | CV177: 215491.4947 | CW177: 0.02017290749 | CX177: 173192
A178: 00340998 | B178: 0034 | C178: 0998 | D178: 169 | E178: 34 | G178: 998 | I178: 0 | J178: 0 | K178: 0 | L178: =IF(K179>0, K178/K179, 0) -> 0 | N178: =ROUND(M179*L178,0) -> 0 | O178: 0 | P178: =N178-O178 -> 0 | Q178: 0 | R178: 0 | T178: 34 | U178: 998 | V178: 169 | W178: 0 | X178: 0 | Y178: 169 | Z178: 34 | AA178: 998 | AB178: 169 | AC178: 0 | AD178: 0 | CR178: 34 | CS178: 998 | CT178: 169 | CU178: 0 | CV178: 0 | CW178: 0 | CX178: 0
A179: 00340999 | B179: 0034 | C179: 0999 | D179: 170 | E179: 34 | F179: Bolton | G179: 999 | H179: Total | I179: 10682222.92 | J179: 1 | K179: =SUM(K175:K178) -> 10994872.8 | L179: =SUM(L175:L178) -> 1 | M179: =VLOOKUP(E179,town351,23) -> 8945113 | N179: =SUM(N175:N178) -> 8945113 | O179: 8585385 | P179: =SUM(P175:P178) -> 359728 | Q179: 4.190004292 | R179: 1050.301307 | T179: 34 | U179: 999 | V179: 170 | W179: 1032.401112 | X179: 10994872.8 | Y179: 170 | Z179: 34 | AA179: 999 | AB179: 170 | AC179: 1032.401112 | AD179: 10994872.8 | CR179: 34 | CS179: 999 | CT179: 170 | CU179: 1050.301307 | CV179: 10682222.92 | CW179: 1 | CX179: 8585385
A180: 00350035 | B180: 0035 | C180: 0035 | D180: 171 | E180: 35 | F180: Boston | G180: 35 | H180: Boston | I180: 861999611.9 | J180: 1 | K180: =X180 -> 910864776.4 | L180: =IF(K184>0, K180/K184, 0) -> 1 | N180: =ROUND(M184*L180,0) -> 749907338 | O180: 711149680 | P180: =N180-O180 -> 38757658 | Q180: 5.450000062 | R180: 64508 | T180: 35 | U180: 35 | V180: 171 | W180: 63777 | X180: 910864776.4 | Y180: 171 | Z180: 35 | AA180: 35 | AB180: 171 | AC180: 63777 | AD180: 910864776.4 | CR180: 35 | CS180: 35 | CT180: 171 | CU180: 64508 | CV180: 861999611.9 | CW180: 1 | CX180: 711149680
A181: 00350998 | B181: 0035 | C181: 0998 | D181: 172 | E181: 35 | G181: 998 | I181: 0 | J181: 0 | K181: 0 | L181: =IF(K184>0, K181/K184, 0) -> 0 | N181: =ROUND(M184*L181,0) -> 0 | O181: 0 | P181: =N181-O181 -> 0 | Q181: 0 | R181: 0 | T181: 35 | U181: 998 | V181: 172 | W181: 0 | X181: 0 | Y181: 172 | Z181: 35 | AA181: 998 | AB181: 172 | AC181: 0 | AD181: 0 | CR181: 35 | CS181: 998 | CT181: 172 | CU181: 0 | CV181: 0 | CW181: 0 | CX181: 0
A182: 00350998 | B182: 0035 | C182: 0998 | D182: 173 | E182: 35 | G182: 998 | I182: 0 | J182: 0 | K182: 0 | L182: =IF(K184>0, K182/K184, 0) -> 0 | N182: =ROUND(M184*L182,0) -> 0 | O182: 0 | P182: =N182-O182 -> 0 | Q182: 0 | R182: 0 | T182: 35 | U182: 998 | V182: 173 | W182: 0 | X182: 0 | Y182: 173 | Z182: 35 | AA182: 998 | AB182: 173 | AC182: 0 | AD182: 0 | CR182: 35 | CS182: 998 | CT182: 173 | CU182: 0 | CV182: 0 | CW182: 0 | CX182: 0
A183: 00350998 | B183: 0035 | C183: 0998 | D183: 174 | E183: 35 | G183: 998 | I183: 0 | J183: 0 | K183: 0 | L183: =IF(K184>0, K183/K184, 0) -> 0 | N183: =ROUND(M184*L183,0) -> 0 | O183: 0 | P183: =N183-O183 -> 0 | Q183: 0 | R183: 0 | T183: 35 | U183: 998 | V183: 174 | W183: 0 | X183: 0 | Y183: 174 | Z183: 35 | AA183: 998 | AB183: 174 | AC183: 0 | AD183: 0 | CR183: 35 | CS183: 998 | CT183: 174 | CU183: 0 | CV183: 0 | CW183: 0 | CX183: 0
A184: 00350999 | B184: 0035 | C184: 0999 | D184: 175 | E184: 35 | F184: Boston | G184: 999 | H184: Total | I184: 861999611.9 | J184: 1 | K184: =SUM(K180:K183) -> 910864776.4 | L184: =SUM(L180:L183) -> 1 | M184: =VLOOKUP(E184,town351,23) -> 749907338 | N184: =SUM(N180:N183) -> 749907338 | O184: 711149680 | P184: =SUM(P180:P183) -> 38757658 | Q184: 5.450000062 | R184: 64508 | T184: 35 | U184: 999 | V184: 175 | W184: 63777 | X184: 910864776.4 | Y184: 175 | Z184: 35 | AA184: 999 | AB184: 175 | AC184: 63777 | AD184: 910864776.4 | CR184: 35 | CS184: 999 | CT184: 175 | CU184: 64508 | CV184: 861999611.9 | CW184: 1 | CX184: 711149680
A185: 00360036 | B185: 0036 | C185: 0036 | D185: 176 | E185: 36 | F185: Bourne | G185: 36 | H185: Bourne | I185: 21368782.29 | J185: 0.8829556615 | K185: =X185 -> 22123862.83 | L185: =IF(K189>0, K185/K189, 0) -> 0.8931373289 | N185: =ROUND(M189*L185,0) -> 18252187 | O185: 17629245 | P185: =N185-O185 -> 622942 | Q185: 3.533571631 | R185: 2038 | T185: 36 | U185: 36 | V185: 176 | W185: 2001 | X185: 22123862.83 | Y185: 176 | Z185: 36 | AA185: 36 | AB185: 176 | AC185: 2001 | AD185: 22123862.83 | CR185: 36 | CS185: 36 | CT185: 176 | CU185: 2038 | CV185: 21368782.29 | CW185: 0.8829556615 | CX185: 17629245
A186: 00360879 | B186: 0036 | C186: 0879 | D186: 177 | E186: 36 | F186: Bourne | G186: 879 | H186: Upper Cape Cod | I186: 2832639.392 | J186: 0.1170443385 | K186: 2647090.207 | L186: =IF(K189>0, K186/K189, 0) -> 0.1068626711 | N186: =ROUND(M189*L186,0) -> 2183849 | O186: 2336928 | P186: =N186-O186 -> -153079 | Q186: -6.550437155 | R186: 175 | T186: 36 | U186: 879 | V186: 177 | W186: 157 | X186: 2647090.207 | Y186: 177 | Z186: 36 | AA186: 879 | AB186: 177 | AC186: 157 | AD186: 2647090.207 | CR186: 36 | CS186: 879 | CT186: 177 | CU186: 175 | CV186: 2832639.392 | CW186: 0.1170443385 | CX186: 2336928
A187: 00360998 | B187: 0036 | C187: 0998 | D187: 178 | E187: 36 | G187: 998 | I187: 0 | J187: 0 | K187: 0 | L187: =IF(K189>0, K187/K189, 0) -> 0 | N187: =ROUND(M189*L187,0) -> 0 | O187: 0 | P187: =N187-O187 -> 0 | Q187: 0 | R187: 0 | T187: 36 | U187: 998 | V187: 178 | W187: 0 | X187: 0 | Y187: 178 | Z187: 36 | AA187: 998 | AB187: 178 | AC187: 0 | AD187: 0 | CR187: 36 | CS187: 998 | CT187: 178 | CU187: 0 | CV187: 0 | CW187: 0 | CX187: 0
A188: 00360998 | B188: 0036 | C188: 0998 | D188: 179 | E188: 36 | G188: 998 | I188: 0 | J188: 0 | K188: 0 | L188: =IF(K189>0, K188/K189, 0) -> 0 | N188: =ROUND(M189*L188,0) -> 0 | O188: 0 | P188: =N188-O188 -> 0 | Q188: 0 | R188: 0 | T188: 36 | U188: 998 | V188: 179 | W188: 0 | X188: 0 | Y188: 179 | Z188: 36 | AA188: 998 | AB188: 179 | AC188: 0 | AD188: 0 | CR188: 36 | CS188: 998 | CT188: 179 | CU188: 0 | CV188: 0 | CW188: 0 | CX188: 0
A189: 00360999 | B189: 0036 | C189: 0999 | D189: 180 | E189: 36 | F189: Bourne | G189: 999 | H189: Total | I189: 24201421.68 | J189: 1 | K189: =SUM(K185:K188) -> 24770953.04 | L189: =SUM(L185:L188) -> 1 | M189: =VLOOKUP(E189,town351,23) -> 20436036 | N189: =SUM(N185:N188) -> 20436036 | O189: 19966173 | P189: =SUM(P185:P188) -> 469863 | Q189: 2.353295246 | R189: 2213 | T189: 36 | U189: 999 | V189: 180 | W189: 2158 | X189: 24770953.04 | Y189: 180 | Z189: 36 | AA189: 999 | AB189: 180 | AC189: 2158 | AD189: 24770953.04 | CR189: 36 | CS189: 999 | CT189: 180 | CU189: 2213 | CV189: 24201421.68 | CW189: 1 | CX189: 19966173
A190: 00370037 | B190: 0037 | C190: 0037 | D190: 181 | E190: 37 | F190: Boxborough | G190: 37 | H190: Boxborough | I190: 106694.35 | J190: 0.01223870901 | K190: =X190 -> 127474.5305 | L190: =IF(K194>0, K190/K194, 0) -> 0.01406919288 | N190: =ROUND(M194*L190,0) -> 104905 | O190: 87553 | P190: =N190-O190 -> 17352 | Q190: 19.81885258 | R190: 7 | T190: 37 | U190: 37 | V190: 181 | W190: 8 | X190: 127474.5305 | Y190: 181 | Z190: 37 | AA190: 37 | AB190: 181 | AC190: 8 | AD190: 127474.5305 | CR190: 37 | CS190: 37 | CT190: 181 | CU190: 7 | CV190: 106694.35 | CW190: 0.01223870901 | CX190: 87553
A191: 00370600 | B191: 0037 | C191: 0600 | D191: 182 | E191: 37 | F191: Boxborough | G191: 600 | H191: Acton Boxborough | I191: 8611083.801 | J191: 0.987761291 | K191: 8933068.718 | L191: =IF(K194>0, K191/K194, 0) -> 0.9859308071 | N191: =ROUND(M194*L191,0) -> 7351448 | O191: 7066196 | P191: =N191-O191 -> 285252 | Q191: 4.036853775 | R191: 848.4607105 | T191: 37 | U191: 600 | V191: 182 | W191: 843.3208969 | X191: 8933068.718 | Y191: 182 | Z191: 37 | AA191: 600 | AB191: 182 | AC191: 843.3208969 | AD191: 8933068.718 | CR191: 37 | CS191: 600 | CT191: 182 | CU191: 848.4607105 | CV191: 8611083.801 | CW191: 0.987761291 | CX191: 7066196
A192: 00370830 | B192: 0037 | C192: 0830 | D192: 183 | E192: 37 | G192: 998 | I192: 0 | J192: 0 | K192: 0 | L192: =IF(K194>0, K192/K194, 0) -> 0 | N192: =ROUND(M194*L192,0) -> 0 | O192: 0 | P192: =N192-O192 -> 0 | Q192: 0 | R192: 0 | T192: 37 | U192: 998 | V192: 183 | W192: 0 | X192: 0 | Y192: 183 | Z192: 37 | AA192: 998 | AB192: 183 | AC192: 0 | AD192: 0 | CR192: 37 | CS192: 830 | CT192: 183 | CU192: 0 | CV192: 0 | CW192: 0 | CX192: 0
A193: 00370998 | B193: 0037 | C193: 0998 | D193: 184 | E193: 37 | G193: 998 | I193: 0 | J193: 0 | K193: 0 | L193: =IF(K194>0, K193/K194, 0) -> 0 | N193: =ROUND(M194*L193,0) -> 0 | O193: 0 | P193: =N193-O193 -> 0 | Q193: 0 | R193: 0 | T193: 37 | U193: 998 | V193: 184 | W193: 0 | X193: 0 | Y193: 184 | Z193: 37 | AA193: 998 | AB193: 184 | AC193: 0 | AD193: 0 | CR193: 37 | CS193: 998 | CT193: 184 | CU193: 0 | CV193: 0 | CW193: 0 | CX193: 0
A194: 00370999 | B194: 0037 | C194: 0999 | D194: 185 | E194: 37 | F194: Boxborough | G194: 999 | H194: Total | I194: 8717778.151 | J194: 1 | K194: =SUM(K190:K193) -> 9060543.248 | L194: =SUM(L190:L193) -> 1 | M194: =VLOOKUP(E194,town351,23) -> 7456353 | N194: =SUM(N190:N193) -> 7456353 | O194: 7153749 | P194: =SUM(P190:P193) -> 302604 | Q194: 4.230005833 | R194: 855.4607105 | T194: 37 | U194: 999 | V194: 185 | W194: 851.3208969 | X194: 9060543.248 | Y194: 185 | Z194: 37 | AA194: 999 | AB194: 185 | AC194: 851.3208969 | AD194: 9060543.248 | CR194: 37 | CS194: 999 | CT194: 185 | CU194: 855.4607105 | CV194: 8717778.151 | CW194: 1 | CX194: 7153749
A195: 00380038 | B195: 0038 | C195: 0038 | D195: 186 | E195: 38 | F195: Boxford | G195: 38 | H195: Boxford | I195: 6655216.908 | J195: 0.4677186164 | K195: =X195 -> 7004474.169 | L195: =IF(K199>0, K195/K199, 0) -> 0.4716686631 | N195: =ROUND(M199*L195,0) -> 5765598 | O195: 5490554 | P195: =N195-O195 -> 275044 | Q195: 5.009403423 | R195: 704 | T195: 38 | U195: 38 | V195: 186 | W195: 705 | X195: 7004474.169 | Y195: 186 | Z195: 38 | AA195: 38 | AB195: 186 | AC195: 705 | AD195: 7004474.169 | CR195: 38 | CS195: 38 | CT195: 186 | CU195: 704 | CV195: 6655216.908 | CW195: 0.4677186164 | CX195: 5490554
A196: 00380705 | B196: 0038 | C196: 0705 | D196: 187 | E196: 38 | F196: Boxford | G196: 705 | H196: Masconomet | I196: 7282191.189 | J196: 0.5117814241 | K196: 7544632.535 | L196: =IF(K199>0, K196/K199, 0) -> 0.5080419537 | N196: =ROUND(M199*L196,0) -> 6210219 | O196: 6007808 | P196: =N196-O196 -> 202411 | Q196: 3.369132302 | R196: 700.7592191 | T196: 38 | U196: 705 | V196: 187 | W196: 697.5204806 | X196: 7544632.535 | Y196: 187 | Z196: 38 | AA196: 705 | AB196: 187 | AC196: 697.5204806 | AD196: 7544632.535 | CR196: 38 | CS196: 705 | CT196: 187 | CU196: 700.7592191 | CV196: 7282191.189 | CW196: 0.5117814241 | CX196: 6007808
A197: 00380817 | B197: 0038 | C197: 0817 | D197: 188 | E197: 38 | F197: Boxford | G197: 817 | H197: Essex North Shore | I197: 291696.0598 | J197: 0.02049995956 | K197: 301305.708 | L197: =IF(K199>0, K197/K199, 0) -> 0.02028938319 | N197: =ROUND(M199*L197,0) -> 248014 | O197: 240649 | P197: =N197-O197 -> 7365 | Q197: 3.060473968 | R197: 18 | T197: 38 | U197: 817 | V197: 188 | W197: 18 | X197: 301305.708 | Y197: 188 | Z197: 38 | AA197: 817 | AB197: 188 | AC197: 18 | AD197: 301305.708 | CR197: 38 | CS197: 817 | CT197: 188 | CU197: 18 | CV197: 291696.0598 | CW197: 0.02049995956 | CX197: 240649
A198: 00380998 | B198: 0038 | C198: 0998 | D198: 189 | E198: 38 | G198: 998 | I198: 0 | J198: 0 | K198: 0 | L198: =IF(K199>0, K198/K199, 0) -> 0 | N198: =ROUND(M199*L198,0) -> 0 | O198: 0 | P198: =N198-O198 -> 0 | Q198: 0 | R198: 0 | T198: 38 | U198: 998 | V198: 189 | W198: 0 | X198: 0 | Y198: 189 | Z198: 38 | AA198: 998 | AB198: 189 | AC198: 0 | AD198: 0 | CR198: 38 | CS198: 998 | CT198: 189 | CU198: 0 | CV198: 0 | CW198: 0 | CX198: 0
A199: 00380999 | B199: 0038 | C199: 0999 | D199: 190 | E199: 38 | F199: Boxford | G199: 999 | H199: Total | I199: 14229104.16 | J199: 1 | K199: =SUM(K195:K198) -> 14850412.41 | L199: =SUM(L195:L198) -> 1 | M199: =VLOOKUP(E199,town351,23) -> 12223832 | N199: =SUM(N195:N198) -> 12223831 | O199: 11739011 | P199: =SUM(P195:P198) -> 484820 | Q199: 4.129990167 | R199: 1422.759219 | T199: 38 | U199: 999 | V199: 190 | W199: 1420.520481 | X199: 14850412.41 | Y199: 190 | Z199: 38 | AA199: 999 | AB199: 190 | AC199: 1420.520481 | AD199: 14850412.41 | CR199: 38 | CS199: 999 | CT199: 190 | CU199: 1422.759219 | CV199: 14229104.16 | CW199: 1 | CX199: 11739011
A200: 00390039 | B200: 0039 | C200: 0039 | D200: 191 | E200: 39 | F200: Boylston | G200: 39 | H200: Boylston | I200: 2856144.64 | J200: 0.4346535656 | K200: =X200 -> 429577.7153 | L200: =IF(K204>0, K200/K204, 0) -> 0.06310744261 | N200: =ROUND(M204*L200,0) -> 344845 | O200: 2256220 | P200: =N200-O200 -> -1911375 | Q200: -84.71580786 | R200: 286 | T200: 39 | U200: 39 | V200: 191 | W200: 28 | X200: 429577.7153 | Y200: 191 | Z200: 39 | AA200: 39 | AB200: 191 | AC200: 28 | AD200: 429577.7153 | CR200: 39 | CS200: 39 | CT200: 191 | CU200: 286 | CV200: 2856144.64 | CW200: 0.4346535656 | CX200: 2256220
... 362 more rows

Sheet Foundation Budget
A1: Return to Index | U1: More about the data
A2: Massachusetts Department of Elementary and Secondary Education
A3: Office of School Finance
A4: =parameters!B1&" Chapter 70 Foundation Budget" -> FY20 Chapter 70 Foundation Budget
A5: =lea -> 999 | B5: =IF(lea=999,"State total cannot be computed on this page; Please enter an lea code on the index sheet",VLOOKUP(A5,dist915,2)) -> State total cannot be computed on this page; Please enter an lea code on the index sheet | C5: 1 | D5: 2 | E5: 3 | F5: 4 | G5: 5 | H5: 6 | I5: 8 | K5: 9 | L5: 10 | M5: 11 | N5: 12 | O5: 13 | P5: 14
C6: Base Foundation Components | K6: Incremental Costs Above the Base
C7: 1 | D7: 2 | E7: 3 | F7: 4 | G7: 5 | H7: 6 | I7: 7 | K7: 8 | L7: 9 | M7: 10 | N7: 11 | O7: 12 | P7: 13 | Q7: 14
C8: Pre- | D8: ------ Kindergarten ------ | G8: Jr High/ | H8: High | K8: Special Ed | L8: Special Ed | M8: EL | N8: EL | O8: EL
C9: School | D9: Half-Day | E9: Full-Day | F9: Elementary | G9: Middle | H9: School | I9: Vocational | K9: In District | L9: Out of Dist | M9: PK-5 | N9: 6-8 | O9: High | P9: EcoDis | Q9: TOTAL
B10: Foundation Enrollment | C10: =IF($A$5<>999,VLOOKUP(lea,dist915,VALUE(C$7)+2),0) -> 0 | D10: 0 | E10: 0 | F10: 0 | G10: 0 | H10: 0 | I10: =IF($A$5<>999,VLOOKUP(lea,dist915,VALUE(I$7)+5),0) -> 0 | K10: =IF($A$5<>999,VLOOKUP(lea,dist915,VALUE(K$7)+5),0) -> 0 | L10: =IF($A$5<>999,VLOOKUP(lea,dist915,VALUE(L$7)+5),0) -> 0 | M10: =IF($A$5<>999,VLOOKUP(lea,dist915,VALUE(M$7)+5),0) -> 0 | N10: =IF($A$5<>999,VLOOKUP(lea,dist915,VALUE(N$7)+5),0) -> 0 | O10: =IF($A$5<>999,VLOOKUP(lea,dist915,VALUE(O$7)+5),0) -> 0 | P10: =IF($A$5<>999,VLOOKUP(lea,dist915,VALUE(P$7)+8),0) -> 0 | Q10: =IF($A$5<>999,VLOOKUP(lea,dist915,VALUE(Q$7)+9),0) -> 0
A12: 1 | B12: Administration | C12: =(VLOOKUP(VALUE(C$7),newrates,$A12+2)*C$10*waf) -> 0 | D12: 0 | E12: 0 | F12: 0 | G12: 0 | H12: 0 | I12: 0 | K12: =(VLOOKUP(VALUE(K$7),newrates,$A12+2)*K$10*waf) -> 0 | L12: 0 | M12: 0 | N12: 0 | O12: 0 | P12: =(VLOOKUP(VALUE(P$7)+$C$27-1, newrates, $A12+2, FALSE))*P$10*waf -> 0 | Q12: =SUM(C12:P12) -> 0
A13: 2 | B13: Instructional Leadership | C13: 0 | D13: 0 | E13: 0 | F13: 0 | G13: 0 | H13: 0 | I13: 0 | K13: 0 | L13: 0 | M13: 0 | N13: 0 | O13: 0 | P13: =(VLOOKUP(VALUE(P$7)+$C$27-1, newrates, $A13+2, FALSE))*P$10*waf -> 0 | Q13: 0
A14: 3 | B14: Classroom and Specialist Teachers | C14: 0 | D14: 0 | E14: 0 | F14: 0 | G14: 0 | H14: 0 | I14: 0 | K14: 0 | L14: 0 | M14: 0 | N14: 0 | O14: 0 | P14: =(VLOOKUP(VALUE(P$7)+$C$27-1, newrates, $A14+2, FALSE))*P$10*waf -> 0 | Q14: 0
A15: 4 | B15: Other Teaching Services | C15: 0 | D15: 0 | E15: 0 | F15: 0 | G15: 0 | H15: 0 | I15: 0 | K15: 0 | L15: 0 | M15: 0 | N15: 0 | O15: 0 | P15: =(VLOOKUP(VALUE(P$7)+$C$27-1, newrates, $A15+2, FALSE))*P$10*waf -> 0 | Q15: 0
A16: 5 | B16: Professional Development | C16: 0 | D16: 0 | E16: 0 | F16: 0 | G16: 0 | H16: 0 | I16: 0 | K16: 0 | L16: 0 | M16: 0 | N16: 0 | O16: 0 | P16: =(VLOOKUP(VALUE(P$7)+$C$27-1, newrates, $A16+2, FALSE))*P$10*waf -> 0 | Q16: 0
A17: 6 | B17: Instructional Equipment & Tech* | C17: =(VLOOKUP(VALUE(C$7),newrates,$A17+2)*C$10) -> 0 | D17: 0 | E17: 0 | F17: 0 | G17: 0 | H17: 0 | I17: 0 | K17: =(VLOOKUP(VALUE(K$7),newrates,$A17+2)*K$10) -> 0 | L17: =(VLOOKUP(VALUE(L$7),newrates,$A17+2)*L$10) -> 0 | M17: =(VLOOKUP(VALUE(M$7),newrates,$A17+2)*M$10) -> 0 | N17: =(VLOOKUP(VALUE(N$7),newrates,$A17+2)*N$10) -> 0 | O17: =(VLOOKUP(VALUE(O$7),newrates,$A17+2)*O$10) -> 0 | P17: =(VLOOKUP(VALUE(P$7)+$C$27-1, newrates, $A17+2, FALSE))*P$10 -> 0 | Q17: 0
A18: 7 | B18: Guidance and Psychological | C18: =(VLOOKUP(VALUE(C$7),newrates,$A18+2)*C$10*waf) -> 0 | D18: 0 | E18: 0 | F18: 0 | G18: 0 | H18: 0 | I18: 0 | K18: =(VLOOKUP(VALUE(K$7),newrates,$A18+2)*K$10*waf) -> 0 | L18: 0 | M18: 0 | N18: 0 | O18: 0 | P18: =(VLOOKUP(VALUE(P$7)+$C$27-1, newrates, $A18+2, FALSE))*P$10*waf -> 0 | Q18: 0
A19: 8 | B19: Pupil Services | C19: 0 | D19: 0 | E19: 0 | F19: 0 | G19: 0 | H19: 0 | I19: 0 | K19: 0 | L19: 0 | M19: 0 | N19: 0 | O19: 0 | P19: =(VLOOKUP(VALUE(P$7)+$C$27-1, newrates, $A19+2, FALSE))*P$10*waf -> 0 | Q19: 0
A20: 9 | B20: Operations and Maintenance | C20: 0 | D20: 0 | E20: 0 | F20: 0 | G20: 0 | H20: 0 | I20: 0 | K20: 0 | L20: 0 | M20: 0 | N20: 0 | O20: 0 | P20: =(VLOOKUP(VALUE(P$7)+$C$27-1, newrates, $A20+2, FALSE))*P$10*waf -> 0 | Q20: 0
A21: 10 | B21: Employee Benefits/Fixed Charges* | C21: =(VLOOKUP(VALUE(C$7),newrates,$A21+2)*C$10) -> 0 | D21: 0 | E21: 0 | F21: 0 | G21: 0 | H21: 0 | I21: 0 | K21: =(VLOOKUP(VALUE(K$7),newrates,$A21+2)*K$10) -> 0 | L21: =(VLOOKUP(VALUE(L$7),newrates,$A21+2)*L$10) -> 0 | M21: =(VLOOKUP(VALUE(M$7),newrates,$A21+2)*M$10) -> 0 | N21: =(VLOOKUP(VALUE(N$7),newrates,$A21+2)*N$10) -> 0 | O21: =(VLOOKUP(VALUE(O$7),newrates,$A21+2)*O$10) -> 0 | P21: =(VLOOKUP(VALUE(P$7)+$C$27-1, newrates, $A21+2, FALSE))*P$10 -> 0 | Q21: 0
A22: 11 | B22: Special Ed Tuition* | C22: 0 | D22: 0 | E22: 0 | F22: 0 | G22: 0 | H22: 0 | I22: 0 | K22: =(VLOOKUP(VALUE(K$7)-2,newrates,$A22+2)*K$10) -> 0 | L22: =(VLOOKUP(VALUE(L$7),newrates,$A22+2)*L$10) -> 0 | M22: =(VLOOKUP(VALUE(M$7),newrates,$A22+2)*M$10) -> 0 | N22: =(VLOOKUP(VALUE(N$7),newrates,$A22+2)*N$10) -> 0 | O22: =(VLOOKUP(VALUE(O$7)-2,newrates,$A22+2)*O$10) -> 0 | P22: =(VLOOKUP(VALUE(P$7)+$C$27-1, newrates, $A22+2, FALSE))*P$10 -> 0 | Q22: 0
A24: 12 | B24: Total | C24: =SUM(C12:C22) -> 0 | D24: 0 | E24: 0 | F24: 0 | G24: 0 | H24: 0 | I24: =SUM(I12:I22) -> 0 | K24: 0 | L24: 0 | M24: 0 | N24: 0 | O24: 0 | P24: 0 | Q24: =SUM(Q12:Q23) -> 0
A26: 13 | B26: Wage Adjustment Factor | C26: =VLOOKUP(lea,dist915,24) -> 1 | N26: Foundation Budget per Pupil | Q26: =IF(A5<>999,Q24/Q10," ") -> 
A27: 14 | B27: Economically Disadvantaged Decile | C27: =VLOOKUP(lea,dist915,25) -> 0
B28: *The wage adjustment factor is applied to underlying rates in all functions except instructional equipment, benefits and special education tuition.
L29: English learner foundation budget as % total foundation budget | Q29: =IF(A5=999,"",SUM(M24:O24)/Q24) -> 
B30: Total foundation enrollment does not include incremental costs above the base. The pupils are already counted in columns 1 to 7. | L30: Economically disadvantaged foundation budget as % total foundation budget | Q30: =IF(A5=999,"",P24/Q24) -> 
B31: Total foundation enrollment assigns pupils in pre-kindergarten and half-time kindergarten an enrollment count of .5.
B32: Special education in-district enrollment is an assumed percentage, representing 3.79 percent of K to 12 non-vocational enrollment and 4.79 percent of vocational enrollment.
B33: Special education out-of-district enrollment is also an assumed percentage, representing 1 percent of non-vocational K-12 enrollment.
B34: Economically disadvantaged enrollment is the total enrollment of students who are directly certified as eligible for the Supplemental Nutrition
B35: Assistance Program (SNAP); the Transitional Assistance for Families with Dependent Children (TAFDC); and MassHealth (Medicaid).
B36: Each component of the foundation budget represents the enrollment on line 10 multiplied by the appropriate statewide foundation allotment.
B37: The foundation budget shown on this page may differ from the final number used in the formula, due to rounding error.
B39: Return to Index

Sheet Municipal Contribution
M1: =IF(VLOOKUP(A6,town351,17)>0,"lo","hi") -> hi
A2: Return to Index | G2: More about the data
A3: Massachusetts Department of Elementary and Secondary Education
A4: Office of School Finance
A5: =parameters!B1&" Chapter 70 Determination of City and Town Total Required Contribution" -> FY20 Chapter 70 Determination of City and Town Total Required Contribution
A6: =lea -> 999 | B6: =IF(lea>351, "This lea code does not refer to a city or a town - this table shows municipal data only.",VLOOKUP(A6,aidcalc,2)) -> This lea code does not refer to a city or a town - this table shows municipal data only.
A8: Effort Goal | E8: =parameters!B1&" Increments Toward Goal" -> FY20 Increments Toward Goal
A10: 1) | B10: 2018 equalized valuation | C10: =IF(A6<352,VLOOKUP($A$6,town351,3)," ") ->  | E10: 13) | F10: Required local contribution FY19 | G10: =IF(A6<352,VLOOKUP($A$6,town351,13)," ") -> 
A11: 2) | B11: Uniform property percentage | C11: =IF(A6<352,'Townwide Contributions'!D5," ") ->  | E11: 14) | F11: Municipal revenue growth factor (DOR) | G11: =IF(A$6<352,VLOOKUP($A$6,town351,14)," ") -> 
A12: 3) | B12: Local effort from property wealth | C12: =IF(A6<352,VLOOKUP($A$6,town351,4)," ") ->  | E12: 15) | F12: =parameters!B1&" preliminary contribution (13 raised by 14)" -> FY20 preliminary contribution (13 raised by 14) | G12: =IF(A$6<352,VLOOKUP($A$6,town351,15)," ") -> 
E13: 16) | F13: Preliminary contribution pct of foundation (15 / 8) | G13: =IF(A$6<352,VLOOKUP($A$6,town351,16)/100," ") -> 
A14: 4) | B14: 2016 income | C14: =IF(A6<352,VLOOKUP($A$6,town351,5)," ") -> 
A15: 5) | B15: Uniform income percentage | C15: =IF(A6<352,'Townwide Contributions'!F5," ") ->  | E15: If preliminary contribution is above the target share:
A16: 6) | B16: Local effort from income | C16: =IF(A6<352,VLOOKUP($A$6,town351,6)," ") ->  | E16: 17) | F16: Excess local effort (15 - 10) | G16: =IF(AND(A$6<352,M$1="hi"),VLOOKUP($A$6,town351,20)," ") -> 
E17: 18) | F17: =parameters!$C$50&" reduction toward target (17 x "&parameters!$C$50&")" -> 100% reduction toward target (17 x 100%) | G17: =IF(AND(A$6<352,M$1="hi"),VLOOKUP($A$6,town351,21)," ") -> 
A18: 7) | B18: Combined effort yield (3 + 6) | C18: =IF(A6<352,VLOOKUP($A$6,town351,7)," ") ->  | E18: 19) | F18: =parameters!B1&" required local contribution (15 - 18), capped at 90% of foundation" -> FY20 required local contribution (15 - 18), capped at 90% of foundation | G18: =IF(AND(A$6<352,M$1="hi"),VLOOKUP($A$6,town351,23)," ") -> 
E19: 20) | F19: Contribution as percentage of foundation (19 / 8) | G19: =IF(AND(A$6<352,M$1="hi"),VLOOKUP($A$6,town351,24)," ") -> 
A20: 8) | B20: =parameters!B1&" Foundation budget" -> FY20 Foundation budget | C20: =IF(A6<352,VLOOKUP($A$6,town351,8)," ") -> 
A21: 9) | B21: Maximum local contribution (82.5% * 8) | C21: =IF(A6<352,VLOOKUP($A$6,town351,9)," ") ->  | E21: If preliminary contribution is below the target share:
E22: 21) | F22: Shortfall from target local share (11 - 16) | G22: =IF(AND(A$6<352,M1="lo"),VLOOKUP($A$6,town351,17)/100," ") -> 
A23: 10) | B23: Target local contribution (lesser of 7 or 9) | C23: =IF(A6<352,VLOOKUP($A$6,town351,10)," ") ->  | E23: 22) | F23: Added increment toward target (13 x 1% or 2%)* | G23: =IF(AND(A$6<352,M1="lo"),VLOOKUP($A$6,town351,19)," ") -> 
F24: *1% if shortfall is between 2.5% and 7.5%; 2% if shortfall > 7.5%
A25: 11) | B25: Target local share (10 as % of 8) | C25: =IF(A6<352,VLOOKUP(lea,town351,11)/100," ") ->  | E25: 23) | F25: Special increment toward 82.5% target** | G25: =IF(AND(A$6<352,M1="lo"),VLOOKUP($A$6,town351,22)," ") -> 
A26: 12) | B26: Target aid share (100% minus 11) | C26: =IF(A6<352,VLOOKUP(lea,aidcalc,12)/100," ") ->  | F26: **if combined effort yield > 175% foundation
F27: Combined effort yield as % of foundation | G27: =IF(AND(A6<352,VLOOKUP(lea,town351,22)>0),VLOOKUP(lea,town351,12)," ") -> 
E28: 24) | F28: Shortfall from target after adding increments (10 - 15 - 22 - 23) | G28: =IF(AND(A$6<352,M1="lo"),VLOOKUP($A$6,town351,27)," ") -> 
B29: See a listing of all 351 communities | E29: 25) | F29: =parameters!B1&" required local contribution (15 + 22 + 23)" -> FY20 required local contribution (15 + 22 + 23) | G29: =IF(AND(A$6<352,M1="lo"),VLOOKUP($A$6,town351,23)," ") -> 
E30: 26) | F30: Contribution as percentage of foundation (25 / 8) | G30: =IF(AND(A$6<352,M1="lo"),VLOOKUP($A$6,town351,24)/100," ") -> 

Sheet Regional Allocation
J1: More about the data
D2: Return to Index
D3: Massachusetts Department of Elementary and Secondary Education
D4: Office of School Finance
D5: FY20 Chapter 70 Apportionment of Local Contribution Across School Districts
E7: 4 | F7: 4 | G7: 3 | H7: 2 | I7: 1
A9: 5 | D9: =lea -> 999 | E9: =IF($D$9>351, "", IF(AND($D$9>0, VLOOKUP($D$9*5-E$7, order1755, $A9)<>0), VLOOKUP($D$9*5-E$7, order1755, $A9), "")) ->  | F9: =IF(OR($D$9="", $D$9>351), "", IF(AND($D$9>0, VLOOKUP($D$9*5-F$7, order1755, $A9)<>0), VLOOKUP($D$9*5-F$7, order1755, $A9), "")) ->  | G9: =IF(OR($D$9="", $D$9>351), "", IF(AND($D$9>0, VLOOKUP($D$9*5-G$7, order1755, $A9)<>0), VLOOKUP($D$9*5-G$7, order1755, $A9), "")) ->  | H9: =IF(OR($D$9="", $D$9>351), "", IF(AND($D$9>0, VLOOKUP($D$9*5-H$7, order1755, $A9)<>0), VLOOKUP($D$9*5-H$7, order1755, $A9), "")) ->  | I9: =IF(OR($D$9="", $D$9>351), "", IF(AND($D$9>0, VLOOKUP($D$9*5-I$7, order1755, $A9)<>0), VLOOKUP($D$9*5-I$7, order1755, $A9), "")) ->  | J9: Combined Total for All Districts
A10: 6
E11: Prior Year Data (for comparison purposes)
A13: 15 | D13: 1 | E13: =parameters!B2&" foundation enrollment" -> FY19 foundation enrollment | F13: =IF(OR($D$9="", $D$9>351), "", IF(AND($D$9>0, VLOOKUP($D$9*5-F$7, order1755, $A13)<>0), VLOOKUP($D$9*5-F$7, order1755, $A13), "")) ->  | J13: =IF(OR($D$9="", $D$9>351), "", VLOOKUP($D$9*5, order1755, $A13)) -> 
A14: 6 | D14: 2 | E14: =parameters!B2&" foundation budget" -> FY19 foundation budget | J14: =IF(OR($D$9="", $D$9>351), "", VLOOKUP($D$9*5, order1755, $A14)) -> 
A15: 7 | D15: 3 | E15: ="Each district's share of municipality's combined "& parameters!B2&" foundation" -> Each district's share of municipality's combined FY19 foundation | J15: =IF(OR($D$9="", $D$9>351), "", VLOOKUP($D$9*5, order1755, $A15)) -> 
A16: 12 | D16: 4 | E16: =parameters!B2&" required contribution" -> FY19 required contribution | J16: =IF(OR($D$9="", $D$9>351), "", VLOOKUP($D$9*5, order1755, $A16)) -> 
E17: =parameters!B1& " apportionment of contribution among community's districts" -> FY20 apportionment of contribution among community's districts
D18: 5 | E18: =parameters!B1&" total unapportioned required contribution ('municipal contribution' sheet row 19 or 25)" -> FY20 total unapportioned required contribution ('municipal contribution' sheet row 19 or 25) | J18: =IF(OR($D$9="", $D$9>351), "", VLOOKUP($D$9,town351,23)) -> 
A19: 20 | D19: 6 | E19: =parameters!B1&" foundation enrollment" -> FY20 foundation enrollment | F19: =IF(OR($D$9="", $D$9>351), "", IF(AND($D$9>0, VLOOKUP($D$9*5-F$7, order1755, $A19)<>0), VLOOKUP($D$9*5-F$7, order1755, $A19), "")) ->  | J19: =IF(OR($D$9="", $D$9>351), "", VLOOKUP($D$9*5, order1755, $A19)) -> 
A20: 8 | D20: 7 | E20: =parameters!B1&" foundation budget" -> FY20 foundation budget | J20: =IF(OR($D$9="", $D$9>351), "", VLOOKUP($D$9*5, order1755, $A20)) -> 
A21: 9 | D21: 8 | E21: ="Each district's share of municipality's total "& parameters!B1&" foundation " -> Each district's share of municipality's total FY20 foundation | J21: =IF(OR($D$9="", $D$9>351), "", VLOOKUP($D$9*5, order1755, $A21)) -> 
A22: 11 | D22: 9 | E22: =parameters!B1&" Required Contribution" -> FY20 Required Contribution | J22: =VLOOKUP($D$9*5, order1755, $A22) -> 6513607368
A24: 13 | D24: 10 | E24: ="Change "&parameters!B1&" to "&parameters!B2& " (9 - 4)" -> Change FY20 to FY19 (9 - 4) | F24: =IF(OR($D$9="", $D$9>351), "", IF(AND($D$9>0, VLOOKUP($D$9*5-F$7, order1755, $A24)<>0), VLOOKUP($D$9*5-F$7, order1755, $A24), "")) ->  | G24: =IF(OR($D$9="", $D$9>351), "", IF(AND($D$9>0, VLOOKUP($D$9*5-G$7, order1755, $A24)<>0), VLOOKUP($D$9*5-G$7, order1755, $A24), "")) ->  | H24: =IF(OR($D$9="", $D$9>351), "", IF(AND($D$9>0, VLOOKUP($D$9*5-H$7, order1755, $A24)<>0), VLOOKUP($D$9*5-H$7, order1755, $A24), "")) ->  | I24: =IF(OR($D$9="", $D$9>351), "", IF(AND($D$9>0, VLOOKUP($D$9*5-I$7, order1755, $A24)<>0), VLOOKUP($D$9*5-I$7, order1755, $A24), "")) ->  | J24: =IF(OR($D$9="", $D$9>351), "", VLOOKUP($D$9*5, order1755, $A24)) -> 

Sheet Summary
A1: Return to Index | J1: More about the data
A3: Massachusetts Department of Elementary and Secondary Education
A4: FY20 Chapter 70 Summary
A6: =lea -> 999 | B6: =PROPER(VLOOKUP(A6,dist915,2)) -> State Total
A8: Aid Calculation FY20 | E8: ="Comparison to "& PYr -> Comparison to FY19
F10: =PYr -> FY19 | G10: =CYr -> FY20 | H10: Change | I10: Pct Chg | U10: FY06 | V10: FY07 | W10: FY08 | X10: FY09 | Y10: FY10 | Z10: FY11 | AA10: FY12 | AB10: FY13 | AC10: FY14 | AD10: FY15 | AE10: FY16 | AF10: FY17 | AG10: FY18 | AH10: FY19 | AI10: FY20
A11: Prior Year Aid | E11: Enrollment | F11: =VLOOKUP(A6,aidcalc,19) -> 941411 | G11: =VLOOKUP(A6,aidcalc,20) -> 939683 | H11: =G11-F11 -> -1728 | I11: =IF(F11>0, H11/F11, 0) -> -0.001835542606 | T11: Foundation Budget | U11: =VLOOKUP($A$6,disthist,4) -> 7551933454 | V11: =VLOOKUP($A$6,disthist,7) -> 8014672861 | W11: =VLOOKUP($A$6,disthist,10) -> 8406096436 | X11: =VLOOKUP($A$6,disthist,13) -> 8811314229 | Y11: =VLOOKUP($A$6,disthist,17) -> 9088557473 | Z11: =VLOOKUP($A$6,disthist,21) -> 8921047970 | AA11: =VLOOKUP($A$6,disthist,26) -> 9119340580 | AB11: =VLOOKUP($A$6,disthist,29) -> 9467117141 | AC11: =VLOOKUP($A$6,disthist, 32) -> 9711217585 | AD11: =VLOOKUP($A$6,disthist, 35) -> 9866011313 | AE11: =VLOOKUP($A$6,disthist, 38) -> 1.009017727e+10 | AF11: =VLOOKUP($A$6,disthist, 41) -> 1.012823838e+10 | AG11: =VLOOKUP($A$6,disthist, 44) -> 1.037917384e+10 | AH11: =VLOOKUP($A$6,disthist, 47) -> 1.077758855e+10 | AI11: =VLOOKUP($A$6, aidcalc, 8) -> 1.135904851e+10
A12: 1 | B12: ="Chapter 70 "&PYr -> Chapter 70 FY19 | C12: =VLOOKUP(A6,aidcalc,7) -> 4906614766 | E12: Foundation budget | F12: =VLOOKUP(A6,aidcalc,4) -> 1.077758855e+10 | G12: =VLOOKUP(A6,aidcalc,8) -> 1.135904851e+10 | H12: =G12-F12 -> 581459960.4 | I12: =IF(F12>0, H12/F12, 0) -> 0.05395084046 | T12: Required District Contribution | U12: =VLOOKUP($A$6,disthist,5) -> 4743946672 | V12: =VLOOKUP($A$6,disthist,8) -> 4876428772 | W12: =VLOOKUP($A$6,disthist,11) -> 4997705374 | X12: =VLOOKUP($A$6,disthist,14) -> 5110365426 | Y12: =VLOOKUP($A$6,disthist,18) -> 5250106061 | Z12: =VLOOKUP($A$6,disthist,22) -> 5302200670 | AA12: =VLOOKUP($A$6,disthist,27) -> 5413602268 | AB12: =VLOOKUP($A$6,disthist,30) -> 5582113529 | AC12: =VLOOKUP($A$6,disthist, 33) -> 5748475145 | AD12: =VLOOKUP($A$6,disthist, 36) -> 5817618237 | AE12: =VLOOKUP($A$6,disthist, 39) -> 5943909029 | AF12: =VLOOKUP($A$6,disthist, 42) -> 5926185567 | AG12: =VLOOKUP($A$6,disthist, 45) -> 6046916786 | AH12: =VLOOKUP($A$6,disthist, 48) -> 6246842886 | AI12: =VLOOKUP($A$6, aidcalc, 9) -> 6513607368
E13: Required district contribution | F13: =VLOOKUP(A6,disthist,48) -> 6246842886 | G13: =VLOOKUP($A$6, aidcalc, 9) -> 6513607368 | H13: =G13-F13 -> 266764482 | I13: =IF(F13>0, H13/F13, 0) -> 0.04270388849 | T13: C70 Aid | U13: =VLOOKUP($A$6,disthist,6) -> 3288603062 | V13: =VLOOKUP($A$6,disthist,9) -> 3505192039 | W13: =VLOOKUP($A$6,disthist,12) -> 3725343327 | X13: =VLOOKUP($A$6,disthist,15)+VLOOKUP($A$6,disthist,16) -> 3948496062 | Y13: =VLOOKUP($A$6,disthist,19)+VLOOKUP($A$6,disthist,20) -> 4043156700 | Z13: =VLOOKUP($A$6,disthist,23)+VLOOKUP($A$6,disthist,24)+VLOOKUP($A$6,disthist,25) -> 4072032853 | AA13: =VLOOKUP($A$6,disthist,28) -> 3990504093 | AB13: =VLOOKUP($A$6,disthist,31) -> 4173223954 | AC13: =VLOOKUP($A$6,disthist,34) -> 4300854366 | AD13: =VLOOKUP($A$6,disthist,37) -> 4400335962 | AE13: =VLOOKUP($A$6,disthist,40) -> 4511521974 | AF13: =VLOOKUP($A$6,disthist,43) -> 4627705061 | AG13: =VLOOKUP($A$6,disthist,46) -> 4745645156 | AH13: =VLOOKUP($A$6,disthist,49) -> 4906614766 | AI13: =VLOOKUP($A$6, aidcalc, 38) -> 5175694094
A14: Foundation Aid | E14: Chapter 70 aid | F14: =VLOOKUP(A6,disthist,49) -> 4906614766 | G14: =VLOOKUP($A$6, aidcalc, 38) -> 5175694094 | H14: =G14-F14 -> 269079328.2 | I14: =IF(F14>0, H14/F14, 0) -> 0.05484011707 | P14: =O14+parameters!H13 -> 308558
A15: 2 | B15: Foundation budget FY20 | C15: =VLOOKUP($A$6, aidcalc, 8) -> 1.135904851e+10 | E15: Required net school spending (NSS) | F15: =F13+F14 -> 1.115345765e+10 | G15: =G13+G14 -> 11689301462 | H15: =G15-F15 -> 535843810.2 | I15: =IF(F15>0, H15/F15, 0) -> 0.04804284258
A16: 3 | B16: ="Required district contribution "& CYr -> Required district contribution FY20 | C16: =VLOOKUP($A$6, aidcalc, 9) -> 6513607368
A17: 4 | B17: Foundation aid (2 -3) | C17: =VLOOKUP($A$6, aidcalc, 10) -> 4845441139 | E17: Target aid share | F17: =VLOOKUP(A$6,disthist,3)/100 -> 0.41 | G17: =VLOOKUP(A6,aidcalc,12)/100 -> 0.41
A18: 5 | B18: ="Increase over " & PYr&" (4 - 1)" -> Increase over FY19 (4 - 1) | C18: =VLOOKUP($A$6, aidcalc, 11) -> 256012383.8 | E18: C70 % of foundation | F18: =IF(F12>0,F14/F12,IF(F14>0,1,0)) -> 0.4552609095 | G18: =IF(G12>0,G14/G12,IF(G14>0,1,0)) -> 0.4556450383
A20: Minimum Aid | E20: Required NSS % of foundation | F20: =IF(F12>0,F15/F12,IF(F15>0,1,0)) -> 1.034875065 | G20: =IF(G12>0,G15/G12,IF(G15>0,1,0)) -> 1.029073998
A21: 6 | B21: Minimum $30 per pupil increase | C21: =VLOOKUP($A$6, aidcalc, 34, FALSE) -> 11538684.49
A23: Non-Operating District Reduction to Foundation
A24: 7 | B24: Reduction to foundation | C24: =VLOOKUP($A$6, aidcalc, 36) -> 163047.5184
A26: Additional Aid Increment
A27: 8 | B27: Hold harmless to FY20 House budget | C27: =VLOOKUP($A$6, holdharmless, 55) -> 1691307.456
A29: =CYr&" Chapter 70 Aid" -> FY20 Chapter 70 Aid
A30: 9 | B30: Sum of line 1, 5, 6, 8 minus 7 | C30: =VLOOKUP($A$6, aidcalc, 38) -> 5175694094

Sheet Regional District Members
E2: Return to Index
F3: Select or type full regional district name below
E4: =VLOOKUP(reg_order, regdistricts, 3, FALSE) -> 600 | F4: Acton Boxborough | G4: =VLOOKUP(F4,leas!$E$358:$H$446,4,FALSE) -> 2
E6: Massachusetts Department of Elementary and Secondary Education
E7: Office of School Finance
E8: =CYr&" Chapter 70" -> FY20 Chapter 70
E9: Regional District Enrollment and Contributions by Member City or Town
E10: The table below presents the minimum required local contribution for each member to the selected regional district.
E11: Note: A city or town might belong to more than one regional district (e.g., a regional district and a vocational district) and therefore be required to contribute to multiple districts. See the regional allocation tab for a full list of minimum required contributions for each city or town.
B12: =VLOOKUP(E4, leas!D6:G446, 4, FALSE) -> 0600 | D12: 2 | E12: =VLOOKUP(reg_order, regdistricts, 2, FALSE) -> 600 Acton Boxborough
G14: Foundation Enrollment in Regional District | J14: Required Minimum Contribution to Regional District
B16: =VLOOKUP($E$4, regcount, 2, FALSE) -> 2 | E16: LEA | F16: Member | G16: =PYr -> FY19 | H16: =CYr -> FY20 | I16: Change | J16: =PYr -> FY19 | K16: =CYr -> FY20 | L16: Change
F18: Total | G18: =SUM(G20:G67) -> 5436 | H18: =SUM(H20:H67) -> 5429 | I18: =SUM(I20:I67) -> -7 | J18: =SUM(J20:J67) -> 43056913 | K18: =SUM(K20:K67) -> 45085137 | L18: =SUM(L20:L62) -> 2028224
A20: =IF($C20<=$B$16,VLOOKUP(E20,leas!D6:G446,4,FALSE),"") -> 0002 | B20: =$E$4*100+C20 -> 60001 | C20: 1 | E20: =IF($C20<=$B$16, VLOOKUP($B20, regdetail, 5), " ") -> 2 | F20: =IF($C20<=$B$16, VLOOKUP($B20, regdetail, 6), " ") -> ACTON | G20: =IF($C20<=$B$16,VLOOKUP(A20&$B$12, localcont!A10:X1764, 18, FALSE), "") -> 4587.53929 | H20: =IF($C20<=$B$16,VLOOKUP(A20&$B$12, localcont!$A$10:$X$1764, 23, FALSE), "") -> 4585.679103 | I20: =IF($C20<=$B$16, H20-G20, " ") -> -1.860186399 | J20: =IF($C20<=$B$16,VLOOKUP(A20&$B$12, localcont!$A$10:$X$1764, 15, FALSE), "") -> 35990717 | K20: =IF($C20<=$B$16,VLOOKUP(A20&$B$12, localcont!$A$10:$X$1764, 14, FALSE),"") -> 37733689 | L20: =IF($C20<=$B$16, K20-J20, " ") -> 1742972
A21: =IF($C21<=$B$16,VLOOKUP(E21,leas!D7:G447,4,FALSE),"") -> 0037 | B21: =$E$4*100+C21 -> 60002 | C21: 2 | E21: 37 | F21: BOXBOROUGH | G21: =IF($C21<=$B$16,VLOOKUP(A21&$B$12, localcont!A11:X1765, 18, FALSE), "") -> 848.4607105 | H21: =IF($C21<=$B$16,VLOOKUP(A21&$B$12, localcont!$A$10:$X$1764, 23, FALSE), "") -> 843.3208969 | I21: =IF($C21<=$B$16, H21-G21, " ") -> -5.139813601 | J21: =IF($C21<=$B$16,VLOOKUP(A21&$B$12, localcont!$A$10:$X$1764, 15, FALSE), "") -> 7066196 | K21: =IF($C21<=$B$16,VLOOKUP(A21&$B$12, localcont!$A$10:$X$1764, 14, FALSE),"") -> 7351448 | L21: =IF($C21<=$B$16, K21-J21, " ") -> 285252
A22: =IF($C22<=$B$16,VLOOKUP(E22,leas!D8:G448,4,FALSE),"") ->  | B22: 60003 | C22: 3 | G22: =IF($C22<=$B$16,VLOOKUP(A22&$B$12, localcont!A12:X1766, 18, FALSE), "") ->  | H22: =IF($C22<=$B$16,VLOOKUP(A22&$B$12, localcont!$A$10:$X$1764, 23, FALSE), "") ->  | J22: =IF($C22<=$B$16,VLOOKUP(A22&$B$12, localcont!$A$10:$X$1764, 15, FALSE), "") ->  | K22: =IF($C22<=$B$16,VLOOKUP(A22&$B$12, localcont!$A$10:$X$1764, 14, FALSE),"") -> 
A23: =IF($C23<=$B$16,VLOOKUP(E23,leas!D9:G449,4,FALSE),"") ->  | B23: 60004 | C23: 4 | G23: =IF($C23<=$B$16,VLOOKUP(A23&$B$12, localcont!A13:X1767, 18, FALSE), "") ->  | H23: =IF($C23<=$B$16,VLOOKUP(A23&$B$12, localcont!$A$10:$X$1764, 23, FALSE), "") ->  | J23: =IF($C23<=$B$16,VLOOKUP(A23&$B$12, localcont!$A$10:$X$1764, 15, FALSE), "") ->  | K23: =IF($C23<=$B$16,VLOOKUP(A23&$B$12, localcont!$A$10:$X$1764, 14, FALSE),"") -> 
A24: =IF($C24<=$B$16,VLOOKUP(E24,leas!D10:G450,4,FALSE),"") ->  | B24: 60005 | C24: 5 | G24: =IF($C24<=$B$16,VLOOKUP(A24&$B$12, localcont!A14:X1768, 18, FALSE), "") ->  | H24: =IF($C24<=$B$16,VLOOKUP(A24&$B$12, localcont!$A$10:$X$1764, 23, FALSE), "") ->  | J24: =IF($C24<=$B$16,VLOOKUP(A24&$B$12, localcont!$A$10:$X$1764, 15, FALSE), "") ->  | K24: =IF($C24<=$B$16,VLOOKUP(A24&$B$12, localcont!$A$10:$X$1764, 14, FALSE),"") -> 
A25: =IF($C25<=$B$16,VLOOKUP(E25,leas!D11:G451,4,FALSE),"") ->  | B25: 60006 | C25: 6 | G25: =IF($C25<=$B$16,VLOOKUP(A25&$B$12, localcont!A15:X1769, 18, FALSE), "") ->  | H25: =IF($C25<=$B$16,VLOOKUP(A25&$B$12, localcont!$A$10:$X$1764, 23, FALSE), "") ->  | J25: =IF($C25<=$B$16,VLOOKUP(A25&$B$12, localcont!$A$10:$X$1764, 15, FALSE), "") ->  | K25: =IF($C25<=$B$16,VLOOKUP(A25&$B$12, localcont!$A$10:$X$1764, 14, FALSE),"") -> 
A26: =IF($C26<=$B$16,VLOOKUP(E26,leas!D12:G452,4,FALSE),"") ->  | B26: 60007 | C26: 7 | G26: =IF($C26<=$B$16,VLOOKUP(A26&$B$12, localcont!A16:X1770, 18, FALSE), "") ->  | H26: =IF($C26<=$B$16,VLOOKUP(A26&$B$12, localcont!$A$10:$X$1764, 23, FALSE), "") ->  | J26: =IF($C26<=$B$16,VLOOKUP(A26&$B$12, localcont!$A$10:$X$1764, 15, FALSE), "") ->  | K26: =IF($C26<=$B$16,VLOOKUP(A26&$B$12, localcont!$A$10:$X$1764, 14, FALSE),"") -> 
A27: =IF($C27<=$B$16,VLOOKUP(E27,leas!D13:G453,4,FALSE),"") ->  | B27: 60008 | C27: 8 | G27: =IF($C27<=$B$16,VLOOKUP(A27&$B$12, localcont!A17:X1771, 18, FALSE), "") ->  | H27: =IF($C27<=$B$16,VLOOKUP(A27&$B$12, localcont!$A$10:$X$1764, 23, FALSE), "") ->  | J27: =IF($C27<=$B$16,VLOOKUP(A27&$B$12, localcont!$A$10:$X$1764, 15, FALSE), "") ->  | K27: =IF($C27<=$B$16,VLOOKUP(A27&$B$12, localcont!$A$10:$X$1764, 14, FALSE),"") -> 
A28: =IF($C28<=$B$16,VLOOKUP(E28,leas!D14:G454,4,FALSE),"") ->  | B28: 60009 | C28: 9 | G28: =IF($C28<=$B$16,VLOOKUP(A28&$B$12, localcont!A18:X1772, 18, FALSE), "") ->  | H28: =IF($C28<=$B$16,VLOOKUP(A28&$B$12, localcont!$A$10:$X$1764, 23, FALSE), "") ->  | J28: =IF($C28<=$B$16,VLOOKUP(A28&$B$12, localcont!$A$10:$X$1764, 15, FALSE), "") ->  | K28: =IF($C28<=$B$16,VLOOKUP(A28&$B$12, localcont!$A$10:$X$1764, 14, FALSE),"") -> 
A29: =IF($C29<=$B$16,VLOOKUP(E29,leas!D15:G455,4,FALSE),"") ->  | B29: 60010 | C29: 10 | G29: =IF($C29<=$B$16,VLOOKUP(A29&$B$12, localcont!A19:X1773, 18, FALSE), "") ->  | H29: =IF($C29<=$B$16,VLOOKUP(A29&$B$12, localcont!$A$10:$X$1764, 23, FALSE), "") ->  | J29: =IF($C29<=$B$16,VLOOKUP(A29&$B$12, localcont!$A$10:$X$1764, 15, FALSE), "") ->  | K29: =IF($C29<=$B$16,VLOOKUP(A29&$B$12, localcont!$A$10:$X$1764, 14, FALSE),"") -> 
A30: =IF($C30<=$B$16,VLOOKUP(E30,leas!D16:G456,4,FALSE),"") ->  | B30: 60011 | C30: 11 | G30: =IF($C30<=$B$16,VLOOKUP(A30&$B$12, localcont!A20:X1774, 18, FALSE), "") ->  | H30: =IF($C30<=$B$16,VLOOKUP(A30&$B$12, localcont!$A$10:$X$1764, 23, FALSE), "") ->  | J30: =IF($C30<=$B$16,VLOOKUP(A30&$B$12, localcont!$A$10:$X$1764, 15, FALSE), "") ->  | K30: =IF($C30<=$B$16,VLOOKUP(A30&$B$12, localcont!$A$10:$X$1764, 14, FALSE),"") -> 
A31: =IF($C31<=$B$16,VLOOKUP(E31,leas!D17:G457,4,FALSE),"") ->  | B31: 60012 | C31: 12 | G31: =IF($C31<=$B$16,VLOOKUP(A31&$B$12, localcont!A21:X1775, 18, FALSE), "") ->  | H31: =IF($C31<=$B$16,VLOOKUP(A31&$B$12, localcont!$A$10:$X$1764, 23, FALSE), "") ->  | J31: =IF($C31<=$B$16,VLOOKUP(A31&$B$12, localcont!$A$10:$X$1764, 15, FALSE), "") ->  | K31: =IF($C31<=$B$16,VLOOKUP(A31&$B$12, localcont!$A$10:$X$1764, 14, FALSE),"") -> 
A32: =IF($C32<=$B$16,VLOOKUP(E32,leas!D18:G458,4,FALSE),"") ->  | B32: 60013 | C32: 13 | G32: =IF($C32<=$B$16,VLOOKUP(A32&$B$12, localcont!A22:X1776, 18, FALSE), "") ->  | H32: =IF($C32<=$B$16,VLOOKUP(A32&$B$12, localcont!$A$10:$X$1764, 23, FALSE), "") ->  | J32: =IF($C32<=$B$16,VLOOKUP(A32&$B$12, localcont!$A$10:$X$1764, 15, FALSE), "") ->  | K32: =IF($C32<=$B$16,VLOOKUP(A32&$B$12, localcont!$A$10:$X$1764, 14, FALSE),"") -> 
A33: =IF($C33<=$B$16,VLOOKUP(E33,leas!D19:G459,4,FALSE),"") ->  | B33: 60014 | C33: 14 | G33: =IF($C33<=$B$16,VLOOKUP(A33&$B$12, localcont!A23:X1777, 18, FALSE), "") ->  | H33: =IF($C33<=$B$16,VLOOKUP(A33&$B$12, localcont!$A$10:$X$1764, 23, FALSE), "") ->  | J33: =IF($C33<=$B$16,VLOOKUP(A33&$B$12, localcont!$A$10:$X$1764, 15, FALSE), "") ->  | K33: =IF($C33<=$B$16,VLOOKUP(A33&$B$12, localcont!$A$10:$X$1764, 14, FALSE),"") -> 
A34: =IF($C34<=$B$16,VLOOKUP(E34,leas!D20:G460,4,FALSE),"") ->  | B34: 60015 | C34: 15 | G34: =IF($C34<=$B$16,VLOOKUP(A34&$B$12, localcont!A24:X1778, 18, FALSE), "") ->  | H34: =IF($C34<=$B$16,VLOOKUP(A34&$B$12, localcont!$A$10:$X$1764, 23, FALSE), "") ->  | J34: =IF($C34<=$B$16,VLOOKUP(A34&$B$12, localcont!$A$10:$X$1764, 15, FALSE), "") ->  | K34: =IF($C34<=$B$16,VLOOKUP(A34&$B$12, localcont!$A$10:$X$1764, 14, FALSE),"") -> 
A35: =IF($C35<=$B$16,VLOOKUP(E35,leas!D21:G461,4,FALSE),"") ->  | B35: 60016 | C35: 16 | G35: =IF($C35<=$B$16,VLOOKUP(A35&$B$12, localcont!A25:X1779, 18, FALSE), "") ->  | H35: =IF($C35<=$B$16,VLOOKUP(A35&$B$12, localcont!$A$10:$X$1764, 23, FALSE), "") ->  | J35: =IF($C35<=$B$16,VLOOKUP(A35&$B$12, localcont!$A$10:$X$1764, 15, FALSE), "") ->  | K35: =IF($C35<=$B$16,VLOOKUP(A35&$B$12, localcont!$A$10:$X$1764, 14, FALSE),"") -> 
A36: =IF($C36<=$B$16,VLOOKUP(E36,leas!D22:G462,4,FALSE),"") ->  | B36: 60017 | C36: 17 | G36: =IF($C36<=$B$16,VLOOKUP(A36&$B$12, localcont!A26:X1780, 18, FALSE), "") ->  | H36: =IF($C36<=$B$16,VLOOKUP(A36&$B$12, localcont!$A$10:$X$1764, 23, FALSE), "") ->  | J36: =IF($C36<=$B$16,VLOOKUP(A36&$B$12, localcont!$A$10:$X$1764, 15, FALSE), "") ->  | K36: =IF($C36<=$B$16,VLOOKUP(A36&$B$12, localcont!$A$10:$X$1764, 14, FALSE),"") -> 
A37: =IF($C37<=$B$16,VLOOKUP(E37,leas!D23:G463,4,FALSE),"") ->  | B37: 60018 | C37: 18 | G37: =IF($C37<=$B$16,VLOOKUP(A37&$B$12, localcont!A27:X1781, 18, FALSE), "") ->  | H37: =IF($C37<=$B$16,VLOOKUP(A37&$B$12, localcont!$A$10:$X$1764, 23, FALSE), "") ->  | J37: =IF($C37<=$B$16,VLOOKUP(A37&$B$12, localcont!$A$10:$X$1764, 15, FALSE), "") ->  | K37: =IF($C37<=$B$16,VLOOKUP(A37&$B$12, localcont!$A$10:$X$1764, 14, FALSE),"") -> 
A38: =IF($C38<=$B$16,VLOOKUP(E38,leas!D24:G464,4,FALSE),"") ->  | B38: 60019 | C38: 19 | G38: =IF($C38<=$B$16,VLOOKUP(A38&$B$12, localcont!A28:X1782, 18, FALSE), "") ->  | H38: =IF($C38<=$B$16,VLOOKUP(A38&$B$12, localcont!$A$10:$X$1764, 23, FALSE), "") ->  | J38: =IF($C38<=$B$16,VLOOKUP(A38&$B$12, localcont!$A$10:$X$1764, 15, FALSE), "") ->  | K38: =IF($C38<=$B$16,VLOOKUP(A38&$B$12, localcont!$A$10:$X$1764, 14, FALSE),"") -> 
A39: =IF($C39<=$B$16,VLOOKUP(E39,leas!D25:G465,4,FALSE),"") ->  | B39: 60020 | C39: 20 | G39: =IF($C39<=$B$16,VLOOKUP(A39&$B$12, localcont!A29:X1783, 18, FALSE), "") ->  | H39: =IF($C39<=$B$16,VLOOKUP(A39&$B$12, localcont!$A$10:$X$1764, 23, FALSE), "") ->  | J39: =IF($C39<=$B$16,VLOOKUP(A39&$B$12, localcont!$A$10:$X$1764, 15, FALSE), "") ->  | K39: =IF($C39<=$B$16,VLOOKUP(A39&$B$12, localcont!$A$10:$X$1764, 14, FALSE),"") -> 
A40: =IF($C40<=$B$16,VLOOKUP(E40,leas!D26:G466,4,FALSE),"") ->  | B40: 60021 | C40: 21 | G40: =IF($C40<=$B$16,VLOOKUP(A40&$B$12, localcont!A30:X1784, 18, FALSE), "") ->  | H40: =IF($C40<=$B$16,VLOOKUP(A40&$B$12, localcont!$A$10:$X$1764, 23, FALSE), "") ->  | J40: =IF($C40<=$B$16,VLOOKUP(A40&$B$12, localcont!$A$10:$X$1764, 15, FALSE), "") ->  | K40: =IF($C40<=$B$16,VLOOKUP(A40&$B$12, localcont!$A$10:$X$1764, 14, FALSE),"") -> 
A41: =IF($C41<=$B$16,VLOOKUP(E41,leas!D27:G467,4,FALSE),"") ->  | B41: 60022 | C41: 22 | G41: =IF($C41<=$B$16,VLOOKUP(A41&$B$12, localcont!A31:X1785, 18, FALSE), "") ->  | H41: =IF($C41<=$B$16,VLOOKUP(A41&$B$12, localcont!$A$10:$X$1764, 23, FALSE), "") ->  | J41: =IF($C41<=$B$16,VLOOKUP(A41&$B$12, localcont!$A$10:$X$1764, 15, FALSE), "") ->  | K41: =IF($C41<=$B$16,VLOOKUP(A41&$B$12, localcont!$A$10:$X$1764, 14, FALSE),"") -> 
A42: =IF($C42<=$B$16,VLOOKUP(E42,leas!D28:G468,4,FALSE),"") ->  | B42: 60023 | C42: 23 | G42: =IF($C42<=$B$16,VLOOKUP(A42&$B$12, localcont!A32:X1786, 18, FALSE), "") ->  | H42: =IF($C42<=$B$16,VLOOKUP(A42&$B$12, localcont!$A$10:$X$1764, 23, FALSE), "") ->  | J42: =IF($C42<=$B$16,VLOOKUP(A42&$B$12, localcont!$A$10:$X$1764, 15, FALSE), "") ->  | K42: =IF($C42<=$B$16,VLOOKUP(A42&$B$12, localcont!$A$10:$X$1764, 14, FALSE),"") -> 
A43: =IF($C43<=$B$16,VLOOKUP(E43,leas!D29:G469,4,FALSE),"") ->  | B43: 60024 | C43: 24 | G43: =IF($C43<=$B$16,VLOOKUP(A43&$B$12, localcont!A33:X1787, 18, FALSE), "") ->  | H43: =IF($C43<=$B$16,VLOOKUP(A43&$B$12, localcont!$A$10:$X$1764, 23, FALSE), "") ->  | J43: =IF($C43<=$B$16,VLOOKUP(A43&$B$12, localcont!$A$10:$X$1764, 15, FALSE), "") ->  | K43: =IF($C43<=$B$16,VLOOKUP(A43&$B$12, localcont!$A$10:$X$1764, 14, FALSE),"") -> 
A44: =IF($C44<=$B$16,VLOOKUP(E44,leas!D30:G470,4,FALSE),"") ->  | B44: 60025 | C44: 25 | G44: =IF($C44<=$B$16,VLOOKUP(A44&$B$12, localcont!A34:X1788, 18, FALSE), "") ->  | H44: =IF($C44<=$B$16,VLOOKUP(A44&$B$12, localcont!$A$10:$X$1764, 23, FALSE), "") ->  | J44: =IF($C44<=$B$16,VLOOKUP(A44&$B$12, localcont!$A$10:$X$1764, 15, FALSE), "") ->  | K44: =IF($C44<=$B$16,VLOOKUP(A44&$B$12, localcont!$A$10:$X$1764, 14, FALSE),"") -> 
A45: =IF($C45<=$B$16,VLOOKUP(E45,leas!D31:G471,4,FALSE),"") ->  | B45: 60026 | C45: 26 | G45: =IF($C45<=$B$16,VLOOKUP(A45&$B$12, localcont!A35:X1789, 18, FALSE), "") ->  | H45: =IF($C45<=$B$16,VLOOKUP(A45&$B$12, localcont!$A$10:$X$1764, 23, FALSE), "") ->  | J45: =IF($C45<=$B$16,VLOOKUP(A45&$B$12, localcont!$A$10:$X$1764, 15, FALSE), "") ->  | K45: =IF($C45<=$B$16,VLOOKUP(A45&$B$12, localcont!$A$10:$X$1764, 14, FALSE),"") -> 
A46: =IF($C46<=$B$16,VLOOKUP(E46,leas!D32:G472,4,FALSE),"") ->  | B46: 60027 | C46: 27 | G46: =IF($C46<=$B$16,VLOOKUP(A46&$B$12, localcont!A36:X1790, 18, FALSE), "") ->  | H46: =IF($C46<=$B$16,VLOOKUP(A46&$B$12, localcont!$A$10:$X$1764, 23, FALSE), "") ->  | J46: =IF($C46<=$B$16,VLOOKUP(A46&$B$12, localcont!$A$10:$X$1764, 15, FALSE), "") ->  | K46: =IF($C46<=$B$16,VLOOKUP(A46&$B$12, localcont!$A$10:$X$1764, 14, FALSE),"") -> 
A47: =IF($C47<=$B$16,VLOOKUP(E47,leas!D33:G473,4,FALSE),"") ->  | B47: 60028 | C47: 28 | G47: =IF($C47<=$B$16,VLOOKUP(A47&$B$12, localcont!A37:X1791, 18, FALSE), "") ->  | H47: =IF($C47<=$B$16,VLOOKUP(A47&$B$12, localcont!$A$10:$X$1764, 23, FALSE), "") ->  | J47: =IF($C47<=$B$16,VLOOKUP(A47&$B$12, localcont!$A$10:$X$1764, 15, FALSE), "") ->  | K47: =IF($C47<=$B$16,VLOOKUP(A47&$B$12, localcont!$A$10:$X$1764, 14, FALSE),"") -> 
A48: =IF($C48<=$B$16,VLOOKUP(E48,leas!D34:G474,4,FALSE),"") ->  | B48: 60029 | C48: 29 | G48: =IF($C48<=$B$16,VLOOKUP(A48&$B$12, localcont!A38:X1792, 18, FALSE), "") ->  | H48: =IF($C48<=$B$16,VLOOKUP(A48&$B$12, localcont!$A$10:$X$1764, 23, FALSE), "") ->  | J48: =IF($C48<=$B$16,VLOOKUP(A48&$B$12, localcont!$A$10:$X$1764, 15, FALSE), "") ->  | K48: =IF($C48<=$B$16,VLOOKUP(A48&$B$12, localcont!$A$10:$X$1764, 14, FALSE),"") -> 
A49: =IF($C49<=$B$16,VLOOKUP(E49,leas!D35:G475,4,FALSE),"") ->  | B49: 60030 | C49: 30 | G49: =IF($C49<=$B$16,VLOOKUP(A49&$B$12, localcont!A39:X1793, 18, FALSE), "") ->  | H49: =IF($C49<=$B$16,VLOOKUP(A49&$B$12, localcont!$A$10:$X$1764, 23, FALSE), "") ->  | J49: =IF($C49<=$B$16,VLOOKUP(A49&$B$12, localcont!$A$10:$X$1764, 15, FALSE), "") ->  | K49: =IF($C49<=$B$16,VLOOKUP(A49&$B$12, localcont!$A$10:$X$1764, 14, FALSE),"") -> 
A50: =IF($C50<=$B$16,VLOOKUP(E50,leas!D36:G476,4,FALSE),"") ->  | B50: 60031 | C50: 31 | G50: =IF($C50<=$B$16,VLOOKUP(A50&$B$12, localcont!A40:X1794, 18, FALSE), "") ->  | H50: =IF($C50<=$B$16,VLOOKUP(A50&$B$12, localcont!$A$10:$X$1764, 23, FALSE), "") ->  | J50: =IF($C50<=$B$16,VLOOKUP(A50&$B$12, localcont!$A$10:$X$1764, 15, FALSE), "") ->  | K50: =IF($C50<=$B$16,VLOOKUP(A50&$B$12, localcont!$A$10:$X$1764, 14, FALSE),"") -> 
A51: =IF($C51<=$B$16,VLOOKUP(E51,leas!D37:G477,4,FALSE),"") ->  | B51: 60032 | C51: 32 | G51: =IF($C51<=$B$16,VLOOKUP(A51&$B$12, localcont!A41:X1795, 18, FALSE), "") ->  | H51: =IF($C51<=$B$16,VLOOKUP(A51&$B$12, localcont!$A$10:$X$1764, 23, FALSE), "") ->  | J51: =IF($C51<=$B$16,VLOOKUP(A51&$B$12, localcont!$A$10:$X$1764, 15, FALSE), "") ->  | K51: =IF($C51<=$B$16,VLOOKUP(A51&$B$12, localcont!$A$10:$X$1764, 14, FALSE),"") -> 
A52: =IF($C52<=$B$16,VLOOKUP(E52,leas!D38:G478,4,FALSE),"") ->  | B52: 60033 | C52: 33 | F52: =IF($C52<=$B$16, VLOOKUP($B52, regdetail, 6), " ") ->  | G52: =IF($C52<=$B$16,VLOOKUP(A52&$B$12, localcont!A42:X1796, 18, FALSE), "") ->  | H52: =IF($C52<=$B$16,VLOOKUP(A52&$B$12, localcont!$A$10:$X$1764, 23, FALSE), "") ->  | J52: =IF($C52<=$B$16,VLOOKUP(A52&$B$12, localcont!$A$10:$X$1764, 15, FALSE), "") ->  | K52: =IF($C52<=$B$16,VLOOKUP(A52&$B$12, localcont!$A$10:$X$1764, 14, FALSE),"") -> 
A53: =IF($C53<=$B$16,VLOOKUP(E53,leas!D39:G479,4,FALSE),"") ->  | B53: 60034 | C53: 34 | G53: =IF($C53<=$B$16,VLOOKUP(A53&$B$12, localcont!A43:X1797, 18, FALSE), "") ->  | H53: =IF($C53<=$B$16,VLOOKUP(A53&$B$12, localcont!$A$10:$X$1764, 23, FALSE), "") ->  | J53: =IF($C53<=$B$16,VLOOKUP(A53&$B$12, localcont!$A$10:$X$1764, 15, FALSE), "") ->  | K53: =IF($C53<=$B$16,VLOOKUP(A53&$B$12, localcont!$A$10:$X$1764, 14, FALSE),"") -> 
A54: =IF($C54<=$B$16,VLOOKUP(E54,leas!D40:G480,4,FALSE),"") ->  | B54: 60035 | C54: 35 | G54: =IF($C54<=$B$16,VLOOKUP(A54&$B$12, localcont!A44:X1798, 18, FALSE), "") ->  | H54: =IF($C54<=$B$16,VLOOKUP(A54&$B$12, localcont!$A$10:$X$1764, 23, FALSE), "") ->  | J54: =IF($C54<=$B$16,VLOOKUP(A54&$B$12, localcont!$A$10:$X$1764, 15, FALSE), "") ->  | K54: =IF($C54<=$B$16,VLOOKUP(A54&$B$12, localcont!$A$10:$X$1764, 14, FALSE),"") -> 
A55: =IF($C55<=$B$16,VLOOKUP(E55,leas!D41:G481,4,FALSE),"") ->  | B55: 60036 | C55: 36 | G55: =IF($C55<=$B$16,VLOOKUP(A55&$B$12, localcont!A45:X1799, 18, FALSE), "") ->  | H55: =IF($C55<=$B$16,VLOOKUP(A55&$B$12, localcont!$A$10:$X$1764, 23, FALSE), "") ->  | J55: =IF($C55<=$B$16,VLOOKUP(A55&$B$12, localcont!$A$10:$X$1764, 15, FALSE), "") ->  | K55: =IF($C55<=$B$16,VLOOKUP(A55&$B$12, localcont!$A$10:$X$1764, 14, FALSE),"") -> 
A56: =IF($C56<=$B$16,VLOOKUP(E56,leas!D42:G482,4,FALSE),"") ->  | B56: 60037 | C56: 37 | G56: =IF($C56<=$B$16,VLOOKUP(A56&$B$12, localcont!A46:X1800, 18, FALSE), "") ->  | H56: =IF($C56<=$B$16,VLOOKUP(A56&$B$12, localcont!$A$10:$X$1764, 23, FALSE), "") ->  | J56: =IF($C56<=$B$16,VLOOKUP(A56&$B$12, localcont!$A$10:$X$1764, 15, FALSE), "") ->  | K56: =IF($C56<=$B$16,VLOOKUP(A56&$B$12, localcont!$A$10:$X$1764, 14, FALSE),"") -> 
A57: =IF($C57<=$B$16,VLOOKUP(E57,leas!D43:G483,4,FALSE),"") ->  | B57: 60038 | C57: 38 | G57: =IF($C57<=$B$16,VLOOKUP(A57&$B$12, localcont!A47:X1801, 18, FALSE), "") ->  | H57: =IF($C57<=$B$16,VLOOKUP(A57&$B$12, localcont!$A$10:$X$1764, 23, FALSE), "") ->  | J57: =IF($C57<=$B$16,VLOOKUP(A57&$B$12, localcont!$A$10:$X$1764, 15, FALSE), "") ->  | K57: =IF($C57<=$B$16,VLOOKUP(A57&$B$12, localcont!$A$10:$X$1764, 14, FALSE),"") -> 
A58: =IF($C58<=$B$16,VLOOKUP(E58,leas!D44:G484,4,FALSE),"") ->  | B58: 60039 | C58: 39 | G58: =IF($C58<=$B$16,VLOOKUP(A58&$B$12, localcont!A48:X1802, 18, FALSE), "") ->  | H58: =IF($C58<=$B$16,VLOOKUP(A58&$B$12, localcont!$A$10:$X$1764, 23, FALSE), "") ->  | J58: =IF($C58<=$B$16,VLOOKUP(A58&$B$12, localcont!$A$10:$X$1764, 15, FALSE), "") ->  | K58: =IF($C58<=$B$16,VLOOKUP(A58&$B$12, localcont!$A$10:$X$1764, 14, FALSE),"") -> 
A59: =IF($C59<=$B$16,VLOOKUP(E59,leas!D45:G485,4,FALSE),"") ->  | B59: 60040 | C59: 40 | G59: =IF($C59<=$B$16,VLOOKUP(A59&$B$12, localcont!A49:X1803, 18, FALSE), "") ->  | H59: =IF($C59<=$B$16,VLOOKUP(A59&$B$12, localcont!$A$10:$X$1764, 23, FALSE), "") ->  | J59: =IF($C59<=$B$16,VLOOKUP(A59&$B$12, localcont!$A$10:$X$1764, 15, FALSE), "") ->  | K59: =IF($C59<=$B$16,VLOOKUP(A59&$B$12, localcont!$A$10:$X$1764, 14, FALSE),"") -> 
A60: =IF($C60<=$B$16,VLOOKUP(E60,leas!D46:G486,4,FALSE),"") ->  | B60: 60041 | C60: 41 | G60: =IF($C60<=$B$16,VLOOKUP(A60&$B$12, localcont!A50:X1804, 18, FALSE), "") ->  | H60: =IF($C60<=$B$16,VLOOKUP(A60&$B$12, localcont!$A$10:$X$1764, 23, FALSE), "") ->  | J60: =IF($C60<=$B$16,VLOOKUP(A60&$B$12, localcont!$A$10:$X$1764, 15, FALSE), "") ->  | K60: =IF($C60<=$B$16,VLOOKUP(A60&$B$12, localcont!$A$10:$X$1764, 14, FALSE),"") -> 
A61: =IF($C61<=$B$16,VLOOKUP(E61,leas!D47:G487,4,FALSE),"") ->  | B61: 60042 | C61: 42 | G61: =IF($C61<=$B$16,VLOOKUP(A61&$B$12, localcont!A51:X1805, 18, FALSE), "") ->  | H61: =IF($C61<=$B$16,VLOOKUP(A61&$B$12, localcont!$A$10:$X$1764, 23, FALSE), "") ->  | J61: =IF($C61<=$B$16,VLOOKUP(A61&$B$12, localcont!$A$10:$X$1764, 15, FALSE), "") ->  | K61: =IF($C61<=$B$16,VLOOKUP(A61&$B$12, localcont!$A$10:$X$1764, 14, FALSE),"") -> 
A62: =IF($C62<=$B$16,VLOOKUP(E62,leas!D48:G488,4,FALSE),"") ->  | B62: 60043 | C62: 43 | G62: =IF($C62<=$B$16,VLOOKUP(A62&$B$12, localcont!A52:X1806, 18, FALSE), "") ->  | H62: =IF($C62<=$B$16,VLOOKUP(A62&$B$12, localcont!$A$10:$X$1764, 23, FALSE), "") ->  | J62: =IF($C62<=$B$16,VLOOKUP(A62&$B$12, localcont!$A$10:$X$1764, 15, FALSE), "") ->  | K62: =IF($C62<=$B$16,VLOOKUP(A62&$B$12, localcont!$A$10:$X$1764, 14, FALSE),"") -> 
A63: =IF($C63<=$B$16,VLOOKUP(E63,leas!D49:G489,4,FALSE),"") ->  | B63: 60044 | C63: 44 | G63: =IF($C63<=$B$16,VLOOKUP(A63&$B$12, localcont!A53:X1807, 18, FALSE), "") ->  | H63: =IF($C63<=$B$16,VLOOKUP(A63&$B$12, localcont!$A$10:$X$1764, 23, FALSE), "") ->  | J63: =IF($C63<=$B$16,VLOOKUP(A63&$B$12, localcont!$A$10:$X$1764, 15, FALSE), "") ->  | K63: =IF($C63<=$B$16,VLOOKUP(A63&$B$12, localcont!$A$10:$X$1764, 14, FALSE),"") -> 
A64: =IF($C64<=$B$16,VLOOKUP(E64,leas!D50:G490,4,FALSE),"") ->  | B64: 60045 | C64: 45 | G64: =IF($C64<=$B$16,VLOOKUP(A64&$B$12, localcont!A54:X1808, 18, FALSE), "") ->  | H64: =IF($C64<=$B$16,VLOOKUP(A64&$B$12, localcont!$A$10:$X$1764, 23, FALSE), "") ->  | J64: =IF($C64<=$B$16,VLOOKUP(A64&$B$12, localcont!$A$10:$X$1764, 15, FALSE), "") ->  | K64: =IF($C64<=$B$16,VLOOKUP(A64&$B$12, localcont!$A$10:$X$1764, 14, FALSE),"") -> 
A65: =IF($C65<=$B$16,VLOOKUP(E65,leas!D51:G491,4,FALSE),"") ->  | B65: 60046 | C65: 46 | G65: =IF($C65<=$B$16,VLOOKUP(A65&$B$12, localcont!A55:X1809, 18, FALSE), "") ->  | H65: =IF($C65<=$B$16,VLOOKUP(A65&$B$12, localcont!$A$10:$X$1764, 23, FALSE), "") ->  | J65: =IF($C65<=$B$16,VLOOKUP(A65&$B$12, localcont!$A$10:$X$1764, 15, FALSE), "") ->  | K65: =IF($C65<=$B$16,VLOOKUP(A65&$B$12, localcont!$A$10:$X$1764, 14, FALSE),"") -> 
A66: =IF($C66<=$B$16,VLOOKUP(E66,leas!D52:G492,4,FALSE),"") ->  | B66: 60047 | C66: 47 | G66: =IF($C66<=$B$16,VLOOKUP(A66&$B$12, localcont!A56:X1810, 18, FALSE), "") ->  | H66: =IF($C66<=$B$16,VLOOKUP(A66&$B$12, localcont!$A$10:$X$1764, 23, FALSE), "") ->  | J66: =IF($C66<=$B$16,VLOOKUP(A66&$B$12, localcont!$A$10:$X$1764, 15, FALSE), "") ->  | K66: =IF($C66<=$B$16,VLOOKUP(A66&$B$12, localcont!$A$10:$X$1764, 14, FALSE),"") -> 
A67: =IF($C67<=$B$16,VLOOKUP(E67,leas!D53:G493,4,FALSE),"") ->  | B67: 60048 | C67: 48 | G67: =IF($C67<=$B$16,VLOOKUP(A67&$B$12, localcont!A57:X1811, 18, FALSE), "") ->  | H67: =IF($C67<=$B$16,VLOOKUP(A67&$B$12, localcont!$A$10:$X$1764, 23, FALSE), "") ->  | J67: =IF($C67<=$B$16,VLOOKUP(A67&$B$12, localcont!$A$10:$X$1764, 15, FALSE), "") ->  | K67: =IF($C67<=$B$16,VLOOKUP(A67&$B$12, localcont!$A$10:$X$1764, 14, FALSE),"") -> 
A68: =IF($C68<=$B$16,VLOOKUP(E68,leas!D54:G494,4,FALSE),"") ->  | B68: 60049 | C68: 49 | G68: =IF($C68<=$B$16,VLOOKUP(A68&$B$12, localcont!A58:X1812, 18, FALSE), "") ->  | H68: =IF($C68<=$B$16,VLOOKUP(A68&$B$12, localcont!$A$10:$X$1764, 23, FALSE), "") ->  | J68: =IF($C68<=$B$16,VLOOKUP(A68&$B$12, localcont!$A$10:$X$1764, 15, FALSE), "") ->  | K68: =IF($C68<=$B$16,VLOOKUP(A68&$B$12, localcont!$A$10:$X$1764, 14, FALSE),"") -> 

Sheet Townwide Contributions
A1: 1 | C1: From DOR, Dec 2018 3 | D1: 4 | E1: From DOR, Dec 2018 5 | F1: 6 | G1: 7 | H1: 8 | I1: 9 | J1: 10 | K1: 11 | L1: 12 | M1: 13 | N1: 14 | O1: 15 | P1: 16 | Q1: 17 | R1: 18 | S1: 19 | T1: 20 | U1: 21 | V1: 22 | W1: 23 | X1: 24 | Y1: 25 | Z1: 26 | AA1: 27 | AB1: 28 | AC1: 29 | AD1: 29 | AE1: 30 | AF1: 31 | AG1: 32
B2: Return to Index | C2: 1. Calculation of effort goal (target local share) | M2: 2. Calculation of annual increments toward goal (required local contribution) | Z2: Analysis of Gap Closing
B3: More about the data | R3: Increments | S3: Thresholds
D4: uniform property percentage | F4: uniform income percentage | N4: Version | R4: =parameters!C18 -> 0.01 | S4: =parameters!C16 -> 2.5 | U4: Effort Reduction | V4: OPTION TO ACTIVATE THIS INCREMENT | AG4: -0.05
D5: =parameters!C29 -> 0.003455847976 | F5: =parameters!C30 -> 0.01498093585 | N5: 1 | R5: =parameters!C19 -> 0.02 | S5: =parameters!C17 -> 7.5 | U5: =effortred -> 1 | V5: 1 | AG5: -0.1 | AI5: Final from DOR 12/29/2018
I6: maximum | J6: target local | M6: required | P6: preliminary | R6: percentage | S6: dollar | AG6: 0.02
D7: local effort | E7: DOR total | F7: local effort | G7: combined | I7: local contribution | J7: contribution | K7: target | M7: local | O7: preliminary | P7: contribution | Q7: shortfall | R7: increment | S7: increment | U7: excess effort | W7: required | Z7: Before | AA7: After implementation | AG7: 0.01 | AI7: 1 | AJ7: 2 | AK7: 3 | AL7: 4 | AM7: 5 | AN7: 6 | AO7: 7
C8: total | D8: from property | E8: income | F8: from income | G8: effort | H8: =CYr -> FY20 | I8: foundation pct= | J8: (lesser of max local | K8: local | L8: CEY % | M8: contribution | N8: mrgf | O8: contribution | P8: percentage of | Q8: from target | R8: toward | S8: toward | T8: excess | U8: times effort | V8: CEY% > 175% | W8: contribution | X8: percentage | Z8: below effort | AA8: below effort | AB8: above effort | AC8: distance from | AE8: % distance | AF8: Points | AG8: x% of | AI8: mrgf | AJ8: mrgf | AK8: mrgf | AL8: mrgf | AM8: mrgf | AN8: mrgf | AO8: mrgf
A9: Lea | B9: District | C9: EQV 2018 | D9: wealth | E9: 2016 | F9: wealth | G9: yield | H9: foundation | I9: =maxloc -> 0.825 | J9: or effort yield) | K9: share | L9: Found | M9: =PYr -> FY19 | N9: =CYr -> FY20 | O9: =CYr -> FY20 | P9: foundation | Q9: local share | R9: target | S9: target | T9: effort | U9: reduction % | V9: increment | W9: =CYr -> FY20 | X9: of foundation | Z9: shortfall | AA9: shortfall | AB9: excess | AC9: target | AE9: from target | AF9: from target | AG9: the gap
A10: 1 | B10: Abington | C10: 2103633000 | D10: =D$5*C10 -> 7269835.844 | E10: 574456000 | F10: =E10*F$5 -> 8605888.483 | G10: =ROUND(D10+F10,0) -> 15875724 | H10: =(SUMIF(town1755,A10,found1755)/2) -> 25051373.09 | I10: =ROUND(H10*maxloc,0) -> 20667383 | J10: =MIN(G10,I10) -> 15875724 | K10: =IF(H10>0, ROUND((J10*100/H10), 2), 0) -> 63.37 | L10: =G10/H10 -> 0.6337267001 | M10: 14929120 | N10: =IF($N$5=1,AI10,IF($N$5=2,AJ10,IF($N$5=3,AK10,IF($N$5=4,AL10,IF($N$5=5,AM10,IF($N$5=6,AN10,IF($N$5=7,AO10,0))))))) -> 0.0377 | O10: =ROUND(M10*(1+N10),0) -> 15491948 | P10: =O10*100/H10 -> 61.84071406 | Q10: =IF(K10>P10,K10-P10,0) -> 1.529285939 | R10: =IF(AND(Q10>$S$4,Q10<=$S$5),$R$4,IF(Q10>$S$5,$R$5,0)) -> 0 | S10: =ROUND(R10*M10,0) -> 0 | T10: =MAX(O10-J10,0) -> 0 | U10: =MAX(T10*(U$5),0) -> 0 | V10: =IF(AND(L10>1.75,$V$5=1),MAX(J10-(O10+S10),0),0) -> 0 | W10: =MIN(H10*parameters!C$22,ROUND(O10+S10-U10+V10,0)) -> 15491948 | X10: =W10*100/H10 -> 61.84071406 | Z10: =IF(P10<K10, O10-J10, 0) -> -383776 | AA10: =MAX(J10-(O10+S10+V10),0) -> 383776 | AB10: =IF(P10>K10, W10-J10,0) -> 0 | AC10: =X10-K10 -> -1.529285939 | AE10: =(O10-J10)/J10 -> -0.02417376367 | AF10: =P10-K10 -> -1.529285939 | AG10: =IF(AE10<$AG$5, $AG$6*(M10), IF(AND(AE10<$AG$4, AE10>$AG$5), $AG$7*(M10), 0)) -> 0 | AI10: 0.0377
A11: 2 | B11: Acton | C11: 4597929200 | D11: 15889744.32 | E11: 1643014000 | F11: =E11*F$5 -> 24613887.33 | G11: 40503632 | H11: =(SUMIF(town1755,A11,found1755)/2) -> 49163505.5 | I11: 40559892 | J11: =MIN(G11,I11) -> 40503632 | K11: =IF(H11>0, ROUND((J11*100/H11), 2), 0) -> 82.39 | L11: =G11/H11 -> 0.8238556545 | M11: 36476566 | N11: =IF($N$5=1,AI11,IF($N$5=2,AJ11,IF($N$5=3,AK11,IF($N$5=4,AL11,IF($N$5=5,AM11,IF($N$5=6,AN11,IF($N$5=7,AO11,0))))))) -> 0.037 | O11: =ROUND(M11*(1+N11),0) -> 37826199 | P11: =O11*100/H11 -> 76.93958886 | Q11: =IF(K11>P11,K11-P11,0) -> 5.450411138 | R11: =IF(AND(Q11>$S$4,Q11<=$S$5),$R$4,IF(Q11>$S$5,$R$5,0)) -> 0.01 | S11: =ROUND(R11*M11,0) -> 364766 | T11: =MAX(O11-J11,0) -> 0 | U11: 0 | V11: =IF(AND(L11>1.75,$V$5=1),MAX(J11-(O11+S11),0),0) -> 0 | W11: =MIN(H11*parameters!C$22,ROUND(O11+S11-U11+V11,0)) -> 38190965 | X11: =W11*100/H11 -> 77.68153351 | Z11: =IF(P11<K11, O11-J11, 0) -> -2677433 | AA11: =MAX(J11-(O11+S11+V11),0) -> 2312667 | AB11: =IF(P11>K11, W11-J11,0) -> 0 | AC11: =X11-K11 -> -4.708466485 | AE11: -0.06610352869 | AF11: =P11-K11 -> -5.450411138 | AG11: 364765.66 | AI11: 0.037
A12: 3 | B12: Acushnet | C12: 1214098100 | D12: 4195738.461 | E12: 319854000 | F12: =E12*F$5 -> 4791712.254 | G12: 8987451 | H12: 15766839.26 | I12: 13007642 | J12: 8987451 | K12: 57 | L12: 0.5700223649 | M12: 8473423 | N12: 0.0379 | O12: 8794566 | P12: 55.77887779 | Q12: 1.221122212 | R12: 0 | S12: 0 | T12: 0 | U12: 0 | V12: 0 | W12: =MIN(H12*parameters!C$22,ROUND(O12+S12-U12+V12,0)) -> 8794566 | X12: 55.77887779 | Z12: -192885 | AA12: 192885 | AB12: 0 | AC12: -1.221122212 | AE12: -0.02146159128 | AF12: -1.221122212 | AG12: 0 | AI12: 0.0379
A13: 4 | B13: Adams | C13: 525826800 | D13: 1817177.482 | E13: 185441000 | F13: 2778079.724 | G13: 4595257 | H13: 13698146.77 | I13: 11300971 | J13: 4595257 | K13: 33.55 | L13: 0.3354655982 | M13: 4445610 | N13: 0.0369 | O13: 4609653 | P13: 33.65165433 | Q13: 0 | R13: 0 | S13: 0 | T13: 14396 | U13: 14396 | V13: 0 | W13: =MIN(H13*parameters!C$22,ROUND(O13+S13-U13+V13,0)) -> 4595257 | X13: 33.54655982 | Z13: 0 | AA13: 0 | AB13: 0 | AC13: -0.003440182496 | AE13: 0.003132795402 | AF13: 0.1016543258 | AG13: 0 | AI13: 0.0369
A14: 5 | B14: Agawam | C14: 3067519900 | D14: 10600882.44 | E14: 824403000 | F14: 12350328.45 | G14: 22951211 | H14: 42227451.05 | I14: 34837647 | J14: 22951211 | K14: 54.35 | L14: 0.543514004 | M14: 22474431 | N14: 0.0367 | O14: 23299243 | P14: 55.17558465 | Q14: 0 | R14: 0 | S14: 0 | T14: 348032 | U14: 348032 | V14: 0 | W14: =MIN(H14*parameters!C$22,ROUND(O14+S14-U14+V14,0)) -> 22951211 | X14: 54.3514004 | Z14: 0 | AA14: 0 | AB14: 0 | AC14: 0.00140040339 | AE14: 0.01516399287 | AF14: 0.8255846517 | AG14: 0 | AI14: 0.0367
A15: 6 | B15: Alford | C15: 279820300 | D15: 967016.4173 | E15: 14085000 | F15: 211006.4814 | G15: 1178023 | H15: 263079.9496 | I15: 217041 | J15: 217041 | K15: 82.5 | L15: 4.477813691 | M15: 185505 | N15: 0.051 | O15: 194966 | P15: 74.10903048 | Q15: 8.390969525 | R15: 0.02 | S15: 3710 | T15: 0 | U15: 0 | V15: 18365 | W15: =MIN(H15*parameters!C$22,ROUND(O15+S15-U15+V15,0)) -> 217041 | X15: 82.50001581 | Z15: -22075 | AA15: 0 | AB15: 0 | AC15: 1.581480632e-05 | AE15: -0.1017088937 | AF15: -8.390969525 | AG15: 3710.1 | AI15: 0.051
A16: 7 | B16: Amesbury | C16: 2273556700 | D16: 7857066.319 | E16: 613383000 | F16: 9189051.373 | G16: 17046118 | H16: 24545919.81 | I16: 20250384 | J16: 17046118 | K16: 69.45 | L16: 0.6944583105 | M16: 15968764 | N16: 0.0442 | O16: 16674583 | P16: 67.93219863 | Q16: 1.517801373 | R16: 0 | S16: 0 | T16: 0 | U16: 0 | V16: 0 | W16: =MIN(H16*parameters!C$22,ROUND(O16+S16-U16+V16,0)) -> 16674583 | X16: 67.93219863 | Z16: -371535 | AA16: 371535 | AB16: 0 | AC16: -1.517801373 | AE16: -0.02179587165 | AF16: -1.517801373 | AG16: 0 | AI16: 0.0442
A17: 8 | B17: Amherst | C17: 2516974800 | D17: 8698282.267 | E17: 716838000 | F17: 10738904.09 | G17: 19437186 | H17: 26087907.99 | I17: 21522524 | J17: 19437186 | K17: 74.51 | L17: 0.7450649553 | M17: 18587941 | N17: 0.0423 | O17: 19374211 | P17: 74.26510017 | Q17: 0.2448998276 | R17: 0 | S17: 0 | T17: 0 | U17: 0 | V17: 0 | W17: =MIN(H17*parameters!C$22,ROUND(O17+S17-U17+V17,0)) -> 19374211 | X17: 74.26510017 | Z17: -62975 | AA17: 62975 | AB17: 0 | AC17: -0.2448998276 | AE17: -0.003239923721 | AF17: -0.2448998276 | AG17: 0 | AI17: 0.0423
A18: 9 | B18: Andover | C18: 8453211200 | D18: 29213012.81 | E18: 2659092000 | F18: 39835686.66 | G18: 69048699 | H18: 64458360.34 | I18: 53178147 | J18: 53178147 | K18: 82.5 | L18: 1.071214015 | M18: 50404156 | N18: 0.0453 | O18: 52687464 | P18: 81.73875929 | Q18: 0.7612407063 | R18: 0 | S18: 0 | T18: 0 | U18: 0 | V18: 0 | W18: =MIN(H18*parameters!C$22,ROUND(O18+S18-U18+V18,0)) -> 52687464 | X18: 81.73875929 | Z18: -490683 | AA18: 490683 | AB18: 0 | AC18: -0.7612407063 | AE18: -0.009227154906 | AF18: -0.7612407063 | AG18: 0 | AI18: 0.0453
A19: 10 | B19: Arlington | C19: 10614146500 | D19: 36680876.69 | E19: 2537927000 | F19: 38020521.57 | G19: 74701398 | H19: 64501529.08 | I19: 53213761 | J19: 53213761 | K19: 82.5 | L19: 1.158133754 | M19: 47883233 | N19: 0.0351 | O19: 49563934 | P19: 76.84148687 | Q19: 5.658513133 | R19: 0.01 | S19: 478832 | T19: 0 | U19: 0 | V19: 0 | W19: =MIN(H19*parameters!C$22,ROUND(O19+S19-U19+V19,0)) -> 50042766 | X19: 77.58384446 | Z19: -3649827 | AA19: 3170995 | AB19: 0 | AC19: -4.916155538 | AE19: -0.06858802933 | AF19: -5.658513133 | AG19: 478832.33 | AI19: 0.0351
A20: 11 | B20: Ashburnham | C20: 640811300 | D20: 2214546.434 | E20: 219074000 | F20: 3281933.54 | G20: 5496480 | H20: 11691780.07 | I20: 9645719 | J20: 5496480 | K20: 47.01 | L20: 0.4701148984 | M20: 5168787 | N20: 0.0401 | O20: 5376055 | P20: 45.98149271 | Q20: 1.028507293 | R20: 0 | S20: 0 | T20: 0 | U20: 0 | V20: 0 | W20: =MIN(H20*parameters!C$22,ROUND(O20+S20-U20+V20,0)) -> 5376055 | X20: 45.98149271 | Z20: -120425 | AA20: 120425 | AB20: 0 | AC20: -1.028507293 | AE20: -0.02190947661 | AF20: -1.028507293 | AG20: 0 | AI20: 0.0401
A21: 12 | B21: Ashby | C21: 319398200 | D21: 1103791.623 | E21: 99859000 | F21: 1495981.273 | G21: 2599773 | H21: 4394534.43 | I21: 3625491 | J21: 2599773 | K21: 59.16 | L21: 0.5915923613 | M21: 2446298 | N21: 0.0273 | O21: 2513082 | P21: 57.18653569 | Q21: 1.973464314 | R21: 0 | S21: 0 | T21: 0 | U21: 0 | V21: 0 | W21: =MIN(H21*parameters!C$22,ROUND(O21+S21-U21+V21,0)) -> 2513082 | X21: 57.18653569 | Z21: -86691 | AA21: 86691 | AB21: 0 | AC21: -1.973464314 | AE21: -0.03334560364 | AF21: -1.973464314 | AG21: 0 | AI21: 0.0273
A22: 13 | B22: Ashfield | C22: 248466800 | D22: 858663.4878 | E22: 45637000 | F22: 683684.9692 | G22: 1542348 | H22: 2072886.805 | I22: 1710132 | J22: 1542348 | K22: 74.41 | L22: 0.744057995 | M22: 1533624 | N22: 0.0376 | O22: 1591288 | P22: 76.76675814 | Q22: 0 | R22: 0 | S22: 0 | T22: 48940 | U22: 48940 | V22: 0 | W22: =MIN(H22*parameters!C$22,ROUND(O22+S22-U22+V22,0)) -> 1542348 | X22: 74.4057995 | Z22: 0 | AA22: 0 | AB22: 0 | AC22: -0.004200497819 | AE22: 0.03173084155 | AF22: 2.356758136 | AG22: 0 | AI22: 0.0376
A23: 14 | B23: Ashland | C23: 2809780000 | D23: 9710172.525 | E23: 842937000 | F23: 12627985.12 | G23: 22338158 | H23: 30202381.51 | I23: 24916965 | J23: 22338158 | K23: 73.96 | L23: 0.7396157813 | M23: 21145776 | N23: 0.0511 | O23: 22226325 | P23: 73.59129938 | Q23: 0.3687006165 | R23: 0 | S23: 0 | T23: 0 | U23: 0 | V23: 0 | W23: =MIN(H23*parameters!C$22,ROUND(O23+S23-U23+V23,0)) -> 22226325 | X23: 73.59129938 | Z23: -111833 | AA23: 111833 | AB23: 0 | AC23: -0.3687006165 | AE23: -0.005006366237 | AF23: -0.3687006165 | AG23: 0 | AI23: 0.0511
A24: 15 | B24: Athol | C24: 730647700 | D24: 2525007.375 | E24: 228535000 | F24: 3423668.174 | G24: 5948676 | H24: 20735280.41 | I24: 17106606 | J24: 5948676 | K24: 28.69 | L24: 0.2868866918 | M24: 2991637 | N24: 0.0386 | O24: 3107114 | P24: 14.98467317 | Q24: 13.70532683 | R24: 0.02 | S24: 59833 | T24: 0 | U24: 0 | V24: 0 | W24: =MIN(H24*parameters!C$22,ROUND(O24+S24-U24+V24,0)) -> 3166947 | X24: 15.27322967 | Z24: -2841562 | AA24: 2781729 | AB24: 0 | AC24: -13.41677033 | AE24: -0.4776797392 | AF24: -13.70532683 | AG24: 59832.74 | AI24: 0.0386
A25: 16 | B25: Attleboro | C25: 4710804300 | D25: 16279823.5 | E25: 1412024000 | F25: 21153440.96 | G25: 37433264 | H25: 78224082.02 | I25: 64534868 | J25: 37433264 | K25: 47.85 | L25: 0.4785388724 | M25: 35463531 | N25: 0.0393 | O25: 36857248 | P25: 47.11752065 | Q25: 0.7324793477 | R25: 0 | S25: 0 | T25: 0 | U25: 0 | V25: 0 | W25: =MIN(H25*parameters!C$22,ROUND(O25+S25-U25+V25,0)) -> 36857248 | X25: 47.11752065 | Z25: -576016 | AA25: 576016 | AB25: 0 | AC25: -0.7324793477 | AE25: -0.01538781123 | AF25: -0.7324793477 | AG25: 0 | AI25: 0.0393
A26: 17 | B26: Auburn | C26: 2175990900 | D26: 7519893.747 | E26: 558984000 | F26: 8374103.443 | G26: 15893997 | H26: 28213630.36 | I26: 23276245 | J26: 15893997 | K26: 56.33 | L26: 0.5633446245 | M26: 15400748 | N26: 0.0431 | O26: 16064520 | P26: 56.93886181 | Q26: 0 | R26: 0 | S26: 0 | T26: 170523 | U26: 170523 | V26: 0 | W26: =MIN(H26*parameters!C$22,ROUND(O26+S26-U26+V26,0)) -> 15893997 | X26: 56.33446245 | Z26: 0 | AA26: 0 | AB26: 0 | AC26: 0.00446245233 | AE26: 0.0107287676 | AF26: 0.6088618077 | AG26: 0 | AI26: 0.0431
A27: 18 | B27: Avon | C27: 855860900 | D27: 2957725.159 | E27: 153125000 | F27: 2293955.802 | G27: 5251681 | H27: 7700896.636 | I27: 6353240 | J27: 5251681 | K27: 68.2 | L27: 0.6819570822 | M27: 5132410 | N27: 0.0489 | O27: 5383385 | P27: 69.90595063 | Q27: 0 | R27: 0 | S27: 0 | T27: 131704 | U27: 131704 | V27: 0 | W27: =MIN(H27*parameters!C$22,ROUND(O27+S27-U27+V27,0)) -> 5251681 | X27: 68.19570822 | Z27: 0 | AA27: 0 | AB27: 0 | AC27: -0.004291780791 | AE27: 0.02507844631 | AF27: 1.705950626 | AG27: 0 | AI27: 0.0489
A28: 19 | B28: Ayer | C28: 1219304900 | D28: 4213732.37 | E28: 270599000 | F28: 4053826.259 | G28: 8267559 | H28: 11701307.72 | I28: 9653579 | J28: 8267559 | K28: 70.66 | L28: 0.7065500028 | M28: 7779957 | N28: 0.0618 | O28: 8260758 | P28: 70.59687858 | Q28: 0.06312142436 | R28: 0 | S28: 0 | T28: 0 | U28: 0 | V28: 0 | W28: =MIN(H28*parameters!C$22,ROUND(O28+S28-U28+V28,0)) -> 8260758 | X28: 70.59687858 | Z28: -6801 | AA28: 6801 | AB28: 0 | AC28: -0.06312142436 | AE28: -0.0008226128172 | AF28: -0.06312142436 | AG28: 0 | AI28: 0.0618
A29: 20 | B29: Barnstable | C29: 14932044600 | D29: 51602876.1 | E29: 1795132000 | F29: 26892757.33 | G29: 78495633 | H29: 66702016.72 | I29: 55029164 | J29: 55029164 | K29: 82.5 | L29: 1.17681049 | M29: 52318726 | N29: 0.0295 | O29: 53862128 | P29: 80.75037405 | Q29: 1.749625948 | R29: 0 | S29: 0 | T29: 0 | U29: 0 | V29: 0 | W29: =MIN(H29*parameters!C$22,ROUND(O29+S29-U29+V29,0)) -> 53862128 | X29: 80.75037405 | Z29: -1167036 | AA29: 1167036 | AB29: 0 | AC29: -1.749625948 | AE29: -0.02120759094 | AF29: -1.749625948 | AG29: 0 | AI29: 0.0295
A30: 21 | B30: Barre | C30: 458372300 | D30: 1584064.985 | E30: 139052000 | F30: 2083129.091 | G30: 3667194 | H30: 9417932.394 | I30: 7769794 | J30: 3667194 | K30: 38.94 | L30: 0.3893841925 | M30: 3562536 | N30: 0.0362 | O30: 3691500 | P30: 39.19650137 | Q30: 0 | R30: 0 | S30: 0 | T30: 24306 | U30: 24306 | V30: 0 | W30: =MIN(H30*parameters!C$22,ROUND(O30+S30-U30+V30,0)) -> 3667194 | X30: 38.93841925 | Z30: 0 | AA30: 0 | AB30: 0 | AC30: -0.001580752535 | AE30: 0.00662795587 | AF30: 0.2565013719 | AG30: 0 | AI30: 0.0362
A31: 22 | B31: Becket | C31: 523623000 | D31: 1809561.485 | E31: 45016000 | F31: 674381.8081 | G31: 2483943 | H31: 2583367.061 | I31: 2131278 | J31: 2131278 | K31: 82.5 | L31: 0.9615137691 | M31: 1846504 | N31: 0.0365 | O31: 1913901 | P31: 74.08552307 | Q31: 8.414476934 | R31: 0.02 | S31: 36930 | T31: 0 | U31: 0 | V31: 0 | W31: =MIN(H31*parameters!C$22,ROUND(O31+S31-U31+V31,0)) -> 1950831 | X31: 75.51505279 | Z31: -217377 | AA31: 180447 | AB31: 0 | AC31: -6.984947211 | AE31: -0.1019937333 | AF31: -8.414476934 | AG31: 36930.08 | AI31: 0.0365
A32: 23 | B32: Bedford | C32: 3957585000 | D32: 13676812.11 | E32: 912941000 | F32: 13676710.55 | G32: 27353523 | H32: 30105719.43 | I32: 24837219 | J32: 24837219 | K32: 82.5 | L32: 0.9085822732 | M32: 23277416 | N32: 0.0504 | O32: 24450598 | P32: 81.21579042 | Q32: 1.28420958 | R32: 0 | S32: 0 | T32: 0 | U32: 0 | V32: 0 | W32: =MIN(H32*parameters!C$22,ROUND(O32+S32-U32+V32,0)) -> 24450598 | X32: 81.21579042 | Z32: -386621 | AA32: 386621 | AB32: 0 | AC32: -1.28420958 | AE32: -0.01556619523 | AF32: -1.28420958 | AG32: 0 | AI32: 0.0504
A33: 24 | B33: Belchertown | C33: 1554339300 | D33: 5371560.323 | E33: 518919000 | F33: 7773892.249 | G33: 13145453 | H33: 26379113.89 | I33: 21762769 | J33: 13145453 | K33: 49.83 | L33: 0.4983280733 | M33: 12431252 | N33: 0.0429 | O33: 12964553 | P33: 49.14703752 | Q33: 0.6829624791 | R33: 0 | S33: 0 | T33: 0 | U33: 0 | V33: 0 | W33: =MIN(H33*parameters!C$22,ROUND(O33+S33-U33+V33,0)) -> 12964553 | X33: 49.14703752 | Z33: -180900 | AA33: 180900 | AB33: 0 | AC33: -0.6829624791 | AE33: -0.01376141241 | AF33: -0.6829624791 | AG33: 0 | AI33: 0.0429
A34: 25 | B34: Bellingham | C34: 2504502600 | D34: 8655180.24 | E34: 591395000 | F34: 8859650.555 | G34: 17514831 | H34: 25985218.45 | I34: 21437805 | J34: 17514831 | K34: 67.4 | L34: 0.6740305467 | M34: 16731036 | N34: 0.0414 | O34: 17423701 | P34: 67.05235529 | Q34: 0.3476447114 | R34: 0 | S34: 0 | T34: 0 | U34: 0 | V34: 0 | W34: =MIN(H34*parameters!C$22,ROUND(O34+S34-U34+V34,0)) -> 17423701 | X34: 67.05235529 | Z34: -91130 | AA34: 91130 | AB34: 0 | AC34: -0.3476447114 | AE34: -0.005203019087 | AF34: -0.3476447114 | AG34: 0 | AI34: 0.0414
A35: 26 | B35: Belmont | C35: 7850565400 | D35: 27130360.54 | E35: 2154400000 | F35: 32274928.19 | G35: =ROUND(D35+F35,0) -> 59405289 | H35: =(SUMIF(town1755,A35,found1755)/2) -> 48372294.53 | I35: 39907143 | J35: 39907143 | K35: 82.5 | L35: =G35/H35 -> 1.228084993 | M35: 37054551 | N35: 0.0365 | O35: 38407042 | P35: 79.39884261 | Q35: =IF(K35>P35,K35-P35,0) -> 3.101157392 | R35: =IF(AND(Q35>$S$4,Q35<=$S$5),$R$4,IF(Q35>$S$5,$R$5,0)) -> 0.01 | S35: =ROUND(R35*M35,0) -> 370546 | T35: 0 | U35: 0 | V35: 0 | W35: =MIN(H35*parameters!C$22,ROUND(O35+S35-U35+V35,0)) -> 38777588 | X35: 80.16487201 | Z35: -1500101 | AA35: 1129555 | AB35: 0 | AC35: -2.335127987 | AE35: -0.03758978687 | AF35: -3.101157392 | AG35: 0 | AI35: 0.0365
A36: 27 | B36: Berkley | C36: 880793800 | D36: 3043889.471 | E36: 247403000 | F36: 3706328.471 | G36: 6750218 | H36: 12411584.72 | I36: 10239557 | J36: 6750218 | K36: 54.39 | L36: 0.5438643133 | M36: 6216022 | N36: 0.0393 | O36: 6460312 | P36: 52.05066191 | Q36: 2.339338091 | R36: 0 | S36: 0 | T36: 0 | U36: 0 | V36: 0 | W36: =MIN(H36*parameters!C$22,ROUND(O36+S36-U36+V36,0)) -> 6460312 | X36: 52.05066191 | Z36: -289906 | AA36: 289906 | AB36: 0 | AC36: -2.339338091 | AE36: -0.04294764999 | AF36: -2.339338091 | AG36: 0 | AI36: 0.0393
A37: 28 | B37: Berlin | C37: 642333300 | D37: 2219806.234 | E37: 148937000 | F37: 2231215.642 | G37: 4451022 | H37: 3951734.651 | I37: 3260181 | J37: 3260181 | K37: 82.5 | L37: 1.126346375 | M37: 3299575 | N37: 0.0524 | O37: 3472473 | P37: 87.87211962 | Q37: 0 | R37: 0 | S37: 0 | T37: 212292 | U37: 212292 | V37: 0 | W37: =MIN(H37*parameters!C$22,ROUND(O37+S37-U37+V37,0)) -> 3260181 | X37: 82.49999779 | Z37: 0 | AA37: 0 | AB37: 0 | AC37: -2.210913436e-06 | AE37: 0.06511663003 | AF37: 5.372119622 | AG37: 0 | AI37: 0.0524
A38: 29 | B38: Bernardston | C38: 216624000 | D38: 748619.6119 | E38: 60442000 | F38: 905477.7245 | G38: 1654097 | H38: 3098025.882 | I38: 2555871 | J38: 1654097 | K38: 53.39 | L38: 0.533919684 | M38: 1669048 | N38: 0.0366 | O38: 1730135 | P38: 55.84637011 | Q38: 0 | R38: 0 | S38: 0 | T38: 76038 | U38: 76038 | V38: 0 | W38: =MIN(H38*parameters!C$22,ROUND(O38+S38-U38+V38,0)) -> 1654097 | X38: 53.3919684 | Z38: 0 | AA38: 0 | AB38: 0 | AC38: 0.001968403727 | AE38: 0.04596949272 | AF38: 2.456370107 | AG38: 0 | AI38: 0.0366
A39: 30 | B39: Beverly | C39: 6939374700 | D39: 23981424.01 | E39: 1799695000 | F39: 26961115.34 | G39: 50942539 | H39: 51404886.16 | I39: 42409031 | J39: 42409031 | K39: 82.5 | L39: 0.9910057741 | M39: 40065826 | N39: 0.0428 | O39: 41780643 | P39: 81.2775713 | Q39: 1.222428699 | R39: 0 | S39: 0 | T39: 0 | U39: 0 | V39: 0 | W39: =MIN(H39*parameters!C$22,ROUND(O39+S39-U39+V39,0)) -> 41780643 | X39: 81.2775713 | Z39: -628388 | AA39: 628388 | AB39: 0 | AC39: -1.222428699 | AE39: -0.01481731568 | AF39: -1.222428699 | AG39: 0 | AI39: 0.0428
A40: 31 | B40: Billerica | C40: 6791697200 | D40: 23471073.02 | E40: 1577769000 | F40: 23636456.17 | G40: 47107529 | H40: 61311406.54 | I40: 50581910 | J40: 47107529 | K40: 76.83 | L40: 0.7683322184 | M40: 44462670 | N40: 0.0459 | O40: 46503507 | P40: 75.84805116 | Q40: 0.9819488393 | R40: 0 | S40: 0 | T40: 0 | U40: 0 | V40: 0 | W40: =MIN(H40*parameters!C$22,ROUND(O40+S40-U40+V40,0)) -> 46503507 | X40: 75.84805116 | Z40: -604022 | AA40: 604022 | AB40: 0 | AC40: -0.9819488393 | AE40: -0.01282219664 | AF40: -0.9819488393 | AG40: 0 | AI40: 0.0459
A41: 32 | B41: Blackstone | C41: 972102100 | D41: 3359437.074 | E41: 285738000 | F41: 4280622.647 | G41: 7640060 | H41: 15358077.82 | I41: 12670414 | J41: 7640060 | K41: 49.75 | L41: 0.4974619929 | M41: 7170158 | N41: 0.0419 | O41: 7470588 | P41: 48.64272786 | Q41: 1.107272137 | R41: 0 | S41: 0 | T41: 0 | U41: 0 | V41: 0 | W41: =MIN(H41*parameters!C$22,ROUND(O41+S41-U41+V41,0)) -> 7470588 | X41: 48.64272786 | Z41: -169472 | AA41: 169472 | AB41: 0 | AC41: -1.107272137 | AE41: -0.02218202475 | AF41: -1.107272137 | AG41: 0 | AI41: 0.0419
A42: 33 | B42: Blandford | C42: 174764000 | D42: 603957.8156 | E42: 37164000 | F42: 556751.4998 | G42: 1160709 | H42: 1382696.277 | I42: 1140724 | J42: 1140724 | K42: 82.5 | L42: 0.8394533341 | M42: 1054663 | N42: 0.0286 | O42: 1084826 | P42: 78.45728797 | Q42: 4.042712035 | R42: 0.01 | S42: 10547 | T42: 0 | U42: 0 | V42: 0 | W42: =MIN(H42*parameters!C$22,ROUND(O42+S42-U42+V42,0)) -> 1095373 | X42: 79.22007298 | Z42: -55898 | AA42: 45351 | AB42: 0 | AC42: -3.27992702 | AE42: -0.04900221263 | AF42: -4.042712035 | AG42: 0 | AI42: 0.0286
A43: 34 | B43: Bolton | C43: 1087848200 | D43: 3759438 | E43: 386836000 | F43: 5795165.299 | G43: 9554603 | H43: 10994872.8 | I43: 9070770 | J43: 9070770 | K43: 82.5 | L43: 0.8690053241 | M43: 8585385 | N43: 0.0419 | O43: 8945113 | P43: 81.3571304 | Q43: 1.142869605 | R43: 0 | S43: 0 | T43: 0 | U43: 0 | V43: 0 | W43: =MIN(H43*parameters!C$22,ROUND(O43+S43-U43+V43,0)) -> 8945113 | X43: 81.3571304 | Z43: -125657 | AA43: 125657 | AB43: 0 | AC43: -1.142869605 | AE43: -0.01385295846 | AF43: -1.142869605 | AG43: 0 | AI43: 0.0419
A44: 35 | B44: Boston | C44: 179793040700 | D44: 621337415.7 | E44: 30176018000 | F44: 452064989.8 | G44: 1073402406 | H44: 910864776.4 | I44: 751463440 | J44: 751463440 | K44: 82.5 | L44: 1.178443205 | M44: 711149680 | N44: 0.0545 | O44: 749907338 | P44: 82.32916207 | Q44: 0.1708379268 | R44: 0 | S44: 0 | T44: 0 | U44: 0 | V44: 0 | W44: =MIN(H44*parameters!C$22,ROUND(O44+S44-U44+V44,0)) -> 749907338 | X44: 82.32916207 | Z44: -1556102 | AA44: 1556102 | AB44: 0 | AC44: -0.1708379268 | AE44: -0.002070762085 | AF44: -0.1708379268 | AG44: 0 | AI44: 0.0545
A45: 36 | B45: Bourne | C45: 4814391000 | D45: 16637803.39 | E45: 690854000 | F45: 10349639.45 | G45: 26987443 | H45: 24770953.04 | I45: 20436036 | J45: 20436036 | K45: 82.5 | L45: 1.089479398 | M45: 19966173 | N45: 0.0391 | O45: 20746850 | P45: 83.75475085 | Q45: 0 | R45: 0 | S45: 0 | T45: 310814 | U45: 310814 | V45: 0 | W45: =MIN(H45*parameters!C$22,ROUND(O45+S45-U45+V45,0)) -> 20436036 | X45: 82.49999896 | Z45: 0 | AA45: 0 | AB45: 0 | AC45: -1.036621398e-06 | AE45: 0.01520911394 | AF45: 1.254750848 | AG45: 0 | AI45: 0.0391
A46: 37 | B46: Boxborough | C46: 1177906300 | D46: 4070665.102 | E46: 334206000 | F46: 5006718.646 | G46: 9077384 | H46: 9060543.248 | I46: 7474948 | J46: 7474948 | K46: 82.5 | L46: 1.001858691 | M46: 7153749 | N46: 0.0423 | O46: 7456353 | P46: 82.2947675 | Q46: =IF(K46>P46,K46-P46,0) -> 0.2052325038 | R46: 0 | S46: 0 | T46: 0 | U46: 0 | V46: 0 | W46: =MIN(H46*parameters!C$22,ROUND(O46+S46-U46+V46,0)) -> 7456353 | X46: 82.2947675 | Z46: -18595 | AA46: 18595 | AB46: 0 | AC46: -0.2052325038 | AE46: -0.002487642723 | AF46: -0.2052325038 | AG46: 0 | AI46: 0.0423
A47: 38 | B47: Boxford | C47: 1868910500 | D47: 6458670.568 | E47: 709595000 | F47: 10630397.17 | G47: 17089068 | H47: 14850412.41 | I47: 12251590 | J47: 12251590 | K47: 82.5 | L47: 1.150747032 | M47: 11739011 | N47: 0.0413 | O47: 12223832 | P47: 82.31308102 | Q47: 0.1869189839 | R47: 0 | S47: 0 | T47: 0 | U47: 0 | V47: 0 | W47: =MIN(H47*parameters!C$22,ROUND(O47+S47-U47+V47,0)) -> 12223832 | X47: 82.31308102 | Z47: -27758 | AA47: 27758 | AB47: 0 | AC47: -0.1869189839 | AE47: -0.00226566511 | AF47: -0.1869189839 | AG47: 0 | AI47: 0.0413
A48: 39 | B48: Boylston | C48: 766982300 | D48: 2650574.229 | E48: 250318000 | F48: 3749997.899 | G48: 6400572 | H48: 6807084.831 | I48: 5615845 | J48: 5615845 | K48: 82.5 | L48: 0.9402809219 | M48: 5190846 | N48: 0.0527 | O48: 5464404 | P48: 80.27524463 | Q48: 2.224755374 | R48: 0 | S48: 0 | T48: 0 | U48: 0 | V48: 0 | W48: =MIN(H48*parameters!C$22,ROUND(O48+S48-U48+V48,0)) -> 5464404 | X48: 80.27524463 | Z48: -151441 | AA48: 151441 | AB48: 0 | AC48: -2.224755374 | AE48: -0.0269667343 | AF48: -2.224755374 | AG48: 0 | AI48: 0.0527
A49: 40 | B49: Braintree | C49: 7187550000 | D49: 24839080.12 | E49: 1551692000 | F49: 23245798.31 | G49: 48084878 | H49: 65765321.71 | I49: 54256390 | J49: 48084878 | K49: 73.12 | L49: 0.7311585613 | M49: 44631771 | N49: 0.0472 | O49: 46738391 | P49: 71.06844426 | Q49: 2.051555739 | R49: 0 | S49: 0 | T49: 0 | U49: 0 | V49: 0 | W49: =MIN(H49*parameters!C$22,ROUND(O49+S49-U49+V49,0)) -> 46738391 | X49: 71.06844426 | Z49: -1346487 | AA49: 1346487 | AB49: 0 | AC49: -2.051555739 | AE49: -0.02800229627 | AF49: -2.051555739 | AG49: 0 | AI49: 0.0472
A50: 41 | B50: Brewster | C50: 4100984500 | D50: 14172378.98 | E50: 327643000 | F50: 4908398.764 | G50: 19080778 | H50: 12152382.29 | I50: 10025715 | J50: 10025715 | K50: 82.5 | L50: 1.570126543 | M50: 9492852 | N50: 0.0417 | O50: 9888704 | P50: 81.37255529 | Q50: 1.127444709 | R50: 0 | S50: 0 | T50: 0 | U50: 0 | V50: 0 | W50: =MIN(H50*parameters!C$22,ROUND(O50+S50-U50+V50,0)) -> 9888704 | X50: 81.37255529 | Z50: -137011 | AA50: 137011 | AB50: 0 | AC50: -1.127444709 | AE50: -0.01366595799 | AF50: -1.127444709 | AG50: 0 | AI50: 0.0417
A51: 42 | B51: Bridgewater | C51: 3016111400 | D51: 10423222.48 | E51: 860796000 | F51: 12895529.65 | G51: 23318752 | H51: 36557414.15 | I51: 30159867 | J51: 23318752 | K51: 63.79 | L51: 0.6378665598 | M51: 22052979 | N51: 0.0463 | O51: 23074032 | P51: 63.1172432 | Q51: 0.6727567974 | R51: 0 | S51: 0 | T51: 0 | U51: 0 | V51: 0 | W51: =MIN(H51*parameters!C$22,ROUND(O51+S51-U51+V51,0)) -> 23074032 | X51: 63.1172432 | Z51: -244720 | AA51: 244720 | AB51: 0 | AC51: -0.6727567974 | AE51: -0.0104945582 | AF51: -0.6727567974 | AG51: 0 | AI51: 0.0463
A52: 43 | B52: Brimfield | C52: 439485600 | D52: 1518795.421 | E52: 127410000 | F52: 1908721.036 | G52: 3427516 | H52: 6015755.726 | I52: 4962998 | J52: 3427516 | K52: 56.98 | L52: 0.5697565121 | M52: 3331858 | N52: 0.0345 | O52: 3446807 | P52: 57.2963258 | Q52: 0 | R52: 0 | S52: 0 | T52: 19291 | U52: 19291 | V52: 0 | W52: =MIN(H52*parameters!C$22,ROUND(O52+S52-U52+V52,0)) -> 3427516 | X52: 56.97565121 | Z52: 0 | AA52: 0 | AB52: 0 | AC52: -0.004348791154 | AE52: 0.005628274237 | AF52: 0.3163257987 | AG52: 0 | AI52: 0.0345
A53: 44 | B53: Brockton | C53: 7675101300 | D53: 26523983.29 | E53: 1972261000 | F53: 29546315.51 | G53: 56070299 | H53: 249512309.5 | I53: 205847655 | J53: 56070299 | K53: 22.47 | L53: 0.2247195704 | M53: 46860681 | N53: 0.0441 | O53: 48927237 | P53: 19.60914758 | Q53: 2.86085242 | R53: 0.01 | S53: 468607 | T53: 0 | U53: 0 | V53: 0 | W53: =MIN(H53*parameters!C$22,ROUND(O53+S53-U53+V53,0)) -> 49395844 | X53: 19.79695675 | Z53: -7143062 | AA53: 6674455 | AB53: 0 | AC53: -2.673043249 | AE53: -0.1273947549 | AF53: -2.86085242 | AG53: 937213.62 | AI53: 0.0441
A54: 45 | B54: Brookfield | C54: 276658600 | D54: 956090.0627 | E54: 94919000 | F54: 1421975.45 | G54: 2378066 | H54: 5642001.396 | I54: 4654651 | J54: 2378066 | K54: 42.15 | L54: 0.4214933377 | M54: 2272162 | N54: 0.0577 | O54: 2403266 | P54: 42.59598379 | Q54: 0 | R54: 0 | S54: 0 | T54: 25200 | U54: 25200 | V54: 0 | W54: =MIN(H54*parameters!C$22,ROUND(O54+S54-U54+V54,0)) -> 2378066 | X54: 42.14933377 | Z54: 0 | AA54: 0 | AB54: 0 | AC54: -0.0006662263996 | AE54: 0.01059684634 | AF54: 0.4459837871 | AG54: 0 | AI54: 0.0577
A55: 46 | B55: Brookline | C55: 24547879100 | D55: 84833738.29 | E55: 4462915000 | F55: 66858643.3 | G55: 151692382 | H55: 83253781.2 | I55: 68684369 | J55: 68684369 | K55: 82.5 | L55: 1.822047958 | M55: 64824584 | N55: 0.0364 | O55: 67184199 | P55: 80.69807524 | Q55: 1.801924756 | R55: 0 | S55: 0 | T55: 0 | U55: 0 | V55: 1500170 | W55: =MIN(H55*parameters!C$22,ROUND(O55+S55-U55+V55,0)) -> 68684369 | X55: 82.49999941 | Z55: -1500170 | AA55: 0 | AB55: 0 | AC55: -5.933957397e-07 | AE55: -0.02184150516 | AF55: -1.801924756 | AG55: 0 | AI55: 0.0364
A56: 47 | B56: Buckland | C56: 216985500 | D56: 749868.9009 | E56: 39399460.5 | F56: 590240.7901 | G56: 1340110 | H56: 2458108.219 | I56: 2027939 | J56: 1340110 | K56: 54.52 | L56: 0.5451794147 | M56: 1371295 | N56: 0.0329 | O56: 1416411 | P56: 57.62199521 | Q56: 0 | R56: 0 | S56: 0 | T56: 76301 | U56: 76301 | V56: 0 | W56: =MIN(H56*parameters!C$22,ROUND(O56+S56-U56+V56,0)) -> 1340110 | X56: 54.51794147 | Z56: 0 | AA56: 0 | AB56: 0 | AC56: -0.00205852522 | AE56: 0.05693637089 | AF56: 3.101995211 | AG56: 0 | AI56: 0.0329
A57: 48 | B57: Burlington | C57: 7011898700 | D57: 24232055.93 | E57: 1196707000 | F57: 17927790.79 | G57: 42159847 | H57: 41183400.66 | I57: 33976306 | J57: 33976306 | K57: 82.5 | L57: 1.023709706 | M57: 32518139 | N57: 0.0513 | O57: 34186320 | P57: 83.00994927 | Q57: 0 | R57: 0 | S57: 0 | T57: 210014 | U57: 210014 | V57: 0 | W57: =MIN(H57*parameters!C$22,ROUND(O57+S57-U57+V57,0)) -> 33976306 | X57: 82.5000011 | Z57: 0 | AA57: 0 | AB57: 0 | AC57: 1.096880212e-06 | AE57: 0.006181189915 | AF57: 0.5099492717 | AG57: 0 | AI57: 0.0513
A58: 49 | B58: Cambridge | C58: 49449365600 | D58: 170889490 | E58: 6443305000 | F58: 96526738.85 | G58: 267416229 | H58: 95754602.36 | I58: 78997547 | J58: 78997547 | K58: 82.5 | L58: 2.792724552 | M58: 72855305 | N58: 0.0516 | O58: 76614639 | P58: 80.01144291 | Q58: 2.48855709 | R58: 0 | S58: 0 | T58: 0 | U58: 0 | V58: 2382908 | W58: =MIN(H58*parameters!C$22,ROUND(O58+S58-U58+V58,0)) -> 78997547 | X58: 82.50000006 | Z58: -2382908 | AA58: 0 | AB58: 0 | AC58: 5.631378031e-08 | AE58: -0.03016432903 | AF58: -2.48855709 | AG58: 0 | AI58: 0.0516
A59: 50 | B59: Canton | C59: 5111198800 | D59: 17663526.03 | E59: 1313754000 | F59: 19681264.39 | G59: 37344790 | H59: 37440626.04 | I59: 30888516 | J59: 30888516 | K59: 82.5 | L59: 0.9974403195 | M59: 29739599 | N59: 0.0435 | O59: 31033272 | P59: 82.88662686 | Q59: 0 | R59: 0 | S59: 0 | T59: 144756 | U59: 144756 | V59: 0 | W59: =MIN(H59*parameters!C$22,ROUND(O59+S59-U59+V59,0)) -> 30888516 | X59: 82.49999871 | Z59: 0 | AA59: 0 | AB59: 0 | AC59: -1.290398288e-06 | AE59: 0.004686401898 | AF59: 0.3866268601 | AG59: 0 | AI59: 0.0435
A60: 51 | B60: Carlisle | C60: 1544199600 | D60: 5336519.062 | E60: 572602000 | F60: 8578113.828 | G60: 13914633 | H60: 9406433.923 | I60: 7760308 | J60: 7760308 | K60: 82.5 | L60: 1.479267607 | M60: 7472435 | N60: 0.0357 | O60: 7739201 | P60: 82.27561117 | Q60: 0.2243888279 | R60: 0 | S60: 0 | T60: 0 | U60: 0 | V60: 0 | W60: =MIN(H60*parameters!C$22,ROUND(O60+S60-U60+V60,0)) -> 7739201 | X60: 82.27561117 | Z60: -21107 | AA60: 21107 | AB60: 0 | AC60: -0.2243888279 | AE60: -0.002719866273 | AF60: -0.2243888279 | AG60: 0 | AI60: 0.0357
A61: 52 | B61: Carver | C61: 1394846000 | D61: 4820375.725 | E61: 348353000 | F61: 5218653.945 | G61: 10039030 | H61: 18931405.35 | I61: 15618409 | J61: 10039030 | K61: 53.03 | L61: 0.5302844566 | M61: 9471877 | N61: 0.0401 | O61: 9851699 | P61: 52.0389206 | Q61: 0.9910793958 | R61: 0 | S61: 0 | T61: 0 | U61: 0 | V61: 0 | W61: =MIN(H61*parameters!C$22,ROUND(O61+S61-U61+V61,0)) -> 9851699 | X61: 52.0389206 | Z61: -187331 | AA61: 187331 | AB61: 0 | AC61: -0.9910793958 | AE61: -0.01866026897 | AF61: -0.9910793958 | AG61: 0 | AI61: 0.0401
A62: 53 | B62: Charlemont | C62: 142686500 | D62: 493102.8522 | E62: 26057000 | F62: 390358.2454 | G62: 883461 | H62: 1889216.446 | I62: 1558604 | J62: 883461 | K62: 46.76 | L62: 0.4676335536 | M62: 929036 | N62: 0.0518 | O62: 977160 | P62: 51.72303058 | Q62: 0 | R62: 0 | S62: 0 | T62: 93699 | U62: 93699 | V62: 0 | W62: =MIN(H62*parameters!C$22,ROUND(O62+S62-U62+V62,0)) -> 883461 | X62: 46.76335536 | Z62: 0 | AA62: 0 | AB62: 0 | AC62: 0.003355360017 | AE62: 0.1060590111 | AF62: 4.963030585 | AG62: 0 | AI62: 0.0518
A63: 54 | B63: Charlton | C63: 1610444700 | D63: 5565452.056 | E63: 488509000 | F63: 7318321.99 | G63: 12883774 | H63: 24224341.98 | I63: 19985082 | J63: 12883774 | K63: 53.19 | L63: 0.5318523826 | M63: 12147658 | N63: 0.0407 | O63: 12642068 | P63: 52.18745677 | Q63: 1.002543231 | R63: 0 | S63: 0 | T63: 0 | U63: 0 | V63: 0 | W63: =MIN(H63*parameters!C$22,ROUND(O63+S63-U63+V63,0)) -> 12642068 | X63: 52.18745677 | Z63: -241706 | AA63: 241706 | AB63: 0 | AC63: -1.002543231 | AE63: -0.01876049673 | AF63: -1.002543231 | AG63: 0 | AI63: 0.0407
A64: 55 | B64: Chatham | C64: 7374670100 | D64: 25485738.74 | E64: 329994000 | F64: 4943618.944 | G64: 30429358 | H64: 5227261.49 | I64: 4312491 | J64: 4312491 | K64: 82.5 | L64: 5.821281001 | M64: 4410094 | N64: 0.0436 | O64: 4602374 | P64: 88.04560493 | Q64: 0 | R64: 0 | S64: 0 | T64: 289883 | U64: 289883 | V64: 0 | W64: =MIN(H64*parameters!C$22,ROUND(O64+S64-U64+V64,0)) -> 4312491 | X64: 82.50000518 | Z64: 0 | AA64: 0 | AB64: 0 | AC64: 5.179001704e-06 | AE64: 0.06721938666 | AF64: 5.545604927 | AG64: 0 | AI64: 0.0436
A65: 56 | B65: Chelmsford | C65: 5849923100 | D65: 20216444.9 | E65: 1870365000 | F65: 28019818.08 | G65: 48236263 | H65: 56116756.54 | I65: 46296324 | J65: 46296324 | K65: 82.5 | L65: 0.8595696896 | M65: 42772646 | N65: 0.0418 | O65: 44560543 | P65: 79.40683986 | Q65: 3.093160137 | R65: 0.01 | S65: 427726 | T65: 0 | U65: 0 | V65: 0 | W65: =MIN(H65*parameters!C$22,ROUND(O65+S65-U65+V65,0)) -> 44988269 | X65: 80.16904714 | Z65: -1735781 | AA65: 1308055 | AB65: 0 | AC65: -2.330952863 | AE65: -0.03749284716 | AF65: -3.093160137 | AG65: 0 | AI65: 0.0418
A66: 57 | B66: Chelsea | C66: 3534210300 | D66: 12213693.51 | E66: 707032000 | F66: 10592001.03 | G66: 22805695 | H66: 105126558.3 | I66: 86729411 | J66: 22805695 | K66: 21.69 | L66: 0.216935619 | M66: 18073382 | N66: 0.0696 | O66: 19331289 | P66: 18.38858735 | Q66: 3.301412653 | R66: 0.01 | S66: 180734 | T66: 0 | U66: 0 | V66: 0 | W66: =MIN(H66*parameters!C$22,ROUND(O66+S66-U66+V66,0)) -> 19512023 | X66: 18.56050775 | Z66: -3474406 | AA66: 3293672 | AB66: 0 | AC66: -3.129492253 | AE66: -0.1523481744 | AF66: -3.301412653 | AG66: 361467.64 | AI66: 0.0696
A67: 58 | B67: Cheshire | C67: 308072500 | D67: 1064651.725 | E67: 92867000 | F67: 1391234.569 | G67: 2455886 | H67: 5032905.242 | I67: 4152147 | J67: 2455886 | K67: 48.8 | L67: 0.487965873 | M67: 2396476 | N67: 0.0284 | O67: 2464536 | P67: 48.96845622 | Q67: 0 | R67: 0 | S67: 0 | T67: 8650 | U67: 8650 | V67: 0 | W67: =MIN(H67*parameters!C$22,ROUND(O67+S67-U67+V67,0)) -> 2455886 | X67: 48.7965873 | Z67: 0 | AA67: 0 | AB67: 0 | AC67: -0.003412702583 | AE67: 0.003522150458 | AF67: 0.1684562197 | AG67: 0 | AI67: 0.0284
A68: 59 | B68: Chester | C68: 125043400 | D68: 432130.9808 | E68: 30751000 | F68: 460678.7582 | G68: 892810 | H68: 1735296.609 | I68: 1431620 | J68: 892810 | K68: 51.45 | L68: 0.5144999394 | M68: 879049 | N68: 0.0335 | O68: 908497 | P68: 52.35398925 | Q68: 0 | R68: 0 | S68: 0 | T68: 15687 | U68: 15687 | V68: 0 | W68: =MIN(H68*parameters!C$22,ROUND(O68+S68-U68+V68,0)) -> 892810 | X68: 51.44999394 | Z68: 0 | AA68: 0 | AB68: 0 | AC68: -6.064849785e-06 | AE68: 0.01757036772 | AF68: 0.9039892475 | AG68: 0 | AI68: 0.0335
A69: 60 | B69: Chesterfield | C69: 157870800 | D69: 545577.4846 | E69: 27973000 | F69: 419061.7184 | G69: 964639 | H69: 1466491.007 | I69: 1209855 | J69: 964639 | K69: 65.78 | L69: 0.6577871908 | M69: 952325 | N69: 0.0318 | O69: 982609 | P69: 67.00409311 | Q69: 0 | R69: 0 | S69: 0 | T69: 17970 | U69: 17970 | V69: 0 | W69: =MIN(H69*parameters!C$22,ROUND(O69+S69-U69+V69,0)) -> 964639 | X69: 65.77871908 | Z69: 0 | AA69: 0 | AB69: 0 | AC69: -0.001280919629 | AE69: 0.01862873054 | AF69: 1.224093113 | AG69: 0 | AI69: 0.0318
A70: 61 | B70: Chicopee | C70: 3998413400 | D70: 13817908.85 | E70: 1114483000 | F70: 16695998.33 | G70: 30513907 | H70: 99336604.58 | I70: 81952699 | J70: 30513907 | K70: 30.72 | L70: 0.3071768673 | M70: 30063802 | N70: 0.0338 | O70: 31079959 | P70: 31.28751897 | Q70: 0 | R70: 0 | S70: 0 | T70: 566052 | U70: 566052 | V70: 0 | W70: =MIN(H70*parameters!C$22,ROUND(O70+S70-U70+V70,0)) -> 30513907 | X70: 30.71768673 | Z70: 0 | AA70: 0 | AB70: 0 | AC70: -0.002313274119 | AE70: 0.01855062349 | AF70: 0.5675189669 | AG70: 0 | AI70: 0.0338
A71: 62 | B71: Chilmark | C71: 3358805700 | D71: 11607521.88 | E71: 49205000 | F71: 737136.9483 | G71: 12344659 | H71: 1335526.696 | I71: 1101810 | J71: 1101810 | K71: 82.5 | L71: 9.243288836 | M71: 972539 | N71: 0.0474 | O71: 1018637 | P71: 76.27230538 | Q71: 6.227694624 | R71: 0.01 | S71: 9725 | T71: 0 | U71: 0 | V71: 73448 | W71: =MIN(H71*parameters!C$22,ROUND(O71+S71-U71+V71,0)) -> 1101810 | X71: 82.50003562 | Z71: -83173 | AA71: 0 | AB71: 0 | AC71: 3.562235808e-05 | AE71: -0.07548760676 | AF71: -6.227694624 | AG71: 9725.39 | AI71: 0.0474
A72: 63 | B72: Clarksburg | C72: 128418100 | D72: 443793.4309 | E72: 38787000 | F72: 581065.5587 | G72: 1024859 | H72: 2866048.186 | I72: 2364490 | J72: 1024859 | K72: 35.76 | L72: 0.3575861023 | M72: 929159 | N72: 0.0279 | O72: 955083 | P72: 33.32403846 | Q72: 2.435961538 | R72: 0 | S72: 0 | T72: 0 | U72: 0 | V72: 0 | W72: =MIN(H72*parameters!C$22,ROUND(O72+S72-U72+V72,0)) -> 955083 | X72: 33.32403846 | Z72: -69776 | AA72: 69776 | AB72: 0 | AC72: -2.435961538 | AE72: -0.06808351198 | AF72: -2.435961538 | AG72: 9291.59 | AI72: 0.0279
A73: 64 | B73: Clinton | C73: 1385425600 | D73: 4787820.255 | E73: 418699000 | F73: 6272502.858 | G73: 11060323 | H73: 24086138.2 | I73: 19871064 | J73: 11060323 | K73: 45.92 | L73: 0.4591986856 | M73: 10266561 | N73: 0.0393 | O73: 10670037 | P73: 44.29949257 | Q73: 1.620507431 | R73: 0 | S73: 0 | T73: 0 | U73: 0 | V73: 0 | W73: =MIN(H73*parameters!C$22,ROUND(O73+S73-U73+V73,0)) -> 10670037 | X73: 44.29949257 | Z73: -390286 | AA73: 390286 | AB73: 0 | AC73: -1.620507431 | AE73: -0.03528703456 | AF73: -1.620507431 | AG73: 0 | AI73: 0.0393
A74: 65 | B74: Cohasset | C74: 3075090800 | D74: 10627046.32 | E74: 966615000 | F74: 14480797.3 | G74: 25107844 | H74: 15733262.17 | I74: =ROUND(H74*maxloc,0) -> 12979941 | J74: 12979941 | K74: 82.5 | L74: 1.595844761 | M74: 12547509 | N74: 0.0443 | O74: 13103364 | P74: 83.28446995 | Q74: 0 | R74: 0 | S74: 0 | T74: 123423 | U74: =MAX(T74*(U$5),0) -> 123423 | V74: 0 | W74: =MIN(H74*parameters!C$22,ROUND(O74+S74-U74+V74,0)) -> 12979941 | X74: 82.49999818 | Z74: 0 | AA74: 0 | AB74: 0 | AC74: -1.822653729e-06 | AE74: =(O74-J74)/J74 -> 0.009508748923 | AF74: 0.7844699461 | AG74: =IF(AE74<$AG$5, $AG$6*(M74), IF(AND(AE74<$AG$4, AE74>$AG$5), $AG$7*(M74), 0)) -> 0 | AI74: 0.0443
A75: 66 | B75: Colrain | C75: 179350200 | D75: =D$5*C75 -> 619807.0256 | E75: 41772000 | F75: 625783.6522 | G75: =ROUND(D75+F75,0) -> 1245591 | H75: =(SUMIF(town1755,A75,found1755)/2) -> 2255167.48 | I75: 1860513 | J75: =MIN(G75,I75) -> 1245591 | K75: =IF(H75>0, ROUND((J75*100/H75), 2), 0) -> 55.23 | L75: =G75/H75 -> 0.5523274928 | M75: 1275643 | N75: =IF($N$5=1,AI75,IF($N$5=2,AJ75,IF($N$5=3,AK75,IF($N$5=4,AL75,IF($N$5=5,AM75,IF($N$5=6,AN75,IF($N$5=7,AO75,0))))))) -> 0.0362 | O75: =ROUND(M75*(1+N75),0) -> 1321821 | P75: =O75*100/H75 -> 58.61298603 | Q75: =IF(K75>P75,K75-P75,0) -> 0 | R75: =IF(AND(Q75>$S$4,Q75<=$S$5),$R$4,IF(Q75>$S$5,$R$5,0)) -> 0 | S75: =ROUND(R75*M75,0) -> 0 | T75: =MAX(O75-J75,0) -> 76230 | U75: 76230 | V75: =IF(AND(L75>1.75,$V$5=1),MAX(J75-(O75+S75),0),0) -> 0 | W75: =MIN(H75*parameters!C$22,ROUND(O75+S75-U75+V75,0)) -> 1245591 | X75: =W75*100/H75 -> 55.23274928 | Z75: =IF(P75<K75, O75-J75, 0) -> 0 | AA75: =MAX(J75-(O75+S75+V75),0) -> 0 | AB75: =IF(P75>K75, W75-J75,0) -> 0 | AC75: =X75-K75 -> 0.002749280944 | AE75: 0.06119986416 | AF75: =P75-K75 -> 3.382986034 | AG75: 0 | AI75: 0.0362
A76: 67 | B76: Concord | C76: 6572447900 | D76: 22713380.77 | E76: 2291122000 | F76: =E76*F$5 -> 34323151.7 | G76: 57036532 | H76: 32342592.33 | I76: 26682639 | J76: 26682639 | K76: 82.5 | L76: 1.763511453 | M76: 25604289 | N76: 0.0482 | O76: 26838416 | P76: 82.98164764 | Q76: 0 | R76: 0 | S76: 0 | T76: 155777 | U76: 155777 | V76: 0 | W76: =MIN(H76*parameters!C$22,ROUND(O76+S76-U76+V76,0)) -> 26682639 | X76: 82.50000103 | Z76: 0 | AA76: 0 | AB76: 0 | AC76: 1.025148208e-06 | AE76: 0.005838140673 | AF76: 0.4816476366 | AG76: 0 | AI76: 0.0482
A77: 68 | B77: Conway | C77: 270902400 | D77: 936197.5106 | E77: 68131000 | F77: 1020666.14 | G77: 1956864 | H77: 2325939.645 | I77: 1918900 | J77: 1918900 | K77: 82.5 | L77: 0.8413219165 | M77: 1874971 | N77: 0.0442 | O77: 1957845 | P77: 84.17436815 | Q77: 0 | R77: 0 | S77: 0 | T77: 38945 | U77: 38945 | V77: 0 | W77: =MIN(H77*parameters!C$22,ROUND(O77+S77-U77+V77,0)) -> 1918900 | X77: 82.49999109 | Z77: 0 | AA77: 0 | AB77: 0 | AC77: -8.91367803e-06 | AE77: 0.02029548179 | AF77: 1.674368153 | AG77: 0 | AI77: 0.0442
A78: 69 | B78: Cummington | C78: 130242300 | D78: 450097.5888 | E78: 23201000 | F78: 347572.6926 | G78: 797670 | H78: 880535.1379 | I78: 726441 | J78: 726441 | K78: 82.5 | L78: 0.9058922985 | M78: 706211 | N78: 0.0357 | O78: 731423 | P78: 83.06573679 | Q78: 0 | R78: 0 | S78: 0 | T78: 4982 | U78: 4982 | V78: 0 | W78: =MIN(H78*parameters!C$22,ROUND(O78+S78-U78+V78,0)) -> 726441 | X78: 82.49994449 | Z78: 0 | AA78: 0 | AB78: 0 | AC78: -5.550655466e-05 | AE78: 0.006858093087 | AF78: 0.5657367924 | AG78: 0 | AI78: 0.0357
A79: 70 | B79: Dalton | C79: 616299000 | D79: 2129835.652 | E79: 209679000 | F79: 3141187.647 | G79: 5271023 | H79: 10452955.48 | I79: 8623688 | J79: 5271023 | K79: 50.43 | L79: 0.5042614991 | M79: 5141209 | N79: 0.0316 | O79: 5303671 | P79: 50.73848263 | Q79: 0 | R79: 0 | S79: 0 | T79: 32648 | U79: 32648 | V79: 0 | W79: =MIN(H79*parameters!C$22,ROUND(O79+S79-U79+V79,0)) -> 5271023 | X79: 50.42614991 | Z79: 0 | AA79: 0 | AB79: 0 | AC79: -0.003850091216 | AE79: 0.006193864075 | AF79: 0.3084826272 | AG79: 0 | AI79: 0.0316
A80: 71 | B80: Danvers | C80: 5183902300 | D80: 17914778.27 | E80: 1159162000 | F80: 17365331.56 | G80: 35280110 | H80: 39618496.09 | I80: 32685259 | J80: 32685259 | K80: 82.5 | L80: 0.890495942 | M80: 30986688 | N80: 0.0348 | O80: 32065025 | P80: 80.93448304 | Q80: 1.565516963 | R80: 0 | S80: 0 | T80: 0 | U80: 0 | V80: 0 | W80: =MIN(H80*parameters!C$22,ROUND(O80+S80-U80+V80,0)) -> 32065025 | X80: 80.93448304 | Z80: -620234 | AA80: 620234 | AB80: 0 | AC80: -1.565516963 | AE80: -0.01897595488 | AF80: -1.565516963 | AG80: 0 | AI80: 0.0348
A81: 72 | B81: Dartmouth | C81: 5885151300 | D81: 20338188.21 | E81: 1186773000 | F81: 17778970.18 | G81: 38117158 | H81: 44762493.58 | I81: 36929057 | J81: 36929057 | K81: 82.5 | L81: 0.8515423283 | M81: 35807659 | N81: 0.0367 | O81: 37121800 | P81: 82.93058995 | Q81: 0 | R81: 0 | S81: 0 | T81: 192743 | U81: 192743 | V81: 0 | W81: =MIN(H81*parameters!C$22,ROUND(O81+S81-U81+V81,0)) -> 36929057 | X81: 82.49999955 | Z81: 0 | AA81: 0 | AB81: 0 | AC81: -4.503950777e-07 | AE81: 0.0052192776 | AF81: 0.4305899493 | AG81: 0 | AI81: 0.0367
A82: 73 | B82: Dedham | C82: 5319862700 | D82: 18384636.74 | E82: 1400955000 | F82: 20987616.98 | G82: 39372254 | H82: 32192134.95 | I82: 26558511 | J82: 26558511 | K82: 82.5 | L82: 1.223039542 | M82: 24653780 | N82: 0.0371 | O82: 25568435 | P82: 79.42447755 | Q82: 3.075522449 | R82: 0.01 | S82: 246538 | T82: 0 | U82: 0 | V82: 0 | W82: =MIN(H82*parameters!C$22,ROUND(O82+S82-U82+V82,0)) -> 25814973 | X82: 80.19031057 | Z82: -990076 | AA82: 743538 | AB82: 0 | AC82: -2.309689427 | AE82: -0.03727904776 | AF82: -3.075522449 | AG82: 0 | AI82: 0.0371
A83: 74 | B83: Deerfield | C83: 711485200 | D83: 2458784.688 | E83: 202027000 | F83: 3026553.526 | G83: 5485338 | H83: 6668329.174 | I83: 5501372 | J83: 5485338 | K83: 82.26 | L83: 0.8225955643 | M83: 5167067 | N83: 0.035 | O83: 5347914 | P83: 80.19871036 | Q83: 2.061289641 | R83: 0 | S83: 0 | T83: 0 | U83: 0 | V83: 0 | W83: =MIN(H83*parameters!C$22,ROUND(O83+S83-U83+V83,0)) -> 5347914 | X83: 80.19871036 | Z83: -137424 | AA83: 137424 | AB83: 0 | AC83: -2.061289641 | AE83: -0.02505296848 | AF83: -2.061289641 | AG83: 0 | AI83: 0.035
A84: 75 | B84: Dennis | C84: 7229652400 | D84: 24984579.61 | E84: 469358000 | F84: 7031422.087 | G84: 32016002 | H84: 13857836.33 | I84: 11432715 | J84: 11432715 | K84: 82.5 | L84: 2.310317515 | M84: 11282312 | N84: 0.0363 | O84: 11691860 | P84: 84.37002516 | Q84: 0 | R84: 0 | S84: 0 | T84: 259145 | U84: 259145 | V84: 0 | W84: =MIN(H84*parameters!C$22,ROUND(O84+S84-U84+V84,0)) -> 11432715 | X84: 82.50000019 | Z84: 0 | AA84: 0 | AB84: 0 | AC84: 1.857645771e-07 | AE84: 0.02266696931 | AF84: 1.870025158 | AG84: 0 | AI84: 0.0363
A85: 76 | B85: Dighton | C85: 1019183000 | D85: 3522141.507 | E85: 259884000 | F85: 3893305.532 | G85: 7415447 | H85: 15017585.29 | I85: 12389508 | J85: 7415447 | K85: 49.38 | L85: 0.4937842439 | M85: 6820486 | N85: 0.0534 | O85: 7184700 | P85: 47.84191239 | Q85: 1.538087606 | R85: 0 | S85: 0 | T85: 0 | U85: 0 | V85: 0 | W85: =MIN(H85*parameters!C$22,ROUND(O85+S85-U85+V85,0)) -> 7184700 | X85: 47.84191239 | Z85: -230747 | AA85: 230747 | AB85: 0 | AC85: -1.538087606 | AE85: -0.03111707224 | AF85: -1.538087606 | AG85: 0 | AI85: 0.0534
A86: 77 | B86: Douglas | C86: 1022069000 | D86: 3532115.085 | E86: 323988000 | F86: 4853643.443 | G86: 8385759 | H86: 14798185.52 | I86: 12208503 | J86: 8385759 | K86: 56.67 | L86: 0.5666748122 | M86: 7819674 | N86: 0.0378 | O86: 8115258 | P86: 54.83954765 | Q86: 1.830452345 | R86: 0 | S86: 0 | T86: 0 | U86: 0 | V86: 0 | W86: =MIN(H86*parameters!C$22,ROUND(O86+S86-U86+V86,0)) -> 8115258 | X86: 54.83954765 | Z86: -270501 | AA86: 270501 | AB86: 0 | AC86: -1.830452345 | AE86: -0.03225718745 | AF86: -1.830452345 | AG86: 0 | AI86: 0.0378
A87: 78 | B87: Dover | C87: 2646446400 | D87: 9145716.434 | E87: 1369067000 | F87: 20509904.9 | G87: 29655621 | H87: 12246219.37 | I87: 10103131 | J87: 10103131 | K87: 82.5 | L87: 2.421614386 | M87: 9584669 | N87: 0.0358 | O87: 9927800 | P87: 81.06828484 | Q87: 1.431715158 | R87: 0 | S87: 0 | T87: 0 | U87: 0 | V87: 175331 | W87: =MIN(H87*parameters!C$22,ROUND(O87+S87-U87+V87,0)) -> 10103131 | X87: 82.50000017 | Z87: -175331 | AA87: 0 | AB87: 0 | AC87: 1.718361915e-07 | AE87: -0.01735412517 | AF87: -1.431715158 | AG87: 0 | AI87: 0.0358
A88: 79 | B88: Dracut | C88: 3647155100 | D88: 12604013.57 | E88: 1061254000 | F88: 15898578.09 | G88: 28502592 | H88: 50053984.58 | I88: 41294537 | J88: 28502592 | K88: 56.94 | L88: 0.5694370236 | M88: 26453657 | N88: 0.0408 | O88: 27532966 | P88: 55.0065419 | Q88: 1.933458103 | R88: 0 | S88: 0 | T88: 0 | U88: 0 | V88: 0 | W88: =MIN(H88*parameters!C$22,ROUND(O88+S88-U88+V88,0)) -> 27532966 | X88: 55.0065419 | Z88: -969626 | AA88: 969626 | AB88: 0 | AC88: -1.933458103 | AE88: -0.03401887099 | AF88: -1.933458103 | AG88: 0 | AI88: 0.0408
A89: 80 | B89: Dudley | C89: 1016192300 | D89: 3511806.103 | E89: 316207000 | F89: 4737076.781 | G89: 8248883 | H89: 20993982.65 | I89: 17320036 | J89: 8248883 | K89: 39.29 | L89: 0.3929165389 | M89: 6829251 | N89: 0.0316 | O89: 7045055 | P89: 33.55749653 | Q89: 5.732503465 | R89: 0.01 | S89: 68293 | T89: 0 | U89: 0 | V89: 0 | W89: =MIN(H89*parameters!C$22,ROUND(O89+S89-U89+V89,0)) -> 7113348 | X89: 33.88279451 | Z89: -1203828 | AA89: 1135535 | AB89: 0 | AC89: -5.407205492 | AE89: -0.1459383046 | AF89: -5.732503465 | AG89: 136585.02 | AI89: 0.0316
A90: 81 | B90: Dunstable | C90: 551243500 | D90: 1905013.734 | E90: 187583000 | F90: 2810168.889 | G90: 4715183 | H90: 5749473.064 | I90: 4743315 | J90: 4715183 | K90: 82.01 | L90: 0.8201069816 | M90: 4414049 | N90: 0.0461 | O90: 4617537 | P90: 80.31235122 | Q90: 1.697648783 | R90: 0 | S90: 0 | T90: 0 | U90: 0 | V90: 0 | W90: =MIN(H90*parameters!C$22,ROUND(O90+S90-U90+V90,0)) -> 4617537 | X90: 80.31235122 | Z90: -97646 | AA90: 97646 | AB90: 0 | AC90: -1.697648783 | AE90: -0.0207088463 | AF90: -1.697648783 | AG90: 0 | AI90: 0.0461
A91: 82 | B91: Duxbury | C91: 4265308000 | D91: 14740256.02 | E91: 1441663000 | F91: 21597460.92 | G91: 36337717 | H91: 30413600.83 | I91: 25091221 | J91: 25091221 | K91: 82.5 | L91: 1.194785096 | M91: 24763550 | N91: 0.0386 | O91: 25719423 | P91: 84.56553086 | Q91: 0 | R91: 0 | S91: 0 | T91: 628202 | U91: 628202 | V91: 0 | W91: =MIN(H91*parameters!C$22,ROUND(O91+S91-U91+V91,0)) -> 25091221 | X91: 82.50000102 | Z91: 0 | AA91: 0 | AB91: 0 | AC91: 1.023235271e-06 | AE91: 0.025036725 | AF91: 2.065530861 | AG91: 0 | AI91: 0.0386
A92: 83 | B92: East Bridgewater | C92: 1751566500 | D92: 6053147.543 | E92: 478509000 | F92: 7168512.631 | G92: 13221660 | H92: 24383826.27 | I92: 20116657 | J92: 13221660 | K92: 54.22 | L92: 0.5422307333 | M92: 12383869 | N92: 0.042 | O92: 12903991 | P92: 52.92028764 | Q92: 1.299712364 | R92: 0 | S92: 0 | T92: 0 | U92: 0 | V92: 0 | W92: =MIN(H92*parameters!C$22,ROUND(O92+S92-U92+V92,0)) -> 12903991 | X92: 52.92028764 | Z92: -317669 | AA92: 317669 | AB92: 0 | AC92: -1.299712364 | AE92: -0.02402640818 | AF92: -1.299712364 | AG92: 0 | AI92: 0.042
A93: 84 | B93: East Brookfield | C93: 253517600 | D93: 876118.2847 | E93: 67904000 | F93: 1017265.468 | G93: 1893384 | H93: 3527867.786 | I93: 2910491 | J93: 1893384 | K93: 53.67 | L93: 0.5366935824 | M93: 1673869 | N93: 0.0381 | O93: 1737643 | P93: 49.25476536 | Q93: 4.415234642 | R93: 0.01 | S93: 16739 | T93: 0 | U93: 0 | V93: 0 | W93: =MIN(H93*parameters!C$22,ROUND(O93+S93-U93+V93,0)) -> 1754382 | X93: 49.72924459 | Z93: -155741 | AA93: 139002 | AB93: 0 | AC93: -3.94075541 | AE93: -0.08225536922 | AF93: -4.415234642 | AG93: 16738.69 | AI93: 0.0381
A94: 85 | B94: Eastham | C94: 2976889500 | D94: 10287677.55 | E94: 166437000 | F94: 2493382.02 | G94: 12781060 | H94: 5080277.458 | I94: 4191229 | J94: 4191229 | K94: 82.5 | L94: 2.515819285 | M94: 3957585 | N94: 0.0359 | O94: 4099662 | P94: 80.69760035 | Q94: 1.802399647 | R94: 0 | S94: 0 | T94: 0 | U94: 0 | V94: 91567 | W94: =MIN(H94*parameters!C$22,ROUND(O94+S94-U94+V94,0)) -> 4191229 | X94: 82.50000191 | Z94: -91567 | AA94: 0 | AB94: 0 | AC94: 1.910205839e-06 | AE94: -0.02184729109 | AF94: -1.802399647 | AG94: 0 | AI94: 0.0359
A95: 86 | B95: Easthampton | C95: 1554415700 | D95: 5371824.35 | E95: 463815000 | F95: 6948382.76 | G95: 12320207 | H95: 19700559.14 | I95: 16252961 | J95: 12320207 | K95: 62.54 | L95: 0.6253734685 | M95: 12132351 | N95: 0.0383 | O95: 12597020 | P95: 63.9424491 | Q95: 0 | R95: 0 | S95: 0 | T95: 276813 | U95: 276813 | V95: 0 | W95: =MIN(H95*parameters!C$22,ROUND(O95+S95-U95+V95,0)) -> 12320207 | X95: 62.53734685 | Z95: 0 | AA95: 0 | AB95: 0 | AC95: -0.002653146937 | AE95: 0.02246821015 | AF95: 1.402449105 | AG95: 0 | AI95: 0.0383
A96: 87 | B96: East Longmeadow | C96: 1986089000 | D96: 6863621.65 | E96: 666532000 | F96: 9985273.132 | G96: 16848895 | H96: 28769862.74 | I96: 23735137 | J96: 16848895 | K96: 58.56 | L96: 0.5856439132 | M96: 16509582 | N96: 0.0417 | O96: 17198032 | P96: 59.77794247 | Q96: 0 | R96: 0 | S96: 0 | T96: 349137 | U96: 349137 | V96: 0 | W96: =MIN(H96*parameters!C$22,ROUND(O96+S96-U96+V96,0)) -> 16848895 | X96: 58.56439132 | Z96: 0 | AA96: 0 | AB96: 0 | AC96: 0.004391320577 | AE96: 0.02072165563 | AF96: 1.21794247 | AG96: 0 | AI96: 0.0417
A97: 88 | B97: Easton | C97: 3609247100 | D97: 12473009.28 | E97: 1157143000 | F97: 17335085.05 | G97: 29808094 | H97: 38835450.18 | I97: 32039246 | J97: 29808094 | K97: 76.75 | L97: 0.7675485636 | M97: 28750763 | N97: 0.0443 | O97: 30024422 | P97: 77.31189381 | Q97: 0 | R97: 0 | S97: 0 | T97: 216328 | U97: 216328 | V97: 0 | W97: =MIN(H97*parameters!C$22,ROUND(O97+S97-U97+V97,0)) -> 29808094 | X97: 76.75485636 | Z97: 0 | AA97: 0 | AB97: 0 | AC97: 0.004856363026 | AE97: 0.007257357683 | AF97: 0.5618938095 | AG97: 0 | AI97: 0.0443
A98: 89 | B98: Edgartown | C98: 8635274400 | D98: 29842195.55 | E98: 225215000 | F98: 3373931.467 | G98: 33216127 | H98: 7435876.448 | I98: 6134598 | J98: 6134598 | K98: 82.5 | L98: 4.467008998 | M98: 5440959 | N98: 0.0438 | O98: 5679273 | P98: 76.37664557 | Q98: 6.123354428 | R98: 0.01 | S98: 54410 | T98: 0 | U98: 0 | V98: 400915 | W98: =MIN(H98*parameters!C$22,ROUND(O98+S98-U98+V98,0)) -> 6134598 | X98: 82.49999906 | Z98: -455325 | AA98: 0 | AB98: 0 | AC98: -9.38484277e-07 | AE98: -0.07422246739 | AF98: -6.123354428 | AG98: 54409.59 | AI98: 0.0438
A99: 90 | B99: Egremont | C99: 447001500 | D99: 1544769.229 | E99: 29606000 | F99: 443525.5867 | G99: 1988295 | H99: 983690.2463 | I99: 811544 | J99: 811544 | K99: 82.5 | L99: 2.021261273 | M99: 682579 | N99: 0.0312 | O99: 703875 | P99: 71.55453687 | Q99: 10.94546313 | R99: 0.02 | S99: 13652 | T99: 0 | U99: 0 | V99: 94017 | W99: =MIN(H99*parameters!C$22,ROUND(O99+S99-U99+V99,0)) -> 811544 | X99: 82.49995393 | Z99: -107669 | AA99: 0 | AB99: 0 | AC99: -4.607283073e-05 | AE99: -0.132671796 | AF99: -10.94546313 | AG99: 13651.58 | AI99: 0.0312
A100: 91 | B100: Erving | C100: 895171300 | D100: 3093575.925 | E100: 35067000 | F100: 525336.4773 | G100: 3618912 | H100: 2811490.015 | I100: 2319479 | J100: 2319479 | K100: 82.5 | L100: 1.287186503 | M100: 2315909 | N100: 0.0301 | O100: 2385618 | P100: 84.85244435 | Q100: 0 | R100: 0 | S100: 0 | T100: 66139 | U100: 66139 | V100: 0 | W100: =MIN(H100*parameters!C$22,ROUND(O100+S100-U100+V100,0)) -> 2319479 | X100: 82.49999068 | Z100: 0 | AA100: 0 | AB100: 0 | AC100: -9.31811816e-06 | AE100: 0.02851459315 | AF100: 2.352444351 | AG100: 0 | AI100: 0.0301
A101: 92 | B101: Essex | C101: 867344300 | D101: 2997410.043 | E101: 192525000 | F101: 2884204.674 | G101: 5881615 | H101: 5806523.139 | I101: 4790382 | J101: 4790382 | K101: 82.5 | L101: 1.012932328 | M101: 4513958 | N101: 0.0337 | O101: 4666078 | P101: 80.35924232 | Q101: 2.140757678 | R101: 0 | S101: 0 | T101: 0 | U101: 0 | V101: 0 | W101: =MIN(H101*parameters!C$22,ROUND(O101+S101-U101+V101,0)) -> 4666078 | X101: 80.35924232 | Z101: -124304 | AA101: 124304 | AB101: 0 | AC101: -2.140757678 | AE101: -0.0259486613 | AF101: -2.140757678 | AG101: 0 | AI101: 0.0337
A102: 93 | B102: Everett | C102: 5767100400 | D102: 19930222.24 | E102: 943864000 | F102: 14139966.03 | G102: 34070188 | H102: 105617503.5 | I102: 87134440 | J102: 34070188 | K102: 32.26 | L102: 0.3225808874 | M102: 28814865 | N102: 0.0525 | O102: 30327645 | P102: 28.71460127 | Q102: 3.545398731 | R102: 0.01 | S102: 288149 | T102: 0 | U102: 0 | V102: 0 | W102: =MIN(H102*parameters!C$22,ROUND(O102+S102-U102+V102,0)) -> 30615794 | X102: 28.98742442 | Z102: -3742543 | AA102: 3454394 | AB102: 0 | AC102: -3.272575581 | AE102: -0.109848029 | AF102: -3.545398731 | AG102: 576297.3 | AI102: 0.0525
A103: 94 | B103: Fairhaven | C103: 2181956700 | D103: 7540510.645 | E103: 459024000 | F103: 6876609.096 | G103: 14417120 | H103: 23689393.97 | I103: 19543750 | J103: 14417120 | K103: 60.86 | L103: 0.6085896505 | M103: 13734487 | N103: 0.0382 | O103: 14259144 | P103: 60.19210122 | Q103: 0.6678987788 | R103: 0 | S103: 0 | T103: 0 | U103: 0 | V103: 0 | W103: =MIN(H103*parameters!C$22,ROUND(O103+S103-U103+V103,0)) -> 14259144 | X103: 60.19210122 | Z103: -157976 | AA103: 157976 | AB103: 0 | AC103: -0.6678987788 | AE103: -0.01095752827 | AF103: -0.6678987788 | AG103: 0 | AI103: 0.0382
A104: 95 | B104: Fall River | C104: 5571429500 | D104: 19254013.36 | E104: 1527800000 | F104: 22887873.79 | G104: 42141887 | H104: 181704453.5 | I104: 149906174 | J104: 42141887 | K104: 23.19 | L104: 0.2319254491 | M104: 33343146 | N104: 0.0383 | O104: 34620188 | P104: 19.05302117 | Q104: 4.136978831 | R104: 0.01 | S104: 333431 | T104: 0 | U104: 0 | V104: 0 | W104: =MIN(H104*parameters!C$22,ROUND(O104+S104-U104+V104,0)) -> 34953619 | X104: 19.236523 | Z104: -7521699 | AA104: 7188268 | AB104: 0 | AC104: -3.953476999 | AE104: -0.178485102 | AF104: -4.136978831 | AG104: 666862.92 | AI104: 0.0383
A105: 96 | B105: Falmouth | C105: 12342275400 | D105: 42653027.46 | E105: 1219065000 | F105: 18262734.56 | G105: 60915762 | H105: 41215035.15 | I105: 34002404 | J105: 34002404 | K105: 82.5 | L105: 1.477998546 | M105: 32816183 | N105: 0.0332 | O105: 33905680 | P105: 82.26531866 | Q105: 0.2346813384 | R105: 0 | S105: 0 | T105: 0 | U105: 0 | V105: 0 | W105: =MIN(H105*parameters!C$22,ROUND(O105+S105-U105+V105,0)) -> 33905680 | X105: 82.26531866 | Z105: -96724 | AA105: 96724 | AB105: 0 | AC105: -0.2346813384 | AE105: -0.002844622398 | AF105: -0.2346813384 | AG105: 0 | AI105: 0.0332
A106: 97 | B106: Fitchburg | C106: 2522862600 | D106: 8718629.609 | E106: 785408000 | F106: 11766146.86 | G106: 20484776 | H106: 81932709.82 | I106: 67594486 | J106: 20484776 | K106: 25 | L106: 0.2500195105 | M106: 19343697 | N106: 0.0463 | O106: 20239310 | P106: 24.70235642 | Q106: 0.2976435838 | R106: 0 | S106: 0 | T106: 0 | U106: 0 | V106: 0 | W106: =MIN(H106*parameters!C$22,ROUND(O106+S106-U106+V106,0)) -> 20239310 | X106: 24.70235642 | Z106: -245466 | AA106: 245466 | AB106: 0 | AC106: -0.2976435838 | AE106: -0.01198285009 | AF106: -0.2976435838 | AG106: 0 | AI106: 0.0463
A107: 98 | B107: Florida | C107: 123293200 | D107: 426082.5556 | E107: 13603000 | F107: 203785.6703 | G107: 629868 | H107: 1056873.49 | I107: 871921 | J107: 629868 | K107: 59.6 | L107: 0.5959729391 | M107: 629811 | N107: 0.0524 | O107: 662813 | P107: 62.71450711 | Q107: 0 | R107: 0 | S107: 0 | T107: 32945 | U107: 32945 | V107: 0 | W107: =MIN(H107*parameters!C$22,ROUND(O107+S107-U107+V107,0)) -> 629868 | X107: 59.59729391 | Z107: 0 | AA107: 0 | AB107: 0 | AC107: -0.002706091443 | AE107: 0.05230460985 | AF107: 3.114507115 | AG107: 0 | AI107: 0.0524
A108: 99 | B108: Foxborough | C108: 3309738100 | D108: 11437951.71 | E108: 913977000 | F108: 13692230.8 | G108: 25130183 | H108: 29707525.43 | I108: 24508708 | J108: 24508708 | K108: 82.5 | L108: 0.8459197674 | M108: 23179566 | N108: 0.0541 | O108: 24433581 | P108: 82.2471096 | Q108: 0.2528903971 | R108: 0 | S108: 0 | T108: 0 | U108: 0 | V108: 0 | W108: =MIN(H108*parameters!C$22,ROUND(O108+S108-U108+V108,0)) -> 24433581 | X108: 82.2471096 | Z108: -75127 | AA108: 75127 | AB108: 0 | AC108: -0.2528903971 | AE108: -0.003065318661 | AF108: -0.2528903971 | AG108: 0 | AI108: 0.0541
A109: 100 | B109: Framingham | C109: 9773587600 | D109: 33776032.92 | E109: 2490382000 | F109: 37308252.98 | G109: 71084286 | H109: 124155630.1 | I109: 102428395 | J109: 71084286 | K109: 57.25 | L109: 0.5725417844 | M109: 65981988 | N109: 0.0423 | O109: 68773026 | P109: 55.39259552 | Q109: 1.857404478 | R109: 0 | S109: 0 | T109: 0 | U109: 0 | V109: 0 | W109: =MIN(H109*parameters!C$22,ROUND(O109+S109-U109+V109,0)) -> 68773026 | X109: 55.39259552 | Z109: -2311260 | AA109: 2311260 | AB109: 0 | AC109: -1.857404478 | AE109: -0.03251435908 | AF109: -1.857404478 | AG109: 0 | AI109: 0.0423
A110: 101 | B110: Franklin | C110: 5401593400 | D110: 18667085.62 | E110: 1619056000 | F110: 24254974.07 | G110: 42922060 | H110: 63388508.99 | I110: 52295520 | J110: 42922060 | K110: 67.71 | L110: 0.6771268277 | M110: 40734174 | N110: 0.0454 | O110: 42583505 | P110: 67.17858754 | Q110: 0.5314124594 | R110: 0 | S110: 0 | T110: 0 | U110: 0 | V110: 0 | W110: =MIN(H110*parameters!C$22,ROUND(O110+S110-U110+V110,0)) -> 42583505 | X110: 67.17858754 | Z110: -338555 | AA110: 338555 | AB110: 0 | AC110: -0.5314124594 | AE110: -0.007887668952 | AF110: -0.5314124594 | AG110: 0 | AI110: 0.0454
A111: 102 | B111: Freetown | C111: 1416388700 | D111: 4894824.022 | E111: 329541000 | F111: 4936832.58 | G111: 9831657 | H111: 14329952.58 | I111: 11822211 | J111: 9831657 | K111: 68.61 | L111: 0.6860913841 | M111: 9164353 | N111: 0.0521 | O111: 9641816 | P111: 67.28435384 | Q111: 1.325646159 | R111: 0 | S111: 0 | T111: 0 | U111: 0 | V111: 0 | W111: =MIN(H111*parameters!C$22,ROUND(O111+S111-U111+V111,0)) -> 9641816 | X111: 67.28435384 | Z111: -189841 | AA111: 189841 | AB111: 0 | AC111: -1.325646159 | AE111: -0.01930915613 | AF111: -1.325646159 | AG111: 0 | AI111: 0.0521
A112: 103 | B112: Gardner | C112: 1296897500 | D112: 4481880.6 | E112: 417473000 | F112: 6254136.231 | G112: 10736017 | H112: 33733578.34 | I112: 27830202 | J112: 10736017 | K112: 31.83 | L112: 0.318259062 | M112: 10004773 | N112: 0.0439 | O112: 10443983 | P112: 30.96019905 | Q112: 0.869800951 | R112: 0 | S112: 0 | T112: 0 | U112: 0 | V112: 0 | W112: =MIN(H112*parameters!C$22,ROUND(O112+S112-U112+V112,0)) -> 10443983 | X112: 30.96019905 | Z112: -292034 | AA112: 292034 | AB112: 0 | AC112: -0.869800951 | AE112: -0.02720133547 | AF112: -0.869800951 | AG112: 0 | AI112: 0.0439
A113: 104 | B113: Aquinnah | C113: 793211500 | D113: 2741218.357 | E113: 5883000 | F113: 88132.84559 | G113: 2829351 | H113: 744702.746 | I113: 614380 | J113: 614380 | K113: 82.5 | L113: 3.799302494 | M113: 422151 | N113: 0.0314 | O113: 435407 | P113: 58.46722096 | Q113: 24.03277904 | R113: 0.02 | S113: 8443 | T113: 0 | U113: 0 | V113: 170530 | W113: =MIN(H113*parameters!C$22,ROUND(O113+S113-U113+V113,0)) -> 614380 | X113: 82.50003149 | Z113: -178973 | AA113: 0 | AB113: 0 | AC113: 3.149475151e-05 | AE113: -0.2913066832 | AF113: -24.03277904 | AG113: 8443.02 | AI113: 0.0314
A114: 105 | B114: Georgetown | C114: 1323463100 | D114: 4573687.275 | E114: 427856000 | F114: 6409683.288 | G114: 10983371 | H114: 13948241.36 | I114: 11507299 | J114: 10983371 | K114: 78.74 | L114: 0.7874376932 | M114: 10252722 | N114: 0.0478 | O114: 10742802 | P114: 77.01904292 | Q114: 1.720957077 | R114: 0 | S114: 0 | T114: 0 | U114: 0 | V114: 0 | W114: =MIN(H114*parameters!C$22,ROUND(O114+S114-U114+V114,0)) -> 10742802 | X114: 77.01904292 | Z114: -240569 | AA114: 240569 | AB114: 0 | AC114: -1.720957077 | AE114: -0.02190302048 | AF114: -1.720957077 | AG114: 0 | AI114: 0.0478
A115: 106 | B115: Gill | C115: 160146100 | D115: 553440.5755 | E115: 37780000 | F115: 565979.7563 | G115: 1119420 | H115: 1765279.382 | I115: 1456355 | J115: 1119420 | K115: 63.41 | L115: 0.6341319178 | M115: 1122301 | N115: 0.0404 | O115: 1167642 | P115: 66.14488403 | Q115: 0 | R115: 0 | S115: 0 | T115: 48222 | U115: 48222 | V115: 0 | W115: =MIN(H115*parameters!C$22,ROUND(O115+S115-U115+V115,0)) -> 1119420 | X115: 63.41319178 | Z115: 0 | AA115: 0 | AB115: 0 | AC115: 0.003191783988 | AE115: 0.04307766522 | AF115: 2.73488403 | AG115: 0 | AI115: 0.0404
A116: 107 | B116: Gloucester | C116: 6746082000 | D116: 23313433.82 | E116: 1095719000 | F116: 16414896.05 | G116: 39728330 | H116: 39503073.16 | I116: 32590035 | J116: 32590035 | K116: 82.5 | L116: 1.005702261 | M116: 31364563 | N116: 0.0373 | O116: 32534461 | P116: 82.35931638 | Q116: 0.1406836202 | R116: 0 | S116: 0 | T116: 0 | U116: 0 | V116: 0 | W116: =MIN(H116*parameters!C$22,ROUND(O116+S116-U116+V116,0)) -> 32534461 | X116: 82.35931638 | Z116: -55574 | AA116: 55574 | AB116: 0 | AC116: -0.1406836202 | AE116: -0.001705245177 | AF116: -0.1406836202 | AG116: 0 | AI116: 0.0373
A117: 108 | B117: Goshen | C117: 154513800 | D117: 533976.2029 | E117: 13716000 | F117: 205478.5161 | G117: 739455 | H117: 1207609.912 | I117: 996278 | J117: 739455 | K117: 61.23 | L117: 0.6123293563 | M117: 747330 | N117: 0.0406 | O117: 777672 | P117: 64.39761651 | Q117: 0 | R117: 0 | S117: 0 | T117: 38217 | U117: 38217 | V117: 0 | W117: =MIN(H117*parameters!C$22,ROUND(O117+S117-U117+V117,0)) -> 739455 | X117: 61.23293563 | Z117: 0 | AA117: 0 | AB117: 0 | AC117: 0.002935633172 | AE117: 0.05168265817 | AF117: 3.167616514 | AG117: 0 | AI117: 0.0406
A118: 109 | B118: Gosnold | C118: 232178900 | D118: 802374.9815 | E118: 2627000 | F118: 39354.91847 | G118: 841730 | H118: 28232.85397 | I118: 23292 | J118: 23292 | K118: 82.5 | L118: 29.8138474 | M118: 18574 | N118: 0.0267 | O118: 19070 | P118: 67.54542073 | Q118: 14.95457927 | R118: 0.02 | S118: 371 | T118: 0 | U118: 0 | V118: 3851 | W118: =MIN(H118*parameters!C$22,ROUND(O118+S118-U118+V118,0)) -> 23292 | X118: 82.49962977 | Z118: -4222 | AA118: 0 | AB118: 0 | AC118: -0.0003702303169 | AE118: -0.1812639533 | AF118: -14.95457927 | AG118: 371.48 | AI118: 0.0267
A119: 110 | B119: Grafton | C119: 2596289300 | D119: 8972381.121 | E119: 927942000 | F119: 13901439.57 | G119: 22873821 | H119: 33072992.09 | I119: 27285218 | J119: 22873821 | K119: 69.16 | L119: 0.6916163176 | M119: 21092020 | N119: 0.0468 | O119: 22079127 | P119: 66.75878294 | Q119: 2.40121706 | R119: 0 | S119: 0 | T119: 0 | U119: 0 | V119: 0 | W119: =MIN(H119*parameters!C$22,ROUND(O119+S119-U119+V119,0)) -> 22079127 | X119: 66.75878294 | Z119: -794694 | AA119: 794694 | AB119: 0 | AC119: -2.40121706 | AE119: -0.03474251197 | AF119: -2.40121706 | AG119: 0 | AI119: 0.0468
A120: 111 | B120: Granby | C120: 650048400 | D120: 2246468.447 | E120: 201537000 | F120: 3019212.868 | G120: 5265681 | H120: 8224879.896 | I120: 6785526 | J120: 5265681 | K120: 64.02 | L120: 0.6402137255 | M120: 5006159 | N120: 0.049 | O120: 5251461 | P120: 63.84848248 | Q120: 0.1715175159 | R120: 0 | S120: 0 | T120: 0 | U120: 0 | V120: 0 | W120: =MIN(H120*parameters!C$22,ROUND(O120+S120-U120+V120,0)) -> 5251461 | X120: 63.84848248 | Z120: -14220 | AA120: 14220 | AB120: 0 | AC120: -0.1715175159 | AE120: -0.002700505405 | AF120: -0.1715175159 | AG120: 0 | AI120: 0.049
A121: 112 | B121: Granville | C121: 203242200 | D121: 702374.1454 | E121: 53526000 | F121: 801869.5721 | G121: 1504244 | H121: 1962245.439 | I121: 1618852 | J121: 1504244 | K121: 76.66 | L121: 0.7665931946 | M121: 1493226 | N121: 0.0339 | O121: 1543846 | P121: 78.67751755 | Q121: 0 | R121: 0 | S121: 0 | T121: 39602 | U121: 39602 | V121: 0 | W121: =MIN(H121*parameters!C$22,ROUND(O121+S121-U121+V121,0)) -> 1504244 | X121: 76.65931946 | Z121: 0 | AA121: 0 | AB121: 0 | AC121: -0.0006805388776 | AE121: 0.02632684591 | AF121: 2.017517552 | AG121: 0 | AI121: 0.0339
A122: 113 | B122: Great Barrington | C122: 1480946600 | D122: 5117926.31 | E122: 275383000 | F122: 4125495.056 | G122: 9243421 | H122: 8886377.798 | I122: 7331262 | J122: 7331262 | K122: 82.5 | L122: 1.040178711 | M122: 7192554 | N122: 0.0446 | O122: 7513342 | P122: 84.54898239 | Q122: 0 | R122: 0 | S122: 0 | T122: 182080 | U122: 182080 | V122: 0 | W122: =MIN(H122*parameters!C$22,ROUND(O122+S122-U122+V122,0)) -> 7331262 | X122: 82.50000356 | Z122: 0 | AA122: 0 | AB122: 0 | AC122: 3.562606082e-06 | AE122: 0.02483610598 | AF122: 2.048982394 | AG122: 0 | AI122: 0.0446
A123: 114 | B123: Greenfield | C123: 1502607800 | D123: 5192784.124 | E123: 379146000 | F123: 5679961.903 | G123: 10872746 | H123: 25456983.57 | I123: 21002011 | J123: 10872746 | K123: 42.71 | L123: 0.4271026836 | M123: 10684488 | N123: 0.0407 | O123: 11119347 | P123: 43.67896522 | Q123: 0 | R123: 0 | S123: 0 | T123: 246601 | U123: 246601 | V123: 0 | W123: =MIN(H123*parameters!C$22,ROUND(O123+S123-U123+V123,0)) -> 10872746 | X123: 42.71026836 | Z123: 0 | AA123: 0 | AB123: 0 | AC123: 0.0002683649836 | AE123: 0.02268065491 | AF123: 0.9689652231 | AG123: 0 | AI123: 0.0407
A124: 115 | B124: Groton | C124: 1781386100 | D124: 6156199.547 | E124: 785661000 | F124: 11769937.04 | G124: 17926137 | H124: 19273084.6 | I124: 15900295 | J124: 15900295 | K124: 82.5 | L124: 0.9301125053 | M124: 15110219 | N124: 0.0439 | O124: 15773558 | P124: 81.84241562 | Q124: 0.6575843756 | R124: 0 | S124: 0 | T124: 0 | U124: 0 | V124: 0 | W124: =MIN(H124*parameters!C$22,ROUND(O124+S124-U124+V124,0)) -> 15773558 | X124: 81.84241562 | Z124: -126737 | AA124: 126737 | AB124: 0 | AC124: -0.6575843756 | AE124: -0.007970732618 | AF124: -0.6575843756 | AG124: 0 | AI124: 0.0439
A125: 116 | B125: Groveland | C125: 976713800 | D125: 3375374.408 | E125: 262508000 | F125: 3932615.507 | G125: 7307990 | H125: 10215865 | I125: 8428089 | J125: 7307990 | K125: 71.54 | L125: 0.7153569471 | M125: 6934738 | N125: 0.0492 | O125: 7275927 | P125: 71.22183974 | Q125: 0.3181602567 | R125: 0 | S125: 0 | T125: 0 | U125: 0 | V125: 0 | W125: =MIN(H125*parameters!C$22,ROUND(O125+S125-U125+V125,0)) -> 7275927 | X125: 71.22183974 | Z125: -32063 | AA125: 32063 | AB125: 0 | AC125: -0.3181602567 | AE125: -0.004387389693 | AF125: -0.3181602567 | AG125: 0 | AI125: 0.0492
A126: 117 | B126: Hadley | C126: 1040640500 | D126: 3596295.365 | E126: 176458000 | F126: 2643505.978 | G126: 6239801 | H126: 6230653.903 | I126: 5140289 | J126: 5140289 | K126: 82.5 | L126: 1.00146808 | M126: 4858225 | N126: 0.0126 | O126: 4919439 | P126: 78.95542068 | Q126: 3.544579322 | R126: 0.01 | S126: 48582 | T126: 0 | U126: 0 | V126: 0 | W126: =MIN(H126*parameters!C$22,ROUND(O126+S126-U126+V126,0)) -> 4968021 | X126: 79.73514622 | Z126: -220850 | AA126: 172268 | AB126: 0 | AC126: -2.764853779 | AE126: -0.04296451036 | AF126: -3.544579322 | AG126: 0 | AI126: 0.0126
A127: 118 | B127: Halifax | C127: 953128900 | D127: 3293868.58 | E127: 278929000 | F127: 4178617.455 | G127: 7472486 | H127: 13044643.12 | I127: 10761831 | J127: 7472486 | K127: 57.28 | L127: 0.5728394356 | M127: 6769352 | N127: 0.0411 | O127: 7047572 | P127: 54.02656046 | Q127: 3.253439541 | R127: 0.01 | S127: 67694 | T127: 0 | U127: 0 | V127: 0 | W127: =MIN(H127*parameters!C$22,ROUND(O127+S127-U127+V127,0)) -> 7115266 | X127: 54.54550145 | Z127: -424914 | AA127: 357220 | AB127: 0 | AC127: -2.734498552 | AE127: -0.05686380677 | AF127: -3.253439541 | AG127: 67693.52 | AI127: 0.0411
A128: 119 | B128: Hamilton | C128: 1613578500 | D128: 5576281.993 | E128: 603914000 | F128: 9047196.891 | G128: 14623479 | H128: 11561562.44 | I128: 9538289 | J128: 9538289 | K128: 82.5 | L128: 1.26483588 | M128: 9460026 | N128: 0.0333 | O128: 9775045 | P128: 84.54778541 | Q128: 0 | R128: 0 | S128: 0 | T128: 236756 | U128: 236756 | V128: 0 | W128: =MIN(H128*parameters!C$22,ROUND(O128+S128-U128+V128,0)) -> 9538289 | X128: 82.49999991 | Z128: 0 | AA128: 0 | AB128: 0 | AC128: -9.247040111e-08 | AE128: 0.02482164254 | AF128: 2.047785415 | AG128: 0 | AI128: 0.0333
A129: 120 | B129: Hampden | C129: 638652000 | D129: 2207084.221 | E129: 211163000 | F129: 3163419.356 | G129: 5370504 | H129: 6614199.207 | I129: 5456714 | J129: 5370504 | K129: 81.2 | L129: 0.8119658679 | M129: 5137990 | N129: 0.0556 | O129: 5423662 | P129: 82.00028197 | Q129: 0 | R129: 0 | S129: 0 | T129: 53158 | U129: 53158 | V129: 0 | W129: =MIN(H129*parameters!C$22,ROUND(O129+S129-U129+V129,0)) -> 5370504 | X129: 81.19658679 | Z129: 0 | AA129: 0 | AB129: 0 | AC129: -0.003413207143 | AE129: 0.009898139914 | AF129: 0.8002819695 | AG129: 0 | AI129: 0.0556
A130: 121 | B130: Hancock | C130: 327036000 | D130: 1130186.699 | E130: 8772000 | F130: 131412.7692 | G130: 1261599 | H130: 800339.2692 | I130: 660280 | J130: 660280 | K130: 82.5 | L130: 1.57633025 | M130: 571860 | N130: 0.0452 | O130: 597708 | P130: 74.68182844 | Q130: 7.818171557 | R130: 0.02 | S130: 11437 | T130: 0 | U130: 0 | V130: 0 | W130: =MIN(H130*parameters!C$22,ROUND(O130+S130-U130+V130,0)) -> 609145 | X130: 76.11084741 | Z130: -62572 | AA130: 51135 | AB130: 0 | AC130: -6.389152585 | AE130: -0.09476585691 | AF130: -7.818171557 | AG130: 5718.6 | AI130: 0.0452
A131: 122 | B131: Hanover | C131: 2802906000 | D131: 9686417.026 | E131: 782342000 | F131: 11720215.31 | G131: 21406632 | H131: 27380508.59 | I131: 22588920 | J131: 21406632 | K131: 78.18 | L131: 0.7818201014 | M131: 20291664 | N131: 0.0381 | O131: 21064776 | P131: 76.93347234 | Q131: 1.246527658 | R131: 0 | S131: 0 | T131: 0 | U131: 0 | V131: 0 | W131: =MIN(H131*parameters!C$22,ROUND(O131+S131-U131+V131,0)) -> 21064776 | X131: 76.93347234 | Z131: -341856 | AA131: 341856 | AB131: 0 | AC131: -1.246527658 | AE131: -0.01596963035 | AF131: -1.246527658 | AG131: 0 | AI131: 0.0381
A132: 123 | B132: Hanson | C132: 1373623000 | D132: 4747032.264 | E132: 371451000 | F132: 5564683.601 | G132: 10311716 | H132: 17419946.69 | I132: 14371456 | J132: 10311716 | K132: 59.19 | L132: 0.5919487692 | M132: 9101384 | N132: 0.0516 | O132: 9571015 | P132: 54.94284898 | Q132: 4.247151021 | R132: 0.01 | S132: 91014 | T132: 0 | U132: 0 | V132: 0 | W132: =MIN(H132*parameters!C$22,ROUND(O132+S132-U132+V132,0)) -> 9662029 | X132: 55.465319 | Z132: -740701 | AA132: 649687 | AB132: 0 | AC132: -3.724680995 | AE132: -0.07183101241 | AF132: -4.247151021 | AG132: 91013.84 | AI132: 0.0516
A133: 124 | B133: Hardwick | C133: 247900500 | D133: 856706.4411 | E133: 58000000 | F133: 868894.2791 | G133: 1725601 | H133: 3930433.008 | I133: 3242607 | J133: 1725601 | K133: 43.9 | L133: 0.4390358509 | M133: 1570304 | N133: 0.0333 | O133: 1622595 | P133: 41.28285603 | Q133: 2.617143972 | R133: 0.01 | S133: 15703 | T133: 0 | U133: 0 | V133: 0 | W133: =MIN(H133*parameters!C$22,ROUND(O133+S133-U133+V133,0)) -> 1638298 | X133: 41.68237944 | Z133: -103006 | AA133: 87303 | AB133: 0 | AC133: -2.217620561 | AE133: -0.05969282586 | AF133: -2.617143972 | AG133: 15703.04 | AI133: 0.0333
A134: 125 | B134: Harvard | C134: 1289986700 | D134: 4457997.926 | E134: 457708000 | F134: 6856894.185 | G134: 11314892 | H134: 9531757.214 | I134: 7863700 | J134: 7863700 | K134: 82.5 | L134: 1.187073039 | M134: 7656970 | N134: 0.0423 | O134: 7980860 | P134: 83.72915739 | Q134: 0 | R134: 0 | S134: 0 | T134: 117160 | U134: 117160 | V134: 0 | W134: =MIN(H134*parameters!C$22,ROUND(O134+S134-U134+V134,0)) -> 7863700 | X134: 82.50000313 | Z134: 0 | AA134: 0 | AB134: 0 | AC134: 3.129273637e-06 | AE134: 0.01489883897 | AF134: 1.229157391 | AG134: 0 | AI134: 0.0423
A135: 126 | B135: Harwich | C135: 5697974900 | D135: 19691335.02 | E135: 438184000 | F135: 6564406.393 | G135: 26255741 | H135: 16948919.91 | I135: 13982859 | J135: 13982859 | K135: 82.5 | L135: 1.549109981 | M135: 13269997 | N135: 0.0413 | O135: 13818048 | P135: 81.52760218 | Q135: 0.9723978177 | R135: 0 | S135: 0 | T135: 0 | U135: 0 | V135: 0 | W135: =MIN(H135*parameters!C$22,ROUND(O135+S135-U135+V135,0)) -> 13818048 | X135: 81.52760218 | Z135: -164811 | AA135: 164811 | AB135: 0 | AC135: -0.9723978177 | AE135: -0.01178664535 | AF135: -0.9723978177 | AG135: 0 | AI135: 0.0413
A136: 127 | B136: Hatfield | C136: 563178100 | D136: 1946257.897 | E136: 110596000 | F136: 1656831.581 | G136: 3603089 | H136: 3779440.848 | I136: 3118039 | J136: 3118039 | K136: 82.5 | L136: 0.9533391698 | M136: 2934546 | N136: 0.0405 | O136: 3053395 | P136: 80.78959621 | Q136: 1.710403789 | R136: 0 | S136: 0 | T136: 0 | U136: 0 | V136: 0 | W136: =MIN(H136*parameters!C$22,ROUND(O136+S136-U136+V136,0)) -> 3053395 | X136: 80.78959621 | Z136: -64644 | AA136: 64644 | AB136: 0 | AC136: -1.710403789 | AE136: -0.02073226153 | AF136: -1.710403789 | AG136: 0 | AI136: 0.0405
A137: 128 | B137: Haverhill | C137: 6609657600 | D137: 22841971.84 | E137: 1787098000 | F137: 26772400.49 | G137: 49614372 | H137: 114944045.9 | I137: 94828838 | J137: 49614372 | K137: 43.16 | L137: 0.4316393391 | M137: 46388394 | N137: 0.0386 | O137: 48178986 | P137: 41.91516458 | Q137: 1.244835425 | R137: 0 | S137: 0 | T137: 0 | U137: 0 | V137: 0 | W137: =MIN(H137*parameters!C$22,ROUND(O137+S137-U137+V137,0)) -> 48178986 | X137: 41.91516458 | Z137: -1435386 | AA137: 1435386 | AB137: 0 | AC137: -1.244835425 | AE137: -0.02893085092 | AF137: -1.244835425 | AG137: 0 | AI137: 0.0386
A138: 129 | B138: Hawley | C138: 49044100 | D138: 169488.9537 | E138: 5820000 | F138: 87189.04663 | G138: 256678 | H138: 395349.6288 | I138: =ROUND(H138*maxloc,0) -> 326163 | J138: 256678 | K138: 64.92 | L138: 0.6492430529 | M138: 267148 | N138: 0.0223 | O138: 273105 | P138: 69.07936168 | Q138: 0 | R138: 0 | S138: 0 | T138: 16427 | U138: =MAX(T138*(U$5),0) -> 16427 | V138: 0 | W138: =MIN(H138*parameters!C$22,ROUND(O138+S138-U138+V138,0)) -> 256678 | X138: 64.92430529 | Z138: 0 | AA138: 0 | AB138: 0 | AC138: 0.004305291561 | AE138: =(O138-J138)/J138 -> 0.06399847279 | AF138: 4.159361677 | AG138: =IF(AE138<$AG$5, $AG$6*(M138), IF(AND(AE138<$AG$4, AE138>$AG$5), $AG$7*(M138), 0)) -> 0 | AI138: 0.0223
A139: 130 | B139: Heath | C139: 93228900 | D139: =D$5*C139 -> 322184.9053 | E139: 9002000 | F139: 134858.3845 | G139: =ROUND(D139+F139,0) -> 457043 | H139: =(SUMIF(town1755,A139,found1755)/2) -> 1139711.304 | I139: 940262 | J139: =MIN(G139,I139) -> 457043 | K139: =IF(H139>0, ROUND((J139*100/H139), 2), 0) -> 40.1 | L139: =G139/H139 -> 0.4010164666 | M139: 482453 | N139: =IF($N$5=1,AI139,IF($N$5=2,AJ139,IF($N$5=3,AK139,IF($N$5=4,AL139,IF($N$5=5,AM139,IF($N$5=6,AN139,IF($N$5=7,AO139,0))))))) -> 0.0337 | O139: =ROUND(M139*(1+N139),0) -> 498712 | P139: =O139*100/H139 -> 43.75774798 | Q139: =IF(K139>P139,K139-P139,0) -> 0 | R139: =IF(AND(Q139>$S$4,Q139<=$S$5),$R$4,IF(Q139>$S$5,$R$5,0)) -> 0 | S139: =ROUND(R139*M139,0) -> 0 | T139: =MAX(O139-J139,0) -> 41669 | U139: 41669 | V139: =IF(AND(L139>1.75,$V$5=1),MAX(J139-(O139+S139),0),0) -> 0 | W139: =MIN(H139*parameters!C$22,ROUND(O139+S139-U139+V139,0)) -> 457043 | X139: =W139*100/H139 -> 40.10164666 | Z139: =IF(P139<K139, O139-J139, 0) -> 0 | AA139: =MAX(J139-(O139+S139+V139),0) -> 0 | AB139: =IF(P139>K139, W139-J139,0) -> 0 | AC139: =X139-K139 -> 0.001646657392 | AE139: 0.09117085263 | AF139: =P139-K139 -> 3.657747975 | AG139: 0 | AI139: 0.0337
A140: 131 | B140: Hingham | C140: 7407974100 | D140: 25600832.3 | E140: 2453158000 | F140: =E140*F$5 -> 36750602.62 | G140: 62351435 | H140: 43961797.37 | I140: 36268483 | J140: 36268483 | K140: 82.5 | L140: 1.418309504 | M140: 35322376 | N140: 0.0363 | O140: 36604578 | P140: 83.26451645 | Q140: 0 | R140: 0 | S140: 0 | T140: 336095 | U140: 336095 | V140: 0 | W140: =MIN(H140*parameters!C$22,ROUND(O140+S140-U140+V140,0)) -> 36268483 | X140: 82.50000039 | Z140: 0 | AA140: 0 | AB140: 0 | AC140: 3.93297185e-07 | AE140: 0.009266861258 | AF140: 0.7645164507 | AG140: 0 | AI140: 0.0363
A141: 132 | B141: Hinsdale | C141: 316994600 | D141: 1095485.147 | E141: 62930000 | F141: 942750.2928 | G141: 2038235 | H141: 2222456.053 | I141: 1833526 | J141: 1833526 | K141: 82.5 | L141: 0.9171092484 | M141: 1841990 | N141: 0.0341 | O141: 1904802 | P141: 85.70707158 | Q141: 0 | R141: 0 | S141: 0 | T141: 71276 | U141: 71276 | V141: 0 | W141: =MIN(H141*parameters!C$22,ROUND(O141+S141-U141+V141,0)) -> 1833526 | X141: 82.49998904 | Z141: 0 | AA141: 0 | AB141: 0 | AC141: -1.095595158e-05 | AE141: 0.03887373291 | AF141: 3.207071583 | AG141: 0 | AI141: 0.0341
A142: 133 | B142: Holbrook | C142: 1276774300 | D142: 4412337.88 | E142: 328909000 | F142: 4927364.628 | G142: 9339703 | H142: 17576786.99 | I142: 14500849 | J142: 9339703 | K142: 53.14 | L142: 0.5313657728 | M142: 8763286 | N142: 0.0374 | O142: 9091033 | P142: 51.72181359 | Q142: 1.418186409 | R142: 0 | S142: 0 | T142: 0 | U142: 0 | V142: 0 | W142: =MIN(H142*parameters!C$22,ROUND(O142+S142-U142+V142,0)) -> 9091033 | X142: 51.72181359 | Z142: -248670 | AA142: 248670 | AB142: 0 | AC142: -1.418186409 | AE142: -0.02662504364 | AF142: -1.418186409 | AG142: 0 | AI142: 0.0374
A143: 134 | B143: Holden | C143: 2377246900 | D143: 8215403.887 | E143: 806332000 | F143: 12079607.96 | G143: 20295012 | H143: 34247003.91 | I143: 28253778 | J143: 20295012 | K143: 59.26 | L143: 0.5926069344 | M143: 19112967 | N143: 0.0473 | O143: 20017010 | P143: 58.44893776 | Q143: 0.8110622422 | R143: 0 | S143: 0 | T143: 0 | U143: 0 | V143: 0 | W143: =MIN(H143*parameters!C$22,ROUND(O143+S143-U143+V143,0)) -> 20017010 | X143: 58.44893776 | Z143: -278002 | AA143: 278002 | AB143: 0 | AC143: -0.8110622422 | AE143: -0.01369804561 | AF143: -0.8110622422 | AG143: 0 | AI143: 0.0473
A144: 135 | B144: Holland | C144: 332392700 | D144: 1148698.639 | E144: 77571000 | F144: 1162086.175 | G144: 2310785 | H144: 4158829.731 | I144: 3431035 | J144: 2310785 | K144: 55.56 | L144: 0.5556334713 | M144: 2285164 | N144: 0.0314 | O144: 2356918 | P144: 56.67262553 | Q144: 0 | R144: 0 | S144: 0 | T144: 46133 | U144: 46133 | V144: 0 | W144: =MIN(H144*parameters!C$22,ROUND(O144+S144-U144+V144,0)) -> 2310785 | X144: 55.56334713 | Z144: 0 | AA144: 0 | AB144: 0 | AC144: 0.003347127028 | AE144: 0.0199642113 | AF144: 1.112625529 | AG144: 0 | AI144: 0.0314
A145: 136 | B145: Holliston | C145: 2669635100 | D145: 9225853.056 | E145: 792863000 | F145: 11877829.74 | G145: 21103683 | H145: 29151169.65 | I145: 24049715 | J145: 21103683 | K145: 72.39 | L145: 0.7239394939 | M145: 20149057 | N145: 0.0481 | O145: 21118227 | P145: 72.44384104 | Q145: 0 | R145: 0 | S145: 0 | T145: 14544 | U145: 14544 | V145: 0 | W145: =MIN(H145*parameters!C$22,ROUND(O145+S145-U145+V145,0)) -> 21103683 | X145: 72.39394939 | Z145: 0 | AA145: 0 | AB145: 0 | AC145: 0.003949386609 | AE145: 0.0006891688053 | AF145: 0.05384103822 | AG145: 0 | AI145: 0.0481
A146: 137 | B146: Holyoke | C146: 2142470000 | D146: 7404050.612 | E146: 668260000 | F146: 10011160.19 | G146: 17415211 | H146: 88111145.83 | I146: 72691695 | J146: 17415211 | K146: 19.77 | L146: 0.1976504883 | M146: 10886435 | N146: 0.0073 | O146: 10965906 | P146: 12.44553785 | Q146: 7.324462154 | R146: 0.01 | S146: 108864 | T146: 0 | U146: 0 | V146: 0 | W146: =MIN(H146*parameters!C$22,ROUND(O146+S146-U146+V146,0)) -> 11074770 | X146: 12.56909089 | Z146: -6449305 | AA146: 6340441 | AB146: 0 | AC146: -7.200909113 | AE146: -0.3703259754 | AF146: -7.324462154 | AG146: 217728.7 | AI146: 0.0073
A147: 138 | B147: Hopedale | C147: 776426200 | D147: 2683210.911 | E147: 241418000 | F147: 3616667.57 | G147: 6299878 | H147: 10695576.21 | I147: 8823850 | J147: 6299878 | K147: 58.9 | L147: 0.589017167 | M147: 5982227 | N147: 0.0413 | O147: 6229293 | P147: 58.24177095 | Q147: 0.6582290464 | R147: 0 | S147: 0 | T147: 0 | U147: 0 | V147: 0 | W147: =MIN(H147*parameters!C$22,ROUND(O147+S147-U147+V147,0)) -> 6229293 | X147: 58.24177095 | Z147: -70585 | AA147: 70585 | AB147: 0 | AC147: -0.6582290464 | AE147: -0.01120418522 | AF147: -0.6582290464 | AG147: 0 | AI147: 0.0413
A148: 139 | B148: Hopkinton | C148: 3865959600 | D148: 13360168.66 | E148: 1403283000 | F148: 21022492.6 | G148: 34382661 | H148: 39808491.37 | I148: 32842005 | J148: 32842005 | K148: 82.5 | L148: 0.8637016832 | M148: 30716179 | N148: 0.0655 | O148: 32728089 | P148: 82.21383899 | Q148: 0.2861610071 | R148: 0 | S148: 0 | T148: 0 | U148: 0 | V148: 0 | W148: =MIN(H148*parameters!C$22,ROUND(O148+S148-U148+V148,0)) -> 32728089 | X148: 82.21383899 | Z148: -113916 | AA148: 113916 | AB148: 0 | AC148: -0.2861610071 | AE148: -0.003468606743 | AF148: -0.2861610071 | AG148: 0 | AI148: 0.0655
A149: 140 | B149: Hubbardston | C149: 467728400 | D149: 1616398.244 | E149: 157905000 | F149: 2365564.675 | G149: 3981963 | H149: 6764342 | I149: 5580582 | J149: 3981963 | K149: 58.87 | L149: 0.588669674 | M149: 3666689 | N149: 0.042 | O149: 3820690 | P149: 56.4828035 | Q149: 2.387196501 | R149: 0 | S149: 0 | T149: 0 | U149: 0 | V149: 0 | W149: =MIN(H149*parameters!C$22,ROUND(O149+S149-U149+V149,0)) -> 3820690 | X149: 56.4828035 | Z149: -161273 | AA149: 161273 | AB149: 0 | AC149: -2.387196501 | AE149: -0.04050087859 | AF149: -2.387196501 | AG149: 0 | AI149: 0.042
A150: 141 | B150: Hudson | C150: 2755165600 | D150: 9521433.461 | E150: 735853000 | F150: 11023766.59 | G150: 20545200 | H150: 33749566.28 | I150: 27843392 | J150: 20545200 | K150: 60.88 | L150: 0.6087544897 | M150: 19481831 | N150: 0.0436 | O150: 20331239 | P150: 60.24148231 | Q150: 0.6385176933 | R150: 0 | S150: 0 | T150: 0 | U150: 0 | V150: 0 | W150: =MIN(H150*parameters!C$22,ROUND(O150+S150-U150+V150,0)) -> 20331239 | X150: 60.24148231 | Z150: -213961 | AA150: 213961 | AB150: 0 | AC150: -0.6385176933 | AE150: -0.01041416 | AF150: -0.6385176933 | AG150: 0 | AI150: 0.0436
A151: 142 | B151: Hull | C151: 2266165500 | D151: 7831523.456 | E151: 405857000 | F151: 6080117.68 | G151: 13911641 | H151: 10718331.73 | I151: 8842624 | J151: 8842624 | K151: 82.5 | L151: 1.297929692 | M151: 8417036 | N151: 0.0386 | O151: 8741934 | P151: 81.56058446 | Q151: 0.9394155438 | R151: 0 | S151: 0 | T151: 0 | U151: 0 | V151: 0 | W151: =MIN(H151*parameters!C$22,ROUND(O151+S151-U151+V151,0)) -> 8741934 | X151: 81.56058446 | Z151: -100690 | AA151: 100690 | AB151: 0 | AC151: -0.9394155438 | AE151: -0.01138689149 | AF151: -0.9394155438 | AG151: 0 | AI151: 0.0386
A152: 143 | B152: Huntington | C152: 192215800 | D152: 664268.5833 | E152: 65518000 | F152: 981520.9548 | G152: 1645790 | H152: 3452432.334 | I152: 2848257 | J152: 1645790 | K152: 47.67 | L152: 0.4767044914 | M152: 1638755 | N152: 0.0355 | O152: 1696931 | P152: 49.15175261 | Q152: 0 | R152: 0 | S152: 0 | T152: 51141 | U152: 51141 | V152: 0 | W152: =MIN(H152*parameters!C$22,ROUND(O152+S152-U152+V152,0)) -> 1645790 | X152: 47.67044914 | Z152: 0 | AA152: 0 | AB152: 0 | AC152: 0.0004491393487 | AE152: 0.0310738308 | AF152: 1.48175261 | AG152: 0 | AI152: 0.0355
A153: 144 | B153: Ipswich | C153: 2987460300 | D153: 10324208.63 | E153: 691350000 | F153: 10357070 | G153: 20681279 | H153: 18789938.59 | I153: 15501699 | J153: 15501699 | K153: 82.5 | L153: 1.100657083 | M153: 15059177 | N153: 0.0371 | O153: 15617872 | P153: 83.11827058 | Q153: 0 | R153: 0 | S153: 0 | T153: 116173 | U153: 116173 | V153: 0 | W153: =MIN(H153*parameters!C$22,ROUND(O153+S153-U153+V153,0)) -> 15501699 | X153: 82.4999982 | Z153: 0 | AA153: 0 | AB153: 0 | AC153: -1.795249474e-06 | AE153: 0.007494210796 | AF153: 0.618270582 | AG153: 0 | AI153: 0.0371
A154: 145 | B154: Kingston | C154: 2120211600 | D154: 7327128.966 | E154: 553599000 | F154: 8293431.104 | G154: 15620560 | H154: 23149457.37 | I154: 19098302 | J154: 15620560 | K154: 67.48 | L154: 0.674770028 | M154: 14136696 | N154: 0.047 | O154: 14801121 | P154: 63.93722653 | Q154: 3.542773474 | R154: 0.01 | S154: 141367 | T154: 0 | U154: 0 | V154: 0 | W154: =MIN(H154*parameters!C$22,ROUND(O154+S154-U154+V154,0)) -> 14942488 | X154: 64.54789743 | Z154: -819439 | AA154: 678072 | AB154: 0 | AC154: -2.932102572 | AE154: -0.05245900275 | AF154: -3.542773474 | AG154: 141366.96 | AI154: 0.047
A155: 146 | B155: Lakeville | C155: 1774669700 | D155: 6132988.69 | E155: 445087000 | F155: 6667819.793 | G155: 12800808 | H155: 19109510.65 | I155: 15765346 | J155: 12800808 | K155: 66.99 | L155: 0.669865819 | M155: 11759187 | N155: 0.0493 | O155: 12338915 | P155: 64.5694975 | Q155: 2.4205025 | R155: 0 | S155: 0 | T155: 0 | U155: 0 | V155: 0 | W155: =MIN(H155*parameters!C$22,ROUND(O155+S155-U155+V155,0)) -> 12338915 | X155: 64.5694975 | Z155: -461893 | AA155: 461893 | AB155: 0 | AC155: -2.4205025 | AE155: -0.03608311288 | AF155: -2.4205025 | AG155: 0 | AI155: 0.0493
A156: 147 | B156: Lancaster | C156: 954886800 | D156: 3299943.615 | E156: 288244000 | F156: 4318164.872 | G156: 7618108 | H156: 10913048.91 | I156: 9003265 | J156: 7618108 | K156: 69.81 | L156: 0.6980732941 | M156: 7194901 | N156: 0.0419 | O156: 7496367 | P156: 68.69177499 | Q156: 1.118225015 | R156: 0 | S156: 0 | T156: 0 | U156: 0 | V156: 0 | W156: =MIN(H156*parameters!C$22,ROUND(O156+S156-U156+V156,0)) -> 7496367 | X156: 68.69177499 | Z156: -121741 | AA156: 121741 | AB156: 0 | AC156: -1.118225015 | AE156: -0.01598047704 | AF156: -1.118225015 | AG156: 0 | AI156: 0.0419
A157: 148 | B157: Lanesborough | C157: 402579400 | D157: 1391253.205 | E157: 78164000 | F157: 1170969.87 | G157: 2562223 | H157: 4405343.061 | I157: 3634408 | J157: 2562223 | K157: 58.16 | L157: 0.5816171327 | M157: 2590120 | N157: 0.0474 | O157: 2712892 | P157: 61.58185554 | Q157: 0 | R157: 0 | S157: 0 | T157: 150669 | U157: 150669 | V157: 0 | W157: =MIN(H157*parameters!C$22,ROUND(O157+S157-U157+V157,0)) -> 2562223 | X157: 58.16171327 | Z157: 0 | AA157: 0 | AB157: 0 | AC157: 0.001713274911 | AE157: 0.05880401511 | AF157: 3.421855541 | AG157: 0 | AI157: 0.0474
A158: 149 | B158: Lawrence | C158: 4238762700 | D158: 14648519.5 | E158: 1241902000 | F158: 18604854.19 | G158: 33253374 | H158: 236181726.1 | I158: 194849924 | J158: 33253374 | K158: 14.08 | L158: 0.1407957108 | M158: 11289169 | N158: 0.059 | O158: 11955230 | P158: 5.061877647 | Q158: 9.018122353 | R158: 0.02 | S158: 225783 | T158: 0 | U158: 0 | V158: 0 | W158: =MIN(H158*parameters!C$22,ROUND(O158+S158-U158+V158,0)) -> 12181013 | X158: 5.157474797 | Z158: -21298144 | AA158: 21072361 | AB158: 0 | AC158: -8.922525203 | AE158: -0.6404806923 | AF158: -9.018122353 | AG158: 225783.38 | AI158: 0.059
A159: 150 | B159: Lee | C159: 973498900 | D159: 3364264.203 | E159: 166520000 | F159: 2494625.437 | G159: 5858890 | H159: 7374237.847 | I159: 6083746 | J159: 5858890 | K159: 79.45 | L159: 0.7945078694 | M159: 5777761 | N159: 0.0332 | O159: 5969583 | P159: 80.9518641 | Q159: 0 | R159: 0 | S159: 0 | T159: 110693 | U159: 110693 | V159: 0 | W159: =MIN(H159*parameters!C$22,ROUND(O159+S159-U159+V159,0)) -> 5858890 | X159: 79.45078694 | Z159: 0 | AA159: 0 | AB159: 0 | AC159: 0.0007869358298 | AE159: 0.01889316918 | AF159: 1.501864095 | AG159: 0 | AI159: 0.0332
A160: 151 | B160: Leicester | C160: 985402100 | D160: 3405399.852 | E160: 331359000 | F160: 4964067.921 | G160: 8369468 | H160: 17701915.2 | I160: 14604080 | J160: 8369468 | K160: 47.28 | L160: 0.472800141 | M160: 8057611 | N160: 0.044 | O160: 8412146 | P160: 47.52110665 | Q160: 0 | R160: 0 | S160: 0 | T160: 42678 | U160: 42678 | V160: 0 | W160: =MIN(H160*parameters!C$22,ROUND(O160+S160-U160+V160,0)) -> 8369468 | X160: 47.2800141 | Z160: 0 | AA160: 0 | AB160: 0 | AC160: 1.409587948e-05 | AE160: 0.005099248841 | AF160: 0.241106653 | AG160: 0 | AI160: 0.044
A161: 152 | B161: Lenox | C161: 1265446400 | D161: 4373190.38 | E161: 226629000 | F161: 3395114.51 | G161: 7768305 | H161: 5511981.85 | I161: 4547385 | J161: 4547385 | K161: 82.5 | L161: 1.409348799 | M161: 4424183 | N161: 0.0455 | O161: 4625483 | P161: 83.91687647 | Q161: 0 | R161: 0 | S161: 0 | T161: 78098 | U161: 78098 | V161: 0 | W161: =MIN(H161*parameters!C$22,ROUND(O161+S161-U161+V161,0)) -> 4547385 | X161: 82.49999953 | Z161: 0 | AA161: 0 | AB161: 0 | AC161: -4.749325058e-07 | AE161: 0.01717426609 | AF161: 1.416876469 | AG161: 0 | AI161: 0.0455
A162: 153 | B162: Leominster | C162: 3785321000 | D162: 13081493.91 | E162: 1170639000 | F162: 17537267.76 | G162: 30618762 | H162: 77172702.96 | I162: 63667480 | J162: 30618762 | K162: 39.68 | L162: 0.3967563766 | M162: 28957291 | N162: 0.0404 | O162: 30127166 | P162: 39.03863004 | Q162: 0.6413699588 | R162: 0 | S162: 0 | T162: 0 | U162: 0 | V162: 0 | W162: =MIN(H162*parameters!C$22,ROUND(O162+S162-U162+V162,0)) -> 30127166 | X162: 39.03863004 | Z162: -491596 | AA162: 491596 | AB162: 0 | AC162: -0.6413699588 | AE162: -0.0160553846 | AF162: -0.6413699588 | AG162: 0 | AI162: 0.0404
A163: 154 | B163: Leverett | C163: 273488400 | D163: 945134.3335 | E163: 74600000 | F163: 1117577.814 | G163: 2062712 | H163: 2419876.44 | I163: 1996398 | J163: 1996398 | K163: 82.5 | L163: 0.8524038524 | M163: 1736008 | N163: 0.0382 | O163: 1802324 | P163: 74.48000113 | Q163: 8.019998874 | R163: 0.02 | S163: 34720 | T163: 0 | U163: 0 | V163: 0 | W163: =MIN(H163*parameters!C$22,ROUND(O163+S163-U163+V163,0)) -> 1837044 | X163: 75.91478513 | Z163: -194074 | AA163: 159354 | AB163: 0 | AC163: -6.585214874 | AE163: -0.09721207895 | AF163: -8.019998874 | AG163: 17360.08 | AI163: 0.0382
A164: 155 | B164: Lexington | C164: 12008478900 | D164: 41499477.5 | E164: 3541165000 | F164: 53049965.69 | G164: 94549443 | H164: 81235891.51 | I164: 67019610 | J164: 67019610 | K164: 82.5 | L164: 1.163887553 | M164: 63645654 | N164: 0.051 | O164: 66891582 | P164: 82.3423991 | Q164: 0.1576008967 | R164: 0 | S164: 0 | T164: 0 | U164: 0 | V164: 0 | W164: =MIN(H164*parameters!C$22,ROUND(O164+S164-U164+V164,0)) -> 66891582 | X164: 82.3423991 | Z164: -128028 | AA164: 128028 | AB164: 0 | AC164: -0.1576008967 | AE164: -0.001910306551 | AF164: -0.1576008967 | AG164: 0 | AI164: 0.051
A165: 156 | B165: Leyden | C165: 92167800 | D165: 318517.905 | E165: 25146000 | F165: 376710.6128 | G165: 695229 | H165: 702392.4696 | I165: 579474 | J165: 579474 | K165: 82.5 | L165: 0.9898013292 | M165: 570252 | N165: 0.0341 | O165: 589698 | P165: 83.95562674 | Q165: 0 | R165: 0 | S165: 0 | T165: 10224 | U165: 10224 | V165: 0 | W165: =MIN(H165*parameters!C$22,ROUND(O165+S165-U165+V165,0)) -> 579474 | X165: 82.50003027 | Z165: 0 | AA165: 0 | AB165: 0 | AC165: 3.026933651e-05 | AE165: 0.01764358712 | AF165: 1.45562674 | AG165: 0 | AI165: 0.0341
A166: 157 | B166: Lincoln | C166: 2292229800 | D166: 7921597.714 | E166: 950308000 | F166: 14236503.18 | G166: 22158101 | H166: 8782086.841 | I166: 7245222 | J166: 7245222 | K166: 82.5 | L166: 2.523102014 | M166: 6942981 | N166: 0.0322 | O166: 7166545 | P166: 81.60412359 | Q166: 0.8958764072 | R166: 0 | S166: 0 | T166: 0 | U166: 0 | V166: 78677 | W166: =MIN(H166*parameters!C$22,ROUND(O166+S166-U166+V166,0)) -> 7245222 | X166: 82.50000405 | Z166: -78677 | AA166: 0 | AB166: 0 | AC166: 4.052943652e-06 | AE166: -0.01085915656 | AF166: -0.8958764072 | AG166: 0 | AI166: 0.0322
A167: 158 | B167: Littleton | C167: 1969238900 | D167: 6805390.266 | E167: 491226000 | F167: 7359025.192 | G167: 14164415 | H167: 17126757.05 | I167: 14129575 | J167: 14129575 | K167: 82.5 | L167: 0.8270342693 | M167: 12968265 | N167: 0.0679 | O167: 13848810 | P167: 80.86066709 | Q167: 1.639332908 | R167: 0 | S167: 0 | T167: 0 | U167: 0 | V167: 0 | W167: =MIN(H167*parameters!C$22,ROUND(O167+S167-U167+V167,0)) -> 13848810 | X167: 80.86066709 | Z167: -280765 | AA167: 280765 | AB167: 0 | AC167: -1.639332908 | AE167: -0.01987073213 | AF167: -1.639332908 | AG167: 0 | AI167: 0.0679
A168: 159 | B168: Longmeadow | C168: 2157229000 | D168: 7455055.473 | E168: 1139259000 | F168: 17067165.99 | G168: 24522221 | H168: 29113308.34 | I168: 24018479 | J168: 24018479 | K168: 82.5 | L168: 0.8423027955 | M168: 22667571 | N168: 0.0352 | O168: 23465469 | P168: 80.60048939 | Q168: 1.899510607 | R168: 0 | S168: 0 | T168: 0 | U168: 0 | V168: 0 | W168: =MIN(H168*parameters!C$22,ROUND(O168+S168-U168+V168,0)) -> 23465469 | X168: 80.60048939 | Z168: -553010 | AA168: 553010 | AB168: 0 | AC168: -1.899510607 | AE168: -0.02302435554 | AF168: -1.899510607 | AG168: 0 | AI168: 0.0352
A169: 160 | B169: Lowell | C169: 8192976800 | D169: 28313682.29 | E169: 2374391000 | F169: 35570599.25 | G169: 63884282 | H169: 244799668.4 | I169: 201959726 | J169: 63884282 | K169: 26.1 | L169: 0.2609655578 | M169: 54568899 | N169: 0.0385 | O169: 56669802 | P169: 23.14946028 | Q169: 2.950539719 | R169: 0.01 | S169: 545689 | T169: 0 | U169: 0 | V169: 0 | W169: =MIN(H169*parameters!C$22,ROUND(O169+S169-U169+V169,0)) -> 57215491 | X169: 23.37237276 | Z169: -7214480 | AA169: 6668791 | AB169: 0 | AC169: -2.727627243 | AE169: =(O169-J169)/J169 -> -0.1129304388 | AF169: -2.950539719 | AG169: 1091377.98 | AI169: 0.0385
A170: 161 | B170: Ludlow | C170: 2154384900 | D170: 7445226.695 | E170: 583946000 | F170: 8748057.564 | G170: 16193284 | H170: 29028174.44 | I170: 23948244 | J170: 16193284 | K170: 55.78 | L170: 0.5578471368 | M170: 15760434 | N170: 0.0434 | O170: 16444437 | P170: 56.64991793 | Q170: 0 | R170: 0 | S170: 0 | T170: 251153 | U170: 251153 | V170: 0 | W170: =MIN(H170*parameters!C$22,ROUND(O170+S170-U170+V170,0)) -> 16193284 | X170: 55.78471368 | Z170: 0 | AA170: 0 | AB170: 0 | AC170: 0.004713679524 | AE170: =(O170-J170)/J170 -> 0.01550970143 | AF170: =P170-K170 -> 0.869917933 | AG170: 0 | AI170: 0.0434
A171: 162 | B171: Lunenburg | C171: 1405368400 | D171: 4856739.54 | E171: 415497000 | F171: 6224533.902 | G171: 11081273 | H171: 19205112.49 | I171: 15844218 | J171: 11081273 | K171: 57.7 | L171: 0.5769959954 | M171: 10427328 | N171: 0.0443 | O171: 10889259 | P171: 56.69979285 | Q171: 1.000207153 | R171: 0 | S171: 0 | T171: 0 | U171: 0 | V171: 0 | W171: =MIN(H171*parameters!C$22,ROUND(O171+S171-U171+V171,0)) -> 10889259 | X171: 56.69979285 | Z171: -192014 | AA171: 192014 | AB171: 0 | AC171: -1.000207153 | AE171: -0.01732779257 | AF171: -1.000207153 | AG171: 0 | AI171: 0.0443
A172: 163 | B172: Lynn | C172: 7895464600 | D172: 27285525.35 | E172: 1944277000 | F172: 29127089.01 | G172: 56412614 | H172: 238010020.2 | I172: 196358267 | J172: 56412614 | K172: 23.7 | L172: 0.237017811 | M172: 50739190 | N172: 0.0281 | O172: 52164961 | P172: 21.91712809 | Q172: 1.782871911 | R172: 0 | S172: 0 | T172: 0 | U172: 0 | V172: 0 | W172: =MIN(H172*parameters!C$22,ROUND(O172+S172-U172+V172,0)) -> 52164961 | X172: 21.91712809 | Z172: -4247653 | AA172: 4247653 | AB172: 0 | AC172: -1.782871911 | AE172: -0.07529615628 | AF172: -1.782871911 | AG172: 507391.9 | AI172: 0.0281
A173: 164 | B173: Lynnfield | C173: 3324301800 | D173: 11488281.65 | E173: 958736000 | F173: 14362762.51 | G173: 25851044 | H173: 23512343.12 | I173: 19397683 | J173: 19397683 | K173: 82.5 | L173: 1.099466942 | M173: 18518182 | N173: 0.0353 | O173: 19171874 | P173: 81.53961474 | Q173: 0.9603852573 | R173: 0 | S173: 0 | T173: 0 | U173: 0 | V173: 0 | W173: =MIN(H173*parameters!C$22,ROUND(O173+S173-U173+V173,0)) -> 19171874 | X173: 81.53961474 | Z173: -225809 | AA173: 225809 | AB173: 0 | AC173: -0.9603852573 | AE173: -0.0116410295 | AF173: -0.9603852573 | AG173: 0 | AI173: 0.0353
A174: 165 | B174: Malden | C174: 7590689100 | D174: 26232267.56 | E174: 1612935000 | F174: 24163275.76 | G174: 50395543 | H174: 97560846.34 | I174: 80487698 | J174: 50395543 | K174: 51.66 | L174: 0.5165550002 | M174: 42468410 | N174: 0.0498 | O174: 44583337 | P174: 45.69798098 | Q174: 5.962019023 | R174: 0.01 | S174: 424684 | T174: 0 | U174: 0 | V174: 0 | W174: =MIN(H174*parameters!C$22,ROUND(O174+S174-U174+V174,0)) -> 45008021 | X174: 46.13328265 | Z174: -5812206 | AA174: 5387522 | AB174: 0 | AC174: -5.526717346 | AE174: -0.1153317467 | AF174: -5.962019023 | AG174: 849368.2 | AI174: 0.0498
A175: 166 | B175: Manchester | C175: 2526294800 | D175: 8730490.77 | E175: 702892000 | F175: 10529979.96 | G175: 19260471 | H175: 9000480.697 | I175: 7425397 | J175: 7425397 | K175: 82.5 | L175: 2.139938038 | M175: 6925007 | N175: 0.0328 | O175: 7152147 | P175: 79.46405577 | Q175: 3.035944234 | R175: 0.01 | S175: 69250 | T175: 0 | U175: 0 | V175: 204000 | W175: =MIN(H175*parameters!C$22,ROUND(O175+S175-U175+V175,0)) -> 7425397 | X175: 82.50000473 | Z175: -273250 | AA175: 0 | AB175: 0 | AC175: 4.725346855e-06 | AE175: -0.03679937921 | AF175: -3.035944234 | AG175: 0 | AI175: 0.0328
A176: 167 | B176: Mansfield | C176: 3826144000 | D176: 13222572 | E176: 1100621000 | F176: 16488332.59 | G176: 29710905 | H176: 43917065.65 | I176: 36231579 | J176: 29710905 | K176: 67.65 | L176: 0.6765229999 | M176: 28700016 | N176: 0.0405 | O176: 29862367 | P176: 67.99718187 | Q176: 0 | R176: 0 | S176: 0 | T176: 151462 | U176: 151462 | V176: 0 | W176: =MIN(H176*parameters!C$22,ROUND(O176+S176-U176+V176,0)) -> 29710905 | X176: 67.65229999 | Z176: 0 | AA176: 0 | AB176: 0 | AC176: 0.002299991832 | AE176: 0.00509785885 | AF176: 0.3471818681 | AG176: 0 | AI176: 0.0405
A177: 168 | B177: Marblehead | C177: 6182649400 | D177: 21366296.41 | E177: 1684798000 | F177: 25239850.75 | G177: 46606147 | H177: 33225424.55 | I177: 27410975 | J177: 27410975 | K177: 82.5 | L177: 1.402725402 | M177: 26376431 | N177: 0.0308 | O177: 27188825 | P177: 81.83138477 | Q177: 0.6686152339 | R177: 0 | S177: 0 | T177: 0 | U177: 0 | V177: 0 | W177: =MIN(H177*parameters!C$22,ROUND(O177+S177-U177+V177,0)) -> 27188825 | X177: 81.83138477 | Z177: -222150 | AA177: 222150 | AB177: 0 | AC177: -0.6686152339 | AE177: -0.00810441803 | AF177: -0.6686152339 | AG177: 0 | AI177: 0.0308
A178: 169 | B178: Marion | C178: 1693499100 | D178: 5852475.436 | E178: 279647000 | F178: 4189373.767 | G178: 10041849 | H178: 8384746.312 | I178: 6917416 | J178: 6917416 | K178: 82.5 | L178: 1.197633014 | M178: 6719010 | N178: 0.0279 | O178: 6906470 | P178: 82.36945691 | Q178: 0.130543095 | R178: 0 | S178: 0 | T178: 0 | U178: 0 | V178: 0 | W178: =MIN(H178*parameters!C$22,ROUND(O178+S178-U178+V178,0)) -> 6906470 | X178: 82.36945691 | Z178: -10946 | AA178: 10946 | AB178: 0 | AC178: -0.130543095 | AE178: -0.001582382786 | AF178: -0.130543095 | AG178: 0 | AI178: 0.0279
A179: 170 | B179: Marlborough | C179: 5880360000 | D179: 20321630.2 | E179: 1424311000 | F179: 21337511.72 | G179: 41659142 | H179: 71802369.34 | I179: 59236955 | J179: 41659142 | K179: 58.02 | L179: 0.5801917455 | M179: 37698705 | N179: 0.0478 | O179: 39500703 | P179: 55.0130913 | Q179: 3.006908703 | R179: 0.01 | S179: 376987 | T179: 0 | U179: 0 | V179: 0 | W179: =MIN(H179*parameters!C$22,ROUND(O179+S179-U179+V179,0)) -> 39877690 | X179: 55.5381255 | Z179: -2158439 | AA179: 1781452 | AB179: 0 | AC179: -2.481874497 | AE179: -0.05181189281 | AF179: -3.006908703 | AG179: 376987.05 | AI179: 0.0478
A180: 171 | B180: Marshfield | C180: 5107817200 | D180: 17651839.73 | E180: 1199390000 | F180: 17967984.65 | G180: 35619824 | H180: 43523657.53 | I180: 35907017 | J180: 35619824 | K180: 81.84 | L180: 0.8184014401 | M180: 34492037 | N180: 0.0385 | O180: 35819980 | P180: 82.30002264 | Q180: 0 | R180: 0 | S180: 0 | T180: 200156 | U180: 200156 | V180: 0 | W180: =MIN(H180*parameters!C$22,ROUND(O180+S180-U180+V180,0)) -> 35619824 | X180: 81.84014401 | Z180: 0 | AA180: 0 | AB180: 0 | AC180: 0.0001440114889 | AE180: 0.00561923046 | AF180: 0.4600226416 | AG180: 0 | AI180: 0.0385
A181: 172 | B181: Mashpee | C181: 5605682100 | D181: 19372385.14 | E181: 535123000 | F181: 8016643.333 | G181: 27389028 | H181: 19507075.49 | I181: 16093337 | J181: 16093337 | K181: 82.5 | L181: 1.404056083 | M181: 15106290 | N181: 0.0485 | O181: 15838945 | P181: 81.1958974 | Q181: 1.304102605 | R181: 0 | S181: 0 | T181: 0 | U181: 0 | V181: 0 | W181: =MIN(H181*parameters!C$22,ROUND(O181+S181-U181+V181,0)) -> 15838945 | X181: 81.1958974 | Z181: -254392 | AA181: 254392 | AB181: 0 | AC181: -1.304102605 | AE181: -0.0158072872 | AF181: -1.304102605 | AG181: 0 | AI181: 0.0485
A182: 173 | B182: Mattapoisett | C182: 1829130600 | D182: 6321197.281 | E182: 348114000 | F182: 5215073.501 | G182: 11536271 | H182: 9342938.255 | I182: 7707924 | J182: 7707924 | K182: 82.5 | L182: 1.234758347 | M182: 7473095 | N182: 0.0477 | O182: 7829562 | P182: 83.80192383 | Q182: 0 | R182: 0 | S182: 0 | T182: 121638 | U182: 121638 | V182: 0 | W182: =MIN(H182*parameters!C$22,ROUND(O182+S182-U182+V182,0)) -> 7707924 | X182: 82.49999935 | Z182: 0 | AA182: 0 | AB182: 0 | AC182: -6.470800713e-07 | AE182: 0.01578090287 | AF182: 1.30192383 | AG182: 0 | AI182: 0.0477
A183: 174 | B183: Maynard | C183: 1386638200 | D183: 4792010.816 | E183: 406214000 | F183: 6085465.874 | G183: 10877477 | H183: 16624833.95 | I183: 13715488 | J183: 10877477 | K183: 65.43 | L183: 0.6542908657 | M183: 10570689 | N183: 0.0385 | O183: 10977661 | P183: 66.03170312 | Q183: 0 | R183: 0 | S183: 0 | T183: 100184 | U183: 100184 | V183: 0 | W183: =MIN(H183*parameters!C$22,ROUND(O183+S183-U183+V183,0)) -> 10877477 | X183: 65.42908657 | Z183: 0 | AA183: 0 | AB183: 0 | AC183: -0.0009134285746 | AE183: 0.009210224025 | AF183: 0.6017031165 | AG183: 0 | AI183: 0.0385
A184: 175 | B184: Medfield | C184: 2801486200 | D184: 9681510.413 | E184: 1208641000 | F184: 18106573.28 | G184: 27788084 | H184: 26296793.89 | I184: 21694855 | J184: 21694855 | K184: 82.5 | L184: 1.056709959 | M184: 20705663 | N184: 0.0331 | O184: 21391020 | P184: 81.34459316 | Q184: 1.15540684 | R184: 0 | S184: 0 | T184: 0 | U184: 0 | V184: 0 | W184: =MIN(H184*parameters!C$22,ROUND(O184+S184-U184+V184,0)) -> 21391020 | X184: 81.34459316 | Z184: -303835 | AA184: 303835 | AB184: 0 | AC184: -1.15540684 | AE184: -0.01400493343 | AF184: -1.15540684 | AG184: 0 | AI184: 0.0331
A185: 176 | B185: Medford | C185: 10557928900 | D185: 36486597.22 | E185: 2150361000 | F185: 32214420.19 | G185: 68701017 | H185: 58384769.5 | I185: 48167435 | J185: 48167435 | K185: 82.5 | L185: 1.176694155 | M185: 45796187 | N185: 0.0498 | O185: 48076837 | P185: 82.34482625 | Q185: 0.1551737536 | R185: 0 | S185: 0 | T185: 0 | U185: 0 | V185: 0 | W185: =MIN(H185*parameters!C$22,ROUND(O185+S185-U185+V185,0)) -> 48076837 | X185: 82.34482625 | Z185: -90598 | AA185: 90598 | AB185: 0 | AC185: -0.1551737536 | AE185: -0.001880897332 | AF185: -0.1551737536 | AG185: 0 | AI185: 0.0498
A186: 177 | B186: Medway | C186: 2081768600 | D186: 7194275.802 | E186: 669674000 | F186: 10032343.23 | G186: 17226619 | H186: 24708152.06 | I186: 20384225 | J186: 17226619 | K186: 69.72 | L186: 0.6972038604 | M186: 16302656 | N186: 0.0438 | O186: 17016712 | P186: 68.87084051 | Q186: 0.8491594876 | R186: 0 | S186: 0 | T186: 0 | U186: 0 | V186: 0 | W186: =MIN(H186*parameters!C$22,ROUND(O186+S186-U186+V186,0)) -> 17016712 | X186: 68.87084051 | Z186: -209907 | AA186: 209907 | AB186: 0 | AC186: -0.8491594876 | AE186: -0.01218503759 | AF186: -0.8491594876 | AG186: 0 | AI186: 0.0438
A187: 178 | B187: Melrose | C187: 5244113700 | D187: 18122859.71 | E187: 1377947000 | F187: 20642935.61 | G187: 38765795 | H187: 42770327.28 | I187: 35285520 | J187: 35285520 | K187: 82.5 | L187: 0.9063712501 | M187: 32932239 | N187: 0.0311 | O187: 33956432 | P187: 79.39249981 | Q187: 3.107500194 | R187: 0.01 | S187: 329322 | T187: 0 | U187: 0 | V187: 0 | W187: =MIN(H187*parameters!C$22,ROUND(O187+S187-U187+V187,0)) -> 34285754 | X187: 80.16247755 | Z187: -1329088 | AA187: 999766 | AB187: 0 | AC187: -2.337522452 | AE187: -0.03766666893 | AF187: -3.107500194 | AG187: 0 | AI187: 0.0311
A188: 179 | B188: Mendon | C188: 989637700 | D188: 3420037.442 | E188: 344813000 | F188: 5165621.432 | G188: 8585659 | H188: 11378866.73 | I188: 9387565 | J188: 8585659 | K188: 75.45 | L188: 0.7545267208 | M188: 7769381 | N188: 0.0527 | O188: 8178827 | P188: 71.87734239 | Q188: 3.572657609 | R188: 0.01 | S188: 77694 | T188: 0 | U188: 0 | V188: 0 | W188: =MIN(H188*parameters!C$22,ROUND(O188+S188-U188+V188,0)) -> 8256521 | X188: 72.56013446 | Z188: -406832 | AA188: 329138 | AB188: 0 | AC188: -2.889865536 | AE188: -0.04738506386 | AF188: -3.572657609 | AG188: 0 | AI188: 0.0527
A189: 180 | B189: Merrimac | C189: 847714200 | D189: 2929571.402 | E189: 249463000 | F189: 3737189.199 | G189: 6666761 | H189: 9967555.757 | I189: 8223233 | J189: 6666761 | K189: 66.88 | L189: 0.6688461206 | M189: 6042534 | N189: 0.0462 | O189: 6321699 | P189: 63.42276034 | Q189: 3.457239658 | R189: 0.01 | S189: 60425 | T189: 0 | U189: 0 | V189: 0 | W189: =MIN(H189*parameters!C$22,ROUND(O189+S189-U189+V189,0)) -> 6382124 | X189: 64.02897717 | Z189: -345062 | AA189: 284637 | AB189: 0 | AC189: -2.851022833 | AE189: -0.05175856762 | AF189: -3.457239658 | AG189: 60425.34 | AI189: 0.0462
A190: 181 | B190: Methuen | C190: 5783276300 | D190: 19986123.69 | E190: 1476667000 | F190: 22121853.59 | G190: 42107977 | H190: 91730439.72 | I190: 75677613 | J190: 42107977 | K190: 45.9 | L190: 0.4590403919 | M190: 39600184 | N190: 0.0424 | O190: 41279232 | P190: 45.00058228 | Q190: 0.8994177222 | R190: 0 | S190: 0 | T190: 0 | U190: 0 | V190: 0 | W190: =MIN(H190*parameters!C$22,ROUND(O190+S190-U190+V190,0)) -> 41279232 | X190: 45.00058228 | Z190: -828745 | AA190: 828745 | AB190: 0 | AC190: -0.8994177222 | AE190: -0.01968142521 | AF190: -0.8994177222 | AG190: 0 | AI190: 0.0424
A191: 182 | B191: Middleborough | C191: 2710745900 | D191: 9367925.731 | E191: 704320000 | F191: 10551372.74 | G191: 19919298 | H191: 38977008.67 | I191: 32156032 | J191: 19919298 | K191: 51.11 | L191: 0.5110525071 | M191: 18572073 | N191: 0.0439 | O191: 19387387 | P191: 49.74057185 | Q191: 1.369428153 | R191: 0 | S191: 0 | T191: 0 | U191: 0 | V191: 0 | W191: =MIN(H191*parameters!C$22,ROUND(O191+S191-U191+V191,0)) -> 19387387 | X191: 49.74057185 | Z191: -531911 | AA191: 531911 | AB191: 0 | AC191: -1.369428153 | AE191: -0.02670330049 | AF191: -1.369428153 | AG191: 0 | AI191: 0.0439
A192: 183 | B192: Middlefield | C192: 73417000 | D192: 253717.9908 | E192: 10112000 | F192: 151487.2233 | G192: 405205 | H192: 487930.0933 | I192: 402542 | J192: 402542 | K192: 82.5 | L192: 0.8304570789 | M192: 373165 | N192: 0.0292 | O192: 384061 | P192: 78.71230024 | Q192: 3.787699757 | R192: 0.01 | S192: 3732 | T192: 0 | U192: 0 | V192: 0 | W192: =MIN(H192*parameters!C$22,ROUND(O192+S192-U192+V192,0)) -> 387793 | X192: 79.47716391 | Z192: -18481 | AA192: 14749 | AB192: 0 | AC192: -3.022836091 | AE192: -0.04591073726 | AF192: -3.787699757 | AG192: 0 | AI192: 0.0292
A193: 184 | B193: Middleton | C193: 2128852700 | D193: 7356991.294 | E193: 507988000 | F193: 7610135.639 | G193: 14967127 | H193: 14511077.93 | I193: 11971639 | J193: 11971639 | K193: 82.5 | L193: 1.031427649 | M193: 11387900 | N193: 0.0503 | O193: 11960711 | P193: 82.42468999 | Q193: 0.0753100092 | R193: 0 | S193: 0 | T193: 0 | U193: 0 | V193: 0 | W193: =MIN(H193*parameters!C$22,ROUND(O193+S193-U193+V193,0)) -> 11960711 | X193: 82.42468999 | Z193: -10928 | AA193: 10928 | AB193: 0 | AC193: -0.0753100092 | AE193: -0.0009128240502 | AF193: -0.0753100092 | AG193: 0 | AI193: 0.0503
A194: 185 | B194: Milford | C194: 3414149500 | D194: 11798781.64 | E194: 973555000 | F194: 14584765 | G194: 26383547 | H194: 54656412.53 | I194: 45091540 | J194: 26383547 | K194: 48.27 | L194: 0.4827164056 | M194: 25256225 | N194: 0.0311 | O194: 26041694 | P194: 47.64618239 | Q194: 0.6238176113 | R194: 0 | S194: 0 | T194: 0 | U194: 0 | V194: 0 | W194: =MIN(H194*parameters!C$22,ROUND(O194+S194-U194+V194,0)) -> 26041694 | X194: 47.64618239 | Z194: -341853 | AA194: 341853 | AB194: 0 | AC194: -0.6238176113 | AE194: -0.01295705236 | AF194: -0.6238176113 | AG194: 0 | AI194: 0.0311
A195: 186 | B195: Millbury | C195: 1670266000 | D195: 5772185.375 | E195: 436734000 | F195: 6542684.036 | G195: 12314869 | H195: 20541738.13 | I195: 16946934 | J195: 12314869 | K195: 59.95 | L195: 0.5995047217 | M195: 11778558 | N195: 0.0444 | O195: 12301526 | P195: 59.88551661 | Q195: 0.06448338752 | R195: 0 | S195: 0 | T195: 0 | U195: 0 | V195: 0 | W195: =MIN(H195*parameters!C$22,ROUND(O195+S195-U195+V195,0)) -> 12301526 | X195: 59.88551661 | Z195: -13343 | AA195: 13343 | AB195: 0 | AC195: -0.06448338752 | AE195: -0.001083486962 | AF195: -0.06448338752 | AG195: 0 | AI195: 0.0444
A196: 187 | B196: Millis | C196: 1247044700 | D196: 4309596.902 | E196: 344341000 | F196: 5158550.43 | G196: 9468147 | H196: 13389620.36 | I196: 11046437 | J196: 9468147 | K196: 70.71 | L196: 0.7071258743 | M196: 9071434 | N196: 0.0516 | O196: 9539520 | P196: 71.24563465 | Q196: 0 | R196: 0 | S196: 0 | T196: 71373 | U196: 71373 | V196: 0 | W196: =MIN(H196*parameters!C$22,ROUND(O196+S196-U196+V196,0)) -> 9468147 | X196: 70.71258743 | Z196: 0 | AA196: 0 | AB196: 0 | AC196: 0.002587426989 | AE196: 0.007538222632 | AF196: 0.5356346539 | AG196: 0 | AI196: 0.0516
A197: 188 | B197: Millville | C197: 315022800 | D197: 1088670.906 | E197: 98619000 | F197: 1477404.912 | G197: 2566076 | H197: 5903772.269 | I197: 4870612 | J197: 2566076 | K197: 43.47 | L197: 0.4346502343 | M197: 2425421 | N197: 0.028 | O197: 2493333 | P197: 42.23287902 | Q197: 1.237120983 | R197: 0 | S197: 0 | T197: 0 | U197: 0 | V197: 0 | W197: =MIN(H197*parameters!C$22,ROUND(O197+S197-U197+V197,0)) -> 2493333 | X197: 42.23287902 | Z197: -72743 | AA197: 72743 | AB197: 0 | AC197: -1.237120983 | AE197: -0.02834795228 | AF197: -1.237120983 | AG197: 0 | AI197: 0.028
A198: 189 | B198: Milton | C198: 6039459500 | D198: 20871453.89 | E198: 1887787000 | F198: 28280815.94 | G198: 49152270 | H198: 45226902.54 | I198: 37312195 | J198: 37312195 | K198: 82.5 | L198: 1.086792755 | M198: 34302859 | N198: 0.0415 | O198: 35726428 | P198: 78.99375371 | Q198: 3.506246294 | R198: 0.01 | S198: 343029 | T198: 0 | U198: 0 | V198: 0 | W198: =MIN(H198*parameters!C$22,ROUND(O198+S198-U198+V198,0)) -> 36069457 | X198: 79.75221599 | Z198: -1585767 | AA198: 1242738 | AB198: 0 | AC198: -2.747784005 | AE198: -0.04249996549 | AF198: -3.506246294 | AG198: 0 | AI198: 0.0415
A199: 190 | B199: Monroe | C199: 24977400 | D199: 86318.09723 | E199: 1023000 | F199: 15325.49737 | G199: 101644 | H199: 136649.6625 | I199: 112736 | J199: 101644 | K199: 74.38 | L199: 0.7438291333 | M199: 100296 | N199: 0.003 | O199: 100597 | P199: 73.61672044 | Q199: 0.7632795584 | R199: 0 | S199: 0 | T199: 0 | U199: 0 | V199: 0 | W199: =MIN(H199*parameters!C$22,ROUND(O199+S199-U199+V199,0)) -> 100597 | X199: 73.61672044 | Z199: -1047 | AA199: 1047 | AB199: 0 | AC199: -0.7632795584 | AE199: -0.0103006572 | AF199: -0.7632795584 | AG199: 0 | AI199: 0.003
A200: 191 | B200: Monson | C200: 814480800 | D200: 2814721.824 | E200: 248375000 | F200: 3720889.941 | G200: 6535612 | H200: 11773914.84 | I200: 9713480 | J200: 6535612 | K200: 55.51 | L200: 0.5550925151 | M200: 6346707 | N200: 0.0408 | O200: 6605653 | P200: 56.10413436 | Q200: 0 | R200: 0 | S200: 0 | T200: 70041 | U200: 70041 | V200: 0 | W200: =MIN(H200*parameters!C$22,ROUND(O200+S200-U200+V200,0)) -> 6535612 | X200: 55.50925151 | Z200: 0 | AA200: 0 | AB200: 0 | AC200: -0.0007484886271 | AE200: 0.01071682346 | AF200: 0.5941343602 | AG200: 0 | AI200: 0.0408
... 164 more rows

Sheet Aid436
D1: disthist | E1: c70fy19 | G1: disthist
D2: 47 | G2: 49
A3: 1 | B3: 2 | C3: 3 | D3: 4 | E3: 5 | F3: 6 | G3: 7 | H3: 8 | I3: 9 | J3: 10 | K3: 11 | L3: 12 | M3: 13 | N3: 14 | O3: 15 | P3: 16 | Q3: 17 | R3: 18 | S3: 19 | T3: 20 | U3: 21 | V3: 22 | W3: 23 | X3: 24 | Y3: 25 | Z3: 26 | AA3: 27 | AB3: 28 | AC3: 29 | AD3: 30 | AE3: 31 | AF3: 32 | AG3: 33 | AH3: 34 | AI3: 35 | AJ3: 36 | AK3: 37 | AL3: 38 | AM3: 39 | AN3: 40 | AO3: 41 | AP3: 40 | AQ3: 43 | AR3: 44 | AS3: 45 | AT3: 46 | AU3: 47 | AV3: 48 | AW3: 49 | AX3: 50 | AY3: 51 | AZ3: 52 | BA3: 53 | BB3: 54 | BC3: 55
A4: Return to Index | C4: nonop | G4: priorc70 | H4: found | I4: prelcont436 | J4: foundaid | K4: foundinc | O4: downaid | T4: enro | AH4: minaid | AJ4: rednonop | AK4: adjustment | AL4: chapter70
A5: More about the data | G5: Base Aid | H5: Foundation Aid Calculation | N5: Downpayment Aid Calculation | AG5: Minimum Aid Calculation | AK5: Hold harmless to FY20 House budget | AQ5: Analysis
G6: =basecut -> 0 | N6: =downpct -> 0 | AG6: =mininc -> 30 | AK6: 1 | BC6: # hold harmless
D7: foundation | H7: foundation | I7: required | L7: district | N7: increase over PY | O7: down-payment | S7: foundation | T7: foundation | Z7: operating dist | AI7: c70 prior | AO7: nss | BC7: =COUNTIF($BC$10:$BC$447,">0") -> 75
D8: budget | E8: chapter 70 | F8: base aid | H8: budget | I8: contribution | J8: foundation | K8: foundation | L8: target aid | N8: to reach | O8: on full phase-in | S8: enrollment | T8: enrollment | Z8: foundation | AG8: Min Aid | AH8: Addl Aid | AI8: to non-op | AJ8: non-op | AK8: Preliminary | AL8: =CYr -> FY20 | AM8: c70 pct of | AN8: =CYr -> FY20 | AO8: percent of | AS8: Aid Comp'd | AT8: Distance from | AU8: Foundation | AW8: Base Aid | AY8: ∆ in Aid | BB8: FOR MACRO
A9: LEA | B9: District | C9: Non-Op | D9: =PYr -> FY19 | E9: =PYr -> FY19 | F9: adjustment | G9: base aid | H9: =CYr -> FY20 | I9: =CYr -> FY20 | J9: aid | K9: aid increase | L9: percentage | N9: full phase-in | O9: of foundation aid | P9: blank | Q9: blank | R9: blank | S9: =PYr -> FY19 | T9: =CYr -> FY20 | U9: blank | V9: blank | W9: blank | X9: blank | Y9: blank | Z9: aid? | AA9: blank | AB9: blank | AE9: blank | AF9: blank | AG9: Per Pupil | AH9: to Reach Min | AI9: reduction | AJ9: reduction | AK9: Chapter 70 | AL9: Chapter 70 | AM9: foundation | AN9: Required NSS | AO9: foundation | AP9: blank | AQ9: ∆ in Foundation Budget | AR9: ∆ in Aid | AS9: to Target | AT9: Aid Target | AU9: Budget PP | AV9: blank | AW9: Reduction | AX9: blank | AY9: per pupil | BB9: FY20 House aid | BC9: HOLD HARMLESS AMOUNT
A10: 1 | B10: Abington | C10: 1 | D10: =VLOOKUP(A10, disthist, D$2, FALSE) -> 21515960.21 | E10: 7816931 | F10: 0 | G10: =VLOOKUP(A10, disthist, G$2, FALSE)*(1-$G$6) -> 7816931 | H10: =SUMIF(dist1755,A10,found1755) -> 23388476.61 | I10: =SUMIF(dist1755,A10,prelcont1755) -> 14463601 | J10: =ROUND(MAX(found-prelcont436,0),0) -> 8924876 | K10: =IF(foundaid>priorc70,foundaid-priorc70,0) -> 1107945 | L10: =ROUND(100-'Townwide Contributions'!K10,2) -> 36.63 | N10: =ROUND(IF(M10>priorc70,N$6*(M10-priorc70),0),0) -> 0 | O10: =IF(N10>K10,N10-K10,0) -> 0 | S10: 2024 | T10: =SUMIF(dist1755,A10,enro1755) -> 2105 | Z10: =IF(AND(C10=1,K10>0),1,0) -> 1 | AD10: 0 | AG10: =IF(nonop=1,enro*$AG$6,0) -> 63150 | AH10: =IF((foundinc+downaid)<AG10,AG10-(foundinc+downaid),0) -> 0 | AI10: =priorc70+foundinc+downaid+minaid -> 8924876 | AJ10: =IF(AND(C10=0,AI10>found),AI10-found,0) -> 0 | AK10: =priorc70+foundinc+minaid+transitional-rednonop -> 8924876 | AL10: =ROUND(IF(AND($AK$6=1),IF(AK10>BB10,AK10,BB10),AK10),0) -> 8933994 | AM10: =IF(C10=1, AL10/H10*100, 0) -> 38.19827238 | AN10: =prelcont436+chapter70 -> 23397595 | AO10: =IF(found>0,AN10*100/found,0) -> 100.0389867 | AQ10: =H10-D10 -> 1872516.395 | AR10: =AL10-G10 -> 1117063 | AS10: =AL10-((L10/100)*H10) -> 366795.0179 | AT10: =IF(C10=1, (AL10/H10*100)-L10, "") -> 1.568272376 | AU10: =IFERROR(ROUND(H10/T10, 2), 0) -> 11110.92 | AW10: =VLOOKUP(A10, disthist, 37, FALSE)*$G$6 -> 0 | AY10: =IFERROR(AR10/T10, 0) -> 530.6712589 | BB10: 8933994 | BC10: =AL10-AK10 -> 9118
A11: 2 | B11: Acton | C11: 0 | D11: =VLOOKUP(A11, disthist, D$2, FALSE) -> 0 | E11: 0 | F11: 0 | G11: 0 | H11: 0 | I11: =SUMIF(dist1755,A11,prelcont1755) -> 0 | J11: =ROUND(MAX(found-prelcont436,0),0) -> 0 | K11: 0 | L11: =ROUND(100-'Townwide Contributions'!K11,2) -> 17.61 | N11: =ROUND(IF(M11>priorc70,N$6*(M11-priorc70),0),0) -> 0 | O11: =IF(N11>K11,N11-K11,0) -> 0 | S11: 0 | T11: 0 | Z11: 0 | AD11: 0 | AG11: 0 | AH11: 0 | AI11: =priorc70+foundinc+downaid+minaid -> 0 | AJ11: 0 | AK11: 0 | AL11: =ROUND(IF(AND($AK$6=1),IF(AK11>BB11,AK11,BB11),AK11),0) -> 0 | AM11: 0 | AN11: 0 | AO11: 0 | AQ11: 0 | AR11: 0 | AS11: =AL11-((L11/100)*H11) -> 0 | AU11: 0 | AW11: 0 | AY11: 0 | BB11: 0 | BC11: =AL11-AK11 -> 0
A12: 3 | B12: Acushnet | C12: 1 | D12: 12395984.84 | E12: 6323332 | F12: 0 | G12: 6323332 | H12: 13443441.48 | I12: 7498601 | J12: 5944840 | K12: 0 | L12: =ROUND(100-'Townwide Contributions'!K12,2) -> 43 | N12: 0 | O12: 0 | S12: 1227 | T12: 1272 | Z12: 0 | AD12: 0 | AG12: 38160 | AH12: 38160 | AI12: 6361492 | AJ12: 0 | AK12: 6361492 | AL12: 6361492 | AM12: 47.32041277 | AN12: 13860093 | AO12: 103.0992921 | AQ12: 1047456.642 | AR12: 38160 | AS12: 580812.1626 | AT12: 4.320412771 | AU12: 10568.74 | AW12: 0 | AY12: 30 | BB12: 6361492 | BC12: 0
A13: 4 | B13: Adams | C13: 0 | D13: 0 | E13: 0 | F13: 0 | G13: 0 | H13: 0 | I13: 0 | J13: 0 | K13: 0 | L13: =ROUND(100-'Townwide Contributions'!K13,2) -> 66.45 | N13: 0 | O13: 0 | S13: 0 | T13: 0 | Z13: 0 | AD13: 0 | AG13: 0 | AH13: 0 | AI13: 0 | AJ13: 0 | AK13: 0 | AL13: 0 | AM13: 0 | AN13: 0 | AO13: 0 | AQ13: 0 | AR13: 0 | AS13: 0 | AU13: 0 | AW13: 0 | AY13: 0 | BB13: 0 | BC13: 0
A14: 5 | B14: Agawam | C14: 1 | D14: 41326070.32 | E14: 19367102 | F14: 0 | G14: 19367102 | H14: 42227451.05 | I14: 22951211 | J14: 19276240 | K14: 0 | L14: =ROUND(100-'Townwide Contributions'!K14,2) -> 45.65 | N14: 0 | O14: 0 | S14: 3773 | T14: 3677 | Z14: 0 | AD14: 0 | AG14: 110310 | AH14: 110310 | AI14: 19477412 | AJ14: 0 | AK14: 19477412 | AL14: 19477412 | AM14: 46.12500048 | AN14: 42428623 | AO14: 100.4764009 | AQ14: 901380.7294 | AR14: 110310 | AS14: 200580.596 | AT14: 0.4750004818 | AU14: 11484.21 | AW14: 0 | AY14: 30 | BB14: 19477412 | BC14: 0
A15: 6 | B15: Alford | C15: 0 | D15: 0 | E15: 0 | F15: 0 | G15: 0 | H15: 0 | I15: 0 | J15: 0 | K15: 0 | L15: =ROUND(100-'Townwide Contributions'!K15,2) -> 17.5 | N15: 0 | O15: 0 | S15: 0 | T15: 0 | Z15: 0 | AD15: 0 | AG15: 0 | AH15: 0 | AI15: 0 | AJ15: 0 | AK15: 0 | AL15: 0 | AM15: 0 | AN15: 0 | AO15: 0 | AQ15: 0 | AR15: 0 | AS15: 0 | AU15: 0 | AW15: 0 | AY15: 0 | BB15: 0 | BC15: 0
A16: 7 | B16: Amesbury | C16: 1 | D16: 22830750.46 | E16: 9127527 | F16: 0 | G16: 9127527 | H16: 22996252.75 | I16: 15621860 | J16: 7374393 | K16: 0 | L16: =ROUND(100-'Townwide Contributions'!K16,2) -> 30.55 | N16: 0 | O16: 0 | S16: 2198 | T16: 2112 | Z16: 0 | AD16: 0 | AG16: 63360 | AH16: 63360 | AI16: 9190887 | AJ16: 0 | AK16: 9190887 | AL16: 9190887 | AM16: 39.96688983 | AN16: 24812747 | AO16: 107.8990881 | AQ16: 165502.2855 | AR16: 63360 | AS16: 2165531.786 | AT16: 9.416889831 | AU16: 10888.38 | AW16: 0 | AY16: 30 | BB16: 9190887 | BC16: 0
A17: 8 | B17: Amherst | C17: 1 | D17: 11969353.38 | E17: 6088203 | F17: 0 | G17: 6088203 | H17: 12803970.65 | I17: 9508882 | J17: 3295089 | K17: 0 | L17: =ROUND(100-'Townwide Contributions'!K17,2) -> 25.49 | N17: 0 | O17: 0 | S17: 1106 | T17: 1134 | Z17: 0 | AD17: 0 | AG17: 34020 | AH17: 34020 | AI17: 6122223 | AJ17: 0 | AK17: 6122223 | AL17: 6122223 | AM17: 47.81503463 | AN17: 15631105 | AO17: 122.0801377 | AQ17: 834617.2691 | AR17: 34020 | AS17: 2858490.882 | AT17: 22.32503463 | AU17: 11290.98 | AW17: 0 | AY17: 30 | BB17: 6122223 | BC17: 0
A18: 9 | B18: Andover | C18: 1 | D18: 60546641.05 | E18: 10595662 | F18: 0 | G18: 10595662 | H18: 63835635.79 | I18: 52178457 | J18: 11657179 | K18: 1061517 | L18: =ROUND(100-'Townwide Contributions'!K18,2) -> 17.5 | N18: 0 | O18: 0 | S18: 5805 | T18: 5835 | Z18: 1 | AD18: 0 | AG18: 175050 | AH18: 0 | AI18: 11657179 | AJ18: 0 | AK18: 11657179 | AL18: 11668291 | AM18: 18.27864774 | AN18: 63846748 | AO18: 100.0174075 | AQ18: 3288994.744 | AR18: 1072629 | AS18: 497054.7361 | AT18: 0.778647741 | AU18: 10940.13 | AW18: 0 | AY18: 183.8267352 | BB18: 11668291 | BC18: 11112
A19: 10 | B19: Arlington | C19: 1 | D19: 58002940.65 | E19: 11765923 | F19: 0 | G19: 11765923 | H19: 62294073.1 | I19: 48330137 | J19: 13963936 | K19: 2198013 | L19: =ROUND(100-'Townwide Contributions'!K19,2) -> 17.5 | N19: 0 | O19: 0 | S19: 5785 | T19: 5980 | Z19: 1 | AD19: 0 | AG19: 179400 | AH19: 0 | AI19: 13963936 | AJ19: 0 | AK19: 13963936 | AL19: 13979327 | AM19: 22.44086204 | AN19: 62309464 | AO19: 100.0247068 | AQ19: 4291132.451 | AR19: 2213404 | AS19: 3077864.208 | AT19: 4.940862036 | AU19: 10417.07 | AW19: 0 | AY19: 370.1344482 | BB19: 13979327 | BC19: 15391
A20: 11 | B20: Ashburnham | C20: 0 | D20: 0 | E20: 0 | F20: 0 | G20: 0 | H20: 0 | I20: 0 | J20: 0 | K20: 0 | L20: =ROUND(100-'Townwide Contributions'!K20,2) -> 52.99 | N20: 0 | O20: 0 | S20: 0 | T20: 0 | Z20: 0 | AD20: 0 | AG20: 0 | AH20: 0 | AI20: 0 | AJ20: 0 | AK20: 0 | AL20: 0 | AM20: 0 | AN20: 0 | AO20: 0 | AQ20: 0 | AR20: 0 | AS20: 0 | AU20: 0 | AW20: 0 | AY20: 0 | BB20: 0 | BC20: 0
A21: 12 | B21: Ashby | C21: 0 | D21: 0 | E21: 0 | F21: 0 | G21: 0 | H21: 0 | I21: 0 | J21: 0 | K21: 0 | L21: =ROUND(100-'Townwide Contributions'!K21,2) -> 40.84 | N21: 0 | O21: 0 | S21: 0 | T21: 0 | Z21: 0 | AD21: 0 | AG21: 0 | AH21: 0 | AI21: 0 | AJ21: 0 | AK21: 0 | AL21: 0 | AM21: 0 | AN21: 0 | AO21: 0 | AQ21: 0 | AR21: 0 | AS21: 0 | AU21: 0 | AW21: 0 | AY21: 0 | BB21: 0 | BC21: 0
A22: 13 | B22: Ashfield | C22: 0 | D22: 233861.83 | E22: 93413 | F22: 0 | G22: 93413 | H22: 100602.5808 | I22: 74854 | J22: 25749 | K22: 0 | L22: =ROUND(100-'Townwide Contributions'!K22,2) -> 25.59 | N22: 0 | O22: 0 | S22: 15 | T22: 7 | Z22: 0 | AD22: 0 | AG22: 0 | AH22: 0 | AI22: 93413 | AJ22: 0 | AK22: 93413 | AL22: 93413 | AM22: 0 | AN22: 168267 | AO22: 167.2591286 | AQ22: -133259.2492 | AR22: 0 | AS22: 67668.79958 | AU22: 14371.8 | AW22: 0 | AY22: 0 | BB22: 93413 | BC22: 0
A23: 14 | B23: Ashland | C23: 1 | D23: 26344731.8 | E23: 6115970 | F23: 0 | G23: 6115970 | H23: 29177890.76 | I23: 21472389 | J23: 7705502 | K23: 1589532 | L23: =ROUND(100-'Townwide Contributions'!K23,2) -> 26.04 | N23: 0 | O23: 0 | S23: 2581 | T23: 2764 | Z23: 1 | AD23: 0 | AG23: 82920 | AH23: 0 | AI23: 7705502 | AJ23: 0 | AK23: 7705502 | AL23: 7839520 | AM23: 26.86801477 | AN23: 29311909 | AO23: 100.4593144 | AQ23: 2833158.962 | AR23: 1723550 | AS23: 241597.2465 | AT23: 0.8280147749 | AU23: 10556.4 | AW23: 0 | AY23: 623.5709117 | BB23: 7839520 | BC23: 134018
A24: 15 | B24: Athol | C24: 0 | D24: 13837.16 | E24: 13837.16 | F24: 0 | G24: 13837.16 | H24: 0 | I24: 0 | J24: 0 | K24: 0 | L24: =ROUND(100-'Townwide Contributions'!K24,2) -> 71.31 | N24: 0 | O24: 0 | S24: 1 | T24: 0 | Z24: 0 | AD24: 0 | AG24: 0 | AH24: 0 | AI24: 13837.16 | AJ24: 13837.16 | AK24: 0 | AL24: 0 | AM24: 0 | AN24: 0 | AO24: 0 | AQ24: -13837.16 | AR24: -13837.16 | AS24: 0 | AU24: 0 | AW24: 0 | AY24: 0 | BB24: 0 | BC24: 0
A25: 16 | B25: Attleboro | C25: 1 | D25: 72980818.83 | E25: 37773985 | F25: 0 | G25: 37773985 | H25: 77760770.56 | I25: 36638947 | J25: 41121824 | K25: 3347839 | L25: =ROUND(100-'Townwide Contributions'!K25,2) -> 52.15 | N25: 0 | O25: 0 | S25: 6311 | T25: 6355 | Z25: 1 | AD25: 0 | AG25: 190650 | AH25: 0 | AI25: 41121824 | AJ25: 0 | AK25: 41121824 | AL25: 41121824 | AM25: 52.88248008 | AN25: 77760771 | AO25: 100.0000006 | AQ25: 4779951.728 | AR25: 3347839 | AS25: 569582.1538 | AT25: 0.7324800792 | AU25: 12236.16 | AW25: 0 | AY25: 526.8039339 | BB25: 40619227 | BC25: 0
A26: 17 | B26: Auburn | C26: 1 | D26: 25672129.78 | E26: 11066959 | F26: 0 | G26: 11066959 | H26: 26762943.25 | I26: 15076760 | J26: 11686183 | K26: 619224 | L26: =ROUND(100-'Townwide Contributions'!K26,2) -> 43.67 | N26: 0 | O26: 0 | S26: 2495 | T26: 2494 | Z26: 1 | AD26: 0 | AG26: 74820 | AH26: 0 | AI26: 11686183 | AJ26: 0 | AK26: 11686183 | AL26: 11851108 | AM26: 44.2817813 | AN26: 26927868 | AO26: 100.6162429 | AQ26: 1090813.47 | AR26: 784149 | AS26: 163730.6829 | AT26: 0.6117813028 | AU26: 10730.93 | AW26: 0 | AY26: 314.4141941 | BB26: 11851108 | BC26: 164925
A27: 18 | B27: Avon | C27: 1 | D27: 6193899.03 | E27: 1807404 | F27: 0 | G27: 1807404 | H27: 6653932.031 | I27: 4537696 | J27: 2116236 | K27: 308832 | L27: =ROUND(100-'Townwide Contributions'!K27,2) -> 31.8 | N27: 0 | O27: 0 | S27: 561 | T27: 563 | Z27: 1 | AD27: 0 | AG27: 16890 | AH27: 0 | AI27: 2116236 | AJ27: 0 | AK27: 2116236 | AL27: 2116236 | AM27: 31.80429241 | AN27: 6653932 | AO27: 99.99999954 | AQ27: 460033.0009 | AR27: 308832 | AS27: 285.6141672 | AT27: 0.004292411854 | AU27: 11818.71 | AW27: 0 | AY27: 548.5470693 | BB27: 2087455 | BC27: 0
A28: 19 | B28: Ayer | C28: 0 | D28: 0 | E28: 0 | F28: 0 | G28: 0 | H28: 0 | I28: 0 | J28: 0 | K28: 0 | L28: =ROUND(100-'Townwide Contributions'!K28,2) -> 29.34 | N28: 0 | O28: 0 | S28: 0 | T28: 0 | Z28: 0 | AD28: 0 | AG28: 0 | AH28: 0 | AI28: 0 | AJ28: 0 | AK28: 0 | AL28: 0 | AM28: 0 | AN28: 0 | AO28: 0 | AQ28: 0 | AR28: 0 | AS28: 0 | AU28: 0 | AW28: 0 | AY28: 0 | BB28: 0 | BC28: 0
A29: 20 | B29: Barnstable | C29: 1 | D29: 60393953.44 | E29: 10568941 | F29: 0 | G29: 10568941 | H29: 63524348.52 | I29: 51296149 | J29: 12228200 | K29: 1659259 | L29: =ROUND(100-'Townwide Contributions'!K29,2) -> 17.5 | N29: 0 | O29: 0 | S29: 5480 | T29: 5444 | Z29: 1 | AD29: 0 | AG29: 163320 | AH29: 0 | AI29: 12228200 | AJ29: 0 | AK29: 12228200 | AL29: 12228200 | AM29: 19.24962677 | AN29: 63524349 | AO29: 100.0000008 | AQ29: 3130395.08 | AR29: 1659259 | AS29: 1111439.009 | AT29: 1.749626773 | AU29: 11668.69 | AW29: 0 | AY29: 304.7867377 | BB29: 11732598 | BC29: 0
A30: 21 | B30: Barre | C30: 0 | D30: 0 | E30: 0 | F30: 0 | G30: 0 | H30: 0 | I30: 0 | J30: 0 | K30: 0 | L30: =ROUND(100-'Townwide Contributions'!K30,2) -> 61.06 | N30: 0 | O30: 0 | S30: 0 | T30: 0 | Z30: 0 | AD30: 0 | AG30: 0 | AH30: 0 | AI30: 0 | AJ30: 0 | AK30: 0 | AL30: 0 | AM30: 0 | AN30: 0 | AO30: 0 | AQ30: 0 | AR30: 0 | AS30: 0 | AU30: 0 | AW30: 0 | AY30: 0 | BB30: 0 | BC30: 0
A31: 22 | B31: Becket | C31: 0 | D31: 206187.51 | E31: 76563 | F31: 0 | G31: 76563 | H31: 143717.9726 | I31: 108529 | J31: 35189 | K31: 0 | L31: =ROUND(100-'Townwide Contributions'!K31,2) -> 17.5 | N31: 0 | O31: 0 | S31: 13 | T31: 10 | Z31: 0 | AD31: 0 | AG31: 0 | AH31: 0 | AI31: 76563 | AJ31: 0 | AK31: 76563 | AL31: 76563 | AM31: 0 | AN31: 185092 | AO31: 128.7883462 | AQ31: -62469.53745 | AR31: 0 | AS31: 51412.3548 | AU31: 14371.8 | AW31: 0 | AY31: 0 | BB31: 76563 | BC31: 0
A32: 23 | B32: Bedford | C32: 1 | D32: 27912085.89 | E32: 4884615 | F32: 0 | G32: 4884615 | H32: 29672258.16 | I32: 24098559 | J32: 5573699 | K32: 689084 | L32: =ROUND(100-'Townwide Contributions'!K32,2) -> 17.5 | N32: 0 | O32: 0 | S32: 2661 | T32: 2693 | Z32: 1 | AD32: 0 | AG32: 80790 | AH32: 0 | AI32: 5573699 | AJ32: 0 | AK32: 5573699 | AL32: 5595167 | AM32: 18.85655945 | AN32: 29693726 | AO32: 100.0723499 | AQ32: 1760172.27 | AR32: 710552 | AS32: 402521.8221 | AT32: 1.35655945 | AU32: 11018.29 | AW32: 0 | AY32: 263.8514668 | BB32: 5595167 | BC32: 21468
